Workbook

Sheet 1.Instructions
B1: v. 210714
A2: =RIGHT(CELL("filename",A2),LEN(CELL("filename",A2))-FIND("]",CELL("filename",A2))) -> 1.Instructions | B2: =TT!$O$156 -> Workbook Setup
C4: =TT!$O$3 -> Select Language  | G4: English
H7: =TT!$O$8 -> Next 

Sheet 2.Concussion data by sport
A2: =RIGHT(CELL("filename",A2),LEN(CELL("filename",A2))-FIND("]",CELL("filename",A2))) -> 2.Concussion data by sport | B2: =TT!$O$10 -> Sport Categories
D7: =TT!$O14 -> Contact | Q7: =TT!$O15 -> Limited Contact | AB7: =TT!$O16 -> Non-Contact
D8: =TT!$O$17 -> Athletes purposely hit or collide with each other or with the ground; includes consistent, frequent or inadvertent contact | Q8: =TT!$O$18 -> Contact with other athletes or inanimate objects is infrequent and/or inadvertent | AB8: =TT!$O$19 -> Does not involve contact, or inadvertent contact only
D10: =TT!$O$84 -> View Data  | Q10: =TT!$O$84 -> View Data  | AB10: =TT!$O$84 -> View Data 
B13: =TT!$O$20 -> Concussion Percentage Overview | O13: =TT!$O$21 -> Concussion Percentage by Sport
P15: =ActiveChartTitleText -> Top 5 contact sports that cause concussion
P16: =ActiveChartTitleText2 -> (percentage based on sample size of 605 adolescents)
F18: =ActiveCategoryValue -> 0.58117195
F19: =ActiveRadialText -> of all concussions occurred in contact sports
B29: =TT!$O$9 ->  Previous | O29: =HYPERLINK("https://www.ncbi.nlm.nih.gov/pmc/articles/PMC6029621/",TT!$O$83) -> For additional details, refer to the Variations in Mechanisms of Injury for Children with Concussion report | AG29: =TT!$O$8 -> Next 

Sheet 3.Brain regions
A2: =RIGHT(CELL("filename",A2),LEN(CELL("filename",A2))-FIND("]",CELL("filename",A2))) -> 3.Brain regions | B2: =TT!$O$85 -> Explore 3D Brain Model | M2: =TT!$O$86 -> Brain Lobes and Functions
N4: ➊ | O4: =TT!$O$87 -> Frontal | R4: =TT!$O$93 -> Emotions and Behaviors
R5: =TT!$O$94 -> Expressive language, motor skills, emotions, judgment, reasoning, and problem solving
R9: =TT!$O$98 -> VIEW 
N12: ➋ | O12: =TT!$O$88 -> Parietal | R12: =TT!$O$93 -> Emotions and Behaviors
R13: =TT!$O$95 -> Sensory processing related to body orientation, pain, taste, pressure, touch and temperature
R17: =TT!$O$98 -> VIEW 
N20: ➌ | O20: =TT!$O$92 -> Temporal | R20: =TT!$O$93 -> Emotions and Behaviors
R21: =TT!$O$96 -> Memory, interpreting language, behavior, and interpreting and processing sounds
R25: =TT!$O$99 -> VIEW LEFT  | V25: =TT!$O$100 -> VIEW RIGHT 
N28: ➍ | O28: =TT!$O$91 -> Occipital | R28: =TT!$O$93 -> Emotions and Behaviors
R29: =TT!$O$97 -> Vision, object recognition, distance and perception of color
R33: =TT!$O$98 -> VIEW 
B36: =TT!$O$9 ->  Previous | AA36: =TT!$O$8 -> Next 

Sheet 4.Impact simulator data
A1: 30 | B1: 25 | C1: 10 | D1: 20 | E1: 15 | F1: 10 | G1: 20 | H1: 15 | I1: 35 | J1: 15 | K1: 25 | L1: 45 | M1: 15 | N1: 30 | O1: 15 | P1: 30 | Q1: 60 | R1: 60 | S1: 60 | T1: 60 | U1: 30 | V1: 30 | W1: 25 | X1: 15 | Y1: 25 | Z1: 15 | AA1: 48 | AB1: 15 | AC1: 48 | AD1: 15 | AE1: 48 | AF1: 15 | AG1: 25 | AH1: 25 | AI1: 15 | AJ1: 48 | AK1: 15 | AL1: 48 | AM1: 15 | AN1: 24 | AO1: 24 | AP1: 15 | AQ1: 25 | AR1: 25 | AS1: 15 | AT1: 48 | AU1: 15 | AV1: 48 | AW1: 15 | AX1: 24 | AY1: 24 | AZ1: 15 | BA1: 25 | BB1: 25 | BC1: 15 | BD1: 48 | BE1: 15 | BF1: 48 | BG1: 15 | BH1: 24 | BI1: 24 | BJ1: 15 | BK1: 25
B2: =TT!$O$101 -> Live Data | C2: =TT!$O$101 -> Live Data | W2: =TT!$O$101 -> Live Data | Y2: =TT!$O$101 -> Live Data | Z2: ='Reference Cells'!$C$35 -> Trials: Baseline Session
A3: =RIGHT(CELL("filename",A2),LEN(CELL("filename",A2))-FIND("]",CELL("filename",A2))) -> 4.Impact simulator data | BD3: ='Reference Cells'!$C$33 -> Save Baseline 
A4: 40
A5: 25 | B5: =TT!$O$102 -> Capture Data | Q5: =TT!$O$103 -> Review Data
A6: 15 | Z6: =TT!$O$101 -> Live Data | AI6: =TT!$O$111 -> Save Trial 1  | AS6: =TT!$O$112 -> Save Trial 2  | BC6: =TT!$O$113 -> Save Trial 3 
A7: 15
A8: 25 | C8: =TT!$O$153&" "&TT!$O$154 -> Run and save trials, making sure to calibrate sensors before each impact. Use the ‘Review data’ tab to analyze current saved trials moment by moment.
A9: 25
A10: 25
A11: 10
A12: 30 | C12:  | F12:  | I12: =IF(TimeEntry<0,TT!$O$120,TimeEntry) -> 0 | N12:  | P12:  | S12: =TT!$O$108 -> Calibrate Sensors 
A13: 15
A14: 5 | V14: =TT!$O$152 -> BIU (Brain Impact Units)
A15: 20 | G15: =TT!$O$87 -> Frontal
A16: 25
A17: 20
A18: 5
A19: 15
A20: 5
A21: 20 | G21: =TT!$O$88 -> Parietal | AA21: =TT!$O$115 -> High | AC21: =TT!$O$116 -> Medium | AE21: =TT!$O$117 -> Low | AJ21: =TT!$O$115 -> High | AL21: =TT!$O$116 -> Medium | AN21: =TT!$O$117 -> Low | AT21: =TT!$O$115 -> High | AV21: =TT!$O$116 -> Medium | AX21: =TT!$O$117 -> Low | BD21: =TT!$O$115 -> High | BF21: =TT!$O$116 -> Medium | BH21: =TT!$O$117 -> Low
A22: 25 | Z22: =TT!$O$87 -> Frontal | AE22: =BrainSensorVals!$K$11 -> 0 | AI22: =TT!$O$87 -> Frontal | AN22: =BrainSensorVals!$K$16 -> 0 | AS22: =TT!$O$87 -> Frontal | AX22: =BrainSensorVals!$K$21 -> 0 | BC22: =TT!$O$87 -> Frontal | BH22: =BrainSensorVals!$K$26 -> 0
A23: 20 | Z23: =TT!$O$88 -> Parietal | AE23: =BrainSensorVals!$K$12 -> 0 | AI23: =TT!$O$88 -> Parietal | AN23: =BrainSensorVals!$K$17 -> 0 | AS23: =TT!$O$88 -> Parietal | AX23: =BrainSensorVals!$K$22 -> 0 | BC23: =TT!$O$88 -> Parietal | BH23: =BrainSensorVals!$K$27 -> 0
A24: 5
A25: 15 | Z25: =TT!$O$131 -> Left Temporal | AE25: =BrainSensorVals!$K$13 -> 0 | AI25: =TT!$O$131 -> Left Temporal | AN25: =BrainSensorVals!$K$18 -> 0 | AS25: =TT!$O$131 -> Left Temporal | AX25: =BrainSensorVals!$K$23 -> 0 | BC25: =TT!$O$131 -> Left Temporal | BH25: =BrainSensorVals!$K$28 -> 0
A26: 5
A27: 5 | G27: =TT!$O$89 -> Temporal (L)
A28: 25 | Z28: =TT!$O$130 -> Right Temporal | AE28: =BrainSensorVals!$K$14 -> 0 | AI28: =TT!$O$130 -> Right Temporal | AN28: =BrainSensorVals!$K$19 -> 0 | AS28: =TT!$O$130 -> Right Temporal | AX28: =BrainSensorVals!$K$24 -> 0 | BC28: =TT!$O$130 -> Right Temporal | BH28: =BrainSensorVals!$K$29 -> 0
A29: 25 | Z29: =TT!$O$91 -> Occipital | AE29: =BrainSensorVals!$K$15 -> 0 | AI29: =TT!$O$91 -> Occipital | AN29: =BrainSensorVals!$K$20 -> 0 | AS29: =TT!$O$91 -> Occipital | AX29: =BrainSensorVals!$K$25 -> 0 | BC29: =TT!$O$91 -> Occipital | BH29: =BrainSensorVals!$K$30 -> 0
A30: 10
A31: 5
A32: 15 | AI32: =TT!$O$118 -> Highest Impact: | AS32: =TT!$O$118 -> Highest Impact: | BC32: =TT!$O$118 -> Highest Impact:
A33: 5
A34: 20 | G34: =TT!$O$90 -> Temporal (R) | AI34: =MaxSensorT1 ->  | AS34: =MaxSensorT2 ->  | BC34: =MaxSensorT3 -> 
A35: 10
A36: 35 | AI36: =MaxTextT1 ->  | AS36: =MaxTextT2 ->  | BC36: =MaxTextT3 -> 
A37: 5
A38: 15
A39: 5
A40: 30 | G40: =TT!$O$91 -> Occipital
A41: 10
A42: 25 | AM42: =TT!$O$146 -> Clear  | AW42: =TT!$O$146 -> Clear  | BG42: =TT!$O$146 -> Clear 
A43: 5
A44: 20 | G44: 0 | L44: 0.5 | Q44: 1 | S44: 1.5 | U44: 2
A45: 15
A46: 30 | B46: =TT!$O$9 ->  Previous | BE46: =TT!$O$8 -> Next 

Sheet 5.Saved trial data
A2: =RIGHT(CELL("filename",A2),LEN(CELL("filename",A2))-FIND("]",CELL("filename",A2))) -> 5.Saved trial data | B2: =TT!$O$125 -> Session Summary
F4: =TT!$O$136 -> Session Name
F6: =TT!$O141 -> Session Date
F7: =TT!$O142 -> Session Time
D8: =TT!$O$127 -> Trial Averages | F8: =TT!$O128 -> Frontal Lobe
F9: =TT!$O129 -> Parietal Lobe
F10: =TT!$O130 -> Right Temporal
F11: =TT!$O131 -> Left Temporal
F12: =TT!$O132 -> Occipital Lobe
D13: =TT!$O87 -> Frontal | F13: =TT!$O$133 -> Trial 1
F14: =TT!$O$134 -> Trial 2
F15: =TT!$O$135 -> Trial 3
D16: =TT!$O88 -> Parietal | F16: =TT!$O$133 -> Trial 1
F17: =TT!$O$134 -> Trial 2
F18: =TT!$O$135 -> Trial 3
D19: =TT!$O89 -> Temporal (L) | F19: =TT!$O$133 -> Trial 1
F20: =TT!$O$134 -> Trial 2
F21: =TT!$O$135 -> Trial 3
D22: =TT!$O90 -> Temporal (R) | F22: =TT!$O$133 -> Trial 1
F23: =TT!$O$134 -> Trial 2
F24: =TT!$O$135 -> Trial 3
D25: =TT!$O91 -> Occipital | F25: =TT!$O$133 -> Trial 1
F26: =TT!$O$134 -> Trial 2
F27: =TT!$O$135 -> Trial 3
I29: =TT!$O$146 -> Clear  | L29: =TT!$O$146 -> Clear  | O29: =TT!$O$146 -> Clear  | R29: =TT!$O$146 -> Clear  | U29: =TT!$O$146 -> Clear  | X29: =TT!$O$146 -> Clear  | AA29: =TT!$O$146 -> Clear  | AD29: =TT!$O$146 -> Clear 
B32: =TT!$O$9 ->  Previous | AB32: =TT!$O$8 -> Next 

Sheet 6.References
A2: =RIGHT(CELL("filename",A2),LEN(CELL("filename",A2))-FIND("]",CELL("filename",A2))) -> 6.References | B2: =TT!$O$143 -> References
C4: =TT!$O$144 -> Brain research is an evolving scientific field. Scientists are making new discoveries every day about how the brain works. Information about the functioning of the brain and the effect of impact on brain functions as stated in this lesson and workbook are based on information gathered from the referenced sources. It is possible that this information will change in time.
C9: =TT!$O$145 -> Source | N9: =TT!$O$151 -> Link to data
C11: =TT!$O$147 -> Variations in Mechanisms for Children with Concussion | N11: =HYPERLINK("https://www.ncbi.nlm.nih.gov/pmc/articles/PMC6029621/") -> https://www.ncbi.nlm.nih.gov/pmc/articles/PMC6029621/
C13: =TT!$O$148 -> Anatomy of the Brain, Mayfield Brain and Spine | N13: =HYPERLINK("https://mayfieldclinic.com/pe-anatbrain.htm") -> https://mayfieldclinic.com/pe-anatbrain.htm
C15: =TT!$O$149 -> Cognitive Skills of the Brain, Brain Injury Alliance of Utah | N15: =HYPERLINK("https://biau.org/about-brain-injuries/cognitive-skills-of-the-brain/") -> https://biau.org/about-brain-injuries/cognitive-skills-of-the-brain/
C17: =TT!$O$150 -> Overview of Cerebral Function, Merck Manuals | N17: =HYPERLINK("https://www.merckmanuals.com/professional/neurologic-disorders/function-and-dysfunction-of-the-cerebral-lobes/overview-of-cerebral-function") -> https://www.merckmanuals.com/professional/neurologic-disorders/function-and-dysfunction-of-the-cerebral-lobes/overview-of-cerebral-function
B25: =TT!$O$9 ->  Previous

Sheet Data In
A1: Data In (From Source) | K1: update
A2: Data coming from the current data source will appear below as it is received.
A3: Current Data
A4: Time | B4: S1 | C4: S2 | D4: S3 | E4: S4 | F4: S5
A6: Historical Data
A7: =IF(A4="","",A4) -> Time | B7: =IF(B4="","",B4) -> S1 | C7: S2 | D7: S3 | E7: S4 | F7: S5

Sheet Data Out
A1: Data Out (To Device) | K1: update
A2: Data entered into the channels below will be sent to the currently connected device as a comma-delimited string.
A4: CH1 | B4: CH2 | C4: CH3 | D4: CH4 | E4: CH5

Sheet Settings
A1: Workbook Settings | H1: update
A2: Settings below will affect how data is read into the current workbook from data sources. Clear a field's contents to revert to its default setting.
A4: Data interval (ms): | B4: 150 | C4: 50
A6: Data rows: | B6: 15 | C6: 500
A8: Data channels: | B8: 10 | C8: 5
A10: Data orientation: | B10: Newest last
A12: WARNING: Changing settings may result in the loss of content and/or custom formatting in the Data In and Data Out worksheets. Always save before changing values.

Sheet TT (hidden)
B2: Row | C2: Tab | D2: Location | E2: Language 1 | F2: Language 2 | G2: Language 3 | H2: Language 4 | I2: Language 5 | J2: Language 6 | K2: Language 7 | L2: Language 8 | M2: Language 9 | N2: Language 10 | O2: Display
B3: =ROW() -> 3 | C3: Instructions | D3: =TT[[#This Row],[Tab]]&TT[[#This Row],[Row]] -> Instructions3 | E3: Select Language  | F3: Selecionar idioma  | G3: Selecciona el idioma  | H3: Sprache auswählen  | I3: Choisir la langue  | O3: =INDEX(TT[[#This Row],[Language 1]:[Language 10]],1,LanguageSelect) -> Select Language  | R3: Select Language | S3: ='1.Instructions'!$G$4 -> English | T3: =INDEX($R$5:$R$14,MATCH($S$3,$S$5:$S$14,0)) -> 1
B4: =ROW() -> 4 | C4: Instructions | D4: =TT[[#This Row],[Tab]]&TT[[#This Row],[Row]] -> Instructions4 | E4: This workbook uses "Macros" (automated Excel commands) to assist in the data collection process. | F4: Esta pasta de trabalho usa "Macros" (comandos automatizados do Excel) para auxiliar no processo de coleta de dados | G4: Este libro de trabajo utiliza "Macros" (comandos automatizados de Excel) para ayudar en el proceso de recopilación de datos. | H4: Diese Arbeitsmappe verwendet "Makros" (automatisierte Excel-Befehle), um den Datenerfassungsprozess zu unterstützen. | I4: Ce classeur utilise des « Macros » (commandes Excel automatisées) pour faciliter le processus de collecte de données. | O4: =INDEX(TT[[#This Row],[Language 1]:[Language 10]],1,LanguageSelect) -> This workbook uses "Macros" (automated Excel commands) to assist in the data collection process.
B5: =ROW() -> 5 | C5: Instructions | D5: =TT[[#This Row],[Tab]]&TT[[#This Row],[Row]] -> Instructions5 | E5: To use these Macros and have buttons on the spreadsheets work, you must "Enable" the Macros. | F5: Para usar essas Macros e ter botões nas planilhas funcionando, você deve "Habilitar" as Macros | G5: Para utilizar estas macros y tener botones en las hojas de cálculo, debes "Habilitar" las macros. | H5: Um diese Makros zu verwenden und Schaltflächen auf den Tabellenkalkulationen zu haben, musst du die Makros "aktivieren". | I5: Pour utiliser ces Macros et utiliser des boutons sur les feuilles de calcul, vous devez « activer » les Macros. | O5: =INDEX(TT[[#This Row],[Language 1]:[Language 10]],1,LanguageSelect) -> To use these Macros and have buttons on the spreadsheets work, you must "Enable" the Macros. | R5: 1 | S5: English
B6: =ROW() -> 6 | C6: Instructions | D6: =TT[[#This Row],[Tab]]&TT[[#This Row],[Row]] -> Instructions6 | E6: Click the "Enable Content" button that appears above when you first open this workbook. | F6: Clique no botão "Habilitar Conteúdo" exibido acima quando você abrir a pasta de trabalho pela primeira vez | G6: Haz clic en el botón "Habilitar contenido" que aparece arriba cuando abras por primera vez este libro de trabajo. | H6: Klicke auf die Schaltfläche "Inhalt aktivieren", die oben erscheint, wenn du diese Arbeitsmappe zum ersten Mal öffnest. | I6: Cliquez sur le bouton « Activer le contenu » qui apparaît ci-dessus lorsque vous ouvrez ce classeur pour la première fois. | O6: =INDEX(TT[[#This Row],[Language 1]:[Language 10]],1,LanguageSelect) -> Click the "Enable Content" button that appears above when you first open this workbook. | R6: 2 | S6: Português
B7: =ROW() -> 7 | C7: Instructions | D7: =TT[[#This Row],[Tab]]&TT[[#This Row],[Row]] -> Instructions7 | E7: Once you have enabled macros, you can use the workbook. If you do not see this message, macros are enabled. | F7: Depois de habilitar as macros, você poderá usar a pasta de trabalho. Se você não vir essa mensagem, as macros serão habilitadas | G7: Una vez que hayas activado las macros, podrás utilizar el libro de trabajo. Si no ves este mensaje, las macros están habilitadas | H7: Sobald du Makros aktiviert hast, kannst du die Arbeitsmappe verwenden. Wenn du diese Meldung nicht siehst, sind die Makros aktiviert. | I7: Une fois que vous avez activé les Macros, vous pouvez utiliser le classeur. Si vous ne voyez pas ce message, les Macros sont activées. | O7: =INDEX(TT[[#This Row],[Language 1]:[Language 10]],1,LanguageSelect) -> Once you have enabled macros, you can use the workbook. If you do not see this message, macros are enabled. | R7: 3 | S7: Español
B8: =ROW() -> 8 | C8: *Navigation | D8: =TT[[#This Row],[Tab]]&TT[[#This Row],[Row]] -> *Navigation8 | E8: Next  | F8: Próximo  | G8: Siguiente  | H8: Weiter  | I8: Suivant  | O8: =INDEX(TT[[#This Row],[Language 1]:[Language 10]],1,LanguageSelect) -> Next  | R8: 4 | S8: Deutsch
B9: =ROW() -> 9 | C9: *Navigation | D9: =TT[[#This Row],[Tab]]&TT[[#This Row],[Row]] -> *Navigation9 | E9:  Previous | F9:  Anterior | G9:  Anterior | H9:  Vorherige | I9:  Précédent | O9: =INDEX(TT[[#This Row],[Language 1]:[Language 10]],1,LanguageSelect) ->  Previous | R9: 5 | S9: Français
B10: =ROW() -> 10 | C10: 1.Concussion data by sport | D10: =TT[[#This Row],[Tab]]&TT[[#This Row],[Row]] -> 1.Concussion data by sport10 | E10: Sport Categories | F10: Categorias de Esporte | G10: Categorías de Deportes | H10: Sportkategorien | I10: Catégories de sport | O10: =INDEX(TT[[#This Row],[Language 1]:[Language 10]],1,LanguageSelect) -> Sport Categories | R10: 6
B11: =ROW() -> 11 | C11: 1.Concussion data by sport | D11: =TT[[#This Row],[Tab]]&TT[[#This Row],[Row]] -> 1.Concussion data by sport11 | E11: Contact Sports | F11: Esportes de Contato | G11: Deportes de contacto | H11: Kontakt Sportarten | I11: Sports de contact | O11: =INDEX(TT[[#This Row],[Language 1]:[Language 10]],1,LanguageSelect) -> Contact Sports | R11: 7
B12: =ROW() -> 12 | C12: 1.Concussion data by sport | D12: =TT[[#This Row],[Tab]]&TT[[#This Row],[Row]] -> 1.Concussion data by sport12 | E12: Limited Contact Sports | F12: Esportes de Contato Limitados | G12: Deportes de contacto limitado | H12: Begrenzter Kontakt Sport | I12: Sports de contact limité | O12: =INDEX(TT[[#This Row],[Language 1]:[Language 10]],1,LanguageSelect) -> Limited Contact Sports | R12: 8
B13: =ROW() -> 13 | C13: 1.Concussion data by sport | D13: =TT[[#This Row],[Tab]]&TT[[#This Row],[Row]] -> 1.Concussion data by sport13 | E13: Non-Contact Sports | F13: Esportes Sem Contato | G13: Deportes sin contacto | H13: Kontaktloser Sport | I13: Sports sans contact | O13: =INDEX(TT[[#This Row],[Language 1]:[Language 10]],1,LanguageSelect) -> Non-Contact Sports | R13: 9
B14: =ROW() -> 14 | C14: 1.Concussion data by sport | D14: =TT[[#This Row],[Tab]]&TT[[#This Row],[Row]] -> 1.Concussion data by sport14 | E14: Contact | F14: Contato | G14: Contacto | H14: Kontakt | I14: Contact | O14: =INDEX(TT[[#This Row],[Language 1]:[Language 10]],1,LanguageSelect) -> Contact | R14: 10
B15: =ROW() -> 15 | C15: 1.Concussion data by sport | D15: =TT[[#This Row],[Tab]]&TT[[#This Row],[Row]] -> 1.Concussion data by sport15 | E15: Limited Contact | F15: Contato Limitado | G15: Contacto Limitado | H15: Begrenzter Kontakt | I15: Contact limité | O15: =INDEX(TT[[#This Row],[Language 1]:[Language 10]],1,LanguageSelect) -> Limited Contact
B16: =ROW() -> 16 | C16: 1.Concussion data by sport | D16: =TT[[#This Row],[Tab]]&TT[[#This Row],[Row]] -> 1.Concussion data by sport16 | E16: Non-Contact | F16: Sem Contato | G16: Sin contacto | H16: Kontaktlos | I16: Sans contact | O16: =INDEX(TT[[#This Row],[Language 1]:[Language 10]],1,LanguageSelect) -> Non-Contact
B17: =ROW() -> 17 | C17: 1.Concussion data by sport | D17: =TT[[#This Row],[Tab]]&TT[[#This Row],[Row]] -> 1.Concussion data by sport17 | E17: Athletes purposely hit or collide with each other or with the ground; includes consistent, frequent or inadvertent contact | F17: Os atletas batem ou colidem propositadamente entre si ou com o chão; inclui contato consistente, frequente ou inadvertido | G17: Los atletas se golpean o chocan intencionalmente entre sí o con el suelo; incluye contacto constante, frecuente o inadvertido | H17: Sportler treffen oder kollidieren absichtlich miteinander oder mit dem Boden; beinhaltet gleichmäßigen, häufigen oder versehentlichen Kontakt. | I17: Les athlètes se frappent ou entre en collision entre eux ou avec le sol délibérément; cela comprend des contacts constants, fréquents ou involontaires | O17: =INDEX(TT[[#This Row],[Language 1]:[Language 10]],1,LanguageSelect) -> Athletes purposely hit or collide with each other or with the ground; includes consistent, frequent or inadvertent contact | R17: 
B18: =ROW() -> 18 | C18: 1.Concussion data by sport | D18: =TT[[#This Row],[Tab]]&TT[[#This Row],[Row]] -> 1.Concussion data by sport18 | E18: Contact with other athletes or inanimate objects is infrequent and/or inadvertent | F18: O contato com outros atletas ou objetos inanimados é infrequente e/ou inadvertido | G18: El contacto con otros atletas u objetos inanimados es infrecuente y/o inadvertido | H18: Der Kontakt mit anderen Athleten oder unbelebten Gegenständen ist selten und/oder versehentlich. | I18: Le contact avec d’autres athlètes ou des objets inanimés est peu fréquent et / ou involontaire | O18: =INDEX(TT[[#This Row],[Language 1]:[Language 10]],1,LanguageSelect) -> Contact with other athletes or inanimate objects is infrequent and/or inadvertent
B19: =ROW() -> 19 | C19: 1.Concussion data by sport | D19: =TT[[#This Row],[Tab]]&TT[[#This Row],[Row]] -> 1.Concussion data by sport19 | E19: Does not involve contact, or inadvertent contact only | F19: Não envolve contato ou apenas contato inadvertido | G19: No involucra contacto, o solo contacto inadvertido | H19: Es handelt sich nicht um Kontakt oder versehentlichen Kontakt. | I19: N'implique pas de contact, ou des contacts involontaires uniquement | O19: =INDEX(TT[[#This Row],[Language 1]:[Language 10]],1,LanguageSelect) -> Does not involve contact, or inadvertent contact only
B20: =ROW() -> 20 | C20: 1.Concussion data by sport | D20: =TT[[#This Row],[Tab]]&TT[[#This Row],[Row]] -> 1.Concussion data by sport20 | E20: Concussion Percentage Overview | F20: Visão Geral da Porcentagem de Concussão | G20: Resumen de porcentaje de concusión | H20: Übersicht über den Prozentsatz der Gehirnerschütterungen | I20: Aperçu du pourcentage de commotion cérébrale | O20: =INDEX(TT[[#This Row],[Language 1]:[Language 10]],1,LanguageSelect) -> Concussion Percentage Overview
B21: =ROW() -> 21 | C21: 1.Concussion data by sport | D21: =TT[[#This Row],[Tab]]&TT[[#This Row],[Row]] -> 1.Concussion data by sport21 | E21: Concussion Percentage by Sport | F21: Porcentagem de Concussão por Esporte | G21: Porcentaje de conmoción cerebral por deporte | H21: Prozentualer Anteil der Gehirnerschütterungen nach Sportart | I21: Pourcentage de commotion cérébrale due au sport | O21: =INDEX(TT[[#This Row],[Language 1]:[Language 10]],1,LanguageSelect) -> Concussion Percentage by Sport
B22: =ROW() -> 22 | C22: 1.Concussion data by sport | D22: =TT[[#This Row],[Tab]]&TT[[#This Row],[Row]] -> 1.Concussion data by sport22 | E22: Football | F22: Futebol Americano | G22: Fútbol americano | H22: Football | I22: Football américain | O22: =INDEX(TT[[#This Row],[Language 1]:[Language 10]],1,LanguageSelect) -> Football
B23: =ROW() -> 23 | C23: 1.Concussion data by sport | D23: =TT[[#This Row],[Tab]]&TT[[#This Row],[Row]] -> 1.Concussion data by sport23 | E23: Soccer | F23: Futebol | G23: Fútbol soccer | H23: Fußball | I23: Football | O23: =INDEX(TT[[#This Row],[Language 1]:[Language 10]],1,LanguageSelect) -> Soccer
B24: =ROW() -> 24 | C24: 1.Concussion data by sport | D24: =TT[[#This Row],[Tab]]&TT[[#This Row],[Row]] -> 1.Concussion data by sport24 | E24: Basketball | F24: Basquete | G24: Baloncesto | H24: Basketball | I24: Basket-ball | O24: =INDEX(TT[[#This Row],[Language 1]:[Language 10]],1,LanguageSelect) -> Basketball
B25: =ROW() -> 25 | C25: 1.Concussion data by sport | D25: =TT[[#This Row],[Tab]]&TT[[#This Row],[Row]] -> 1.Concussion data by sport25 | E25: Ice hockey | F25: Hóquei no gelo | G25: Hockey sobre hielo | H25: Eishockey | I25: Hockey sur glace | O25: =INDEX(TT[[#This Row],[Language 1]:[Language 10]],1,LanguageSelect) -> Ice hockey
B26: =ROW() -> 26 | C26: 1.Concussion data by sport | D26: =TT[[#This Row],[Tab]]&TT[[#This Row],[Row]] -> 1.Concussion data by sport26 | E26: Lacrosse | F26: Lacrosse | G26: Lacrosse | H26: Lacrosse | I26: Lacrosse | O26: =INDEX(TT[[#This Row],[Language 1]:[Language 10]],1,LanguageSelect) -> Lacrosse
B27: =ROW() -> 27 | C27: 1.Concussion data by sport | D27: =TT[[#This Row],[Tab]]&TT[[#This Row],[Row]] -> 1.Concussion data by sport27 | E27: Wrestling | F27: Luta Livre | G27: Lucha libre | H27: Ringen | I27: Lutte | O27: =INDEX(TT[[#This Row],[Language 1]:[Language 10]],1,LanguageSelect) -> Wrestling
B28: =ROW() -> 28 | C28: 1.Concussion data by sport | D28: =TT[[#This Row],[Tab]]&TT[[#This Row],[Row]] -> 1.Concussion data by sport28 | E28: Field hockey | F28: Hóquei em campo | G28: Hockey sobre césped | H28: Feldhockey | I28: Hockey sur gazon | O28: =INDEX(TT[[#This Row],[Language 1]:[Language 10]],1,LanguageSelect) -> Field hockey
B29: =ROW() -> 29 | C29: 1.Concussion data by sport | D29: =TT[[#This Row],[Tab]]&TT[[#This Row],[Row]] -> 1.Concussion data by sport29 | E29: Rugby | F29: Rúgbi | G29: Rugby | H29: Rugby | I29: Rugby | O29: =INDEX(TT[[#This Row],[Language 1]:[Language 10]],1,LanguageSelect) -> Rugby
B30: =ROW() -> 30 | C30: 1.Concussion data by sport | D30: =TT[[#This Row],[Tab]]&TT[[#This Row],[Row]] -> 1.Concussion data by sport30 | E30: Water polo | F30: Pólo aquático | G30: Waterpolo | H30: Wasserball | I30: Water-polo | O30: =INDEX(TT[[#This Row],[Language 1]:[Language 10]],1,LanguageSelect) -> Water polo
B31: =ROW() -> 31 | C31: 1.Concussion data by sport | D31: =TT[[#This Row],[Tab]]&TT[[#This Row],[Row]] -> 1.Concussion data by sport31 | E31: Martial arts | F31: Artes marciais | G31: Artes marciales | H31: Kampfsport | I31: Arts martiaux | O31: =INDEX(TT[[#This Row],[Language 1]:[Language 10]],1,LanguageSelect) -> Martial arts
B32: =ROW() -> 32 | C32: 1.Concussion data by sport | D32: =TT[[#This Row],[Tab]]&TT[[#This Row],[Row]] -> 1.Concussion data by sport32 | E32: Diving | F32: Mergulho | G32: Buceo | H32: Tauchen | I32: Plongée | O32: =INDEX(TT[[#This Row],[Language 1]:[Language 10]],1,LanguageSelect) -> Diving
B33: =ROW() -> 33 | C33: 1.Concussion data by sport | D33: =TT[[#This Row],[Tab]]&TT[[#This Row],[Row]] -> 1.Concussion data by sport33 | E33: Floor hockey | F33: Hóquei | G33: Hockey sobre suelo | H33: Bodenhockey | I33: Hockey au sol | O33: =INDEX(TT[[#This Row],[Language 1]:[Language 10]],1,LanguageSelect) -> Floor hockey
B34: =ROW() -> 34 | C34: 1.Concussion data by sport | D34: =TT[[#This Row],[Tab]]&TT[[#This Row],[Row]] -> 1.Concussion data by sport34 | E34: Street hockey | F34: Hóquei de rua | G34: Hockey callejero | H34: Straßenhockey | I34: Hockey de rue | O34: =INDEX(TT[[#This Row],[Language 1]:[Language 10]],1,LanguageSelect) -> Street hockey
B35: =ROW() -> 35 | C35: 1.Concussion data by sport | D35: =TT[[#This Row],[Tab]]&TT[[#This Row],[Row]] -> 1.Concussion data by sport35 | E35: Cheerleading | F35: Cheerleading | G35: Porristas | H35: Cheerleading | I35: Cheerleading | O35: =INDEX(TT[[#This Row],[Language 1]:[Language 10]],1,LanguageSelect) -> Cheerleading
B36: =ROW() -> 36 | C36: 1.Concussion data by sport | D36: =TT[[#This Row],[Tab]]&TT[[#This Row],[Row]] -> 1.Concussion data by sport36 | E36: Baseball | F36: Basebol | G36: Béisbol | H36: Baseball | I36: Base-ball | O36: =INDEX(TT[[#This Row],[Language 1]:[Language 10]],1,LanguageSelect) -> Baseball
B37: =ROW() -> 37 | C37: 1.Concussion data by sport | D37: =TT[[#This Row],[Tab]]&TT[[#This Row],[Row]] -> 1.Concussion data by sport37 | E37: Volleyball | F37: Vôlei | G37: Voleibol | H37: Volleyball | I37: Volley-ball | O37: =INDEX(TT[[#This Row],[Language 1]:[Language 10]],1,LanguageSelect) -> Volleyball
B38: =ROW() -> 38 | C38: 1.Concussion data by sport | D38: =TT[[#This Row],[Tab]]&TT[[#This Row],[Row]] -> 1.Concussion data by sport38 | E38: Bike riding | F38: Ciclismo | G38: Andar en bicicleta | H38: Radfahren | I38: Vélo | O38: =INDEX(TT[[#This Row],[Language 1]:[Language 10]],1,LanguageSelect) -> Bike riding
B39: =ROW() -> 39 | C39: 1.Concussion data by sport | D39: =TT[[#This Row],[Tab]]&TT[[#This Row],[Row]] -> 1.Concussion data by sport39 | E39: Softball | F39: Softbol | G39: Softbol | H39: Softball | I39: Softball | O39: =INDEX(TT[[#This Row],[Language 1]:[Language 10]],1,LanguageSelect) -> Softball
B40: =ROW() -> 40 | C40: 1.Concussion data by sport | D40: =TT[[#This Row],[Tab]]&TT[[#This Row],[Row]] -> 1.Concussion data by sport40 | E40: Gymnastics | F40: Ginástica | G40: Gimnasia | H40: Gymnastik | I40: Gymnastique | O40: =INDEX(TT[[#This Row],[Language 1]:[Language 10]],1,LanguageSelect) -> Gymnastics
B41: =ROW() -> 41 | C41: 1.Concussion data by sport | D41: =TT[[#This Row],[Tab]]&TT[[#This Row],[Row]] -> 1.Concussion data by sport41 | E41: Snowboarding | F41: Snowboarding | G41: Snowboarding | H41: Snowboarden | I41: Surf des neiges | O41: =INDEX(TT[[#This Row],[Language 1]:[Language 10]],1,LanguageSelect) -> Snowboarding
B42: =ROW() -> 42 | C42: 1.Concussion data by sport | D42: =TT[[#This Row],[Tab]]&TT[[#This Row],[Row]] -> 1.Concussion data by sport42 | E42: Ice skating | F42: Patinação no gelo | G42: Patinaje sobre hielo | H42: Eislaufen | I42: Patinage sur glace | O42: =INDEX(TT[[#This Row],[Language 1]:[Language 10]],1,LanguageSelect) -> Ice skating
B43: =ROW() -> 43 | C43: 1.Concussion data by sport | D43: =TT[[#This Row],[Tab]]&TT[[#This Row],[Row]] -> 1.Concussion data by sport43 | E43: Sledding | F43: Trenó | G43: Trineo | H43: Rodeln | I43: Luge | O43: =INDEX(TT[[#This Row],[Language 1]:[Language 10]],1,LanguageSelect) -> Sledding
B44: =ROW() -> 44 | C44: 1.Concussion data by sport | D44: =TT[[#This Row],[Tab]]&TT[[#This Row],[Row]] -> 1.Concussion data by sport44 | E44: Skiing | F44: Esquiar | G44: Esquí | H44: Skifahren | I44: Ski | O44: =INDEX(TT[[#This Row],[Language 1]:[Language 10]],1,LanguageSelect) -> Skiing
B45: =ROW() -> 45 | C45: 1.Concussion data by sport | D45: =TT[[#This Row],[Tab]]&TT[[#This Row],[Row]] -> 1.Concussion data by sport45 | E45: Equestrian | F45: Equestres | G45: Equitación | H45: Pferdesport | I45: Équitation | O45: =INDEX(TT[[#This Row],[Language 1]:[Language 10]],1,LanguageSelect) -> Equestrian
B46: =ROW() -> 46 | C46: 1.Concussion data by sport | D46: =TT[[#This Row],[Tab]]&TT[[#This Row],[Row]] -> 1.Concussion data by sport46 | E46: Skateboarding | F46: Skate | G46: Patinaje | H46: skateboardfahren | I46: Planche à roulettes | O46: =INDEX(TT[[#This Row],[Language 1]:[Language 10]],1,LanguageSelect) -> Skateboarding
B47: =ROW() -> 47 | C47: 1.Concussion data by sport | D47: =TT[[#This Row],[Tab]]&TT[[#This Row],[Row]] -> 1.Concussion data by sport47 | E47: Dodgeball | F47: Dodgeball | G47: Dodgeball | H47: Völkerball | I47: Ballon-chasseur | O47: =INDEX(TT[[#This Row],[Language 1]:[Language 10]],1,LanguageSelect) -> Dodgeball
B48: =ROW() -> 48 | C48: 1.Concussion data by sport | D48: =TT[[#This Row],[Tab]]&TT[[#This Row],[Row]] -> 1.Concussion data by sport48 | E48: Kickball | F48: Kickball | G48: Kickball | H48: Kickball | I48: Kickball | O48: =INDEX(TT[[#This Row],[Language 1]:[Language 10]],1,LanguageSelect) -> Kickball
B49: =ROW() -> 49 | C49: 1.Concussion data by sport | D49: =TT[[#This Row],[Tab]]&TT[[#This Row],[Row]] -> 1.Concussion data by sport49 | E49: Trampoline | F49: Trampolim | G49: Trampolín | H49: Trampolin | I49: Trampoline | O49: =INDEX(TT[[#This Row],[Language 1]:[Language 10]],1,LanguageSelect) -> Trampoline
B50: =ROW() -> 50 | C50: 1.Concussion data by sport | D50: =TT[[#This Row],[Tab]]&TT[[#This Row],[Row]] -> 1.Concussion data by sport50 | E50: Squash | F50: Squash | G50: Squash | H50: Squash | I50: Squash | O50: =INDEX(TT[[#This Row],[Language 1]:[Language 10]],1,LanguageSelect) -> Squash
B51: =ROW() -> 51 | C51: 1.Concussion data by sport | D51: =TT[[#This Row],[Tab]]&TT[[#This Row],[Row]] -> 1.Concussion data by sport51 | E51: Go carts | F51: Kart | G51: Kartings | H51: Go-Karts | I51: Karting | O51: =INDEX(TT[[#This Row],[Language 1]:[Language 10]],1,LanguageSelect) -> Go carts
B52: =ROW() -> 52 | C52: 1.Concussion data by sport | D52: =TT[[#This Row],[Tab]]&TT[[#This Row],[Row]] -> 1.Concussion data by sport52 | E52: Flag football | F52: Flag Football | G52: Fútbol bandera | H52: Flaggenfußball | I52: Flag football | O52: =INDEX(TT[[#This Row],[Language 1]:[Language 10]],1,LanguageSelect) -> Flag football
B53: =ROW() -> 53 | C53: 1.Concussion data by sport | D53: =TT[[#This Row],[Tab]]&TT[[#This Row],[Row]] -> 1.Concussion data by sport53 | E53: Bouncy house | F53: Casa insuflável | G53: Casa hinchable | H53: Hüpfburg | I53: Maison gonflable | O53: =INDEX(TT[[#This Row],[Language 1]:[Language 10]],1,LanguageSelect) -> Bouncy house
B54: =ROW() -> 54 | C54: 1.Concussion data by sport | D54: =TT[[#This Row],[Tab]]&TT[[#This Row],[Row]] -> 1.Concussion data by sport54 | E54: Rollerskating | F54: Patinação sobre rodas | G54: Patinaje sobre ruedas | H54: Rollschuhlaufen | I54: Patins à roulettes | O54: =INDEX(TT[[#This Row],[Language 1]:[Language 10]],1,LanguageSelect) -> Rollerskating
B55: =ROW() -> 55 | C55: 1.Concussion data by sport | D55: =TT[[#This Row],[Tab]]&TT[[#This Row],[Row]] -> 1.Concussion data by sport55 | E55: Playing tag | F55: Pega Pega | G55: Jugar a la mancha | H55: Abschlagen spielen | I55: Jeu du chat | O55: =INDEX(TT[[#This Row],[Language 1]:[Language 10]],1,LanguageSelect) -> Playing tag
B56: =ROW() -> 56 | C56: 1.Concussion data by sport | D56: =TT[[#This Row],[Tab]]&TT[[#This Row],[Row]] -> 1.Concussion data by sport56 | E56: Swimming | F56: Natação | G56: Natación | H56: Schwimmen | I56: Natation | O56: =INDEX(TT[[#This Row],[Language 1]:[Language 10]],1,LanguageSelect) -> Swimming
B57: =ROW() -> 57 | C57: 1.Concussion data by sport | D57: =TT[[#This Row],[Tab]]&TT[[#This Row],[Row]] -> 1.Concussion data by sport57 | E57: Dancing | F57: Dança | G57: Bailar | H57: Tanzen | I57: Danse | O57: =INDEX(TT[[#This Row],[Language 1]:[Language 10]],1,LanguageSelect) -> Dancing
B58: =ROW() -> 58 | C58: 1.Concussion data by sport | D58: =TT[[#This Row],[Tab]]&TT[[#This Row],[Row]] -> 1.Concussion data by sport58 | E58: Swinging | F58: Swing | G58: Columpios | H58: Schaukeln | I58: Balançoire | O58: =INDEX(TT[[#This Row],[Language 1]:[Language 10]],1,LanguageSelect) -> Swinging
B59: =ROW() -> 59 | C59: 1.Concussion data by sport | D59: =TT[[#This Row],[Tab]]&TT[[#This Row],[Row]] -> 1.Concussion data by sport59 | E59: Monkey bars | F59: Barras | G59: Barras de mono | H59: Barren | I59: Barres fixes | O59: =INDEX(TT[[#This Row],[Language 1]:[Language 10]],1,LanguageSelect) -> Monkey bars
B60: =ROW() -> 60 | C60: 1.Concussion data by sport | D60: =TT[[#This Row],[Tab]]&TT[[#This Row],[Row]] -> 1.Concussion data by sport60 | E60: Track | F60: Tracking | G60: Carreras de pista | H60: Track | I60: Circuit | O60: =INDEX(TT[[#This Row],[Language 1]:[Language 10]],1,LanguageSelect) -> Track
B61: =ROW() -> 61 | C61: 1.Concussion data by sport | D61: =TT[[#This Row],[Tab]]&TT[[#This Row],[Row]] -> 1.Concussion data by sport61 | E61: Tennis | F61: Tênis | G61: Tenis | H61: Tennis | I61: Tennis | O61: =INDEX(TT[[#This Row],[Language 1]:[Language 10]],1,LanguageSelect) -> Tennis
B62: =ROW() -> 62 | C62: 1.Concussion data by sport | D62: =TT[[#This Row],[Tab]]&TT[[#This Row],[Row]] -> 1.Concussion data by sport62 | E62: Running | F62: Corrida | G62: Correr | H62: Laufen | I62: Course | O62: =INDEX(TT[[#This Row],[Language 1]:[Language 10]],1,LanguageSelect) -> Running
B63: =ROW() -> 63 | C63: 1.Concussion data by sport | D63: =TT[[#This Row],[Tab]]&TT[[#This Row],[Row]] -> 1.Concussion data by sport63 | E63: Hunting | F63: Caça | G63: Cazar | H63: Jagen | I63: Chasse | O63: =INDEX(TT[[#This Row],[Language 1]:[Language 10]],1,LanguageSelect) -> Hunting
B64: =ROW() -> 64 | C64: 1.Concussion data by sport | D64: =TT[[#This Row],[Tab]]&TT[[#This Row],[Row]] -> 1.Concussion data by sport64 | E64: Roller coaster | F64: Montanha russa | G64: Montaña rusa | H64: Achterbahnfahren | I64: Montagnes russes | O64: =INDEX(TT[[#This Row],[Language 1]:[Language 10]],1,LanguageSelect) -> Roller coaster
B65: =ROW() -> 65 | C65: 1.Concussion data by sport | D65: =TT[[#This Row],[Tab]]&TT[[#This Row],[Row]] -> 1.Concussion data by sport65 | E65: Zipline | F65: Tirolesa | G65: Tirolesa | H65: Zipline | I65: Tyrolienne | O65: =INDEX(TT[[#This Row],[Language 1]:[Language 10]],1,LanguageSelect) -> Zipline
B66: =ROW() -> 66 | C66: 1.Concussion data by sport | D66: =TT[[#This Row],[Tab]]&TT[[#This Row],[Row]] -> 1.Concussion data by sport66 | E66: Playing | F66: Brincadeira | G66: Jugar | H66: Spielen | I66: Jeu | O66: =INDEX(TT[[#This Row],[Language 1]:[Language 10]],1,LanguageSelect) -> Playing
B67: =ROW() -> 67 | C67: 1.Concussion data by sport | D67: =TT[[#This Row],[Tab]]&TT[[#This Row],[Row]] -> 1.Concussion data by sport67 | E67: Gym class | F67: Treino em academia | G67: Clase de gimnasia | H67: Sportunterricht | I67: Classe d’éducation physique | O67: =INDEX(TT[[#This Row],[Language 1]:[Language 10]],1,LanguageSelect) -> Gym class
B68: =ROW() -> 68 | C68: 1.Concussion data by sport | D68: =TT[[#This Row],[Tab]]&TT[[#This Row],[Row]] -> 1.Concussion data by sport68 | E68: Playground | F68: Playground | G68: Área de juegos | H68: Spielplatz | I68: Terrain de jeux | O68: =INDEX(TT[[#This Row],[Language 1]:[Language 10]],1,LanguageSelect) -> Playground
B69: =ROW() -> 69 | C69: 1.Concussion data by sport | D69: =TT[[#This Row],[Tab]]&TT[[#This Row],[Row]] -> 1.Concussion data by sport69 | E69: Recess | F69: Recuo | G69: Recreo | H69: Pausenspiele | I69: Cours de récréation | O69: =INDEX(TT[[#This Row],[Language 1]:[Language 10]],1,LanguageSelect) -> Recess
B70: =ROW() -> 70 | C70: 1.Concussion data by sport | D70: =TT[[#This Row],[Tab]]&TT[[#This Row],[Row]] -> 1.Concussion data by sport70 | E70: Nonspecified | F70: Não especificado | G70: No especificado | H70: Nicht spezifiziert | I70: Non spécifié | O70: =INDEX(TT[[#This Row],[Language 1]:[Language 10]],1,LanguageSelect) -> Nonspecified
B71: =ROW() -> 71 | C71: 1.Concussion data by sport | D71: =TT[[#This Row],[Tab]]&TT[[#This Row],[Row]] -> 1.Concussion data by sport71 | E71: Playing outside | F71: Brincar ao ar livre | G71: Jugar al aire libre | H71: Draußen spielen | I71: Jeu à l’extérieur | O71: =INDEX(TT[[#This Row],[Language 1]:[Language 10]],1,LanguageSelect) -> Playing outside
B72: =ROW() -> 72 | C72: 1.Concussion data by sport | D72: =TT[[#This Row],[Tab]]&TT[[#This Row],[Row]] -> 1.Concussion data by sport72 | E72: Rip stick | F72: Ripstik | G72: Patinetas eléctricas | H72: Rip stick | I72: Planche pivotante | O72: =INDEX(TT[[#This Row],[Language 1]:[Language 10]],1,LanguageSelect) -> Rip stick
B73: =ROW() -> 73 | C73: 1.Concussion data by sport | D73: =TT[[#This Row],[Tab]]&TT[[#This Row],[Row]] -> 1.Concussion data by sport73 | E73: Other | F73: Outro | G73: Otros | H73: Andere | I73: Autre | O73: =INDEX(TT[[#This Row],[Language 1]:[Language 10]],1,LanguageSelect) -> Other
B74: =ROW() -> 74 | C74: 1.Concussion data by sport | D74: =TT[[#This Row],[Tab]]&TT[[#This Row],[Row]] -> 1.Concussion data by sport74 | E74: of all concussions occurred in contact sports | F74: de todas as concussões ocorridas em esportes de contato | G74: de todas las conmociones cerebrales ocurridas en deportes de contacto | H74: aller Gehirnerschütterungen, die bei Kontaktsportarten aufgetreten sind. | I74: de l’ensemble des commotions cérébrales survenues dans les sports de contact | O74: =INDEX(TT[[#This Row],[Language 1]:[Language 10]],1,LanguageSelect) -> of all concussions occurred in contact sports
B75: =ROW() -> 75 | C75: 1.Concussion data by sport | D75: =TT[[#This Row],[Tab]]&TT[[#This Row],[Row]] -> 1.Concussion data by sport75 | E75: of all concussions occurred in limited contact sports | F75: de todas as concussões ocorridas em esportes de contato limitado | G75: de todas las conmociones cerebrales ocurridas en deportes de contacto limitado | H75: aller Gehirnerschütterungen, die bei begrenzten Kontaktsportarten aufgetreten sind. | I75: de l’ensemble des commotions cérébrales survenues dans les sports de contact limité | O75: =INDEX(TT[[#This Row],[Language 1]:[Language 10]],1,LanguageSelect) -> of all concussions occurred in limited contact sports
B76: =ROW() -> 76 | C76: 1.Concussion data by sport | D76: =TT[[#This Row],[Tab]]&TT[[#This Row],[Row]] -> 1.Concussion data by sport76 | E76: of all concussions occurred in non-contact sports | F76: de todas as concussões ocorridas em esportes sem contato | G76: de todas las conmociones cerebrales ocurridas en deportes sin contacto | H76: aller Gehirnerschütterungen, die bei berührungslosen Sportarten aufgetreten sind. | I76: de l’ensemble des commotions cérébrales survenues dans les sports sans contact | O76: =INDEX(TT[[#This Row],[Language 1]:[Language 10]],1,LanguageSelect) -> of all concussions occurred in non-contact sports
B77: =ROW() -> 77 | C77: 1.Concussion data by sport | D77: =TT[[#This Row],[Tab]]&TT[[#This Row],[Row]] -> 1.Concussion data by sport77 | E77: Top 5 contact sports that cause concussion | F77: Os Maiores 5 esportes de contato que causam concussão | G77: Los 5 deportes de contacto que más causaron conmoción cerebral | H77: Top 5 Kontaktsportarten, die Gehirnerschütterungen verursachen | I77: Top 5 des sports de contact causant une commotion cérébrale | O77: =INDEX(TT[[#This Row],[Language 1]:[Language 10]],1,LanguageSelect) -> Top 5 contact sports that cause concussion
B78: =ROW() -> 78 | C78: 1.Concussion data by sport | D78: =TT[[#This Row],[Tab]]&TT[[#This Row],[Row]] -> 1.Concussion data by sport78 | E78: Top 5 limited contact sports that caused concussion | F78: Os maiores 5 esportes de contato limitados que causaram concussão | G78: Los 5 deportes de contacto limitado que más causaron conmoción cerebral | H78: Top 5 der limitierten Kontaktsportarten, die Gehirnerschütterungen verursachten | I78: Top 5 des sports de contact limité causant une commotion cérébrale | O78: =INDEX(TT[[#This Row],[Language 1]:[Language 10]],1,LanguageSelect) -> Top 5 limited contact sports that caused concussion
B79: =ROW() -> 79 | C79: 1.Concussion data by sport | D79: =TT[[#This Row],[Tab]]&TT[[#This Row],[Row]] -> 1.Concussion data by sport79 | E79: Top 5 non-contact sports that caused concussion | F79: Os maiores 5 esportes sem contato que causaram concussão | G79: Los 5 deportes sin contacto que más causaron conmoción cerebral | H79: Top 5 der berührungslosen Sportarten, die Gehirnerschütterungen verursachten | I79: Top 5 des sports sans contact causant une commotion cérébrale | O79: =INDEX(TT[[#This Row],[Language 1]:[Language 10]],1,LanguageSelect) -> Top 5 non-contact sports that caused concussion
B80: =ROW() -> 80 | C80: 1.Concussion data by sport | D80: =TT[[#This Row],[Tab]]&TT[[#This Row],[Row]] -> 1.Concussion data by sport80 | E80: (percentage based on sample size of 605 adolescents) | F80: (porcentagem baseada no tamanho da amostra de 605 adolescentes) | G80: (porcentaje basado en el tamaño de la muestra de 605 adolescentes) | H80: (Prozentsatz basierend auf dem Stichprobenumfang von 605 Jugendlichen) | I80: (pourcentage basé sur la taille d’un échantillon de 605 adolescents) | O80: =INDEX(TT[[#This Row],[Language 1]:[Language 10]],1,LanguageSelect) -> (percentage based on sample size of 605 adolescents)
B81: =ROW() -> 81 | C81: 1.Concussion data by sport | D81: =TT[[#This Row],[Tab]]&TT[[#This Row],[Row]] -> 1.Concussion data by sport81 | E81: (percentage based on sample size of 266 adolescents) | F81: (porcentagem baseada no tamanho da amostra de 266 adolescentes) | G81: (porcentaje basado en el tamaño de la muestra de 266 adolescentes) | H81: (Prozentsatz basierend auf dem Stichprobenumfang von 266 Jugendlichen) | I81: (pourcentage basé sur la taille d’un échantillon de 266 adolescents) | O81: =INDEX(TT[[#This Row],[Language 1]:[Language 10]],1,LanguageSelect) -> (percentage based on sample size of 266 adolescents)
B82: =ROW() -> 82 | C82: 1.Concussion data by sport | D82: =TT[[#This Row],[Tab]]&TT[[#This Row],[Row]] -> 1.Concussion data by sport82 | E82: (percentage based on sample size of 53 adolescents) | F82: (porcentagem baseada no tamanho da amostra de 53 adolescentes) | G82: (porcentaje basado en el tamaño de la muestra de 53 adolescentes) | H82: (Prozentsatz basierend auf dem Stichprobenumfang von 53 Jugendlichen) | I82: (pourcentage basé sur la taille d’un échantillon de 53 adolescents) | O82: =INDEX(TT[[#This Row],[Language 1]:[Language 10]],1,LanguageSelect) -> (percentage based on sample size of 53 adolescents)
B83: =ROW() -> 83 | C83: 1.Concussion data by sport | D83: =TT[[#This Row],[Tab]]&TT[[#This Row],[Row]] -> 1.Concussion data by sport83 | E83: For additional details, refer to the Variations in Mechanisms of Injury for Children with Concussion report | F83: Para detalhes adicionais, consulte o relatório Variações nos Mecanismos de Lesão para Crianças com Concussão | G83: Para obtener más detalles, consulta el informe Variaciones en los mecanismos de lesión para niños con conmoción cerebral | H83: Weitere Einzelheiten findest im Bericht Variationen der Verletzungsmechanismen bei Kindern mit Gehirnerschütterung | I83: Pour plus de détails, consultez le rapport sur les variations des mécanismes de blessure chez les enfants ayant subis une commotion cérébrale. | O83: =INDEX(TT[[#This Row],[Language 1]:[Language 10]],1,LanguageSelect) -> For additional details, refer to the Variations in Mechanisms of Injury for Children with Concussion report
B84: =ROW() -> 84 | C84: 1.Concussion data by sport | D84: =TT[[#This Row],[Tab]]&TT[[#This Row],[Row]] -> 1.Concussion data by sport84 | E84: View Data  | F84: Visualizar Dados  | G84: Ver datos  | H84: Daten anzeigen  | I84: Voir les Données  | O84: =INDEX(TT[[#This Row],[Language 1]:[Language 10]],1,LanguageSelect) -> View Data 
B85: =ROW() -> 85 | C85: 2.Parts of the Brain | D85: =TT[[#This Row],[Tab]]&TT[[#This Row],[Row]] -> 2.Parts of the Brain85 | E85: Explore 3D Brain Model | F85: Explore o Modelo do Cérebro 3D | G85: Explorar el modelo cerebral en 3D | H85: 3D-Gehirn-Modell ansehen | I85: Explorer le modèle 3D de cerveau | O85: =INDEX(TT[[#This Row],[Language 1]:[Language 10]],1,LanguageSelect) -> Explore 3D Brain Model
B86: =ROW() -> 86 | C86: 2.Parts of the Brain | D86: =TT[[#This Row],[Tab]]&TT[[#This Row],[Row]] -> 2.Parts of the Brain86 | E86: Brain Lobes and Functions | F86: Lobos Cerebrais e Funções | G86: Lóbulos cerebrales y funciones | H86: Hirnlappen und Funktionen | I86: Lobes du cerveau et fonctions | O86: =INDEX(TT[[#This Row],[Language 1]:[Language 10]],1,LanguageSelect) -> Brain Lobes and Functions
B87: =ROW() -> 87 | C87: 2.Parts of the Brain | D87: =TT[[#This Row],[Tab]]&TT[[#This Row],[Row]] -> 2.Parts of the Brain87 | E87: Frontal | F87: Frontal | G87: Frontal | H87: Frontal | I87: Frontal | O87: =INDEX(TT[[#This Row],[Language 1]:[Language 10]],1,LanguageSelect) -> Frontal
B88: =ROW() -> 88 | C88: 2.Parts of the Brain | D88: =TT[[#This Row],[Tab]]&TT[[#This Row],[Row]] -> 2.Parts of the Brain88 | E88: Parietal | F88: Parietal | G88: Parietal | H88: Scheitel | I88: Pariétal | O88: =INDEX(TT[[#This Row],[Language 1]:[Language 10]],1,LanguageSelect) -> Parietal
B89: =ROW() -> 89 | C89: 2.Parts of the Brain | D89: =TT[[#This Row],[Tab]]&TT[[#This Row],[Row]] -> 2.Parts of the Brain89 | E89: Temporal (L) | F89: Temporal (E) | G89: Temporal (I) | H89: Temporallappen (L) | I89: Temporel (G) | O89: =INDEX(TT[[#This Row],[Language 1]:[Language 10]],1,LanguageSelect) -> Temporal (L)
B90: =ROW() -> 90 | C90: 2.Parts of the Brain | D90: =TT[[#This Row],[Tab]]&TT[[#This Row],[Row]] -> 2.Parts of the Brain90 | E90: Temporal (R) | F90: Temporal (D) | G90: Temporal (D) | H90: Temporallappen (R) | I90: Temporel (D) | O90: =INDEX(TT[[#This Row],[Language 1]:[Language 10]],1,LanguageSelect) -> Temporal (R)
B91: =ROW() -> 91 | C91: 2.Parts of the Brain | D91: =TT[[#This Row],[Tab]]&TT[[#This Row],[Row]] -> 2.Parts of the Brain91 | E91: Occipital | F91: Occipital | G91: Occipital | H91: Hinterhaupt | I91: Occipital | O91: =INDEX(TT[[#This Row],[Language 1]:[Language 10]],1,LanguageSelect) -> Occipital
B92: =ROW() -> 92 | C92: 2.Parts of the Brain | D92: =TT[[#This Row],[Tab]]&TT[[#This Row],[Row]] -> 2.Parts of the Brain92 | E92: Temporal | F92: Temporal | G92: Temporal | H92: Schläfen | I92: Temporal | O92: =INDEX(TT[[#This Row],[Language 1]:[Language 10]],1,LanguageSelect) -> Temporal
B93: =ROW() -> 93 | C93: 2.Parts of the Brain | D93: =TT[[#This Row],[Tab]]&TT[[#This Row],[Row]] -> 2.Parts of the Brain93 | E93: Emotions and Behaviors | F93: Emoções e Comportamentos | G93: Emociones y Comportamientos | H93: Emotionen und Verhaltensweisen | I93: Émotions et comportements | O93: =INDEX(TT[[#This Row],[Language 1]:[Language 10]],1,LanguageSelect) -> Emotions and Behaviors
B94: =ROW() -> 94 | C94: 2.Parts of the Brain | D94: =TT[[#This Row],[Tab]]&TT[[#This Row],[Row]] -> 2.Parts of the Brain94 | E94: Expressive language, motor skills, emotions, judgment, reasoning, and problem solving | F94: Linguagem expressiva, habilidades motoras, emoções, julgamento, raciocínio e resolução de problemas | G94: Lenguaje expresivo, habilidades motoras, emociones, juicio, razonamiento y resolución de problemas | H94: Ausdrucksstarke Sprache, motorische Fähigkeiten, Emotionen, Urteilsvermögen, Argumentation und Problemlösung | I94: Langage expressif, habiletés motrices, émotions, jugement, raisonnement et résolution de problèmes | O94: =INDEX(TT[[#This Row],[Language 1]:[Language 10]],1,LanguageSelect) -> Expressive language, motor skills, emotions, judgment, reasoning, and problem solving
B95: =ROW() -> 95 | C95: 2.Parts of the Brain | D95: =TT[[#This Row],[Tab]]&TT[[#This Row],[Row]] -> 2.Parts of the Brain95 | E95: Sensory processing related to body orientation, pain, taste, pressure, touch and temperature | F95: Processamento sensorial relacionado à orientação corporal, dor, paladar, pressão, toque e temperatura | G95: Procesamiento sensorial relacionado con la orientación corporal, dolor, gusto, presión, tacto y temperatura | H95: Sensorische Verarbeitung in Bezug auf Körperorientierung, Schmerzen, Geschmack, Druck, Berührung und Temperatur | I95: Traitement sensoriel lié à l'orientation du corps, à la douleur, au goût, à la pression, au toucher et à la température | O95: =INDEX(TT[[#This Row],[Language 1]:[Language 10]],1,LanguageSelect) -> Sensory processing related to body orientation, pain, taste, pressure, touch and temperature
B96: =ROW() -> 96 | C96: 2.Parts of the Brain | D96: =TT[[#This Row],[Tab]]&TT[[#This Row],[Row]] -> 2.Parts of the Brain96 | E96: Memory, interpreting language, behavior, and interpreting and processing sounds | F96: Memória, interpretação de linguagem, comportamento e interpretação e processamento de sons | G96: Memoria, interpretación del lenguaje, comportamiento e interpretación y procesamiento de sonidos | H96: Gedächtnis, Interpretieren von Sprache, Verhalten und Interpretieren und Verarbeiten von Klängen. | I96: Mémoire, interprétation du langage, comportement, interprétation et traitement des sons | O96: =INDEX(TT[[#This Row],[Language 1]:[Language 10]],1,LanguageSelect) -> Memory, interpreting language, behavior, and interpreting and processing sounds
B97: =ROW() -> 97 | C97: 2.Parts of the Brain | D97: =TT[[#This Row],[Tab]]&TT[[#This Row],[Row]] -> 2.Parts of the Brain97 | E97: Vision, object recognition, distance and perception of color | F97: Visão, reconhecimento de objetos, distância e percepção de cor | G97: Visión, reconocimiento de objetos, distancia y percepción del color | H97: Vision, Objekterkennung, Entfernung und Farbwahrnehmung | I97: Vision, reconnaissance d’objet, distance et perception de la couleur | O97: =INDEX(TT[[#This Row],[Language 1]:[Language 10]],1,LanguageSelect) -> Vision, object recognition, distance and perception of color
B98: =ROW() -> 98 | C98: 2.Parts of the Brain | D98: =TT[[#This Row],[Tab]]&TT[[#This Row],[Row]] -> 2.Parts of the Brain98 | E98: VIEW  | F98: VISUALIZAR  | G98: VER  | H98: ANSICHT  | I98: VOIR  | O98: =INDEX(TT[[#This Row],[Language 1]:[Language 10]],1,LanguageSelect) -> VIEW 
B99: =ROW() -> 99 | C99: 2.Parts of the Brain | D99: =TT[[#This Row],[Tab]]&TT[[#This Row],[Row]] -> 2.Parts of the Brain99 | E99: VIEW LEFT  | F99: VISUALIZAR ESQUERDA  | G99: VER IZQUIERDO  | H99: ANSICHT LINKS  | I99: VOIR À GAUCHE  | O99: =INDEX(TT[[#This Row],[Language 1]:[Language 10]],1,LanguageSelect) -> VIEW LEFT 
B100: =ROW() -> 100 | C100: 2.Parts of the Brain | D100: =TT[[#This Row],[Tab]]&TT[[#This Row],[Row]] -> 2.Parts of the Brain100 | E100: VIEW RIGHT  | F100: VISUALIZAR DIREITA  | G100: VER DERECHO  | H100: ANSICHT RECHTS  | I100: VOIR À DROITE  | O100: =INDEX(TT[[#This Row],[Language 1]:[Language 10]],1,LanguageSelect) -> VIEW RIGHT 
B101: =ROW() -> 101 | C101: 3.Impact Simulator Data | D101: =TT[[#This Row],[Tab]]&TT[[#This Row],[Row]] -> 3.Impact Simulator Data101 | E101: Live Data | F101: Dados ao vivo | G101: Datos en tiempo real | H101: Live-Daten | I101: Données en temps réel | O101: =INDEX(TT[[#This Row],[Language 1]:[Language 10]],1,LanguageSelect) -> Live Data
B102: =ROW() -> 102 | C102: 3.Impact Simulator Data | D102: =TT[[#This Row],[Tab]]&TT[[#This Row],[Row]] -> 3.Impact Simulator Data102 | E102: Capture Data | F102: Capturar Dados | G102: Capturar Datos | H102: Daten erfassen | I102: Recueillir des données | O102: =INDEX(TT[[#This Row],[Language 1]:[Language 10]],1,LanguageSelect) -> Capture Data
B103: =ROW() -> 103 | C103: 3.Impact Simulator Data | D103: =TT[[#This Row],[Tab]]&TT[[#This Row],[Row]] -> 3.Impact Simulator Data103 | E103: Review Data | F103: Revisar Dados | G103: Revisar Datos | H103: Daten überprüfen | I103: Revoir les Données | O103: =INDEX(TT[[#This Row],[Language 1]:[Language 10]],1,LanguageSelect) -> Review Data
B104: =ROW() -> 104 | C104: 3.Impact Simulator Data | D104: =TT[[#This Row],[Tab]]&TT[[#This Row],[Row]] -> 3.Impact Simulator Data104 | E104: Trial Sensors | F104: Sensores de Teste | G104: Sensores de prueba | H104: Versuchssensoren | I104: Capteurs d’essai | O104: =INDEX(TT[[#This Row],[Language 1]:[Language 10]],1,LanguageSelect) -> Trial Sensors
B105: =ROW() -> 105 | C105: 3.Impact Simulator Data | D105: =TT[[#This Row],[Tab]]&TT[[#This Row],[Row]] -> 3.Impact Simulator Data105 | E105: Click Calibrate Sensors before each trial and Save Trial to capture the data. | F105: Clique em Calibrar Sensores antes de cada teste e Salvar Teste para capturar os dados. | G105: Haz clic en Calibrar Sensores antes de cada prueba y en Guardar Prueba para capturar los datos. | H105: Klicke vor jeder Messung auf Sensoren kalibrieren und speichere die Messung, um die Daten zu erfassen | I105: Cliquez sur Calibrer les capteurs avant chaque essai et sur Enregistrer l’essai pour recueillir les données. | O105: =INDEX(TT[[#This Row],[Language 1]:[Language 10]],1,LanguageSelect) -> Click Calibrate Sensors before each trial and Save Trial to capture the data.
B106: =ROW() -> 106 | C106: 3.Impact Simulator Data | D106: =TT[[#This Row],[Tab]]&TT[[#This Row],[Row]] -> 3.Impact Simulator Data106 | E106: Use the Review Data tab to analyze trial data. | F106: Use a guia Revisar Dados para analisar dados de teste. | G106: Utiliza la pestaña Revisar Datos para analizar los datos del ensayo. | H106: Verwende den Tab Überprüfungsdaten, um die Versuchsdaten zu analysieren | I106: Utilisez l’onglet Revoir les Données pour analyser les données des essais. | O106: =INDEX(TT[[#This Row],[Language 1]:[Language 10]],1,LanguageSelect) -> Use the Review Data tab to analyze trial data.
B107: =ROW() -> 107 | C107: 3.Impact Simulator Data | D107: =TT[[#This Row],[Tab]]&TT[[#This Row],[Row]] -> 3.Impact Simulator Data107 | E107: Click Save Session to save data from all three trials. | F107: Clique em Salvar sessão para salvar dados de todos os três testes. | G107: Haz clic en Guardar Sesión para guardar los datos de las tres pruebas. | H107: Klicke auf Sitzung speichern, um Daten aus allen drei Versuchen zu speichern | I107: Cliquez sur Enregistrer la session pour enregistrer les données des trois essais. | O107: =INDEX(TT[[#This Row],[Language 1]:[Language 10]],1,LanguageSelect) -> Click Save Session to save data from all three trials.
B108: =ROW() -> 108 | C108: 3.Impact Simulator Data | D108: =TT[[#This Row],[Tab]]&TT[[#This Row],[Row]] -> 3.Impact Simulator Data108 | E108: Calibrate Sensors  | F108: Calibrar sensores  | G108: Calibrar sensores  | H108: Sensoren kalibrieren  | I108: Calibrer les capteurs  | O108: =INDEX(TT[[#This Row],[Language 1]:[Language 10]],1,LanguageSelect) -> Calibrate Sensors 
B109: =ROW() -> 109 | C109: 3.Impact Simulator Data | D109: =TT[[#This Row],[Tab]]&TT[[#This Row],[Row]] -> 3.Impact Simulator Data109 | E109: Clear All Trials  | F109: Limpar todos os testes  | G109: Borrar todas las pruebas  | H109: Alle Versuche löschen  | I109: Effacer tous les essais  | O109: =INDEX(TT[[#This Row],[Language 1]:[Language 10]],1,LanguageSelect) -> Clear All Trials 
B110: =ROW() -> 110 | C110: 3.Impact Simulator Data | D110: =TT[[#This Row],[Tab]]&TT[[#This Row],[Row]] -> 3.Impact Simulator Data110 | E110: Save Session | F110: Salvar Sessão | G110: Guardar sesión | H110: Sitzung speichern | I110: Sauvegarder la session | O110: =INDEX(TT[[#This Row],[Language 1]:[Language 10]],1,LanguageSelect) -> Save Session
B111: =ROW() -> 111 | C111: 3.Impact Simulator Data | D111: =TT[[#This Row],[Tab]]&TT[[#This Row],[Row]] -> 3.Impact Simulator Data111 | E111: Save Trial 1  | F111: Salvar teste 1  | G111: Guardar prueba 1  | H111: Versuch 1 speichern  | I111: Enregistrer l’essai 1  | O111: =INDEX(TT[[#This Row],[Language 1]:[Language 10]],1,LanguageSelect) -> Save Trial 1 
B112: =ROW() -> 112 | C112: 3.Impact Simulator Data | D112: =TT[[#This Row],[Tab]]&TT[[#This Row],[Row]] -> 3.Impact Simulator Data112 | E112: Save Trial 2  | F112: Salvar teste 2  | G112: Guardar prueba 2  | H112: Versuch 2 speichern  | I112: Enregistrer l’essai 2  | O112: =INDEX(TT[[#This Row],[Language 1]:[Language 10]],1,LanguageSelect) -> Save Trial 2 
B113: =ROW() -> 113 | C113: 3.Impact Simulator Data | D113: =TT[[#This Row],[Tab]]&TT[[#This Row],[Row]] -> 3.Impact Simulator Data113 | E113: Save Trial 3  | F113: Salvar teste 3  | G113: Guardar prueba 3  | H113: Versuch 3 speichern  | I113: Enregistrer l’essai 3  | O113: =INDEX(TT[[#This Row],[Language 1]:[Language 10]],1,LanguageSelect) -> Save Trial 3 
B114: =ROW() -> 114 | C114: 3.Impact Simulator Data | D114: =TT[[#This Row],[Tab]]&TT[[#This Row],[Row]] -> 3.Impact Simulator Data114 | E114: Degree of impact | F114: Grau de impacto | G114: Grado de impacto | H114: Grad der Auswirkungen | I114: Degré d’impact | O114: =INDEX(TT[[#This Row],[Language 1]:[Language 10]],1,LanguageSelect) -> Degree of impact
B115: =ROW() -> 115 | C115: 3.Impact Simulator Data | D115: =TT[[#This Row],[Tab]]&TT[[#This Row],[Row]] -> 3.Impact Simulator Data115 | E115: High | F115: Alto | G115: Alto | H115: Hoch | I115: Élevé | O115: =INDEX(TT[[#This Row],[Language 1]:[Language 10]],1,LanguageSelect) -> High
B116: =ROW() -> 116 | C116: 3.Impact Simulator Data | D116: =TT[[#This Row],[Tab]]&TT[[#This Row],[Row]] -> 3.Impact Simulator Data116 | E116: Medium | F116: Média | G116: Medio | H116: Mittel | I116: Moyen | O116: =INDEX(TT[[#This Row],[Language 1]:[Language 10]],1,LanguageSelect) -> Medium
B117: =ROW() -> 117 | C117: 3.Impact Simulator Data | D117: =TT[[#This Row],[Tab]]&TT[[#This Row],[Row]] -> 3.Impact Simulator Data117 | E117: Low | F117: Baixa | G117: Bajo | H117: Niedrig | I117: Faible | O117: =INDEX(TT[[#This Row],[Language 1]:[Language 10]],1,LanguageSelect) -> Low
B118: =ROW() -> 118 | C118: 3.Impact Simulator Data | D118: =TT[[#This Row],[Tab]]&TT[[#This Row],[Row]] -> 3.Impact Simulator Data118 | E118: Highest Impact: | F118: Maior Impacto: | G118: Mayor impacto: | H118: Höchste Aufprallwirkung: | I118: Impact le plus élevé: | O118: =INDEX(TT[[#This Row],[Language 1]:[Language 10]],1,LanguageSelect) -> Highest Impact:
B119: =ROW() -> 119 | C119: 3.Impact Simulator Data | D119: =TT[[#This Row],[Tab]]&TT[[#This Row],[Row]] -> 3.Impact Simulator Data119 | E119: Impact effects: these functions may be affected | F119: Efeitos do impacto: essas funções podem ser afetadas | G119: Efectos de impacto: estas funciones pueden verse afectadas | H119: Auswirkungen: diese Funktionen können beeinträchtigt werden | I119: Effets d’impact: ces fonctions peuvent être affectées | O119: =INDEX(TT[[#This Row],[Language 1]:[Language 10]],1,LanguageSelect) -> Impact effects: these functions may be affected
B120: =ROW() -> 120 | C120: 3.Impact Simulator Data | D120: =TT[[#This Row],[Tab]]&TT[[#This Row],[Row]] -> 3.Impact Simulator Data120 | E120: Maximums | F120: Máximos | G120: Máximos | H120: Maximalwerte | I120: Maximums | O120: =INDEX(TT[[#This Row],[Language 1]:[Language 10]],1,LanguageSelect) -> Maximums
B121: =ROW() -> 121 | C121: 3.Impact Simulator Data | D121: =TT[[#This Row],[Tab]]&TT[[#This Row],[Row]] -> 3.Impact Simulator Data121 | E121: Trials: Session | F121: Testes: Sessão | G121: Pruebas: Sesión | H121: Versuche: Sitzung | I121: Essais : session | O121: =INDEX(TT[[#This Row],[Language 1]:[Language 10]],1,LanguageSelect) -> Trials: Session
B122: =ROW() -> 122 | C122: 3.Impact Simulator Data | D122: =TT[[#This Row],[Tab]]&TT[[#This Row],[Row]] -> 3.Impact Simulator Data122 | E122: Session | F122: Sessão | G122: Sesión | H122: Sitzung | I122: Session | O122: =INDEX(TT[[#This Row],[Language 1]:[Language 10]],1,LanguageSelect) -> Session
B123: =ROW() -> 123 | C123: 3.Impact Simulator Data | D123: =TT[[#This Row],[Tab]]&TT[[#This Row],[Row]] -> 3.Impact Simulator Data123 | E123:  Go back to trials | F123:  Voltar para os testes | G123:  Volver a las pruebas | H123: Zurück zu den Versuchen | I123:  Retour aux essais | O123: =INDEX(TT[[#This Row],[Language 1]:[Language 10]],1,LanguageSelect) ->  Go back to trials
B124: =ROW() -> 124 | C124: 3.Impact Simulator Data | D124: =TT[[#This Row],[Tab]]&TT[[#This Row],[Row]] -> 3.Impact Simulator Data124 | E124: Clear table  | F124: Limpar mesa  | G124: Borrar tabla  | H124: Tabelle löschen  | I124: Effacer le tableau  | O124: =INDEX(TT[[#This Row],[Language 1]:[Language 10]],1,LanguageSelect) -> Clear table 
B125: =ROW() -> 125 | D125: =TT[[#This Row],[Tab]]&TT[[#This Row],[Row]] -> 125 | E125: Session Summary | F125: Resumo da Sessão | G125: Resumen de la sesión | H125: Zusammenfassung der Sitzungen | I125: Résumé de session | O125: =INDEX(TT[[#This Row],[Language 1]:[Language 10]],1,LanguageSelect) -> Session Summary
B126: =ROW() -> 126 | D126: =TT[[#This Row],[Tab]]&TT[[#This Row],[Row]] -> 126 | E126: Time (seconds) | F126: Tempo (segundos) | G126: Tiempo (segundos) | H126: Zeit (Sekunden) | I126: Temps (secondes) | O126: =INDEX(TT[[#This Row],[Language 1]:[Language 10]],1,LanguageSelect) -> Time (seconds)
B127: =ROW() -> 127 | D127: =TT[[#This Row],[Tab]]&TT[[#This Row],[Row]] -> 127 | E127: Trial Averages | F127: Médias do Teste | G127: Promedios de prueba | H127: Versuchsdurchschnitte | I127: Moyennes des essais | O127: =INDEX(TT[[#This Row],[Language 1]:[Language 10]],1,LanguageSelect) -> Trial Averages
B128: =ROW() -> 128 | D128: =TT[[#This Row],[Tab]]&TT[[#This Row],[Row]] -> 128 | E128: Frontal Lobe | F128: Lobo Frontal | G128: Lóbulo frontal | H128: Frontallappen | I128: Lobe frontal | O128: =INDEX(TT[[#This Row],[Language 1]:[Language 10]],1,LanguageSelect) -> Frontal Lobe
B129: =ROW() -> 129 | D129: =TT[[#This Row],[Tab]]&TT[[#This Row],[Row]] -> 129 | E129: Parietal Lobe | F129: Lobo Parietal | G129: Lóbulo parietal | H129: Scheitellappen | I129: Lobe pariétal | O129: =INDEX(TT[[#This Row],[Language 1]:[Language 10]],1,LanguageSelect) -> Parietal Lobe
B130: =ROW() -> 130 | D130: =TT[[#This Row],[Tab]]&TT[[#This Row],[Row]] -> 130 | E130: Right Temporal | F130: Temporal Direito | G130: Temporal Derecho | H130: Rechte Schläfe | I130: Temporel droit | O130: =INDEX(TT[[#This Row],[Language 1]:[Language 10]],1,LanguageSelect) -> Right Temporal
B131: =ROW() -> 131 | D131: =TT[[#This Row],[Tab]]&TT[[#This Row],[Row]] -> 131 | E131: Left Temporal | F131: Temporal Esquerdo | G131: Temporal Izquierdo | H131: Linke Schläfe | I131: Temporel gauche | O131: =INDEX(TT[[#This Row],[Language 1]:[Language 10]],1,LanguageSelect) -> Left Temporal
B132: =ROW() -> 132 | D132: =TT[[#This Row],[Tab]]&TT[[#This Row],[Row]] -> 132 | E132: Occipital Lobe | F132: Lobo Occipital | G132: Lóbulo Occipital | H132: Hinterhauptlappen | I132: Lobe occipital | O132: =INDEX(TT[[#This Row],[Language 1]:[Language 10]],1,LanguageSelect) -> Occipital Lobe
B133: =ROW() -> 133 | D133: =TT[[#This Row],[Tab]]&TT[[#This Row],[Row]] -> 133 | E133: Trial 1 | F133: Teste 1 | G133: Prueba 1 | H133: Versuch 1 | I133: Essai 1 | O133: =INDEX(TT[[#This Row],[Language 1]:[Language 10]],1,LanguageSelect) -> Trial 1
B134: =ROW() -> 134 | D134: =TT[[#This Row],[Tab]]&TT[[#This Row],[Row]] -> 134 | E134: Trial 2 | F134: Teste 2 | G134: Prueba 2 | H134: Versuch 2 | I134: Essai 2 | O134: =INDEX(TT[[#This Row],[Language 1]:[Language 10]],1,LanguageSelect) -> Trial 2
B135: =ROW() -> 135 | D135: =TT[[#This Row],[Tab]]&TT[[#This Row],[Row]] -> 135 | E135: Trial 3 | F135: Teste 3 | G135: Prueba 3 | H135: Versuch 3 | I135: Essai 3 | O135: =INDEX(TT[[#This Row],[Language 1]:[Language 10]],1,LanguageSelect) -> Trial 3
B136: =ROW() -> 136 | D136: =TT[[#This Row],[Tab]]&TT[[#This Row],[Row]] -> 136 | E136: Session Name | F136: Nome da Sessão | G136: Nombre de la sesión | H136: Name der Sitzung | I136: Intitulé de la session | O136: =INDEX(TT[[#This Row],[Language 1]:[Language 10]],1,LanguageSelect) -> Session Name
B137: =ROW() -> 137 | D137: =TT[[#This Row],[Tab]]&TT[[#This Row],[Row]] -> 137 | E137: Save Baseline  | F137: Salvar Linha Base  | G137: Grabar ase  | H137: Basislinie speichern  | I137: Enregistrer le point de référence  | O137: =INDEX(TT[[#This Row],[Language 1]:[Language 10]],1,LanguageSelect) -> Save Baseline 
B138: =ROW() -> 138 | D138: =TT[[#This Row],[Tab]]&TT[[#This Row],[Row]] -> 138 | E138: Trials: Baseline Session | F138: Testes: Sessão de Linha Base | G138: Pruebas: Sesión base | H138: Versuche: Basislinien-Sitzung | I138: Essaie : Session de référence | O138: =INDEX(TT[[#This Row],[Language 1]:[Language 10]],1,LanguageSelect) -> Trials: Baseline Session
B139: =ROW() -> 139 | D139: =TT[[#This Row],[Tab]]&TT[[#This Row],[Row]] -> 139 | E139: Baseline | F139: Linha de base | G139: Base | H139: Basislinie | I139: Point de référence | O139: =INDEX(TT[[#This Row],[Language 1]:[Language 10]],1,LanguageSelect) -> Baseline
B140: =ROW() -> 140 | D140: =TT[[#This Row],[Tab]]&TT[[#This Row],[Row]] -> 140 | E140: Sessions Full | F140: Sessões Cheias | G140: Sesiones Completas | H140: Sitzungen voll | I140: Sessions complètes | O140: =INDEX(TT[[#This Row],[Language 1]:[Language 10]],1,LanguageSelect) -> Sessions Full
B141: =ROW() -> 141 | D141: =TT[[#This Row],[Tab]]&TT[[#This Row],[Row]] -> 141 | E141: Session Date | F141: Data da Sessão | G141: Fecha de la sesión | H141: Datum der Sitzung | I141: Date de session | O141: =INDEX(TT[[#This Row],[Language 1]:[Language 10]],1,LanguageSelect) -> Session Date
B142: =ROW() -> 142 | D142: =TT[[#This Row],[Tab]]&TT[[#This Row],[Row]] -> 142 | E142: Session Time | F142: Tempo da Sessão | G142: Hora de la sesión | H142: Sitzungszeit | I142: Temps de session | O142: =INDEX(TT[[#This Row],[Language 1]:[Language 10]],1,LanguageSelect) -> Session Time
B143: =ROW() -> 143 | D143: =TT[[#This Row],[Tab]]&TT[[#This Row],[Row]] -> 143 | E143: References | F143: Referências | G143: Referencias | H143: Referenzen | I143: Références | O143: =INDEX(TT[[#This Row],[Language 1]:[Language 10]],1,LanguageSelect) -> References
B144: =ROW() -> 144 | D144: =TT[[#This Row],[Tab]]&TT[[#This Row],[Row]] -> 144 | E144: Brain research is an evolving scientific field. Scientists are making new discoveries every day about how the brain works. Information about the functioning of the brain and the effect of impact on brain functions as stated in this lesson and workbook are based on information gathered from the referenced sources. It is possible that this information will change in time. | F144: A pesquisa do cérebro é um campo científico em evolução. Os cientistas estão fazendo novas descobertas todos os dias sobre como o cérebro funciona. As informações sobre o funcionamento do cérebro e o efeito das lesões nas funções cerebrais, conforme mostrados nesta lição e no livro de exercícios, baseiam-se nas fontes referenciadas. É possível que essa informação mudará com o tempo. | G144: La investigación cerebral es un campo científico en evolución. Los científicos están haciendo nuevos descubrimientos cada día sobre cómo funciona el cerebro. La información sobre el funcionamiento del cerebro y el efecto del impacto en las funciones cerebrales, tal como se indica en esta lección y en el libro de trabajo, se basa en información recopilada de las fuentes de referencia. Es posible que esta información cambie con el tiempo. | H144: Die Gehirnforschung ist ein sich entwickelndes Wissenschaftsgebiet. Wissenschaftler machen jeden Tag neue Entdeckungen darüber, wie das Gehirn funktioniert. Informationen über die Funktionsweise des Gehirns und die Auswirkungen auf die Gehirnfunktionen, wie in dieser Lektion und in der Arbeitsmappe beschrieben, basieren auf Informationen, die aus den genannten Quellen stammen. Es ist möglich, dass sich diese Informationen mit der Zeit ändern. | I144: La recherche concernant le cerveau est un domaine scientifique en évolution. Les scientifiques font chaque jour de nouvelles découvertes sur le fonctionnement du cerveau. Les informations relatives au fonctionnement du cerveau et à l’effet qu’un impact pourrait avoir sur les fonctions du cerveau, tel qu’il est indiqué dans cette leçon et dans le classeur, sont basées sur des informations recueillies à partir des sources référencées. Il est possible que cette information change avec le temps. | O144: =INDEX(TT[[#This Row],[Language 1]:[Language 10]],1,LanguageSelect) -> Brain research is an evolving scientific field. Scientists are making new discoveries every day about how the brain works. Information about the functioning of the brain and the effect of impact on brain functions as stated in this lesson and workbook are based on information gathered from the referenced sources. It is possible that this information will change in time.
B145: =ROW() -> 145 | D145: =TT[[#This Row],[Tab]]&TT[[#This Row],[Row]] -> 145 | E145: Source | F145: Fonte | G145: Fuente | H145: Quelle | I145: Source | O145: =INDEX(TT[[#This Row],[Language 1]:[Language 10]],1,LanguageSelect) -> Source
B146: =ROW() -> 146 | D146: =TT[[#This Row],[Tab]]&TT[[#This Row],[Row]] -> 146 | E146: Clear  | F146: Limpar  | G146: Borrar  | H146: Löschen  | I146: Effacer  | O146: =INDEX(TT[[#This Row],[Language 1]:[Language 10]],1,LanguageSelect) -> Clear 
B147: =ROW() -> 147 | D147: =TT[[#This Row],[Tab]]&TT[[#This Row],[Row]] -> 147 | E147: Variations in Mechanisms for Children with Concussion | F147: Variações nos Mecanismos para Crianças com Concussão | G147: Variaciones en los Mecanismos para Niños con Conmoción Cerebral | H147: Variationen in den Mechanismen für Kinder mit Gehirnerschütterung | I147: Variations des mécanismes de blessure chez les enfants ayant subis une commotion cérébrale | O147: =INDEX(TT[[#This Row],[Language 1]:[Language 10]],1,LanguageSelect) -> Variations in Mechanisms for Children with Concussion
B148: =ROW() -> 148 | D148: =TT[[#This Row],[Tab]]&TT[[#This Row],[Row]] -> 148 | E148: Anatomy of the Brain, Mayfield Brain and Spine | F148: Anatomia do Cérebro, Mayfield Cérebro e Coluna | G148: Anatomía del cerebro, cerebro de Mayfield y columna vertebral | H148: Anatomie des Gehirns, Mayfield Gehirn und Wirbelsäule | I148: Anatomie du cerveau, Mayfield pour le cerveau et la colonne vertébrale | O148: =INDEX(TT[[#This Row],[Language 1]:[Language 10]],1,LanguageSelect) -> Anatomy of the Brain, Mayfield Brain and Spine
B149: =ROW() -> 149 | D149: =TT[[#This Row],[Tab]]&TT[[#This Row],[Row]] -> 149 | E149: Cognitive Skills of the Brain, Brain Injury Alliance of Utah | F149: Habilidades Cognitivas do Cérebro, Aliança de Lesão Cerebral de Utah | G149: Habilidades Cognitivas del Cerebro, Alianza de Lesiones Cerebrales de Utah | H149: Kognitive Fähigkeiten des Gehirns, Brain Injury Alliance of Utah | I149: Compétences cognitives du cerveau, Alliance des lésions cérébrales de l’Utah | O149: =INDEX(TT[[#This Row],[Language 1]:[Language 10]],1,LanguageSelect) -> Cognitive Skills of the Brain, Brain Injury Alliance of Utah
B150: =ROW() -> 150 | D150: =TT[[#This Row],[Tab]]&TT[[#This Row],[Row]] -> 150 | E150: Overview of Cerebral Function, Merck Manuals | F150: Visão Geral da Função Cerebral, Manuais da Merck | G150: Descripción general de la función cerebral, manuales de Merck | H150: Overview of Cerebral Function, Merck Manuals | I150: Présentation de la fonction cérébrale, Manuels Merck | O150: =INDEX(TT[[#This Row],[Language 1]:[Language 10]],1,LanguageSelect) -> Overview of Cerebral Function, Merck Manuals
B151: =ROW() -> 151 | D151: =TT[[#This Row],[Tab]]&TT[[#This Row],[Row]] -> 151 | E151: Link to data | F151: Link para os dados | G151: Enlace a los datos | H151: Verknüpfung mit Daten | I151: Lien vers les données | O151: =INDEX(TT[[#This Row],[Language 1]:[Language 10]],1,LanguageSelect) -> Link to data
B152: =ROW() -> 152 | D152: =TT[[#This Row],[Tab]]&TT[[#This Row],[Row]] -> 152 | E152: BIU (Brain Impact Units) | F152: BIU (Unidades de Impacto Cerebral) | G152: BIU (Unidades de Impacto Cerebral) | H152: BIU (Hirnschadenseinheit) | I152: BIU (Unités d'impact cérébral) | O152: =INDEX(TT[[#This Row],[Language 1]:[Language 10]],1,LanguageSelect) -> BIU (Brain Impact Units)
B153: =ROW() -> 153 | D153: =TT[[#This Row],[Tab]]&TT[[#This Row],[Row]] -> 153 | E153: Run and save trials, making sure to calibrate sensors before each impact. | F153: Executar e salvar testes, certificando-se de calibrar sensores antes de cada impacto. | G153: Ejecute y guarde las pruebas, asegurándose de calibrar los sensores antes de cada impacto. | H153: Führen Sie Testversionen aus und speichern. Stellen sie sicher, dass Sie Die Sensoren vor jedem Aufprall kalibrieren. | I153: Exécutez et enregistrez les essais, en veillant à calibrer les capteurs avant chaque impact. | O153: =INDEX(TT[[#This Row],[Language 1]:[Language 10]],1,LanguageSelect) -> Run and save trials, making sure to calibrate sensors before each impact.
B154: =ROW() -> 154 | D154: =TT[[#This Row],[Tab]]&TT[[#This Row],[Row]] -> 154 | E154: Use the ‘Review data’ tab to analyze current saved trials moment by moment. | F154: Use a aba Revisar Dados para analisar os testes salvos atuais momento a momento. | G154: Utilice la pestaña Revisar Datos para analizar las pruebas guardadas actuales momento a momento. | H154: Verwenden Sie die Registerkarte Daten überprüfen, um die aktuell gespeicherten Testversionen von Moment zu Moment zu analysieren. | I154: Utilisez l'onglet Vérifier les données pour analyser les versions d'essai actuellement enregistrées d'un moment à l'autre. | O154: =INDEX(TT[[#This Row],[Language 1]:[Language 10]],1,LanguageSelect) -> Use the ‘Review data’ tab to analyze current saved trials moment by moment.
B155: =ROW() -> 155 | D155: =TT[[#This Row],[Tab]]&TT[[#This Row],[Row]] -> 155 | E155: Trials | F155: Testes | G155: Pruebas | H155: Versuche | I155: Essais | O155: =INDEX(TT[[#This Row],[Language 1]:[Language 10]],1,LanguageSelect) -> Trials
B156: =ROW() -> 156 | D156: =TT[[#This Row],[Tab]]&TT[[#This Row],[Row]] -> 156 | E156: Workbook Setup | F156: Carteira da Pasta de Trabalho | G156: Inicio del libro de trabajo | H156: Arbeitsmappe starten | I156: Début de de Classeur | O156: =INDEX(TT[[#This Row],[Language 1]:[Language 10]],1,LanguageSelect) -> Workbook Setup

Sheet Infograph backend (hidden)
C1: =SUM(C2,G2,K2,O2) -> 1060 | E1: =C2/$C$1 -> 0.570754717 | I1: =G2/$C$1 -> 0.2509433962 | M1: =K2/$C$1 -> 0.05 | Q1: =O2/$C$1 -> 0.1283018868 | T1: Row | U1: Category | V1: Sport | W1: Quantity | X1: Unique Quant | Y1: CatRank | Z1: % of category
B2: Contacts or collisions* | C2: 605 | D2: 100 | E2: 57.1 | F2: Limited contact | G2: 266 | H2: 100 | I2: 25.1 | J2: NonContact | K2: 53 | L2: 100 | M2: 5 | N2: Undetermined | O2: 136 | P2: 100 | Q2: 12.8 | T2: =ROW() -> 2 | U2: Contact | V2: Football | W2: 169 | X2: =SUMPRODUCT((Table9[Category]=Table9[[#This Row],[Category]])*(Table9[Quantity]=Table9[[#This Row],[Quantity]])*(Table9[Row]>Table9[[#This Row],[Row]]))/100+Table9[[#This Row],[Quantity]] -> 169 | Y2: =SUMPRODUCT((Table9[Category]=Table9[[#This Row],[Category]])*(Table9[Unique Quant]>Table9[[#This Row],[Unique Quant]]))+1 -> 1 | Z2: =Table9[[#This Row],[Quantity]]/SUMIFS(Table9[Quantity],Table9[Category],Table9[[#This Row],[Category]]) -> 0.279338843 | AC2: Active | AD2: Category | AE2: Value | AF2: Radial Text | AG2: Chart Text | AH2: Chart Text 2
B3: =TT!$O22 -> Football | C3: 169 | D3: 27.9 | E3: 15.9 | F3: =TT!$O35 -> Cheerleading | G3: 47 | H3: 17.7 | I3: 4.4 | J3: =TT!$O56 -> Swimming | K3: 10 | L3: 18.9 | M3: 0.9 | N3: =TT!$O66 -> Playing | O3: 41 | P3: 30.1 | Q3: 3.9 | T3: =ROW() -> 3 | U3: Contact | V3: Soccer | W3: 156 | X3: =SUMPRODUCT((Table9[Category]=Table9[[#This Row],[Category]])*(Table9[Quantity]=Table9[[#This Row],[Quantity]])*(Table9[Row]>Table9[[#This Row],[Row]]))/100+Table9[[#This Row],[Quantity]] -> 156 | Y3: =SUMPRODUCT((Table9[Category]=Table9[[#This Row],[Category]])*(Table9[Unique Quant]>Table9[[#This Row],[Unique Quant]]))+1 -> 2 | Z3: =Table9[[#This Row],[Quantity]]/SUMIFS(Table9[Quantity],Table9[Category],Table9[[#This Row],[Category]]) -> 0.2578512397 | AC3: 1 | AD3: =TT!$O14 -> Contact | AE3: =O18 -> 0.58117195 | AF3: =TT!$O74 -> of all concussions occurred in contact sports | AG3: =TT!$O77 -> Top 5 contact sports that cause concussion | AH3: =TT!$O80 -> (percentage based on sample size of 605 adolescents)
B4: =TT!$O23 -> Soccer | C4: 156 | D4: 25.8 | E4: 14.7 | F4: =TT!$O36 -> Baseball | G4: 30 | H4: 11.3 | I4: 2.8 | J4: =TT!$O57 -> Dancing | K4: 8 | L4: 15.1 | M4: 0.8 | N4: =TT!$O67 -> Gym class | O4: 38 | P4: 27.9 | Q4: 3.6 | T4: =ROW() -> 4 | U4: Contact | V4: Basketball | W4: 103 | X4: =SUMPRODUCT((Table9[Category]=Table9[[#This Row],[Category]])*(Table9[Quantity]=Table9[[#This Row],[Quantity]])*(Table9[Row]>Table9[[#This Row],[Row]]))/100+Table9[[#This Row],[Quantity]] -> 103 | Y4: =SUMPRODUCT((Table9[Category]=Table9[[#This Row],[Category]])*(Table9[Unique Quant]>Table9[[#This Row],[Unique Quant]]))+1 -> 3 | Z4: =Table9[[#This Row],[Quantity]]/SUMIFS(Table9[Quantity],Table9[Category],Table9[[#This Row],[Category]]) -> 0.1702479339 | AC4: 2 | AD4: =TT!$O15 -> Limited Contact | AE4: =O19 -> 0.2382324688 | AF4: =TT!$O75 -> of all concussions occurred in limited contact sports | AG4: =TT!$O78 -> Top 5 limited contact sports that caused concussion | AH4: =TT!$O81 -> (percentage based on sample size of 266 adolescents)
B5: =TT!$O24 -> Basketball | C5: 103 | D5: 17 | E5: 9.7 | F5: =TT!$O37 -> Volleyball | G5: 23 | H5: 8.6 | I5: 2.2 | J5: =TT!$O58 -> Swinging | K5: 7 | L5: 13.2 | M5: 0.7 | N5: =TT!$O68 -> Playground | O5: 22 | P5: 16.2 | Q5: 2.1 | T5: =ROW() -> 5 | U5: Contact | V5: Ice hockey/hockey | W5: 57 | X5: =SUMPRODUCT((Table9[Category]=Table9[[#This Row],[Category]])*(Table9[Quantity]=Table9[[#This Row],[Quantity]])*(Table9[Row]>Table9[[#This Row],[Row]]))/100+Table9[[#This Row],[Quantity]] -> 57 | Y5: =SUMPRODUCT((Table9[Category]=Table9[[#This Row],[Category]])*(Table9[Unique Quant]>Table9[[#This Row],[Unique Quant]]))+1 -> 4 | Z5: =Table9[[#This Row],[Quantity]]/SUMIFS(Table9[Quantity],Table9[Category],Table9[[#This Row],[Category]]) -> 0.09421487603 | AC5: 3 | AD5: =TT!$O16 -> Non-Contact | AE5: =O20 -> 0.05091258405 | AF5: =TT!$O76 -> of all concussions occurred in non-contact sports | AG5: =TT!$O79 -> Top 5 non-contact sports that caused concussion | AH5: =TT!$O82 -> (percentage based on sample size of 53 adolescents)
B6: =TT!$O25 -> Ice hockey | C6: 57 | D6: 9.4 | E6: 5.4 | F6: =TT!$O38 -> Bike riding | G6: 23 | H6: 8.6 | I6: 2.2 | J6: =TT!$O59 -> Monkey bars | K6: 5 | L6: 9.4 | M6: 0.5 | N6: =TT!$O69 -> Recess | O6: 19 | P6: 14 | Q6: 1.8 | T6: =ROW() -> 6 | U6: Contact | V6: Lacrosse | W6: 45 | X6: =SUMPRODUCT((Table9[Category]=Table9[[#This Row],[Category]])*(Table9[Quantity]=Table9[[#This Row],[Quantity]])*(Table9[Row]>Table9[[#This Row],[Row]]))/100+Table9[[#This Row],[Quantity]] -> 45 | Y6: =SUMPRODUCT((Table9[Category]=Table9[[#This Row],[Category]])*(Table9[Unique Quant]>Table9[[#This Row],[Unique Quant]]))+1 -> 5 | Z6: =Table9[[#This Row],[Quantity]]/SUMIFS(Table9[Quantity],Table9[Category],Table9[[#This Row],[Category]]) -> 0.07438016529
B7: =TT!$O26 -> Lacrosse | C7: 45 | D7: 7.4 | E7: 4.2 | F7: =TT!$O39 -> Softball | G7: 21 | H7: 7.9 | I7: 2 | J7: =TT!$O60 -> Track | K7: 4 | L7: 7.5 | M7: 0.4 | N7: =TT!$O70 -> Nonspecified | O7: 6 | P7: 4.4 | Q7: 0.6 | T7: =ROW() -> 7 | U7: Contact | V7: Wrestling | W7: 26 | X7: =SUMPRODUCT((Table9[Category]=Table9[[#This Row],[Category]])*(Table9[Quantity]=Table9[[#This Row],[Quantity]])*(Table9[Row]>Table9[[#This Row],[Row]]))/100+Table9[[#This Row],[Quantity]] -> 26 | Y7: =SUMPRODUCT((Table9[Category]=Table9[[#This Row],[Category]])*(Table9[Unique Quant]>Table9[[#This Row],[Unique Quant]]))+1 -> 6 | Z7: =Table9[[#This Row],[Quantity]]/SUMIFS(Table9[Quantity],Table9[Category],Table9[[#This Row],[Category]]) -> 0.04297520661
B8: =TT!$O27 -> Wrestling | C8: 26 | D8: 4.3 | E8: 2.5 | F8: =TT!$O40 -> Gymnastics | G8: 14 | H8: 5.3 | I8: 1.3 | J8: =TT!$O61 -> Tennis | K8: 3 | L8: 5.7 | M8: 0.3 | N8: =TT!$O71 -> Playing outside | O8: 4 | P8: 2.9 | Q8: 0.4 | T8: =ROW() -> 8 | U8: Contact | V8: Field hockey | W8: 22 | X8: =SUMPRODUCT((Table9[Category]=Table9[[#This Row],[Category]])*(Table9[Quantity]=Table9[[#This Row],[Quantity]])*(Table9[Row]>Table9[[#This Row],[Row]]))/100+Table9[[#This Row],[Quantity]] -> 22 | Y8: =SUMPRODUCT((Table9[Category]=Table9[[#This Row],[Category]])*(Table9[Unique Quant]>Table9[[#This Row],[Unique Quant]]))+1 -> 7 | Z8: =Table9[[#This Row],[Quantity]]/SUMIFS(Table9[Quantity],Table9[Category],Table9[[#This Row],[Category]]) -> 0.03636363636
B9: =TT!$O28 -> Field hockey | C9: 22 | D9: 3.6 | E9: 2.1 | F9: =TT!$O41 -> Snowboarding | G9: 14 | H9: 5.3 | I9: 1.3 | J9: =TT!$O62 -> Running | K9: 3 | L9: 5.7 | M9: 0.3 | N9: =TT!$O72 -> Rip stick | O9: 2 | P9: 1.5 | Q9: 0.3 | T9: =ROW() -> 9 | U9: Contact | V9: Rugby | W9: 11 | X9: =SUMPRODUCT((Table9[Category]=Table9[[#This Row],[Category]])*(Table9[Quantity]=Table9[[#This Row],[Quantity]])*(Table9[Row]>Table9[[#This Row],[Row]]))/100+Table9[[#This Row],[Quantity]] -> 11 | Y9: =SUMPRODUCT((Table9[Category]=Table9[[#This Row],[Category]])*(Table9[Unique Quant]>Table9[[#This Row],[Unique Quant]]))+1 -> 8 | Z9: =Table9[[#This Row],[Quantity]]/SUMIFS(Table9[Quantity],Table9[Category],Table9[[#This Row],[Category]]) -> 0.01818181818
B10: =TT!$O29 -> Rugby | C10: 11 | D10: 1.8 | E10: 1 | F10: =TT!$O42 -> Ice skating | G10: 10 | H10: 3.8 | I10: 0.9 | J10: =TT!$O63 -> Hunting | K10: 2 | L10: 3.8 | M10: 0.2 | N10: Other¶ | O10: 3 | P10: 2.2 | Q10: 0.3 | T10: =ROW() -> 10 | U10: Contact | V10: Water polo | W10: 3 | X10: =SUMPRODUCT((Table9[Category]=Table9[[#This Row],[Category]])*(Table9[Quantity]=Table9[[#This Row],[Quantity]])*(Table9[Row]>Table9[[#This Row],[Row]]))/100+Table9[[#This Row],[Quantity]] -> 3.01 | Y10: =SUMPRODUCT((Table9[Category]=Table9[[#This Row],[Category]])*(Table9[Unique Quant]>Table9[[#This Row],[Unique Quant]]))+1 -> 10 | Z10: =Table9[[#This Row],[Quantity]]/SUMIFS(Table9[Quantity],Table9[Category],Table9[[#This Row],[Category]]) -> 0.004958677686 | AC10: Active State | AD10: Category | AE10: Value | AF10: Radial Text | AG10: Chart Text | AH10: Chart Text2
B11: =TT!$O30 -> Water polo | C11: 3 | D11: 0.5 | E11: 0.3 | F11: =TT!$O43 -> Sledding | G11: 10 | H11: 3.8 | I11: 0.9 | J11: =TT!$O64 -> Roller coaster | K11: 2 | L11: 3.8 | M11: 0.2 | T11: =ROW() -> 11 | U11: Contact | V11: Martial arts | W11: 3 | X11: =SUMPRODUCT((Table9[Category]=Table9[[#This Row],[Category]])*(Table9[Quantity]=Table9[[#This Row],[Quantity]])*(Table9[Row]>Table9[[#This Row],[Row]]))/100+Table9[[#This Row],[Quantity]] -> 3 | Y11: =SUMPRODUCT((Table9[Category]=Table9[[#This Row],[Category]])*(Table9[Unique Quant]>Table9[[#This Row],[Unique Quant]]))+1 -> 11 | Z11: =Table9[[#This Row],[Quantity]]/SUMIFS(Table9[Quantity],Table9[Category],Table9[[#This Row],[Category]]) -> 0.004958677686 | AC11: 1 | AD11: =INDEX(Table11[],InfographicState,2) -> Contact | AE11: =INDEX(Table11[],InfographicState,3) -> 0.58117195 | AF11: =INDEX(Table11[],InfographicState,4) -> of all concussions occurred in contact sports | AG11: =INDEX(Table11[],InfographicState,5) -> Top 5 contact sports that cause concussion | AH11: =INDEX(Table11[],InfographicState,6) -> (percentage based on sample size of 605 adolescents)
B12: =TT!$O31 -> Martial arts | C12: 3 | D12: 0.5 | E12: 0.3 | F12: =TT!$O44 -> Skiing | G12: 9 | H12: 3.4 | I12: 0.8 | J12: =TT!$O65 -> Zipline | K12: 2 | L12: 3.8 | M12: 0.2 | T12: =ROW() -> 12 | U12: Contact | V12: Diving | W12: 2 | X12: =SUMPRODUCT((Table9[Category]=Table9[[#This Row],[Category]])*(Table9[Quantity]=Table9[[#This Row],[Quantity]])*(Table9[Row]>Table9[[#This Row],[Row]]))/100+Table9[[#This Row],[Quantity]] -> 2.02 | Y12: =SUMPRODUCT((Table9[Category]=Table9[[#This Row],[Category]])*(Table9[Unique Quant]>Table9[[#This Row],[Unique Quant]]))+1 -> 12 | Z12: =Table9[[#This Row],[Quantity]]/SUMIFS(Table9[Quantity],Table9[Category],Table9[[#This Row],[Category]]) -> 0.003305785124
B13: =TT!$O32 -> Diving | C13: 2 | D13: 0.3 | E13: 0.2 | F13: =TT!$O45 -> Equestrian | G13: 7 | H13: 2.6 | I13: 0.7 | J13: =TT!$O$73 -> Other | K13: 7 | L13: 13.2 | M13: 0.7 | T13: =ROW() -> 13 | U13: Contact | V13: Floor hockey | W13: 2 | X13: =SUMPRODUCT((Table9[Category]=Table9[[#This Row],[Category]])*(Table9[Quantity]=Table9[[#This Row],[Quantity]])*(Table9[Row]>Table9[[#This Row],[Row]]))/100+Table9[[#This Row],[Quantity]] -> 2.01 | Y13: =SUMPRODUCT((Table9[Category]=Table9[[#This Row],[Category]])*(Table9[Unique Quant]>Table9[[#This Row],[Unique Quant]]))+1 -> 13 | Z13: =Table9[[#This Row],[Quantity]]/SUMIFS(Table9[Quantity],Table9[Category],Table9[[#This Row],[Category]]) -> 0.003305785124
B14: =TT!$O33 -> Floor hockey | C14: 2 | D14: 0.3 | E14: 0.2 | F14: =TT!$O46 -> Skateboarding | G14: 6 | H14: 2.3 | I14: 0.6 | T14: =ROW() -> 14 | U14: Contact | V14: Street hockey | W14: 2 | X14: =SUMPRODUCT((Table9[Category]=Table9[[#This Row],[Category]])*(Table9[Quantity]=Table9[[#This Row],[Quantity]])*(Table9[Row]>Table9[[#This Row],[Row]]))/100+Table9[[#This Row],[Quantity]] -> 2 | Y14: =SUMPRODUCT((Table9[Category]=Table9[[#This Row],[Category]])*(Table9[Unique Quant]>Table9[[#This Row],[Unique Quant]]))+1 -> 14 | Z14: =Table9[[#This Row],[Quantity]]/SUMIFS(Table9[Quantity],Table9[Category],Table9[[#This Row],[Category]]) -> 0.003305785124 | AD14: =AD3 -> Contact | AE14: =IF(AD14=ActiveCategoryName,ActiveCategoryValue,0) -> 0.58117195
B15: =TT!$O34 -> Street hockey | C15: 2 | D15: 0.3 | E15: 0.2 | F15: =TT!$O47 -> Dodgeball | G15: 5 | H15: 1.9 | I15: 0.5 | T15: =ROW() -> 15 | U15: Contact | V15: Other† | W15: 4 | X15: =SUMPRODUCT((Table9[Category]=Table9[[#This Row],[Category]])*(Table9[Quantity]=Table9[[#This Row],[Quantity]])*(Table9[Row]>Table9[[#This Row],[Row]]))/100+Table9[[#This Row],[Quantity]] -> 4 | Y15: =SUMPRODUCT((Table9[Category]=Table9[[#This Row],[Category]])*(Table9[Unique Quant]>Table9[[#This Row],[Unique Quant]]))+1 -> 9 | Z15: =Table9[[#This Row],[Quantity]]/SUMIFS(Table9[Quantity],Table9[Category],Table9[[#This Row],[Category]]) -> 0.006611570248 | AD15: =AD4 -> Limited Contact | AE15: =IF(AD15=ActiveCategoryName,ActiveCategoryValue,0) -> 0
B16: =TT!$O$73 -> Other | C16: 4 | D16: 0.1 | E16: 0.4 | F16: =TT!$O48 -> Kickball | G16: 5 | H16: 1.9 | I16: 0.5 | T16: =ROW() -> 16 | U16: Limited Contact | V16: Cheerleading | W16: 47 | X16: =SUMPRODUCT((Table9[Category]=Table9[[#This Row],[Category]])*(Table9[Quantity]=Table9[[#This Row],[Quantity]])*(Table9[Row]>Table9[[#This Row],[Row]]))/100+Table9[[#This Row],[Quantity]] -> 47 | Y16: =SUMPRODUCT((Table9[Category]=Table9[[#This Row],[Category]])*(Table9[Unique Quant]>Table9[[#This Row],[Unique Quant]]))+1 -> 1 | Z16: =Table9[[#This Row],[Quantity]]/SUMIFS(Table9[Quantity],Table9[Category],Table9[[#This Row],[Category]]) -> 0.189516129 | AD16: =AD5 -> Non-Contact | AE16: =IF(AD16=ActiveCategoryName,ActiveCategoryValue,0) -> 0
F17: =TT!$O49 -> Trampoline | G17: 5 | H17: 1.9 | I17: 0.5 | T17: =ROW() -> 17 | U17: Limited Contact | V17: Baseball | W17: 30 | X17: =SUMPRODUCT((Table9[Category]=Table9[[#This Row],[Category]])*(Table9[Quantity]=Table9[[#This Row],[Quantity]])*(Table9[Row]>Table9[[#This Row],[Row]]))/100+Table9[[#This Row],[Quantity]] -> 30 | Y17: =SUMPRODUCT((Table9[Category]=Table9[[#This Row],[Category]])*(Table9[Unique Quant]>Table9[[#This Row],[Unique Quant]]))+1 -> 2 | Z17: =Table9[[#This Row],[Quantity]]/SUMIFS(Table9[Quantity],Table9[Category],Table9[[#This Row],[Category]]) -> 0.1209677419 | AD17: blank | AE17: =1-SUM(AE14:AE16) -> 0.41882805
F18: =TT!$O50 -> Squash | G18: 4 | H18: 1.5 | I18: 0.4 | N18: Contact | O18: =SUMIFS('Infograph backend'!$W$2:$W$55,'Infograph backend'!$U$2:$U$55,$N18)/SUM('Infograph backend'!$W$2:$W$55) -> 0.58117195 | P18: =1-O18 -> 0.41882805 | T18: =ROW() -> 18 | U18: Limited Contact | V18: Volleyball | W18: 23 | X18: =SUMPRODUCT((Table9[Category]=Table9[[#This Row],[Category]])*(Table9[Quantity]=Table9[[#This Row],[Quantity]])*(Table9[Row]>Table9[[#This Row],[Row]]))/100+Table9[[#This Row],[Quantity]] -> 23.01 | Y18: =SUMPRODUCT((Table9[Category]=Table9[[#This Row],[Category]])*(Table9[Unique Quant]>Table9[[#This Row],[Unique Quant]]))+1 -> 3 | Z18: =Table9[[#This Row],[Quantity]]/SUMIFS(Table9[Quantity],Table9[Category],Table9[[#This Row],[Category]]) -> 0.09274193548
F19: =TT!$O51 -> Go carts | G19: 4 | H19: 1.5 | I19: 0.4 | N19: Limited Contact | O19: =SUMIFS('Infograph backend'!$W$2:$W$55,'Infograph backend'!$U$2:$U$55,$N19)/SUM('Infograph backend'!$W$2:$W$55) -> 0.2382324688 | P19: =1-O19 -> 0.7617675312 | T19: =ROW() -> 19 | U19: Limited Contact | V19: Bike riding | W19: 23 | X19: =SUMPRODUCT((Table9[Category]=Table9[[#This Row],[Category]])*(Table9[Quantity]=Table9[[#This Row],[Quantity]])*(Table9[Row]>Table9[[#This Row],[Row]]))/100+Table9[[#This Row],[Quantity]] -> 23 | Y19: =SUMPRODUCT((Table9[Category]=Table9[[#This Row],[Category]])*(Table9[Unique Quant]>Table9[[#This Row],[Unique Quant]]))+1 -> 4 | Z19: =Table9[[#This Row],[Quantity]]/SUMIFS(Table9[Quantity],Table9[Category],Table9[[#This Row],[Category]]) -> 0.09274193548
F20: =TT!$O52 -> Flag football | G20: 3 | H20: 1.1 | I20: 0.3 | N20: Non Contact | O20: =SUMIFS('Infograph backend'!$W$2:$W$55,'Infograph backend'!$U$2:$U$55,$N20)/SUM('Infograph backend'!$W$2:$W$55) -> 0.05091258405 | P20: =1-O20 -> 0.9490874159 | T20: =ROW() -> 20 | U20: Limited Contact | V20: Softball | W20: 21 | X20: =SUMPRODUCT((Table9[Category]=Table9[[#This Row],[Category]])*(Table9[Quantity]=Table9[[#This Row],[Quantity]])*(Table9[Row]>Table9[[#This Row],[Row]]))/100+Table9[[#This Row],[Quantity]] -> 21 | Y20: =SUMPRODUCT((Table9[Category]=Table9[[#This Row],[Category]])*(Table9[Unique Quant]>Table9[[#This Row],[Unique Quant]]))+1 -> 5 | Z20: =Table9[[#This Row],[Quantity]]/SUMIFS(Table9[Quantity],Table9[Category],Table9[[#This Row],[Category]]) -> 0.08467741935
F21: =TT!$O53 -> Bouncy house | G21: 3 | H21: 1.1 | I21: 0.3 | N21: Undetermined | O21: =SUMIFS('Infograph backend'!$W$2:$W$55,'Infograph backend'!$U$2:$U$55,$N21)/SUM('Infograph backend'!$W$2:$W$55) -> 0.1296829971 | P21: =1-O21 -> 0.8703170029 | T21: =ROW() -> 21 | U21: Limited Contact | V21: Gymnastics | W21: 14 | X21: =SUMPRODUCT((Table9[Category]=Table9[[#This Row],[Category]])*(Table9[Quantity]=Table9[[#This Row],[Quantity]])*(Table9[Row]>Table9[[#This Row],[Row]]))/100+Table9[[#This Row],[Quantity]] -> 14.01 | Y21: =SUMPRODUCT((Table9[Category]=Table9[[#This Row],[Category]])*(Table9[Unique Quant]>Table9[[#This Row],[Unique Quant]]))+1 -> 6 | Z21: =Table9[[#This Row],[Quantity]]/SUMIFS(Table9[Quantity],Table9[Category],Table9[[#This Row],[Category]]) -> 0.0564516129
F22: =TT!$O54 -> Rollerskating | G22: 3 | H22: 1.1 | I22: 0.3 | T22: =ROW() -> 22 | U22: Limited Contact | V22: Snowboarding | W22: 14 | X22: =SUMPRODUCT((Table9[Category]=Table9[[#This Row],[Category]])*(Table9[Quantity]=Table9[[#This Row],[Quantity]])*(Table9[Row]>Table9[[#This Row],[Row]]))/100+Table9[[#This Row],[Quantity]] -> 14 | Y22: =SUMPRODUCT((Table9[Category]=Table9[[#This Row],[Category]])*(Table9[Unique Quant]>Table9[[#This Row],[Unique Quant]]))+1 -> 7 | Z22: =Table9[[#This Row],[Quantity]]/SUMIFS(Table9[Quantity],Table9[Category],Table9[[#This Row],[Category]]) -> 0.0564516129
F23: =TT!$O55 -> Playing tag | G23: 2 | H23: 0.1 | I23: 0.2 | T23: =ROW() -> 23 | U23: Limited Contact | V23: Ice skating | W23: 10 | X23: =SUMPRODUCT((Table9[Category]=Table9[[#This Row],[Category]])*(Table9[Quantity]=Table9[[#This Row],[Quantity]])*(Table9[Row]>Table9[[#This Row],[Row]]))/100+Table9[[#This Row],[Quantity]] -> 10.01 | Y23: =SUMPRODUCT((Table9[Category]=Table9[[#This Row],[Category]])*(Table9[Unique Quant]>Table9[[#This Row],[Unique Quant]]))+1 -> 8 | Z23: =Table9[[#This Row],[Quantity]]/SUMIFS(Table9[Quantity],Table9[Category],Table9[[#This Row],[Category]]) -> 0.04032258065
T24: =ROW() -> 24 | U24: Limited Contact | V24: Sledding | W24: 10 | X24: =SUMPRODUCT((Table9[Category]=Table9[[#This Row],[Category]])*(Table9[Quantity]=Table9[[#This Row],[Quantity]])*(Table9[Row]>Table9[[#This Row],[Row]]))/100+Table9[[#This Row],[Quantity]] -> 10 | Y24: =SUMPRODUCT((Table9[Category]=Table9[[#This Row],[Category]])*(Table9[Unique Quant]>Table9[[#This Row],[Unique Quant]]))+1 -> 9 | Z24: =Table9[[#This Row],[Quantity]]/SUMIFS(Table9[Quantity],Table9[Category],Table9[[#This Row],[Category]]) -> 0.04032258065
N25: Contact | T25: =ROW() -> 25 | U25: Limited Contact | V25: Skiing | W25: 9 | X25: =SUMPRODUCT((Table9[Category]=Table9[[#This Row],[Category]])*(Table9[Quantity]=Table9[[#This Row],[Quantity]])*(Table9[Row]>Table9[[#This Row],[Row]]))/100+Table9[[#This Row],[Quantity]] -> 9 | Y25: =SUMPRODUCT((Table9[Category]=Table9[[#This Row],[Category]])*(Table9[Unique Quant]>Table9[[#This Row],[Unique Quant]]))+1 -> 10 | Z25: =Table9[[#This Row],[Quantity]]/SUMIFS(Table9[Quantity],Table9[Category],Table9[[#This Row],[Category]]) -> 0.03629032258
M26: 1 | N26: =INDEX('Infograph backend'!$T$2:$Z$55,MATCH(1,('Infograph backend'!$U$2:$U$55=$N$25)*('Infograph backend'!$Y$2:$Y$55=$M26),0),MATCH(V$1,'Infograph backend'!$T$1:$Z$1,0)) -> Football | O26: =INDEX('Infograph backend'!$T$2:$Z$55,MATCH(1,('Infograph backend'!$U$2:$U$55=$N$25)*('Infograph backend'!$Y$2:$Y$55=$M26),0),MATCH(Z$1,'Infograph backend'!$T$1:$Z$1,0)) -> 0.279338843 | T26: =ROW() -> 26 | U26: Limited Contact | V26: Equestrian | W26: 7 | X26: =SUMPRODUCT((Table9[Category]=Table9[[#This Row],[Category]])*(Table9[Quantity]=Table9[[#This Row],[Quantity]])*(Table9[Row]>Table9[[#This Row],[Row]]))/100+Table9[[#This Row],[Quantity]] -> 7 | Y26: =SUMPRODUCT((Table9[Category]=Table9[[#This Row],[Category]])*(Table9[Unique Quant]>Table9[[#This Row],[Unique Quant]]))+1 -> 11 | Z26: =Table9[[#This Row],[Quantity]]/SUMIFS(Table9[Quantity],Table9[Category],Table9[[#This Row],[Category]]) -> 0.02822580645
M27: 2 | N27: =INDEX('Infograph backend'!$T$2:$Z$55,MATCH(1,('Infograph backend'!$U$2:$U$55=$N$25)*('Infograph backend'!$Y$2:$Y$55=$M27),0),MATCH(V$1,'Infograph backend'!$T$1:$Z$1,0)) -> Soccer | O27: =INDEX('Infograph backend'!$T$2:$Z$55,MATCH(1,('Infograph backend'!$U$2:$U$55=$N$25)*('Infograph backend'!$Y$2:$Y$55=$M27),0),MATCH(Z$1,'Infograph backend'!$T$1:$Z$1,0)) -> 0.2578512397 | T27: =ROW() -> 27 | U27: Limited Contact | V27: Skateboarding | W27: 6 | X27: =SUMPRODUCT((Table9[Category]=Table9[[#This Row],[Category]])*(Table9[Quantity]=Table9[[#This Row],[Quantity]])*(Table9[Row]>Table9[[#This Row],[Row]]))/100+Table9[[#This Row],[Quantity]] -> 6 | Y27: =SUMPRODUCT((Table9[Category]=Table9[[#This Row],[Category]])*(Table9[Unique Quant]>Table9[[#This Row],[Unique Quant]]))+1 -> 12 | Z27: =Table9[[#This Row],[Quantity]]/SUMIFS(Table9[Quantity],Table9[Category],Table9[[#This Row],[Category]]) -> 0.02419354839
M28: 3 | N28: =INDEX('Infograph backend'!$T$2:$Z$55,MATCH(1,('Infograph backend'!$U$2:$U$55=$N$25)*('Infograph backend'!$Y$2:$Y$55=$M28),0),MATCH(V$1,'Infograph backend'!$T$1:$Z$1,0)) -> Basketball | O28: =INDEX('Infograph backend'!$T$2:$Z$55,MATCH(1,('Infograph backend'!$U$2:$U$55=$N$25)*('Infograph backend'!$Y$2:$Y$55=$M28),0),MATCH(Z$1,'Infograph backend'!$T$1:$Z$1,0)) -> 0.1702479339 | T28: =ROW() -> 28 | U28: Limited Contact | V28: Dodgeball | W28: 5 | X28: =SUMPRODUCT((Table9[Category]=Table9[[#This Row],[Category]])*(Table9[Quantity]=Table9[[#This Row],[Quantity]])*(Table9[Row]>Table9[[#This Row],[Row]]))/100+Table9[[#This Row],[Quantity]] -> 5.02 | Y28: =SUMPRODUCT((Table9[Category]=Table9[[#This Row],[Category]])*(Table9[Unique Quant]>Table9[[#This Row],[Unique Quant]]))+1 -> 13 | Z28: =Table9[[#This Row],[Quantity]]/SUMIFS(Table9[Quantity],Table9[Category],Table9[[#This Row],[Category]]) -> 0.02016129032
M29: 4 | N29: =INDEX('Infograph backend'!$T$2:$Z$55,MATCH(1,('Infograph backend'!$U$2:$U$55=$N$25)*('Infograph backend'!$Y$2:$Y$55=$M29),0),MATCH(V$1,'Infograph backend'!$T$1:$Z$1,0)) -> Ice hockey/hockey | O29: =INDEX('Infograph backend'!$T$2:$Z$55,MATCH(1,('Infograph backend'!$U$2:$U$55=$N$25)*('Infograph backend'!$Y$2:$Y$55=$M29),0),MATCH(Z$1,'Infograph backend'!$T$1:$Z$1,0)) -> 0.09421487603 | T29: =ROW() -> 29 | U29: Limited Contact | V29: Kickball | W29: 5 | X29: =SUMPRODUCT((Table9[Category]=Table9[[#This Row],[Category]])*(Table9[Quantity]=Table9[[#This Row],[Quantity]])*(Table9[Row]>Table9[[#This Row],[Row]]))/100+Table9[[#This Row],[Quantity]] -> 5.01 | Y29: =SUMPRODUCT((Table9[Category]=Table9[[#This Row],[Category]])*(Table9[Unique Quant]>Table9[[#This Row],[Unique Quant]]))+1 -> 14 | Z29: =Table9[[#This Row],[Quantity]]/SUMIFS(Table9[Quantity],Table9[Category],Table9[[#This Row],[Category]]) -> 0.02016129032
M30: 5 | N30: =INDEX('Infograph backend'!$T$2:$Z$55,MATCH(1,('Infograph backend'!$U$2:$U$55=$N$25)*('Infograph backend'!$Y$2:$Y$55=$M30),0),MATCH(V$1,'Infograph backend'!$T$1:$Z$1,0)) -> Lacrosse | O30: =INDEX('Infograph backend'!$T$2:$Z$55,MATCH(1,('Infograph backend'!$U$2:$U$55=$N$25)*('Infograph backend'!$Y$2:$Y$55=$M30),0),MATCH(Z$1,'Infograph backend'!$T$1:$Z$1,0)) -> 0.07438016529 | T30: =ROW() -> 30 | U30: Limited Contact | V30: Trampoline | W30: 5 | X30: =SUMPRODUCT((Table9[Category]=Table9[[#This Row],[Category]])*(Table9[Quantity]=Table9[[#This Row],[Quantity]])*(Table9[Row]>Table9[[#This Row],[Row]]))/100+Table9[[#This Row],[Quantity]] -> 5 | Y30: =SUMPRODUCT((Table9[Category]=Table9[[#This Row],[Category]])*(Table9[Unique Quant]>Table9[[#This Row],[Unique Quant]]))+1 -> 15 | Z30: =Table9[[#This Row],[Quantity]]/SUMIFS(Table9[Quantity],Table9[Category],Table9[[#This Row],[Category]]) -> 0.02016129032
M31: 6 | N31: =INDEX('Infograph backend'!$T$2:$Z$55,MATCH(1,('Infograph backend'!$U$2:$U$55=$N$25)*('Infograph backend'!$Y$2:$Y$55=$M31),0),MATCH(V$1,'Infograph backend'!$T$1:$Z$1,0)) -> Wrestling | O31: =INDEX('Infograph backend'!$T$2:$Z$55,MATCH(1,('Infograph backend'!$U$2:$U$55=$N$25)*('Infograph backend'!$Y$2:$Y$55=$M31),0),MATCH(Z$1,'Infograph backend'!$T$1:$Z$1,0)) -> 0.04297520661 | T31: =ROW() -> 31 | U31: Limited Contact | V31: Squash | W31: 4 | X31: =SUMPRODUCT((Table9[Category]=Table9[[#This Row],[Category]])*(Table9[Quantity]=Table9[[#This Row],[Quantity]])*(Table9[Row]>Table9[[#This Row],[Row]]))/100+Table9[[#This Row],[Quantity]] -> 4.01 | Y31: =SUMPRODUCT((Table9[Category]=Table9[[#This Row],[Category]])*(Table9[Unique Quant]>Table9[[#This Row],[Unique Quant]]))+1 -> 16 | Z31: =Table9[[#This Row],[Quantity]]/SUMIFS(Table9[Quantity],Table9[Category],Table9[[#This Row],[Category]]) -> 0.01612903226
T32: =ROW() -> 32 | U32: Limited Contact | V32: Go carts | W32: 4 | X32: =SUMPRODUCT((Table9[Category]=Table9[[#This Row],[Category]])*(Table9[Quantity]=Table9[[#This Row],[Quantity]])*(Table9[Row]>Table9[[#This Row],[Row]]))/100+Table9[[#This Row],[Quantity]] -> 4 | Y32: =SUMPRODUCT((Table9[Category]=Table9[[#This Row],[Category]])*(Table9[Unique Quant]>Table9[[#This Row],[Unique Quant]]))+1 -> 17 | Z32: =Table9[[#This Row],[Quantity]]/SUMIFS(Table9[Quantity],Table9[Category],Table9[[#This Row],[Category]]) -> 0.01612903226
T33: =ROW() -> 33 | U33: Limited Contact | V33: Flag football | W33: 3 | X33: =SUMPRODUCT((Table9[Category]=Table9[[#This Row],[Category]])*(Table9[Quantity]=Table9[[#This Row],[Quantity]])*(Table9[Row]>Table9[[#This Row],[Row]]))/100+Table9[[#This Row],[Quantity]] -> 3.02 | Y33: =SUMPRODUCT((Table9[Category]=Table9[[#This Row],[Category]])*(Table9[Unique Quant]>Table9[[#This Row],[Unique Quant]]))+1 -> 18 | Z33: =Table9[[#This Row],[Quantity]]/SUMIFS(Table9[Quantity],Table9[Category],Table9[[#This Row],[Category]]) -> 0.01209677419
T34: =ROW() -> 34 | U34: Limited Contact | V34: Bouncy house | W34: 3 | X34: =SUMPRODUCT((Table9[Category]=Table9[[#This Row],[Category]])*(Table9[Quantity]=Table9[[#This Row],[Quantity]])*(Table9[Row]>Table9[[#This Row],[Row]]))/100+Table9[[#This Row],[Quantity]] -> 3.01 | Y34: =SUMPRODUCT((Table9[Category]=Table9[[#This Row],[Category]])*(Table9[Unique Quant]>Table9[[#This Row],[Unique Quant]]))+1 -> 19 | Z34: =Table9[[#This Row],[Quantity]]/SUMIFS(Table9[Quantity],Table9[Category],Table9[[#This Row],[Category]]) -> 0.01209677419
T35: =ROW() -> 35 | U35: Limited Contact | V35: Rollerskating | W35: 3 | X35: =SUMPRODUCT((Table9[Category]=Table9[[#This Row],[Category]])*(Table9[Quantity]=Table9[[#This Row],[Quantity]])*(Table9[Row]>Table9[[#This Row],[Row]]))/100+Table9[[#This Row],[Quantity]] -> 3 | Y35: =SUMPRODUCT((Table9[Category]=Table9[[#This Row],[Category]])*(Table9[Unique Quant]>Table9[[#This Row],[Unique Quant]]))+1 -> 20 | Z35: =Table9[[#This Row],[Quantity]]/SUMIFS(Table9[Quantity],Table9[Category],Table9[[#This Row],[Category]]) -> 0.01209677419
T36: =ROW() -> 36 | U36: Limited Contact | V36: Playing tag | W36: 2 | X36: =SUMPRODUCT((Table9[Category]=Table9[[#This Row],[Category]])*(Table9[Quantity]=Table9[[#This Row],[Quantity]])*(Table9[Row]>Table9[[#This Row],[Row]]))/100+Table9[[#This Row],[Quantity]] -> 2 | Y36: =SUMPRODUCT((Table9[Category]=Table9[[#This Row],[Category]])*(Table9[Unique Quant]>Table9[[#This Row],[Unique Quant]]))+1 -> 21 | Z36: =Table9[[#This Row],[Quantity]]/SUMIFS(Table9[Quantity],Table9[Category],Table9[[#This Row],[Category]]) -> 0.008064516129
T37: =ROW() -> 37 | U37: Non Contact | V37: Swimming | W37: 10 | X37: =SUMPRODUCT((Table9[Category]=Table9[[#This Row],[Category]])*(Table9[Quantity]=Table9[[#This Row],[Quantity]])*(Table9[Row]>Table9[[#This Row],[Row]]))/100+Table9[[#This Row],[Quantity]] -> 10 | Y37: =SUMPRODUCT((Table9[Category]=Table9[[#This Row],[Category]])*(Table9[Unique Quant]>Table9[[#This Row],[Unique Quant]]))+1 -> 1 | Z37: =Table9[[#This Row],[Quantity]]/SUMIFS(Table9[Quantity],Table9[Category],Table9[[#This Row],[Category]]) -> 0.1886792453
T38: =ROW() -> 38 | U38: Non Contact | V38: Dancing | W38: 8 | X38: =SUMPRODUCT((Table9[Category]=Table9[[#This Row],[Category]])*(Table9[Quantity]=Table9[[#This Row],[Quantity]])*(Table9[Row]>Table9[[#This Row],[Row]]))/100+Table9[[#This Row],[Quantity]] -> 8 | Y38: =SUMPRODUCT((Table9[Category]=Table9[[#This Row],[Category]])*(Table9[Unique Quant]>Table9[[#This Row],[Unique Quant]]))+1 -> 2 | Z38: =Table9[[#This Row],[Quantity]]/SUMIFS(Table9[Quantity],Table9[Category],Table9[[#This Row],[Category]]) -> 0.1509433962
T39: =ROW() -> 39 | U39: Non Contact | V39: Swinging | W39: 7 | X39: =SUMPRODUCT((Table9[Category]=Table9[[#This Row],[Category]])*(Table9[Quantity]=Table9[[#This Row],[Quantity]])*(Table9[Row]>Table9[[#This Row],[Row]]))/100+Table9[[#This Row],[Quantity]] -> 7.01 | Y39: =SUMPRODUCT((Table9[Category]=Table9[[#This Row],[Category]])*(Table9[Unique Quant]>Table9[[#This Row],[Unique Quant]]))+1 -> 3 | Z39: =Table9[[#This Row],[Quantity]]/SUMIFS(Table9[Quantity],Table9[Category],Table9[[#This Row],[Category]]) -> 0.1320754717
T40: =ROW() -> 40 | U40: Non Contact | V40: Monkey bars | W40: 5 | X40: =SUMPRODUCT((Table9[Category]=Table9[[#This Row],[Category]])*(Table9[Quantity]=Table9[[#This Row],[Quantity]])*(Table9[Row]>Table9[[#This Row],[Row]]))/100+Table9[[#This Row],[Quantity]] -> 5 | Y40: =SUMPRODUCT((Table9[Category]=Table9[[#This Row],[Category]])*(Table9[Unique Quant]>Table9[[#This Row],[Unique Quant]]))+1 -> 5 | Z40: =Table9[[#This Row],[Quantity]]/SUMIFS(Table9[Quantity],Table9[Category],Table9[[#This Row],[Category]]) -> 0.09433962264
T41: =ROW() -> 41 | U41: Non Contact | V41: Track | W41: 4 | X41: =SUMPRODUCT((Table9[Category]=Table9[[#This Row],[Category]])*(Table9[Quantity]=Table9[[#This Row],[Quantity]])*(Table9[Row]>Table9[[#This Row],[Row]]))/100+Table9[[#This Row],[Quantity]] -> 4 | Y41: =SUMPRODUCT((Table9[Category]=Table9[[#This Row],[Category]])*(Table9[Unique Quant]>Table9[[#This Row],[Unique Quant]]))+1 -> 6 | Z41: =Table9[[#This Row],[Quantity]]/SUMIFS(Table9[Quantity],Table9[Category],Table9[[#This Row],[Category]]) -> 0.07547169811
T42: =ROW() -> 42 | U42: Non Contact | V42: Tennis | W42: 3 | X42: =SUMPRODUCT((Table9[Category]=Table9[[#This Row],[Category]])*(Table9[Quantity]=Table9[[#This Row],[Quantity]])*(Table9[Row]>Table9[[#This Row],[Row]]))/100+Table9[[#This Row],[Quantity]] -> 3.01 | Y42: =SUMPRODUCT((Table9[Category]=Table9[[#This Row],[Category]])*(Table9[Unique Quant]>Table9[[#This Row],[Unique Quant]]))+1 -> 7 | Z42: =Table9[[#This Row],[Quantity]]/SUMIFS(Table9[Quantity],Table9[Category],Table9[[#This Row],[Category]]) -> 0.05660377358
T43: =ROW() -> 43 | U43: Non Contact | V43: Running | W43: 3 | X43: =SUMPRODUCT((Table9[Category]=Table9[[#This Row],[Category]])*(Table9[Quantity]=Table9[[#This Row],[Quantity]])*(Table9[Row]>Table9[[#This Row],[Row]]))/100+Table9[[#This Row],[Quantity]] -> 3 | Y43: =SUMPRODUCT((Table9[Category]=Table9[[#This Row],[Category]])*(Table9[Unique Quant]>Table9[[#This Row],[Unique Quant]]))+1 -> 8 | Z43: =Table9[[#This Row],[Quantity]]/SUMIFS(Table9[Quantity],Table9[Category],Table9[[#This Row],[Category]]) -> 0.05660377358
T44: =ROW() -> 44 | U44: Non Contact | V44: Hunting | W44: 2 | X44: =SUMPRODUCT((Table9[Category]=Table9[[#This Row],[Category]])*(Table9[Quantity]=Table9[[#This Row],[Quantity]])*(Table9[Row]>Table9[[#This Row],[Row]]))/100+Table9[[#This Row],[Quantity]] -> 2.02 | Y44: =SUMPRODUCT((Table9[Category]=Table9[[#This Row],[Category]])*(Table9[Unique Quant]>Table9[[#This Row],[Unique Quant]]))+1 -> 9 | Z44: =Table9[[#This Row],[Quantity]]/SUMIFS(Table9[Quantity],Table9[Category],Table9[[#This Row],[Category]]) -> 0.03773584906
T45: =ROW() -> 45 | U45: Non Contact | V45: Roller coaster | W45: 2 | X45: =SUMPRODUCT((Table9[Category]=Table9[[#This Row],[Category]])*(Table9[Quantity]=Table9[[#This Row],[Quantity]])*(Table9[Row]>Table9[[#This Row],[Row]]))/100+Table9[[#This Row],[Quantity]] -> 2.01 | Y45: =SUMPRODUCT((Table9[Category]=Table9[[#This Row],[Category]])*(Table9[Unique Quant]>Table9[[#This Row],[Unique Quant]]))+1 -> 10 | Z45: =Table9[[#This Row],[Quantity]]/SUMIFS(Table9[Quantity],Table9[Category],Table9[[#This Row],[Category]]) -> 0.03773584906
T46: =ROW() -> 46 | U46: Non Contact | V46: Zipline | W46: 2 | X46: =SUMPRODUCT((Table9[Category]=Table9[[#This Row],[Category]])*(Table9[Quantity]=Table9[[#This Row],[Quantity]])*(Table9[Row]>Table9[[#This Row],[Row]]))/100+Table9[[#This Row],[Quantity]] -> 2 | Y46: =SUMPRODUCT((Table9[Category]=Table9[[#This Row],[Category]])*(Table9[Unique Quant]>Table9[[#This Row],[Unique Quant]]))+1 -> 11 | Z46: =Table9[[#This Row],[Quantity]]/SUMIFS(Table9[Quantity],Table9[Category],Table9[[#This Row],[Category]]) -> 0.03773584906
T47: =ROW() -> 47 | U47: Non Contact | V47: Other§ | W47: 7 | X47: =SUMPRODUCT((Table9[Category]=Table9[[#This Row],[Category]])*(Table9[Quantity]=Table9[[#This Row],[Quantity]])*(Table9[Row]>Table9[[#This Row],[Row]]))/100+Table9[[#This Row],[Quantity]] -> 7 | Y47: =SUMPRODUCT((Table9[Category]=Table9[[#This Row],[Category]])*(Table9[Unique Quant]>Table9[[#This Row],[Unique Quant]]))+1 -> 4 | Z47: =Table9[[#This Row],[Quantity]]/SUMIFS(Table9[Quantity],Table9[Category],Table9[[#This Row],[Category]]) -> 0.1320754717
T48: =ROW() -> 48 | U48: Undetermined | V48: Playing | W48: 41 | X48: =SUMPRODUCT((Table9[Category]=Table9[[#This Row],[Category]])*(Table9[Quantity]=Table9[[#This Row],[Quantity]])*(Table9[Row]>Table9[[#This Row],[Row]]))/100+Table9[[#This Row],[Quantity]] -> 41 | Y48: =SUMPRODUCT((Table9[Category]=Table9[[#This Row],[Category]])*(Table9[Unique Quant]>Table9[[#This Row],[Unique Quant]]))+1 -> 1 | Z48: =Table9[[#This Row],[Quantity]]/SUMIFS(Table9[Quantity],Table9[Category],Table9[[#This Row],[Category]]) -> 0.3037037037
T49: =ROW() -> 49 | U49: Undetermined | V49: Gym class | W49: 38 | X49: =SUMPRODUCT((Table9[Category]=Table9[[#This Row],[Category]])*(Table9[Quantity]=Table9[[#This Row],[Quantity]])*(Table9[Row]>Table9[[#This Row],[Row]]))/100+Table9[[#This Row],[Quantity]] -> 38 | Y49: =SUMPRODUCT((Table9[Category]=Table9[[#This Row],[Category]])*(Table9[Unique Quant]>Table9[[#This Row],[Unique Quant]]))+1 -> 2 | Z49: =Table9[[#This Row],[Quantity]]/SUMIFS(Table9[Quantity],Table9[Category],Table9[[#This Row],[Category]]) -> 0.2814814815
T50: =ROW() -> 50 | U50: Undetermined | V50: Playground | W50: 22 | X50: =SUMPRODUCT((Table9[Category]=Table9[[#This Row],[Category]])*(Table9[Quantity]=Table9[[#This Row],[Quantity]])*(Table9[Row]>Table9[[#This Row],[Row]]))/100+Table9[[#This Row],[Quantity]] -> 22 | Y50: =SUMPRODUCT((Table9[Category]=Table9[[#This Row],[Category]])*(Table9[Unique Quant]>Table9[[#This Row],[Unique Quant]]))+1 -> 3 | Z50: =Table9[[#This Row],[Quantity]]/SUMIFS(Table9[Quantity],Table9[Category],Table9[[#This Row],[Category]]) -> 0.162962963
T51: =ROW() -> 51 | U51: Undetermined | V51: Recess | W51: 19 | X51: =SUMPRODUCT((Table9[Category]=Table9[[#This Row],[Category]])*(Table9[Quantity]=Table9[[#This Row],[Quantity]])*(Table9[Row]>Table9[[#This Row],[Row]]))/100+Table9[[#This Row],[Quantity]] -> 19 | Y51: =SUMPRODUCT((Table9[Category]=Table9[[#This Row],[Category]])*(Table9[Unique Quant]>Table9[[#This Row],[Unique Quant]]))+1 -> 4 | Z51: =Table9[[#This Row],[Quantity]]/SUMIFS(Table9[Quantity],Table9[Category],Table9[[#This Row],[Category]]) -> 0.1407407407
T52: =ROW() -> 52 | U52: Undetermined | V52: Nonspecified | W52: 6 | X52: =SUMPRODUCT((Table9[Category]=Table9[[#This Row],[Category]])*(Table9[Quantity]=Table9[[#This Row],[Quantity]])*(Table9[Row]>Table9[[#This Row],[Row]]))/100+Table9[[#This Row],[Quantity]] -> 6 | Y52: =SUMPRODUCT((Table9[Category]=Table9[[#This Row],[Category]])*(Table9[Unique Quant]>Table9[[#This Row],[Unique Quant]]))+1 -> 5 | Z52: =Table9[[#This Row],[Quantity]]/SUMIFS(Table9[Quantity],Table9[Category],Table9[[#This Row],[Category]]) -> 0.04444444444
T53: =ROW() -> 53 | U53: Undetermined | V53: Playing outside | W53: 4 | X53: =SUMPRODUCT((Table9[Category]=Table9[[#This Row],[Category]])*(Table9[Quantity]=Table9[[#This Row],[Quantity]])*(Table9[Row]>Table9[[#This Row],[Row]]))/100+Table9[[#This Row],[Quantity]] -> 4 | Y53: =SUMPRODUCT((Table9[Category]=Table9[[#This Row],[Category]])*(Table9[Unique Quant]>Table9[[#This Row],[Unique Quant]]))+1 -> 6 | Z53: =Table9[[#This Row],[Quantity]]/SUMIFS(Table9[Quantity],Table9[Category],Table9[[#This Row],[Category]]) -> 0.02962962963
T54: =ROW() -> 54 | U54: Undetermined | V54: Rip stick | W54: 2 | X54: =SUMPRODUCT((Table9[Category]=Table9[[#This Row],[Category]])*(Table9[Quantity]=Table9[[#This Row],[Quantity]])*(Table9[Row]>Table9[[#This Row],[Row]]))/100+Table9[[#This Row],[Quantity]] -> 2 | Y54: =SUMPRODUCT((Table9[Category]=Table9[[#This Row],[Category]])*(Table9[Unique Quant]>Table9[[#This Row],[Unique Quant]]))+1 -> 8 | Z54: =Table9[[#This Row],[Quantity]]/SUMIFS(Table9[Quantity],Table9[Category],Table9[[#This Row],[Category]]) -> 0.01481481481
T55: =ROW() -> 55 | U55: Undetermined | V55: Other¶ | W55: 3 | X55: =SUMPRODUCT((Table9[Category]=Table9[[#This Row],[Category]])*(Table9[Quantity]=Table9[[#This Row],[Quantity]])*(Table9[Row]>Table9[[#This Row],[Row]]))/100+Table9[[#This Row],[Quantity]] -> 3 | Y55: =SUMPRODUCT((Table9[Category]=Table9[[#This Row],[Category]])*(Table9[Unique Quant]>Table9[[#This Row],[Unique Quant]]))+1 -> 7 | Z55: =Table9[[#This Row],[Quantity]]/SUMIFS(Table9[Quantity],Table9[Category],Table9[[#This Row],[Category]]) -> 0.02222222222

Sheet Reference Cells (hidden)
B1: TimeEntry | C1: 0
B2: =BackendTable[[#Headers],[Time]] -> Time | C2: =MID(_xlfn.FORMULATEXT(B2),2,FIND("[",_xlfn.FORMULATEXT(B2))-2) -> BackendTable | E2: 0 | F2: ="NameSession"&E2 -> NameSession0 | G2: =INDIRECT(TEXT(F2,0),0) -> 0 | J2: Pressure threshold:
B3: Min Time | C3: =_xlfn.MINIFS(BackendTable[Time],BackendTable[Time],">"&0) -> 0 | E3: 1 | F3: ="NameSession"&E3 -> NameSession1 | G3: =INDIRECT(TEXT(F3,0),0) -> 0 | J3: 30
B4: Max Time | C4: =_xlfn.MAXIFS(BackendTable[Time],BackendTable[Time],">"&0) -> 0 | E4: 2 | F4: NameSession2 | G4: 0
B5: Diff | C5: =(C4-C3)*86400 -> 0 | E5: 3 | F5: NameSession3 | G5: 0
B6: Min Event Time | C6: =C7-2/86400 -> -2.314814815e-05 | E6: 4 | F6: NameSession4 | G6: 0 | J6: =_xlfn.MINIFS(BackendTable[Time],BackendTable[Max],">"&$J$3) -> 0
B7: End Time | C7: =MIN(_xlfn.MINIFS(BackendTable[Time],BackendTable[Max],$J$8)+1.5/86400,MAX(BackendTable[Time])) -> 0 | E7: 5 | F7: NameSession5 | G7: 0
B8: NetTimeMin | C8: =MIN(BackendTable[Net Time]) -> 0 | E8: 6 | F8: NameSession6 | G8: 0 | J8: =MAX(BackendTable[Max]) -> 0
B9: NetTimeMax | C9: =MAX(BackendTable[Net Time]) -> 0 | E9: 7 | F9: NameSession7 | G9: 0
B10: NetTimeRange | C10: =MAX(BackendTable[Net Time])-MIN(BackendTable[Net Time]) -> 0
B11: RangeAdj | C11: =2/NetTimeRange -> 
B12: T1Row | C12: =IFERROR(INDEX(BackendTable[],MATCH(TimeEntry,INDIRECT("BackendTable["&LEFT($B12,2)&"Time]",0),1),MATCH($B12,BackendTable[#Headers],0)),1) -> 1
B13: T2Row | C13: =IFERROR(INDEX(BackendTable[],MATCH(TimeEntry,INDIRECT("BackendTable["&LEFT($B13,2)&"Time]",0),1),MATCH($B13,BackendTable[#Headers],0)),1) -> 1
B14: T3Row | C14: =IFERROR(INDEX(BackendTable[],MATCH(TimeEntry,INDIRECT("BackendTable["&LEFT($B14,2)&"Time]",0),1),MATCH($B14,BackendTable[#Headers],0)),1) -> 1
B15: SelectedVisual | C15: 1
B16: VisualType | C16: =IF(SelectedVisual,TT!$O$102,TT!$O$103) -> Capture Data
B17: Pause command | C17: #pause
B18: YaxisMax | C18: =ROUNDUP(MAX($C$22:$C$24,200)/50,0)*50 -> 200
B19: LimitLow | C19: =C18*0.1 -> 20
B20: LimitMed | C20: =C18*0.4 -> 80
B21: LimitHigh | C21: =C18*0.7 -> 140
B22: MaxT1 | C22: =_xlfn.MAXIFS(BackendTable[T1Max],BackendTable[T1Row],">"&0) -> 0
B23: MaxT2 | C23: =_xlfn.MAXIFS(BackendTable[T2Max],BackendTable[T2Row],">"&0) -> 0
B24: MaxT3 | C24: =_xlfn.MAXIFS(BackendTable[T3Max],BackendTable[T3Row],">"&0) -> 0
B25: MaxSensorT1 | C25: =IFERROR(INDEX(SensorTable[Brain],INDEX(BackendTable[],MATCH($C22,INDIRECT("BackendTable["&RIGHT($B25,2)&"Max]",0),0),MATCH($B25,BackendTable[#Headers],0))),"") -> 
B26: MaxSensorT2 | C26: =IFERROR(INDEX(SensorTable[Brain],INDEX(BackendTable[],MATCH($C23,INDIRECT("BackendTable["&RIGHT($B26,2)&"Max]",0),0),MATCH($B26,BackendTable[#Headers],0))),"") -> 
B27: MaxSensorT3 | C27: =IFERROR(INDEX(SensorTable[Brain],INDEX(BackendTable[],MATCH($C24,INDIRECT("BackendTable["&RIGHT($B27,2)&"Max]",0),0),MATCH($B27,BackendTable[#Headers],0))),"") -> 
B28: MaxTextT1 | C28: =IFERROR(INDEX(SensorTable[Brain Text],MATCH($C25,SensorTable[Brain],0)),"") -> 
B29: MaxTextT2 | C29: =IFERROR(INDEX(SensorTable[Brain Text],MATCH($C26,SensorTable[Brain],0)),"") -> 
B30: MaxTextT3 | C30: =IFERROR(INDEX(SensorTable[Brain Text],MATCH($C27,SensorTable[Brain],0)),"") -> 
B31: TrialsSaved | C31: =IF(C22=0,0,1)+IF(C23=0,0,1)+IF(C24=0,0,1) -> 0
B32: ScrubVal | C32: =IF(TimeEntry<0,NA(),TimeEntry) -> 0
B33: SaveButton | C33: =_xlfn.SWITCH(SessionNumber,0,TT!$O$137,-1,TT!$O$140,TT!$O$110&(SessionNumber)&" ") -> Save Baseline 
B34: NextSessionName | C34: =IF(SessionNumber=0,TT!$O$139,TT!$O$122&(SessionNumber)) -> Baseline
B35: Trials Header | C35: =_xlfn.SWITCH(SessionNumber,0,TT!$O$138,-1,TT!$O$140,TT!$O$121&SessionNumber) -> Trials: Baseline Session
B36: SessionCount | C36: =IFERROR(MATCH(0,$G$2:$G$9,0)-1,-1) -> 0

Sheet BrainSensorVals (hidden)
A1: =RIGHT(CELL("filename",A1),LEN(CELL("filename",A1))-FIND("]",CELL("filename",A1))) -> BrainSensorVals
B2: Trial | C2: S1 | D2: S2 | E2: S3 | F2: S4 | G2: S5 | H2: Row | I2: Max
B3: 0 | C3: ="BackendTable[T"&$B3&C$2&"]" -> BackendTable[T0S1] | D3: BackendTable[T0S2] | E3: BackendTable[T0S3] | F3: BackendTable[T0S4] | G3: BackendTable[T0S5] | H3: =IFERROR(INDIRECT("T"&Table1[[#This Row],[Trial]]&"Row",0),NA()) -> 
B4: 1 | C4: BackendTable[T1S1] | D4: BackendTable[T1S2] | E4: BackendTable[T1S3] | F4: BackendTable[T1S4] | G4: BackendTable[T1S5] | H4: =IFERROR(INDIRECT("T"&Table1[[#This Row],[Trial]]&"Row",0),NA()) -> 1
B5: 2 | C5: BackendTable[T2S1] | D5: BackendTable[T2S2] | E5: BackendTable[T2S3] | F5: BackendTable[T2S4] | G5: BackendTable[T2S5] | H5: =IFERROR(INDIRECT("T"&Table1[[#This Row],[Trial]]&"Row",0),NA()) -> 1
B6: 3 | C6: BackendTable[T3S1] | D6: BackendTable[T3S2] | E6: BackendTable[T3S3] | F6: BackendTable[T3S4] | G6: BackendTable[T3S5] | H6: =IFERROR(INDIRECT("T"&Table1[[#This Row],[Trial]]&"Row",0),NA()) -> 1
B10: Trial | C10: Sensor | D10: ColName | E10: Indirect Time | F10: Indirect Row | G10: Indirect Sensor | H10: Row | I10: Value | J10: Max | K10: DashViewVal | L10: State | M10: State0 | N10: State1 | O10: State2 | P10: State3 | Q10: Round | R10: OldState
B11: 0 | C11: 1 | D11: =IF(BrainStateTable[[#This Row],[Trial]]=0,"","T"&BrainStateTable[[#This Row],[Trial]])&"S"&BrainStateTable[[#This Row],[Sensor]] -> S1 | E11: ="BackendTable[T"&BrainStateTable[[#This Row],[Trial]]&"Time]" -> BackendTable[T0Time] | F11: ="BackendTable[T"&BrainStateTable[[#This Row],[Trial]]&"Row]" -> BackendTable[T0Row] | G11: ="BackendTable["&BrainStateTable[[#This Row],[ColName]]&"]" -> BackendTable[S1] | H11: =_xlfn.SWITCH(BrainStateTable[[#This Row],[Trial]],0,"Live",1,T1Row,2,T2Row,3,T3Row) -> Live | I11: =IFERROR(IFERROR(INDEX(BackendTable[],MATCH(BrainStateTable[[#This Row],[Row]],INDIRECT(BrainStateTable[[#This Row],[Indirect Row]],0),0),MATCH(BrainStateTable[[#This Row],[ColName]],BackendTable[#Headers],0)),_xlfn.MAXIFS(INDIRECT(BrainStateTable[[#This Row],[Indirect Sensor]],0),BackendTable[Row'#],">"&495)),"") -> 0 | J11: =MAX(INDIRECT(BrainStateTable[[#This Row],[Indirect Sensor]],0)) -> 0 | K11: =_xlfn.SWITCH(TRUE(),AND(SelectedVisual=1,BrainStateTable[[#This Row],[Trial]]=0),BrainStateTable[[#This Row],[Value]],AND(SelectedVisual=1,BrainStateTable[[#This Row],[Trial]]>0),BrainStateTable[[#This Row],[Max]],AND(SelectedVisual=0,BrainStateTable[[#This Row],[Trial]]=0),"",AND(SelectedVisual=0,BrainStateTable[[#This Row],[Trial]]>0,TimeEntry=-0.001),BrainStateTable[[#This Row],[Max]],AND(SelectedVisual=0,BrainStateTable[[#This Row],[Trial]]>0,TimeEntry>-0.001),BrainStateTable[[#This Row],[Value]]) -> 0 | L11: =_xlfn.SWITCH(TRUE(),OR(BrainStateTable[[#This Row],[DashViewVal]]<BrainLow,BrainStateTable[[#This Row],[DashViewVal]]=""),0,AND(BrainStateTable[[#This Row],[DashViewVal]]>=BrainLow,BrainStateTable[[#This Row],[DashViewVal]]<BrainMed),1,AND(BrainStateTable[[#This Row],[DashViewVal]]>=BrainMed,BrainStateTable[[#This Row],[DashViewVal]]<BrainHigh),2,BrainStateTable[[#This Row],[DashViewVal]]>=BrainHigh,3) -> 0 | M11: =IF(BrainStateTable[[#This Row],[State]]=VALUE(RIGHT(M$10,1)),1,NA()) -> 1 | N11: =IF(BrainStateTable[[#This Row],[State]]=VALUE(RIGHT(N$10,1)),1,NA()) ->  | O11: =IF(BrainStateTable[[#This Row],[State]]=VALUE(RIGHT(O$10,1)),1,NA()) ->  | P11: =IF(BrainStateTable[[#This Row],[State]]=VALUE(RIGHT(P$10,1)),1,NA()) ->  | Q11: =ROUNDUP(BrainStateTable[[#This Row],[Value]]/15,0) -> 0 | R11: =_xlfn.SWITCH(TRUE,BrainStateTable[[#This Row],[Round]]<1,1,BrainStateTable[[#This Row],[Round]]>4,4,BrainStateTable[[#This Row],[Round]])-1 -> 0
B12: 0 | C12: 2 | D12: =IF(BrainStateTable[[#This Row],[Trial]]=0,"","T"&BrainStateTable[[#This Row],[Trial]])&"S"&BrainStateTable[[#This Row],[Sensor]] -> S2 | E12: ="BackendTable[T"&BrainStateTable[[#This Row],[Trial]]&"Time]" -> BackendTable[T0Time] | F12: ="BackendTable[T"&BrainStateTable[[#This Row],[Trial]]&"Row]" -> BackendTable[T0Row] | G12: ="BackendTable["&BrainStateTable[[#This Row],[ColName]]&"]" -> BackendTable[S2] | H12: =_xlfn.SWITCH(BrainStateTable[[#This Row],[Trial]],0,"Live",1,T1Row,2,T2Row,3,T3Row) -> Live | I12: =IFERROR(IFERROR(INDEX(BackendTable[],MATCH(BrainStateTable[[#This Row],[Row]],INDIRECT(BrainStateTable[[#This Row],[Indirect Row]],0),0),MATCH(BrainStateTable[[#This Row],[ColName]],BackendTable[#Headers],0)),_xlfn.MAXIFS(INDIRECT(BrainStateTable[[#This Row],[Indirect Sensor]],0),BackendTable[Row'#],">"&495)),"") -> 0 | J12: =MAX(INDIRECT(BrainStateTable[[#This Row],[Indirect Sensor]],0)) -> 0 | K12: =_xlfn.SWITCH(TRUE(),AND(SelectedVisual=1,BrainStateTable[[#This Row],[Trial]]=0),BrainStateTable[[#This Row],[Value]],AND(SelectedVisual=1,BrainStateTable[[#This Row],[Trial]]>0),BrainStateTable[[#This Row],[Max]],AND(SelectedVisual=0,BrainStateTable[[#This Row],[Trial]]=0),"",AND(SelectedVisual=0,BrainStateTable[[#This Row],[Trial]]>0,TimeEntry=-0.001),BrainStateTable[[#This Row],[Max]],AND(SelectedVisual=0,BrainStateTable[[#This Row],[Trial]]>0,TimeEntry>-0.001),BrainStateTable[[#This Row],[Value]]) -> 0 | L12: =_xlfn.SWITCH(TRUE(),OR(BrainStateTable[[#This Row],[DashViewVal]]<BrainLow,BrainStateTable[[#This Row],[DashViewVal]]=""),0,AND(BrainStateTable[[#This Row],[DashViewVal]]>=BrainLow,BrainStateTable[[#This Row],[DashViewVal]]<BrainMed),1,AND(BrainStateTable[[#This Row],[DashViewVal]]>=BrainMed,BrainStateTable[[#This Row],[DashViewVal]]<BrainHigh),2,BrainStateTable[[#This Row],[DashViewVal]]>=BrainHigh,3) -> 0 | M12: =IF(BrainStateTable[[#This Row],[State]]=VALUE(RIGHT(M$10,1)),1,NA()) -> 1 | N12: =IF(BrainStateTable[[#This Row],[State]]=VALUE(RIGHT(N$10,1)),1,NA()) ->  | O12: =IF(BrainStateTable[[#This Row],[State]]=VALUE(RIGHT(O$10,1)),1,NA()) ->  | P12: =IF(BrainStateTable[[#This Row],[State]]=VALUE(RIGHT(P$10,1)),1,NA()) ->  | Q12: =ROUNDUP(BrainStateTable[[#This Row],[Value]]/15,0) -> 0 | R12: =_xlfn.SWITCH(TRUE,BrainStateTable[[#This Row],[Round]]<1,1,BrainStateTable[[#This Row],[Round]]>4,4,BrainStateTable[[#This Row],[Round]])-1 -> 0
B13: 0 | C13: 3 | D13: =IF(BrainStateTable[[#This Row],[Trial]]=0,"","T"&BrainStateTable[[#This Row],[Trial]])&"S"&BrainStateTable[[#This Row],[Sensor]] -> S3 | E13: ="BackendTable[T"&BrainStateTable[[#This Row],[Trial]]&"Time]" -> BackendTable[T0Time] | F13: ="BackendTable[T"&BrainStateTable[[#This Row],[Trial]]&"Row]" -> BackendTable[T0Row] | G13: ="BackendTable["&BrainStateTable[[#This Row],[ColName]]&"]" -> BackendTable[S3] | H13: =_xlfn.SWITCH(BrainStateTable[[#This Row],[Trial]],0,"Live",1,T1Row,2,T2Row,3,T3Row) -> Live | I13: =IFERROR(IFERROR(INDEX(BackendTable[],MATCH(BrainStateTable[[#This Row],[Row]],INDIRECT(BrainStateTable[[#This Row],[Indirect Row]],0),0),MATCH(BrainStateTable[[#This Row],[ColName]],BackendTable[#Headers],0)),_xlfn.MAXIFS(INDIRECT(BrainStateTable[[#This Row],[Indirect Sensor]],0),BackendTable[Row'#],">"&495)),"") -> 0 | J13: =MAX(INDIRECT(BrainStateTable[[#This Row],[Indirect Sensor]],0)) -> 0 | K13: =_xlfn.SWITCH(TRUE(),AND(SelectedVisual=1,BrainStateTable[[#This Row],[Trial]]=0),BrainStateTable[[#This Row],[Value]],AND(SelectedVisual=1,BrainStateTable[[#This Row],[Trial]]>0),BrainStateTable[[#This Row],[Max]],AND(SelectedVisual=0,BrainStateTable[[#This Row],[Trial]]=0),"",AND(SelectedVisual=0,BrainStateTable[[#This Row],[Trial]]>0,TimeEntry=-0.001),BrainStateTable[[#This Row],[Max]],AND(SelectedVisual=0,BrainStateTable[[#This Row],[Trial]]>0,TimeEntry>-0.001),BrainStateTable[[#This Row],[Value]]) -> 0 | L13: =_xlfn.SWITCH(TRUE(),OR(BrainStateTable[[#This Row],[DashViewVal]]<BrainLow,BrainStateTable[[#This Row],[DashViewVal]]=""),0,AND(BrainStateTable[[#This Row],[DashViewVal]]>=BrainLow,BrainStateTable[[#This Row],[DashViewVal]]<BrainMed),1,AND(BrainStateTable[[#This Row],[DashViewVal]]>=BrainMed,BrainStateTable[[#This Row],[DashViewVal]]<BrainHigh),2,BrainStateTable[[#This Row],[DashViewVal]]>=BrainHigh,3) -> 0 | M13: =IF(BrainStateTable[[#This Row],[State]]=VALUE(RIGHT(M$10,1)),1,NA()) -> 1 | N13: =IF(BrainStateTable[[#This Row],[State]]=VALUE(RIGHT(N$10,1)),1,NA()) ->  | O13: =IF(BrainStateTable[[#This Row],[State]]=VALUE(RIGHT(O$10,1)),1,NA()) ->  | P13: =IF(BrainStateTable[[#This Row],[State]]=VALUE(RIGHT(P$10,1)),1,NA()) ->  | Q13: =ROUNDUP(BrainStateTable[[#This Row],[Value]]/15,0) -> 0 | R13: =_xlfn.SWITCH(TRUE,BrainStateTable[[#This Row],[Round]]<1,1,BrainStateTable[[#This Row],[Round]]>4,4,BrainStateTable[[#This Row],[Round]])-1 -> 0
B14: 0 | C14: 4 | D14: =IF(BrainStateTable[[#This Row],[Trial]]=0,"","T"&BrainStateTable[[#This Row],[Trial]])&"S"&BrainStateTable[[#This Row],[Sensor]] -> S4 | E14: ="BackendTable[T"&BrainStateTable[[#This Row],[Trial]]&"Time]" -> BackendTable[T0Time] | F14: ="BackendTable[T"&BrainStateTable[[#This Row],[Trial]]&"Row]" -> BackendTable[T0Row] | G14: ="BackendTable["&BrainStateTable[[#This Row],[ColName]]&"]" -> BackendTable[S4] | H14: =_xlfn.SWITCH(BrainStateTable[[#This Row],[Trial]],0,"Live",1,T1Row,2,T2Row,3,T3Row) -> Live | I14: =IFERROR(IFERROR(INDEX(BackendTable[],MATCH(BrainStateTable[[#This Row],[Row]],INDIRECT(BrainStateTable[[#This Row],[Indirect Row]],0),0),MATCH(BrainStateTable[[#This Row],[ColName]],BackendTable[#Headers],0)),_xlfn.MAXIFS(INDIRECT(BrainStateTable[[#This Row],[Indirect Sensor]],0),BackendTable[Row'#],">"&495)),"") -> 0 | J14: =MAX(INDIRECT(BrainStateTable[[#This Row],[Indirect Sensor]],0)) -> 0 | K14: =_xlfn.SWITCH(TRUE(),AND(SelectedVisual=1,BrainStateTable[[#This Row],[Trial]]=0),BrainStateTable[[#This Row],[Value]],AND(SelectedVisual=1,BrainStateTable[[#This Row],[Trial]]>0),BrainStateTable[[#This Row],[Max]],AND(SelectedVisual=0,BrainStateTable[[#This Row],[Trial]]=0),"",AND(SelectedVisual=0,BrainStateTable[[#This Row],[Trial]]>0,TimeEntry=-0.001),BrainStateTable[[#This Row],[Max]],AND(SelectedVisual=0,BrainStateTable[[#This Row],[Trial]]>0,TimeEntry>-0.001),BrainStateTable[[#This Row],[Value]]) -> 0 | L14: =_xlfn.SWITCH(TRUE(),OR(BrainStateTable[[#This Row],[DashViewVal]]<BrainLow,BrainStateTable[[#This Row],[DashViewVal]]=""),0,AND(BrainStateTable[[#This Row],[DashViewVal]]>=BrainLow,BrainStateTable[[#This Row],[DashViewVal]]<BrainMed),1,AND(BrainStateTable[[#This Row],[DashViewVal]]>=BrainMed,BrainStateTable[[#This Row],[DashViewVal]]<BrainHigh),2,BrainStateTable[[#This Row],[DashViewVal]]>=BrainHigh,3) -> 0 | M14: =IF(BrainStateTable[[#This Row],[State]]=VALUE(RIGHT(M$10,1)),1,NA()) -> 1 | N14: =IF(BrainStateTable[[#This Row],[State]]=VALUE(RIGHT(N$10,1)),1,NA()) ->  | O14: =IF(BrainStateTable[[#This Row],[State]]=VALUE(RIGHT(O$10,1)),1,NA()) ->  | P14: =IF(BrainStateTable[[#This Row],[State]]=VALUE(RIGHT(P$10,1)),1,NA()) ->  | Q14: =ROUNDUP(BrainStateTable[[#This Row],[Value]]/15,0) -> 0 | R14: =_xlfn.SWITCH(TRUE,BrainStateTable[[#This Row],[Round]]<1,1,BrainStateTable[[#This Row],[Round]]>4,4,BrainStateTable[[#This Row],[Round]])-1 -> 0
B15: 0 | C15: 5 | D15: =IF(BrainStateTable[[#This Row],[Trial]]=0,"","T"&BrainStateTable[[#This Row],[Trial]])&"S"&BrainStateTable[[#This Row],[Sensor]] -> S5 | E15: ="BackendTable[T"&BrainStateTable[[#This Row],[Trial]]&"Time]" -> BackendTable[T0Time] | F15: ="BackendTable[T"&BrainStateTable[[#This Row],[Trial]]&"Row]" -> BackendTable[T0Row] | G15: ="BackendTable["&BrainStateTable[[#This Row],[ColName]]&"]" -> BackendTable[S5] | H15: =_xlfn.SWITCH(BrainStateTable[[#This Row],[Trial]],0,"Live",1,T1Row,2,T2Row,3,T3Row) -> Live | I15: =IFERROR(IFERROR(INDEX(BackendTable[],MATCH(BrainStateTable[[#This Row],[Row]],INDIRECT(BrainStateTable[[#This Row],[Indirect Row]],0),0),MATCH(BrainStateTable[[#This Row],[ColName]],BackendTable[#Headers],0)),_xlfn.MAXIFS(INDIRECT(BrainStateTable[[#This Row],[Indirect Sensor]],0),BackendTable[Row'#],">"&495)),"") -> 0 | J15: =MAX(INDIRECT(BrainStateTable[[#This Row],[Indirect Sensor]],0)) -> 0 | K15: =_xlfn.SWITCH(TRUE(),AND(SelectedVisual=1,BrainStateTable[[#This Row],[Trial]]=0),BrainStateTable[[#This Row],[Value]],AND(SelectedVisual=1,BrainStateTable[[#This Row],[Trial]]>0),BrainStateTable[[#This Row],[Max]],AND(SelectedVisual=0,BrainStateTable[[#This Row],[Trial]]=0),"",AND(SelectedVisual=0,BrainStateTable[[#This Row],[Trial]]>0,TimeEntry=-0.001),BrainStateTable[[#This Row],[Max]],AND(SelectedVisual=0,BrainStateTable[[#This Row],[Trial]]>0,TimeEntry>-0.001),BrainStateTable[[#This Row],[Value]]) -> 0 | L15: =_xlfn.SWITCH(TRUE(),OR(BrainStateTable[[#This Row],[DashViewVal]]<BrainLow,BrainStateTable[[#This Row],[DashViewVal]]=""),0,AND(BrainStateTable[[#This Row],[DashViewVal]]>=BrainLow,BrainStateTable[[#This Row],[DashViewVal]]<BrainMed),1,AND(BrainStateTable[[#This Row],[DashViewVal]]>=BrainMed,BrainStateTable[[#This Row],[DashViewVal]]<BrainHigh),2,BrainStateTable[[#This Row],[DashViewVal]]>=BrainHigh,3) -> 0 | M15: =IF(BrainStateTable[[#This Row],[State]]=VALUE(RIGHT(M$10,1)),1,NA()) -> 1 | N15: =IF(BrainStateTable[[#This Row],[State]]=VALUE(RIGHT(N$10,1)),1,NA()) ->  | O15: =IF(BrainStateTable[[#This Row],[State]]=VALUE(RIGHT(O$10,1)),1,NA()) ->  | P15: =IF(BrainStateTable[[#This Row],[State]]=VALUE(RIGHT(P$10,1)),1,NA()) ->  | Q15: =ROUNDUP(BrainStateTable[[#This Row],[Value]]/15,0) -> 0 | R15: =_xlfn.SWITCH(TRUE,BrainStateTable[[#This Row],[Round]]<1,1,BrainStateTable[[#This Row],[Round]]>4,4,BrainStateTable[[#This Row],[Round]])-1 -> 0
B16: 1 | C16: 1 | D16: =IF(BrainStateTable[[#This Row],[Trial]]=0,"","T"&BrainStateTable[[#This Row],[Trial]])&"S"&BrainStateTable[[#This Row],[Sensor]] -> T1S1 | E16: ="BackendTable[T"&BrainStateTable[[#This Row],[Trial]]&"Time]" -> BackendTable[T1Time] | F16: ="BackendTable[T"&BrainStateTable[[#This Row],[Trial]]&"Row]" -> BackendTable[T1Row] | G16: ="BackendTable["&BrainStateTable[[#This Row],[ColName]]&"]" -> BackendTable[T1S1] | H16: =_xlfn.SWITCH(BrainStateTable[[#This Row],[Trial]],0,"Live",1,T1Row,2,T2Row,3,T3Row) -> 1 | I16: =IFERROR(IFERROR(INDEX(BackendTable[],MATCH(BrainStateTable[[#This Row],[Row]],INDIRECT(BrainStateTable[[#This Row],[Indirect Row]],0),0),MATCH(BrainStateTable[[#This Row],[ColName]],BackendTable[#Headers],0)),_xlfn.MAXIFS(INDIRECT(BrainStateTable[[#This Row],[Indirect Sensor]],0),BackendTable[Row'#],">"&495)),"") -> 0 | J16: =MAX(INDIRECT(BrainStateTable[[#This Row],[Indirect Sensor]],0)) -> 0 | K16: =_xlfn.SWITCH(TRUE(),AND(SelectedVisual=1,BrainStateTable[[#This Row],[Trial]]=0),BrainStateTable[[#This Row],[Value]],AND(SelectedVisual=1,BrainStateTable[[#This Row],[Trial]]>0),BrainStateTable[[#This Row],[Max]],AND(SelectedVisual=0,BrainStateTable[[#This Row],[Trial]]=0),"",AND(SelectedVisual=0,BrainStateTable[[#This Row],[Trial]]>0,TimeEntry=-0.001),BrainStateTable[[#This Row],[Max]],AND(SelectedVisual=0,BrainStateTable[[#This Row],[Trial]]>0,TimeEntry>-0.001),BrainStateTable[[#This Row],[Value]]) -> 0 | L16: =_xlfn.SWITCH(TRUE(),OR(BrainStateTable[[#This Row],[DashViewVal]]<BrainLow,BrainStateTable[[#This Row],[DashViewVal]]=""),0,AND(BrainStateTable[[#This Row],[DashViewVal]]>=BrainLow,BrainStateTable[[#This Row],[DashViewVal]]<BrainMed),1,AND(BrainStateTable[[#This Row],[DashViewVal]]>=BrainMed,BrainStateTable[[#This Row],[DashViewVal]]<BrainHigh),2,BrainStateTable[[#This Row],[DashViewVal]]>=BrainHigh,3) -> 0 | M16: =IF(BrainStateTable[[#This Row],[State]]=VALUE(RIGHT(M$10,1)),1,NA()) -> 1 | N16: =IF(BrainStateTable[[#This Row],[State]]=VALUE(RIGHT(N$10,1)),1,NA()) ->  | O16: =IF(BrainStateTable[[#This Row],[State]]=VALUE(RIGHT(O$10,1)),1,NA()) ->  | P16: =IF(BrainStateTable[[#This Row],[State]]=VALUE(RIGHT(P$10,1)),1,NA()) ->  | Q16: =ROUNDUP(BrainStateTable[[#This Row],[Value]]/15,0) -> 0 | R16: =_xlfn.SWITCH(TRUE,BrainStateTable[[#This Row],[Round]]<1,1,BrainStateTable[[#This Row],[Round]]>4,4,BrainStateTable[[#This Row],[Round]])-1 -> 0
B17: 1 | C17: 2 | D17: =IF(BrainStateTable[[#This Row],[Trial]]=0,"","T"&BrainStateTable[[#This Row],[Trial]])&"S"&BrainStateTable[[#This Row],[Sensor]] -> T1S2 | E17: ="BackendTable[T"&BrainStateTable[[#This Row],[Trial]]&"Time]" -> BackendTable[T1Time] | F17: ="BackendTable[T"&BrainStateTable[[#This Row],[Trial]]&"Row]" -> BackendTable[T1Row] | G17: ="BackendTable["&BrainStateTable[[#This Row],[ColName]]&"]" -> BackendTable[T1S2] | H17: =_xlfn.SWITCH(BrainStateTable[[#This Row],[Trial]],0,"Live",1,T1Row,2,T2Row,3,T3Row) -> 1 | I17: =IFERROR(IFERROR(INDEX(BackendTable[],MATCH(BrainStateTable[[#This Row],[Row]],INDIRECT(BrainStateTable[[#This Row],[Indirect Row]],0),0),MATCH(BrainStateTable[[#This Row],[ColName]],BackendTable[#Headers],0)),_xlfn.MAXIFS(INDIRECT(BrainStateTable[[#This Row],[Indirect Sensor]],0),BackendTable[Row'#],">"&495)),"") -> 0 | J17: =MAX(INDIRECT(BrainStateTable[[#This Row],[Indirect Sensor]],0)) -> 0 | K17: =_xlfn.SWITCH(TRUE(),AND(SelectedVisual=1,BrainStateTable[[#This Row],[Trial]]=0),BrainStateTable[[#This Row],[Value]],AND(SelectedVisual=1,BrainStateTable[[#This Row],[Trial]]>0),BrainStateTable[[#This Row],[Max]],AND(SelectedVisual=0,BrainStateTable[[#This Row],[Trial]]=0),"",AND(SelectedVisual=0,BrainStateTable[[#This Row],[Trial]]>0,TimeEntry=-0.001),BrainStateTable[[#This Row],[Max]],AND(SelectedVisual=0,BrainStateTable[[#This Row],[Trial]]>0,TimeEntry>-0.001),BrainStateTable[[#This Row],[Value]]) -> 0 | L17: =_xlfn.SWITCH(TRUE(),OR(BrainStateTable[[#This Row],[DashViewVal]]<BrainLow,BrainStateTable[[#This Row],[DashViewVal]]=""),0,AND(BrainStateTable[[#This Row],[DashViewVal]]>=BrainLow,BrainStateTable[[#This Row],[DashViewVal]]<BrainMed),1,AND(BrainStateTable[[#This Row],[DashViewVal]]>=BrainMed,BrainStateTable[[#This Row],[DashViewVal]]<BrainHigh),2,BrainStateTable[[#This Row],[DashViewVal]]>=BrainHigh,3) -> 0 | M17: =IF(BrainStateTable[[#This Row],[State]]=VALUE(RIGHT(M$10,1)),1,NA()) -> 1 | N17: =IF(BrainStateTable[[#This Row],[State]]=VALUE(RIGHT(N$10,1)),1,NA()) ->  | O17: =IF(BrainStateTable[[#This Row],[State]]=VALUE(RIGHT(O$10,1)),1,NA()) ->  | P17: =IF(BrainStateTable[[#This Row],[State]]=VALUE(RIGHT(P$10,1)),1,NA()) ->  | Q17: =ROUNDUP(BrainStateTable[[#This Row],[Value]]/15,0) -> 0 | R17: =_xlfn.SWITCH(TRUE,BrainStateTable[[#This Row],[Round]]<1,1,BrainStateTable[[#This Row],[Round]]>4,4,BrainStateTable[[#This Row],[Round]])-1 -> 0
B18: 1 | C18: 3 | D18: =IF(BrainStateTable[[#This Row],[Trial]]=0,"","T"&BrainStateTable[[#This Row],[Trial]])&"S"&BrainStateTable[[#This Row],[Sensor]] -> T1S3 | E18: ="BackendTable[T"&BrainStateTable[[#This Row],[Trial]]&"Time]" -> BackendTable[T1Time] | F18: ="BackendTable[T"&BrainStateTable[[#This Row],[Trial]]&"Row]" -> BackendTable[T1Row] | G18: ="BackendTable["&BrainStateTable[[#This Row],[ColName]]&"]" -> BackendTable[T1S3] | H18: =_xlfn.SWITCH(BrainStateTable[[#This Row],[Trial]],0,"Live",1,T1Row,2,T2Row,3,T3Row) -> 1 | I18: =IFERROR(IFERROR(INDEX(BackendTable[],MATCH(BrainStateTable[[#This Row],[Row]],INDIRECT(BrainStateTable[[#This Row],[Indirect Row]],0),0),MATCH(BrainStateTable[[#This Row],[ColName]],BackendTable[#Headers],0)),_xlfn.MAXIFS(INDIRECT(BrainStateTable[[#This Row],[Indirect Sensor]],0),BackendTable[Row'#],">"&495)),"") -> 0 | J18: =MAX(INDIRECT(BrainStateTable[[#This Row],[Indirect Sensor]],0)) -> 0 | K18: =_xlfn.SWITCH(TRUE(),AND(SelectedVisual=1,BrainStateTable[[#This Row],[Trial]]=0),BrainStateTable[[#This Row],[Value]],AND(SelectedVisual=1,BrainStateTable[[#This Row],[Trial]]>0),BrainStateTable[[#This Row],[Max]],AND(SelectedVisual=0,BrainStateTable[[#This Row],[Trial]]=0),"",AND(SelectedVisual=0,BrainStateTable[[#This Row],[Trial]]>0,TimeEntry=-0.001),BrainStateTable[[#This Row],[Max]],AND(SelectedVisual=0,BrainStateTable[[#This Row],[Trial]]>0,TimeEntry>-0.001),BrainStateTable[[#This Row],[Value]]) -> 0 | L18: =_xlfn.SWITCH(TRUE(),OR(BrainStateTable[[#This Row],[DashViewVal]]<BrainLow,BrainStateTable[[#This Row],[DashViewVal]]=""),0,AND(BrainStateTable[[#This Row],[DashViewVal]]>=BrainLow,BrainStateTable[[#This Row],[DashViewVal]]<BrainMed),1,AND(BrainStateTable[[#This Row],[DashViewVal]]>=BrainMed,BrainStateTable[[#This Row],[DashViewVal]]<BrainHigh),2,BrainStateTable[[#This Row],[DashViewVal]]>=BrainHigh,3) -> 0 | M18: =IF(BrainStateTable[[#This Row],[State]]=VALUE(RIGHT(M$10,1)),1,NA()) -> 1 | N18: =IF(BrainStateTable[[#This Row],[State]]=VALUE(RIGHT(N$10,1)),1,NA()) ->  | O18: =IF(BrainStateTable[[#This Row],[State]]=VALUE(RIGHT(O$10,1)),1,NA()) ->  | P18: =IF(BrainStateTable[[#This Row],[State]]=VALUE(RIGHT(P$10,1)),1,NA()) ->  | Q18: =ROUNDUP(BrainStateTable[[#This Row],[Value]]/15,0) -> 0 | R18: =_xlfn.SWITCH(TRUE,BrainStateTable[[#This Row],[Round]]<1,1,BrainStateTable[[#This Row],[Round]]>4,4,BrainStateTable[[#This Row],[Round]])-1 -> 0
B19: 1 | C19: 4 | D19: =IF(BrainStateTable[[#This Row],[Trial]]=0,"","T"&BrainStateTable[[#This Row],[Trial]])&"S"&BrainStateTable[[#This Row],[Sensor]] -> T1S4 | E19: ="BackendTable[T"&BrainStateTable[[#This Row],[Trial]]&"Time]" -> BackendTable[T1Time] | F19: ="BackendTable[T"&BrainStateTable[[#This Row],[Trial]]&"Row]" -> BackendTable[T1Row] | G19: ="BackendTable["&BrainStateTable[[#This Row],[ColName]]&"]" -> BackendTable[T1S4] | H19: =_xlfn.SWITCH(BrainStateTable[[#This Row],[Trial]],0,"Live",1,T1Row,2,T2Row,3,T3Row) -> 1 | I19: =IFERROR(IFERROR(INDEX(BackendTable[],MATCH(BrainStateTable[[#This Row],[Row]],INDIRECT(BrainStateTable[[#This Row],[Indirect Row]],0),0),MATCH(BrainStateTable[[#This Row],[ColName]],BackendTable[#Headers],0)),_xlfn.MAXIFS(INDIRECT(BrainStateTable[[#This Row],[Indirect Sensor]],0),BackendTable[Row'#],">"&495)),"") -> 0 | J19: =MAX(INDIRECT(BrainStateTable[[#This Row],[Indirect Sensor]],0)) -> 0 | K19: =_xlfn.SWITCH(TRUE(),AND(SelectedVisual=1,BrainStateTable[[#This Row],[Trial]]=0),BrainStateTable[[#This Row],[Value]],AND(SelectedVisual=1,BrainStateTable[[#This Row],[Trial]]>0),BrainStateTable[[#This Row],[Max]],AND(SelectedVisual=0,BrainStateTable[[#This Row],[Trial]]=0),"",AND(SelectedVisual=0,BrainStateTable[[#This Row],[Trial]]>0,TimeEntry=-0.001),BrainStateTable[[#This Row],[Max]],AND(SelectedVisual=0,BrainStateTable[[#This Row],[Trial]]>0,TimeEntry>-0.001),BrainStateTable[[#This Row],[Value]]) -> 0 | L19: =_xlfn.SWITCH(TRUE(),OR(BrainStateTable[[#This Row],[DashViewVal]]<BrainLow,BrainStateTable[[#This Row],[DashViewVal]]=""),0,AND(BrainStateTable[[#This Row],[DashViewVal]]>=BrainLow,BrainStateTable[[#This Row],[DashViewVal]]<BrainMed),1,AND(BrainStateTable[[#This Row],[DashViewVal]]>=BrainMed,BrainStateTable[[#This Row],[DashViewVal]]<BrainHigh),2,BrainStateTable[[#This Row],[DashViewVal]]>=BrainHigh,3) -> 0 | M19: =IF(BrainStateTable[[#This Row],[State]]=VALUE(RIGHT(M$10,1)),1,NA()) -> 1 | N19: =IF(BrainStateTable[[#This Row],[State]]=VALUE(RIGHT(N$10,1)),1,NA()) ->  | O19: =IF(BrainStateTable[[#This Row],[State]]=VALUE(RIGHT(O$10,1)),1,NA()) ->  | P19: =IF(BrainStateTable[[#This Row],[State]]=VALUE(RIGHT(P$10,1)),1,NA()) ->  | Q19: =ROUNDUP(BrainStateTable[[#This Row],[Value]]/15,0) -> 0 | R19: =_xlfn.SWITCH(TRUE,BrainStateTable[[#This Row],[Round]]<1,1,BrainStateTable[[#This Row],[Round]]>4,4,BrainStateTable[[#This Row],[Round]])-1 -> 0
B20: 1 | C20: 5 | D20: =IF(BrainStateTable[[#This Row],[Trial]]=0,"","T"&BrainStateTable[[#This Row],[Trial]])&"S"&BrainStateTable[[#This Row],[Sensor]] -> T1S5 | E20: ="BackendTable[T"&BrainStateTable[[#This Row],[Trial]]&"Time]" -> BackendTable[T1Time] | F20: ="BackendTable[T"&BrainStateTable[[#This Row],[Trial]]&"Row]" -> BackendTable[T1Row] | G20: ="BackendTable["&BrainStateTable[[#This Row],[ColName]]&"]" -> BackendTable[T1S5] | H20: =_xlfn.SWITCH(BrainStateTable[[#This Row],[Trial]],0,"Live",1,T1Row,2,T2Row,3,T3Row) -> 1 | I20: =IFERROR(IFERROR(INDEX(BackendTable[],MATCH(BrainStateTable[[#This Row],[Row]],INDIRECT(BrainStateTable[[#This Row],[Indirect Row]],0),0),MATCH(BrainStateTable[[#This Row],[ColName]],BackendTable[#Headers],0)),_xlfn.MAXIFS(INDIRECT(BrainStateTable[[#This Row],[Indirect Sensor]],0),BackendTable[Row'#],">"&495)),"") -> 0 | J20: =MAX(INDIRECT(BrainStateTable[[#This Row],[Indirect Sensor]],0)) -> 0 | K20: =_xlfn.SWITCH(TRUE(),AND(SelectedVisual=1,BrainStateTable[[#This Row],[Trial]]=0),BrainStateTable[[#This Row],[Value]],AND(SelectedVisual=1,BrainStateTable[[#This Row],[Trial]]>0),BrainStateTable[[#This Row],[Max]],AND(SelectedVisual=0,BrainStateTable[[#This Row],[Trial]]=0),"",AND(SelectedVisual=0,BrainStateTable[[#This Row],[Trial]]>0,TimeEntry=-0.001),BrainStateTable[[#This Row],[Max]],AND(SelectedVisual=0,BrainStateTable[[#This Row],[Trial]]>0,TimeEntry>-0.001),BrainStateTable[[#This Row],[Value]]) -> 0 | L20: =_xlfn.SWITCH(TRUE(),OR(BrainStateTable[[#This Row],[DashViewVal]]<BrainLow,BrainStateTable[[#This Row],[DashViewVal]]=""),0,AND(BrainStateTable[[#This Row],[DashViewVal]]>=BrainLow,BrainStateTable[[#This Row],[DashViewVal]]<BrainMed),1,AND(BrainStateTable[[#This Row],[DashViewVal]]>=BrainMed,BrainStateTable[[#This Row],[DashViewVal]]<BrainHigh),2,BrainStateTable[[#This Row],[DashViewVal]]>=BrainHigh,3) -> 0 | M20: =IF(BrainStateTable[[#This Row],[State]]=VALUE(RIGHT(M$10,1)),1,NA()) -> 1 | N20: =IF(BrainStateTable[[#This Row],[State]]=VALUE(RIGHT(N$10,1)),1,NA()) ->  | O20: =IF(BrainStateTable[[#This Row],[State]]=VALUE(RIGHT(O$10,1)),1,NA()) ->  | P20: =IF(BrainStateTable[[#This Row],[State]]=VALUE(RIGHT(P$10,1)),1,NA()) ->  | Q20: =ROUNDUP(BrainStateTable[[#This Row],[Value]]/15,0) -> 0 | R20: =_xlfn.SWITCH(TRUE,BrainStateTable[[#This Row],[Round]]<1,1,BrainStateTable[[#This Row],[Round]]>4,4,BrainStateTable[[#This Row],[Round]])-1 -> 0
B21: 2 | C21: 1 | D21: =IF(BrainStateTable[[#This Row],[Trial]]=0,"","T"&BrainStateTable[[#This Row],[Trial]])&"S"&BrainStateTable[[#This Row],[Sensor]] -> T2S1 | E21: ="BackendTable[T"&BrainStateTable[[#This Row],[Trial]]&"Time]" -> BackendTable[T2Time] | F21: ="BackendTable[T"&BrainStateTable[[#This Row],[Trial]]&"Row]" -> BackendTable[T2Row] | G21: ="BackendTable["&BrainStateTable[[#This Row],[ColName]]&"]" -> BackendTable[T2S1] | H21: =_xlfn.SWITCH(BrainStateTable[[#This Row],[Trial]],0,"Live",1,T1Row,2,T2Row,3,T3Row) -> 1 | I21: =IFERROR(IFERROR(INDEX(BackendTable[],MATCH(BrainStateTable[[#This Row],[Row]],INDIRECT(BrainStateTable[[#This Row],[Indirect Row]],0),0),MATCH(BrainStateTable[[#This Row],[ColName]],BackendTable[#Headers],0)),_xlfn.MAXIFS(INDIRECT(BrainStateTable[[#This Row],[Indirect Sensor]],0),BackendTable[Row'#],">"&495)),"") -> 0 | J21: =MAX(INDIRECT(BrainStateTable[[#This Row],[Indirect Sensor]],0)) -> 0 | K21: =_xlfn.SWITCH(TRUE(),AND(SelectedVisual=1,BrainStateTable[[#This Row],[Trial]]=0),BrainStateTable[[#This Row],[Value]],AND(SelectedVisual=1,BrainStateTable[[#This Row],[Trial]]>0),BrainStateTable[[#This Row],[Max]],AND(SelectedVisual=0,BrainStateTable[[#This Row],[Trial]]=0),"",AND(SelectedVisual=0,BrainStateTable[[#This Row],[Trial]]>0,TimeEntry=-0.001),BrainStateTable[[#This Row],[Max]],AND(SelectedVisual=0,BrainStateTable[[#This Row],[Trial]]>0,TimeEntry>-0.001),BrainStateTable[[#This Row],[Value]]) -> 0 | L21: =_xlfn.SWITCH(TRUE(),OR(BrainStateTable[[#This Row],[DashViewVal]]<BrainLow,BrainStateTable[[#This Row],[DashViewVal]]=""),0,AND(BrainStateTable[[#This Row],[DashViewVal]]>=BrainLow,BrainStateTable[[#This Row],[DashViewVal]]<BrainMed),1,AND(BrainStateTable[[#This Row],[DashViewVal]]>=BrainMed,BrainStateTable[[#This Row],[DashViewVal]]<BrainHigh),2,BrainStateTable[[#This Row],[DashViewVal]]>=BrainHigh,3) -> 0 | M21: =IF(BrainStateTable[[#This Row],[State]]=VALUE(RIGHT(M$10,1)),1,NA()) -> 1 | N21: =IF(BrainStateTable[[#This Row],[State]]=VALUE(RIGHT(N$10,1)),1,NA()) ->  | O21: =IF(BrainStateTable[[#This Row],[State]]=VALUE(RIGHT(O$10,1)),1,NA()) ->  | P21: =IF(BrainStateTable[[#This Row],[State]]=VALUE(RIGHT(P$10,1)),1,NA()) ->  | Q21: =ROUNDUP(BrainStateTable[[#This Row],[Value]]/15,0) -> 0 | R21: =_xlfn.SWITCH(TRUE,BrainStateTable[[#This Row],[Round]]<1,1,BrainStateTable[[#This Row],[Round]]>4,4,BrainStateTable[[#This Row],[Round]])-1 -> 0
B22: 2 | C22: 2 | D22: =IF(BrainStateTable[[#This Row],[Trial]]=0,"","T"&BrainStateTable[[#This Row],[Trial]])&"S"&BrainStateTable[[#This Row],[Sensor]] -> T2S2 | E22: ="BackendTable[T"&BrainStateTable[[#This Row],[Trial]]&"Time]" -> BackendTable[T2Time] | F22: ="BackendTable[T"&BrainStateTable[[#This Row],[Trial]]&"Row]" -> BackendTable[T2Row] | G22: ="BackendTable["&BrainStateTable[[#This Row],[ColName]]&"]" -> BackendTable[T2S2] | H22: =_xlfn.SWITCH(BrainStateTable[[#This Row],[Trial]],0,"Live",1,T1Row,2,T2Row,3,T3Row) -> 1 | I22: =IFERROR(IFERROR(INDEX(BackendTable[],MATCH(BrainStateTable[[#This Row],[Row]],INDIRECT(BrainStateTable[[#This Row],[Indirect Row]],0),0),MATCH(BrainStateTable[[#This Row],[ColName]],BackendTable[#Headers],0)),_xlfn.MAXIFS(INDIRECT(BrainStateTable[[#This Row],[Indirect Sensor]],0),BackendTable[Row'#],">"&495)),"") -> 0 | J22: =MAX(INDIRECT(BrainStateTable[[#This Row],[Indirect Sensor]],0)) -> 0 | K22: =_xlfn.SWITCH(TRUE(),AND(SelectedVisual=1,BrainStateTable[[#This Row],[Trial]]=0),BrainStateTable[[#This Row],[Value]],AND(SelectedVisual=1,BrainStateTable[[#This Row],[Trial]]>0),BrainStateTable[[#This Row],[Max]],AND(SelectedVisual=0,BrainStateTable[[#This Row],[Trial]]=0),"",AND(SelectedVisual=0,BrainStateTable[[#This Row],[Trial]]>0,TimeEntry=-0.001),BrainStateTable[[#This Row],[Max]],AND(SelectedVisual=0,BrainStateTable[[#This Row],[Trial]]>0,TimeEntry>-0.001),BrainStateTable[[#This Row],[Value]]) -> 0 | L22: =_xlfn.SWITCH(TRUE(),OR(BrainStateTable[[#This Row],[DashViewVal]]<BrainLow,BrainStateTable[[#This Row],[DashViewVal]]=""),0,AND(BrainStateTable[[#This Row],[DashViewVal]]>=BrainLow,BrainStateTable[[#This Row],[DashViewVal]]<BrainMed),1,AND(BrainStateTable[[#This Row],[DashViewVal]]>=BrainMed,BrainStateTable[[#This Row],[DashViewVal]]<BrainHigh),2,BrainStateTable[[#This Row],[DashViewVal]]>=BrainHigh,3) -> 0 | M22: =IF(BrainStateTable[[#This Row],[State]]=VALUE(RIGHT(M$10,1)),1,NA()) -> 1 | N22: =IF(BrainStateTable[[#This Row],[State]]=VALUE(RIGHT(N$10,1)),1,NA()) ->  | O22: =IF(BrainStateTable[[#This Row],[State]]=VALUE(RIGHT(O$10,1)),1,NA()) ->  | P22: =IF(BrainStateTable[[#This Row],[State]]=VALUE(RIGHT(P$10,1)),1,NA()) ->  | Q22: =ROUNDUP(BrainStateTable[[#This Row],[Value]]/15,0) -> 0 | R22: =_xlfn.SWITCH(TRUE,BrainStateTable[[#This Row],[Round]]<1,1,BrainStateTable[[#This Row],[Round]]>4,4,BrainStateTable[[#This Row],[Round]])-1 -> 0
B23: 2 | C23: 3 | D23: =IF(BrainStateTable[[#This Row],[Trial]]=0,"","T"&BrainStateTable[[#This Row],[Trial]])&"S"&BrainStateTable[[#This Row],[Sensor]] -> T2S3 | E23: ="BackendTable[T"&BrainStateTable[[#This Row],[Trial]]&"Time]" -> BackendTable[T2Time] | F23: ="BackendTable[T"&BrainStateTable[[#This Row],[Trial]]&"Row]" -> BackendTable[T2Row] | G23: ="BackendTable["&BrainStateTable[[#This Row],[ColName]]&"]" -> BackendTable[T2S3] | H23: =_xlfn.SWITCH(BrainStateTable[[#This Row],[Trial]],0,"Live",1,T1Row,2,T2Row,3,T3Row) -> 1 | I23: =IFERROR(IFERROR(INDEX(BackendTable[],MATCH(BrainStateTable[[#This Row],[Row]],INDIRECT(BrainStateTable[[#This Row],[Indirect Row]],0),0),MATCH(BrainStateTable[[#This Row],[ColName]],BackendTable[#Headers],0)),_xlfn.MAXIFS(INDIRECT(BrainStateTable[[#This Row],[Indirect Sensor]],0),BackendTable[Row'#],">"&495)),"") -> 0 | J23: =MAX(INDIRECT(BrainStateTable[[#This Row],[Indirect Sensor]],0)) -> 0 | K23: =_xlfn.SWITCH(TRUE(),AND(SelectedVisual=1,BrainStateTable[[#This Row],[Trial]]=0),BrainStateTable[[#This Row],[Value]],AND(SelectedVisual=1,BrainStateTable[[#This Row],[Trial]]>0),BrainStateTable[[#This Row],[Max]],AND(SelectedVisual=0,BrainStateTable[[#This Row],[Trial]]=0),"",AND(SelectedVisual=0,BrainStateTable[[#This Row],[Trial]]>0,TimeEntry=-0.001),BrainStateTable[[#This Row],[Max]],AND(SelectedVisual=0,BrainStateTable[[#This Row],[Trial]]>0,TimeEntry>-0.001),BrainStateTable[[#This Row],[Value]]) -> 0 | L23: =_xlfn.SWITCH(TRUE(),OR(BrainStateTable[[#This Row],[DashViewVal]]<BrainLow,BrainStateTable[[#This Row],[DashViewVal]]=""),0,AND(BrainStateTable[[#This Row],[DashViewVal]]>=BrainLow,BrainStateTable[[#This Row],[DashViewVal]]<BrainMed),1,AND(BrainStateTable[[#This Row],[DashViewVal]]>=BrainMed,BrainStateTable[[#This Row],[DashViewVal]]<BrainHigh),2,BrainStateTable[[#This Row],[DashViewVal]]>=BrainHigh,3) -> 0 | M23: =IF(BrainStateTable[[#This Row],[State]]=VALUE(RIGHT(M$10,1)),1,NA()) -> 1 | N23: =IF(BrainStateTable[[#This Row],[State]]=VALUE(RIGHT(N$10,1)),1,NA()) ->  | O23: =IF(BrainStateTable[[#This Row],[State]]=VALUE(RIGHT(O$10,1)),1,NA()) ->  | P23: =IF(BrainStateTable[[#This Row],[State]]=VALUE(RIGHT(P$10,1)),1,NA()) ->  | Q23: =ROUNDUP(BrainStateTable[[#This Row],[Value]]/15,0) -> 0 | R23: =_xlfn.SWITCH(TRUE,BrainStateTable[[#This Row],[Round]]<1,1,BrainStateTable[[#This Row],[Round]]>4,4,BrainStateTable[[#This Row],[Round]])-1 -> 0
B24: 2 | C24: 4 | D24: =IF(BrainStateTable[[#This Row],[Trial]]=0,"","T"&BrainStateTable[[#This Row],[Trial]])&"S"&BrainStateTable[[#This Row],[Sensor]] -> T2S4 | E24: ="BackendTable[T"&BrainStateTable[[#This Row],[Trial]]&"Time]" -> BackendTable[T2Time] | F24: ="BackendTable[T"&BrainStateTable[[#This Row],[Trial]]&"Row]" -> BackendTable[T2Row] | G24: ="BackendTable["&BrainStateTable[[#This Row],[ColName]]&"]" -> BackendTable[T2S4] | H24: =_xlfn.SWITCH(BrainStateTable[[#This Row],[Trial]],0,"Live",1,T1Row,2,T2Row,3,T3Row) -> 1 | I24: =IFERROR(IFERROR(INDEX(BackendTable[],MATCH(BrainStateTable[[#This Row],[Row]],INDIRECT(BrainStateTable[[#This Row],[Indirect Row]],0),0),MATCH(BrainStateTable[[#This Row],[ColName]],BackendTable[#Headers],0)),_xlfn.MAXIFS(INDIRECT(BrainStateTable[[#This Row],[Indirect Sensor]],0),BackendTable[Row'#],">"&495)),"") -> 0 | J24: =MAX(INDIRECT(BrainStateTable[[#This Row],[Indirect Sensor]],0)) -> 0 | K24: =_xlfn.SWITCH(TRUE(),AND(SelectedVisual=1,BrainStateTable[[#This Row],[Trial]]=0),BrainStateTable[[#This Row],[Value]],AND(SelectedVisual=1,BrainStateTable[[#This Row],[Trial]]>0),BrainStateTable[[#This Row],[Max]],AND(SelectedVisual=0,BrainStateTable[[#This Row],[Trial]]=0),"",AND(SelectedVisual=0,BrainStateTable[[#This Row],[Trial]]>0,TimeEntry=-0.001),BrainStateTable[[#This Row],[Max]],AND(SelectedVisual=0,BrainStateTable[[#This Row],[Trial]]>0,TimeEntry>-0.001),BrainStateTable[[#This Row],[Value]]) -> 0 | L24: =_xlfn.SWITCH(TRUE(),OR(BrainStateTable[[#This Row],[DashViewVal]]<BrainLow,BrainStateTable[[#This Row],[DashViewVal]]=""),0,AND(BrainStateTable[[#This Row],[DashViewVal]]>=BrainLow,BrainStateTable[[#This Row],[DashViewVal]]<BrainMed),1,AND(BrainStateTable[[#This Row],[DashViewVal]]>=BrainMed,BrainStateTable[[#This Row],[DashViewVal]]<BrainHigh),2,BrainStateTable[[#This Row],[DashViewVal]]>=BrainHigh,3) -> 0 | M24: =IF(BrainStateTable[[#This Row],[State]]=VALUE(RIGHT(M$10,1)),1,NA()) -> 1 | N24: =IF(BrainStateTable[[#This Row],[State]]=VALUE(RIGHT(N$10,1)),1,NA()) ->  | O24: =IF(BrainStateTable[[#This Row],[State]]=VALUE(RIGHT(O$10,1)),1,NA()) ->  | P24: =IF(BrainStateTable[[#This Row],[State]]=VALUE(RIGHT(P$10,1)),1,NA()) ->  | Q24: =ROUNDUP(BrainStateTable[[#This Row],[Value]]/15,0) -> 0 | R24: =_xlfn.SWITCH(TRUE,BrainStateTable[[#This Row],[Round]]<1,1,BrainStateTable[[#This Row],[Round]]>4,4,BrainStateTable[[#This Row],[Round]])-1 -> 0
B25: 2 | C25: 5 | D25: =IF(BrainStateTable[[#This Row],[Trial]]=0,"","T"&BrainStateTable[[#This Row],[Trial]])&"S"&BrainStateTable[[#This Row],[Sensor]] -> T2S5 | E25: ="BackendTable[T"&BrainStateTable[[#This Row],[Trial]]&"Time]" -> BackendTable[T2Time] | F25: ="BackendTable[T"&BrainStateTable[[#This Row],[Trial]]&"Row]" -> BackendTable[T2Row] | G25: ="BackendTable["&BrainStateTable[[#This Row],[ColName]]&"]" -> BackendTable[T2S5] | H25: =_xlfn.SWITCH(BrainStateTable[[#This Row],[Trial]],0,"Live",1,T1Row,2,T2Row,3,T3Row) -> 1 | I25: =IFERROR(IFERROR(INDEX(BackendTable[],MATCH(BrainStateTable[[#This Row],[Row]],INDIRECT(BrainStateTable[[#This Row],[Indirect Row]],0),0),MATCH(BrainStateTable[[#This Row],[ColName]],BackendTable[#Headers],0)),_xlfn.MAXIFS(INDIRECT(BrainStateTable[[#This Row],[Indirect Sensor]],0),BackendTable[Row'#],">"&495)),"") -> 0 | J25: =MAX(INDIRECT(BrainStateTable[[#This Row],[Indirect Sensor]],0)) -> 0 | K25: =_xlfn.SWITCH(TRUE(),AND(SelectedVisual=1,BrainStateTable[[#This Row],[Trial]]=0),BrainStateTable[[#This Row],[Value]],AND(SelectedVisual=1,BrainStateTable[[#This Row],[Trial]]>0),BrainStateTable[[#This Row],[Max]],AND(SelectedVisual=0,BrainStateTable[[#This Row],[Trial]]=0),"",AND(SelectedVisual=0,BrainStateTable[[#This Row],[Trial]]>0,TimeEntry=-0.001),BrainStateTable[[#This Row],[Max]],AND(SelectedVisual=0,BrainStateTable[[#This Row],[Trial]]>0,TimeEntry>-0.001),BrainStateTable[[#This Row],[Value]]) -> 0 | L25: =_xlfn.SWITCH(TRUE(),OR(BrainStateTable[[#This Row],[DashViewVal]]<BrainLow,BrainStateTable[[#This Row],[DashViewVal]]=""),0,AND(BrainStateTable[[#This Row],[DashViewVal]]>=BrainLow,BrainStateTable[[#This Row],[DashViewVal]]<BrainMed),1,AND(BrainStateTable[[#This Row],[DashViewVal]]>=BrainMed,BrainStateTable[[#This Row],[DashViewVal]]<BrainHigh),2,BrainStateTable[[#This Row],[DashViewVal]]>=BrainHigh,3) -> 0 | M25: =IF(BrainStateTable[[#This Row],[State]]=VALUE(RIGHT(M$10,1)),1,NA()) -> 1 | N25: =IF(BrainStateTable[[#This Row],[State]]=VALUE(RIGHT(N$10,1)),1,NA()) ->  | O25: =IF(BrainStateTable[[#This Row],[State]]=VALUE(RIGHT(O$10,1)),1,NA()) ->  | P25: =IF(BrainStateTable[[#This Row],[State]]=VALUE(RIGHT(P$10,1)),1,NA()) ->  | Q25: =ROUNDUP(BrainStateTable[[#This Row],[Value]]/15,0) -> 0 | R25: =_xlfn.SWITCH(TRUE,BrainStateTable[[#This Row],[Round]]<1,1,BrainStateTable[[#This Row],[Round]]>4,4,BrainStateTable[[#This Row],[Round]])-1 -> 0
B26: 3 | C26: 1 | D26: =IF(BrainStateTable[[#This Row],[Trial]]=0,"","T"&BrainStateTable[[#This Row],[Trial]])&"S"&BrainStateTable[[#This Row],[Sensor]] -> T3S1 | E26: ="BackendTable[T"&BrainStateTable[[#This Row],[Trial]]&"Time]" -> BackendTable[T3Time] | F26: ="BackendTable[T"&BrainStateTable[[#This Row],[Trial]]&"Row]" -> BackendTable[T3Row] | G26: ="BackendTable["&BrainStateTable[[#This Row],[ColName]]&"]" -> BackendTable[T3S1] | H26: =_xlfn.SWITCH(BrainStateTable[[#This Row],[Trial]],0,"Live",1,T1Row,2,T2Row,3,T3Row) -> 1 | I26: =IFERROR(IFERROR(INDEX(BackendTable[],MATCH(BrainStateTable[[#This Row],[Row]],INDIRECT(BrainStateTable[[#This Row],[Indirect Row]],0),0),MATCH(BrainStateTable[[#This Row],[ColName]],BackendTable[#Headers],0)),_xlfn.MAXIFS(INDIRECT(BrainStateTable[[#This Row],[Indirect Sensor]],0),BackendTable[Row'#],">"&495)),"") -> 0 | J26: =MAX(INDIRECT(BrainStateTable[[#This Row],[Indirect Sensor]],0)) -> 0 | K26: =_xlfn.SWITCH(TRUE(),AND(SelectedVisual=1,BrainStateTable[[#This Row],[Trial]]=0),BrainStateTable[[#This Row],[Value]],AND(SelectedVisual=1,BrainStateTable[[#This Row],[Trial]]>0),BrainStateTable[[#This Row],[Max]],AND(SelectedVisual=0,BrainStateTable[[#This Row],[Trial]]=0),"",AND(SelectedVisual=0,BrainStateTable[[#This Row],[Trial]]>0,TimeEntry=-0.001),BrainStateTable[[#This Row],[Max]],AND(SelectedVisual=0,BrainStateTable[[#This Row],[Trial]]>0,TimeEntry>-0.001),BrainStateTable[[#This Row],[Value]]) -> 0 | L26: =_xlfn.SWITCH(TRUE(),OR(BrainStateTable[[#This Row],[DashViewVal]]<BrainLow,BrainStateTable[[#This Row],[DashViewVal]]=""),0,AND(BrainStateTable[[#This Row],[DashViewVal]]>=BrainLow,BrainStateTable[[#This Row],[DashViewVal]]<BrainMed),1,AND(BrainStateTable[[#This Row],[DashViewVal]]>=BrainMed,BrainStateTable[[#This Row],[DashViewVal]]<BrainHigh),2,BrainStateTable[[#This Row],[DashViewVal]]>=BrainHigh,3) -> 0 | M26: =IF(BrainStateTable[[#This Row],[State]]=VALUE(RIGHT(M$10,1)),1,NA()) -> 1 | N26: =IF(BrainStateTable[[#This Row],[State]]=VALUE(RIGHT(N$10,1)),1,NA()) ->  | O26: =IF(BrainStateTable[[#This Row],[State]]=VALUE(RIGHT(O$10,1)),1,NA()) ->  | P26: =IF(BrainStateTable[[#This Row],[State]]=VALUE(RIGHT(P$10,1)),1,NA()) ->  | Q26: =ROUNDUP(BrainStateTable[[#This Row],[Value]]/15,0) -> 0 | R26: =_xlfn.SWITCH(TRUE,BrainStateTable[[#This Row],[Round]]<1,1,BrainStateTable[[#This Row],[Round]]>4,4,BrainStateTable[[#This Row],[Round]])-1 -> 0
B27: 3 | C27: 2 | D27: =IF(BrainStateTable[[#This Row],[Trial]]=0,"","T"&BrainStateTable[[#This Row],[Trial]])&"S"&BrainStateTable[[#This Row],[Sensor]] -> T3S2 | E27: ="BackendTable[T"&BrainStateTable[[#This Row],[Trial]]&"Time]" -> BackendTable[T3Time] | F27: ="BackendTable[T"&BrainStateTable[[#This Row],[Trial]]&"Row]" -> BackendTable[T3Row] | G27: ="BackendTable["&BrainStateTable[[#This Row],[ColName]]&"]" -> BackendTable[T3S2] | H27: =_xlfn.SWITCH(BrainStateTable[[#This Row],[Trial]],0,"Live",1,T1Row,2,T2Row,3,T3Row) -> 1 | I27: =IFERROR(IFERROR(INDEX(BackendTable[],MATCH(BrainStateTable[[#This Row],[Row]],INDIRECT(BrainStateTable[[#This Row],[Indirect Row]],0),0),MATCH(BrainStateTable[[#This Row],[ColName]],BackendTable[#Headers],0)),_xlfn.MAXIFS(INDIRECT(BrainStateTable[[#This Row],[Indirect Sensor]],0),BackendTable[Row'#],">"&495)),"") -> 0 | J27: =MAX(INDIRECT(BrainStateTable[[#This Row],[Indirect Sensor]],0)) -> 0 | K27: =_xlfn.SWITCH(TRUE(),AND(SelectedVisual=1,BrainStateTable[[#This Row],[Trial]]=0),BrainStateTable[[#This Row],[Value]],AND(SelectedVisual=1,BrainStateTable[[#This Row],[Trial]]>0),BrainStateTable[[#This Row],[Max]],AND(SelectedVisual=0,BrainStateTable[[#This Row],[Trial]]=0),"",AND(SelectedVisual=0,BrainStateTable[[#This Row],[Trial]]>0,TimeEntry=-0.001),BrainStateTable[[#This Row],[Max]],AND(SelectedVisual=0,BrainStateTable[[#This Row],[Trial]]>0,TimeEntry>-0.001),BrainStateTable[[#This Row],[Value]]) -> 0 | L27: =_xlfn.SWITCH(TRUE(),OR(BrainStateTable[[#This Row],[DashViewVal]]<BrainLow,BrainStateTable[[#This Row],[DashViewVal]]=""),0,AND(BrainStateTable[[#This Row],[DashViewVal]]>=BrainLow,BrainStateTable[[#This Row],[DashViewVal]]<BrainMed),1,AND(BrainStateTable[[#This Row],[DashViewVal]]>=BrainMed,BrainStateTable[[#This Row],[DashViewVal]]<BrainHigh),2,BrainStateTable[[#This Row],[DashViewVal]]>=BrainHigh,3) -> 0 | M27: =IF(BrainStateTable[[#This Row],[State]]=VALUE(RIGHT(M$10,1)),1,NA()) -> 1 | N27: =IF(BrainStateTable[[#This Row],[State]]=VALUE(RIGHT(N$10,1)),1,NA()) ->  | O27: =IF(BrainStateTable[[#This Row],[State]]=VALUE(RIGHT(O$10,1)),1,NA()) ->  | P27: =IF(BrainStateTable[[#This Row],[State]]=VALUE(RIGHT(P$10,1)),1,NA()) ->  | Q27: =ROUNDUP(BrainStateTable[[#This Row],[Value]]/15,0) -> 0 | R27: =_xlfn.SWITCH(TRUE,BrainStateTable[[#This Row],[Round]]<1,1,BrainStateTable[[#This Row],[Round]]>4,4,BrainStateTable[[#This Row],[Round]])-1 -> 0
B28: 3 | C28: 3 | D28: =IF(BrainStateTable[[#This Row],[Trial]]=0,"","T"&BrainStateTable[[#This Row],[Trial]])&"S"&BrainStateTable[[#This Row],[Sensor]] -> T3S3 | E28: ="BackendTable[T"&BrainStateTable[[#This Row],[Trial]]&"Time]" -> BackendTable[T3Time] | F28: ="BackendTable[T"&BrainStateTable[[#This Row],[Trial]]&"Row]" -> BackendTable[T3Row] | G28: ="BackendTable["&BrainStateTable[[#This Row],[ColName]]&"]" -> BackendTable[T3S3] | H28: =_xlfn.SWITCH(BrainStateTable[[#This Row],[Trial]],0,"Live",1,T1Row,2,T2Row,3,T3Row) -> 1 | I28: =IFERROR(IFERROR(INDEX(BackendTable[],MATCH(BrainStateTable[[#This Row],[Row]],INDIRECT(BrainStateTable[[#This Row],[Indirect Row]],0),0),MATCH(BrainStateTable[[#This Row],[ColName]],BackendTable[#Headers],0)),_xlfn.MAXIFS(INDIRECT(BrainStateTable[[#This Row],[Indirect Sensor]],0),BackendTable[Row'#],">"&495)),"") -> 0 | J28: =MAX(INDIRECT(BrainStateTable[[#This Row],[Indirect Sensor]],0)) -> 0 | K28: =_xlfn.SWITCH(TRUE(),AND(SelectedVisual=1,BrainStateTable[[#This Row],[Trial]]=0),BrainStateTable[[#This Row],[Value]],AND(SelectedVisual=1,BrainStateTable[[#This Row],[Trial]]>0),BrainStateTable[[#This Row],[Max]],AND(SelectedVisual=0,BrainStateTable[[#This Row],[Trial]]=0),"",AND(SelectedVisual=0,BrainStateTable[[#This Row],[Trial]]>0,TimeEntry=-0.001),BrainStateTable[[#This Row],[Max]],AND(SelectedVisual=0,BrainStateTable[[#This Row],[Trial]]>0,TimeEntry>-0.001),BrainStateTable[[#This Row],[Value]]) -> 0 | L28: =_xlfn.SWITCH(TRUE(),OR(BrainStateTable[[#This Row],[DashViewVal]]<BrainLow,BrainStateTable[[#This Row],[DashViewVal]]=""),0,AND(BrainStateTable[[#This Row],[DashViewVal]]>=BrainLow,BrainStateTable[[#This Row],[DashViewVal]]<BrainMed),1,AND(BrainStateTable[[#This Row],[DashViewVal]]>=BrainMed,BrainStateTable[[#This Row],[DashViewVal]]<BrainHigh),2,BrainStateTable[[#This Row],[DashViewVal]]>=BrainHigh,3) -> 0 | M28: =IF(BrainStateTable[[#This Row],[State]]=VALUE(RIGHT(M$10,1)),1,NA()) -> 1 | N28: =IF(BrainStateTable[[#This Row],[State]]=VALUE(RIGHT(N$10,1)),1,NA()) ->  | O28: =IF(BrainStateTable[[#This Row],[State]]=VALUE(RIGHT(O$10,1)),1,NA()) ->  | P28: =IF(BrainStateTable[[#This Row],[State]]=VALUE(RIGHT(P$10,1)),1,NA()) ->  | Q28: =ROUNDUP(BrainStateTable[[#This Row],[Value]]/15,0) -> 0 | R28: =_xlfn.SWITCH(TRUE,BrainStateTable[[#This Row],[Round]]<1,1,BrainStateTable[[#This Row],[Round]]>4,4,BrainStateTable[[#This Row],[Round]])-1 -> 0
B29: 3 | C29: 4 | D29: =IF(BrainStateTable[[#This Row],[Trial]]=0,"","T"&BrainStateTable[[#This Row],[Trial]])&"S"&BrainStateTable[[#This Row],[Sensor]] -> T3S4 | E29: ="BackendTable[T"&BrainStateTable[[#This Row],[Trial]]&"Time]" -> BackendTable[T3Time] | F29: ="BackendTable[T"&BrainStateTable[[#This Row],[Trial]]&"Row]" -> BackendTable[T3Row] | G29: ="BackendTable["&BrainStateTable[[#This Row],[ColName]]&"]" -> BackendTable[T3S4] | H29: =_xlfn.SWITCH(BrainStateTable[[#This Row],[Trial]],0,"Live",1,T1Row,2,T2Row,3,T3Row) -> 1 | I29: =IFERROR(IFERROR(INDEX(BackendTable[],MATCH(BrainStateTable[[#This Row],[Row]],INDIRECT(BrainStateTable[[#This Row],[Indirect Row]],0),0),MATCH(BrainStateTable[[#This Row],[ColName]],BackendTable[#Headers],0)),_xlfn.MAXIFS(INDIRECT(BrainStateTable[[#This Row],[Indirect Sensor]],0),BackendTable[Row'#],">"&495)),"") -> 0 | J29: =MAX(INDIRECT(BrainStateTable[[#This Row],[Indirect Sensor]],0)) -> 0 | K29: =_xlfn.SWITCH(TRUE(),AND(SelectedVisual=1,BrainStateTable[[#This Row],[Trial]]=0),BrainStateTable[[#This Row],[Value]],AND(SelectedVisual=1,BrainStateTable[[#This Row],[Trial]]>0),BrainStateTable[[#This Row],[Max]],AND(SelectedVisual=0,BrainStateTable[[#This Row],[Trial]]=0),"",AND(SelectedVisual=0,BrainStateTable[[#This Row],[Trial]]>0,TimeEntry=-0.001),BrainStateTable[[#This Row],[Max]],AND(SelectedVisual=0,BrainStateTable[[#This Row],[Trial]]>0,TimeEntry>-0.001),BrainStateTable[[#This Row],[Value]]) -> 0 | L29: =_xlfn.SWITCH(TRUE(),OR(BrainStateTable[[#This Row],[DashViewVal]]<BrainLow,BrainStateTable[[#This Row],[DashViewVal]]=""),0,AND(BrainStateTable[[#This Row],[DashViewVal]]>=BrainLow,BrainStateTable[[#This Row],[DashViewVal]]<BrainMed),1,AND(BrainStateTable[[#This Row],[DashViewVal]]>=BrainMed,BrainStateTable[[#This Row],[DashViewVal]]<BrainHigh),2,BrainStateTable[[#This Row],[DashViewVal]]>=BrainHigh,3) -> 0 | M29: =IF(BrainStateTable[[#This Row],[State]]=VALUE(RIGHT(M$10,1)),1,NA()) -> 1 | N29: =IF(BrainStateTable[[#This Row],[State]]=VALUE(RIGHT(N$10,1)),1,NA()) ->  | O29: =IF(BrainStateTable[[#This Row],[State]]=VALUE(RIGHT(O$10,1)),1,NA()) ->  | P29: =IF(BrainStateTable[[#This Row],[State]]=VALUE(RIGHT(P$10,1)),1,NA()) ->  | Q29: =ROUNDUP(BrainStateTable[[#This Row],[Value]]/15,0) -> 0 | R29: =_xlfn.SWITCH(TRUE,BrainStateTable[[#This Row],[Round]]<1,1,BrainStateTable[[#This Row],[Round]]>4,4,BrainStateTable[[#This Row],[Round]])-1 -> 0
B30: 3 | C30: 5 | D30: =IF(BrainStateTable[[#This Row],[Trial]]=0,"","T"&BrainStateTable[[#This Row],[Trial]])&"S"&BrainStateTable[[#This Row],[Sensor]] -> T3S5 | E30: ="BackendTable[T"&BrainStateTable[[#This Row],[Trial]]&"Time]" -> BackendTable[T3Time] | F30: ="BackendTable[T"&BrainStateTable[[#This Row],[Trial]]&"Row]" -> BackendTable[T3Row] | G30: ="BackendTable["&BrainStateTable[[#This Row],[ColName]]&"]" -> BackendTable[T3S5] | H30: =_xlfn.SWITCH(BrainStateTable[[#This Row],[Trial]],0,"Live",1,T1Row,2,T2Row,3,T3Row) -> 1 | I30: =IFERROR(IFERROR(INDEX(BackendTable[],MATCH(BrainStateTable[[#This Row],[Row]],INDIRECT(BrainStateTable[[#This Row],[Indirect Row]],0),0),MATCH(BrainStateTable[[#This Row],[ColName]],BackendTable[#Headers],0)),_xlfn.MAXIFS(INDIRECT(BrainStateTable[[#This Row],[Indirect Sensor]],0),BackendTable[Row'#],">"&495)),"") -> 0 | J30: =MAX(INDIRECT(BrainStateTable[[#This Row],[Indirect Sensor]],0)) -> 0 | K30: =_xlfn.SWITCH(TRUE(),AND(SelectedVisual=1,BrainStateTable[[#This Row],[Trial]]=0),BrainStateTable[[#This Row],[Value]],AND(SelectedVisual=1,BrainStateTable[[#This Row],[Trial]]>0),BrainStateTable[[#This Row],[Max]],AND(SelectedVisual=0,BrainStateTable[[#This Row],[Trial]]=0),"",AND(SelectedVisual=0,BrainStateTable[[#This Row],[Trial]]>0,TimeEntry=-0.001),BrainStateTable[[#This Row],[Max]],AND(SelectedVisual=0,BrainStateTable[[#This Row],[Trial]]>0,TimeEntry>-0.001),BrainStateTable[[#This Row],[Value]]) -> 0 | L30: =_xlfn.SWITCH(TRUE(),OR(BrainStateTable[[#This Row],[DashViewVal]]<BrainLow,BrainStateTable[[#This Row],[DashViewVal]]=""),0,AND(BrainStateTable[[#This Row],[DashViewVal]]>=BrainLow,BrainStateTable[[#This Row],[DashViewVal]]<BrainMed),1,AND(BrainStateTable[[#This Row],[DashViewVal]]>=BrainMed,BrainStateTable[[#This Row],[DashViewVal]]<BrainHigh),2,BrainStateTable[[#This Row],[DashViewVal]]>=BrainHigh,3) -> 0 | M30: =IF(BrainStateTable[[#This Row],[State]]=VALUE(RIGHT(M$10,1)),1,NA()) -> 1 | N30: =IF(BrainStateTable[[#This Row],[State]]=VALUE(RIGHT(N$10,1)),1,NA()) ->  | O30: =IF(BrainStateTable[[#This Row],[State]]=VALUE(RIGHT(O$10,1)),1,NA()) ->  | P30: =IF(BrainStateTable[[#This Row],[State]]=VALUE(RIGHT(P$10,1)),1,NA()) ->  | Q30: =ROUNDUP(BrainStateTable[[#This Row],[Value]]/15,0) -> 0 | R30: =_xlfn.SWITCH(TRUE,BrainStateTable[[#This Row],[Round]]<1,1,BrainStateTable[[#This Row],[Round]]>4,4,BrainStateTable[[#This Row],[Round]])-1 -> 0
B32: Trial | C32: Sensor | D32: Reading
B33: Avg | C33: 1 | D33: =_xlfn.SWITCH(TRUE(),Table4[[#This Row],[Trial]]="Avg",AVERAGEIFS(BrainStateTable[Max],BrainStateTable[Sensor],Table4[[#This Row],[Sensor]],BrainStateTable[Trial],">"&0),INDEX(BrainStateTable[Max],MATCH("T"&Table4[[#This Row],[Trial]]&"S"&Table4[[#This Row],[Sensor]],BrainStateTable[ColName],0),1)) -> 0
B34: Avg | C34: 2 | D34: =_xlfn.SWITCH(TRUE(),Table4[[#This Row],[Trial]]="Avg",AVERAGEIFS(BrainStateTable[Max],BrainStateTable[Sensor],Table4[[#This Row],[Sensor]],BrainStateTable[Trial],">"&0),INDEX(BrainStateTable[Max],MATCH("T"&Table4[[#This Row],[Trial]]&"S"&Table4[[#This Row],[Sensor]],BrainStateTable[ColName],0),1)) -> 0
B35: Avg | C35: 3 | D35: =_xlfn.SWITCH(TRUE(),Table4[[#This Row],[Trial]]="Avg",AVERAGEIFS(BrainStateTable[Max],BrainStateTable[Sensor],Table4[[#This Row],[Sensor]],BrainStateTable[Trial],">"&0),INDEX(BrainStateTable[Max],MATCH("T"&Table4[[#This Row],[Trial]]&"S"&Table4[[#This Row],[Sensor]],BrainStateTable[ColName],0),1)) -> 0
B36: Avg | C36: 4 | D36: =_xlfn.SWITCH(TRUE(),Table4[[#This Row],[Trial]]="Avg",AVERAGEIFS(BrainStateTable[Max],BrainStateTable[Sensor],Table4[[#This Row],[Sensor]],BrainStateTable[Trial],">"&0),INDEX(BrainStateTable[Max],MATCH("T"&Table4[[#This Row],[Trial]]&"S"&Table4[[#This Row],[Sensor]],BrainStateTable[ColName],0),1)) -> 0
B37: Avg | C37: 5 | D37: =_xlfn.SWITCH(TRUE(),Table4[[#This Row],[Trial]]="Avg",AVERAGEIFS(BrainStateTable[Max],BrainStateTable[Sensor],Table4[[#This Row],[Sensor]],BrainStateTable[Trial],">"&0),INDEX(BrainStateTable[Max],MATCH("T"&Table4[[#This Row],[Trial]]&"S"&Table4[[#This Row],[Sensor]],BrainStateTable[ColName],0),1)) -> 0
B38: 1 | C38: 1 | D38: =_xlfn.SWITCH(TRUE(),Table4[[#This Row],[Trial]]="Avg",AVERAGEIFS(BrainStateTable[Max],BrainStateTable[Sensor],Table4[[#This Row],[Sensor]],BrainStateTable[Trial],">"&0),INDEX(BrainStateTable[Max],MATCH("T"&Table4[[#This Row],[Trial]]&"S"&Table4[[#This Row],[Sensor]],BrainStateTable[ColName],0),1)) -> 0
B39: 2 | C39: 1 | D39: =_xlfn.SWITCH(TRUE(),Table4[[#This Row],[Trial]]="Avg",AVERAGEIFS(BrainStateTable[Max],BrainStateTable[Sensor],Table4[[#This Row],[Sensor]],BrainStateTable[Trial],">"&0),INDEX(BrainStateTable[Max],MATCH("T"&Table4[[#This Row],[Trial]]&"S"&Table4[[#This Row],[Sensor]],BrainStateTable[ColName],0),1)) -> 0
B40: 3 | C40: 1 | D40: =_xlfn.SWITCH(TRUE(),Table4[[#This Row],[Trial]]="Avg",AVERAGEIFS(BrainStateTable[Max],BrainStateTable[Sensor],Table4[[#This Row],[Sensor]],BrainStateTable[Trial],">"&0),INDEX(BrainStateTable[Max],MATCH("T"&Table4[[#This Row],[Trial]]&"S"&Table4[[#This Row],[Sensor]],BrainStateTable[ColName],0),1)) -> 0
B41: 1 | C41: 2 | D41: =_xlfn.SWITCH(TRUE(),Table4[[#This Row],[Trial]]="Avg",AVERAGEIFS(BrainStateTable[Max],BrainStateTable[Sensor],Table4[[#This Row],[Sensor]],BrainStateTable[Trial],">"&0),INDEX(BrainStateTable[Max],MATCH("T"&Table4[[#This Row],[Trial]]&"S"&Table4[[#This Row],[Sensor]],BrainStateTable[ColName],0),1)) -> 0
B42: 2 | C42: 2 | D42: =_xlfn.SWITCH(TRUE(),Table4[[#This Row],[Trial]]="Avg",AVERAGEIFS(BrainStateTable[Max],BrainStateTable[Sensor],Table4[[#This Row],[Sensor]],BrainStateTable[Trial],">"&0),INDEX(BrainStateTable[Max],MATCH("T"&Table4[[#This Row],[Trial]]&"S"&Table4[[#This Row],[Sensor]],BrainStateTable[ColName],0),1)) -> 0
B43: 3 | C43: 2 | D43: =_xlfn.SWITCH(TRUE(),Table4[[#This Row],[Trial]]="Avg",AVERAGEIFS(BrainStateTable[Max],BrainStateTable[Sensor],Table4[[#This Row],[Sensor]],BrainStateTable[Trial],">"&0),INDEX(BrainStateTable[Max],MATCH("T"&Table4[[#This Row],[Trial]]&"S"&Table4[[#This Row],[Sensor]],BrainStateTable[ColName],0),1)) -> 0
B44: 1 | C44: 3 | D44: =_xlfn.SWITCH(TRUE(),Table4[[#This Row],[Trial]]="Avg",AVERAGEIFS(BrainStateTable[Max],BrainStateTable[Sensor],Table4[[#This Row],[Sensor]],BrainStateTable[Trial],">"&0),INDEX(BrainStateTable[Max],MATCH("T"&Table4[[#This Row],[Trial]]&"S"&Table4[[#This Row],[Sensor]],BrainStateTable[ColName],0),1)) -> 0
B45: 2 | C45: 3 | D45: =_xlfn.SWITCH(TRUE(),Table4[[#This Row],[Trial]]="Avg",AVERAGEIFS(BrainStateTable[Max],BrainStateTable[Sensor],Table4[[#This Row],[Sensor]],BrainStateTable[Trial],">"&0),INDEX(BrainStateTable[Max],MATCH("T"&Table4[[#This Row],[Trial]]&"S"&Table4[[#This Row],[Sensor]],BrainStateTable[ColName],0),1)) -> 0
B46: 3 | C46: 3 | D46: =_xlfn.SWITCH(TRUE(),Table4[[#This Row],[Trial]]="Avg",AVERAGEIFS(BrainStateTable[Max],BrainStateTable[Sensor],Table4[[#This Row],[Sensor]],BrainStateTable[Trial],">"&0),INDEX(BrainStateTable[Max],MATCH("T"&Table4[[#This Row],[Trial]]&"S"&Table4[[#This Row],[Sensor]],BrainStateTable[ColName],0),1)) -> 0
B47: 1 | C47: 4 | D47: =_xlfn.SWITCH(TRUE(),Table4[[#This Row],[Trial]]="Avg",AVERAGEIFS(BrainStateTable[Max],BrainStateTable[Sensor],Table4[[#This Row],[Sensor]],BrainStateTable[Trial],">"&0),INDEX(BrainStateTable[Max],MATCH("T"&Table4[[#This Row],[Trial]]&"S"&Table4[[#This Row],[Sensor]],BrainStateTable[ColName],0),1)) -> 0
B48: 2 | C48: 4 | D48: =_xlfn.SWITCH(TRUE(),Table4[[#This Row],[Trial]]="Avg",AVERAGEIFS(BrainStateTable[Max],BrainStateTable[Sensor],Table4[[#This Row],[Sensor]],BrainStateTable[Trial],">"&0),INDEX(BrainStateTable[Max],MATCH("T"&Table4[[#This Row],[Trial]]&"S"&Table4[[#This Row],[Sensor]],BrainStateTable[ColName],0),1)) -> 0
B49: 3 | C49: 4 | D49: =_xlfn.SWITCH(TRUE(),Table4[[#This Row],[Trial]]="Avg",AVERAGEIFS(BrainStateTable[Max],BrainStateTable[Sensor],Table4[[#This Row],[Sensor]],BrainStateTable[Trial],">"&0),INDEX(BrainStateTable[Max],MATCH("T"&Table4[[#This Row],[Trial]]&"S"&Table4[[#This Row],[Sensor]],BrainStateTable[ColName],0),1)) -> 0
B50: 1 | C50: 5 | D50: =_xlfn.SWITCH(TRUE(),Table4[[#This Row],[Trial]]="Avg",AVERAGEIFS(BrainStateTable[Max],BrainStateTable[Sensor],Table4[[#This Row],[Sensor]],BrainStateTable[Trial],">"&0),INDEX(BrainStateTable[Max],MATCH("T"&Table4[[#This Row],[Trial]]&"S"&Table4[[#This Row],[Sensor]],BrainStateTable[ColName],0),1)) -> 0
B51: 2 | C51: 5 | D51: =_xlfn.SWITCH(TRUE(),Table4[[#This Row],[Trial]]="Avg",AVERAGEIFS(BrainStateTable[Max],BrainStateTable[Sensor],Table4[[#This Row],[Sensor]],BrainStateTable[Trial],">"&0),INDEX(BrainStateTable[Max],MATCH("T"&Table4[[#This Row],[Trial]]&"S"&Table4[[#This Row],[Sensor]],BrainStateTable[ColName],0),1)) -> 0
B52: 3 | C52: 5 | D52: =_xlfn.SWITCH(TRUE(),Table4[[#This Row],[Trial]]="Avg",AVERAGEIFS(BrainStateTable[Max],BrainStateTable[Sensor],Table4[[#This Row],[Sensor]],BrainStateTable[Trial],">"&0),INDEX(BrainStateTable[Max],MATCH("T"&Table4[[#This Row],[Trial]]&"S"&Table4[[#This Row],[Sensor]],BrainStateTable[ColName],0),1)) -> 0

Sheet Backend (hidden)
A2: =RIGHT(CELL("filename",A2),LEN(CELL("filename",A2))-FIND("]",CELL("filename",A2))) -> Backend | B2: Row# | C2: Time | D2: Column1 | E2: Net Time | F2: LiveChartTime | G2: T0Time | H2: S1 | I2: S2 | J2: S3 | K2: S4 | L2: S5 | M2: Max | N2: Row | O2: T1Time | P2: T1S1 | Q2: T1S2 | R2: T1S3 | S2: T1S4 | T2: T1S5 | U2: T1Max | V2: T1Row | W2: T2Time | X2: T2S1 | Y2: T2S2 | Z2: T2S3 | AA2: T2S4 | AB2: T2S5 | AC2: T2Max | AD2: T2Row | AE2: T3Time | AF2: T3S1 | AG2: T3S2 | AH2: T3S3 | AI2: T3S4 | AJ2: T3S5 | AK2: T3Max | AL2: T3Row | AM2: MaxSensorT1 | AN2: MaxSensorT2 | AO2: MaxSensorT3 | AT2: Category | AU2: Brain | AV2: 0 Val | AW2: Brain Text
B3: =ROW()-ROW(BackendTable[[#Headers],[Row'#]]) -> 1 | C3: ='Data In'!A8 -> 0 | D3: =IF(BackendTable[[#This Row],[Time]]-'Reference Cells'!$C$3<=0,NA(),'Reference Cells'!$C$4-BackendTable[[#This Row],[Time]])*86400 ->  | E3: =IFERROR(8-BackendTable[[#This Row],[Column1]],"") ->  | F3: =IF(ISERROR(BackendTable[[#This Row],[Column1]]),-9,(BackendTable[[#This Row],[Net Time]]-NetTimeMin)*RangeAdj) -> -9 | G3: =IF(AND(BackendTable[[#This Row],[Time]]>='Reference Cells'!$C$6,BackendTable[[#This Row],[Time]]<='Reference Cells'!$C$7),(BackendTable[[#This Row],[Time]]-'Reference Cells'!$C$6)*86400,NA()) -> 2 | H3: =IF(CommandCell='Reference Cells'!$C$17,NA(),ABS('Data In'!B8-INDIRECT("ZeroVal_"&H$2,0))) -> 0 | I3: =IF(CommandCell='Reference Cells'!$C$17,NA(),ABS('Data In'!C8-INDIRECT("ZeroVal_"&I$2,0))) -> 0 | J3: =IF(CommandCell='Reference Cells'!$C$17,NA(),ABS('Data In'!D8-INDIRECT("ZeroVal_"&J$2,0))) -> 0 | K3: =IF(CommandCell='Reference Cells'!$C$17,NA(),ABS('Data In'!E8-INDIRECT("ZeroVal_"&K$2,0))) -> 0 | L3: =IF(CommandCell='Reference Cells'!$C$17,NA(),ABS('Data In'!F8-INDIRECT("ZeroVal_"&L$2,0))) -> 0 | M3: =MAX(BackendTable[[#This Row],[S1]:[S5]]) -> 0 | N3: =IF(ISERROR(BackendTable[[#This Row],[T0Time]]),0,COUNTIFS(BackendTable[T0Time],"<="&3,BackendTable[T0Time],">="&0)-COUNTIFS(BackendTable[T0Time],">"&BackendTable[[#This Row],[T0Time]])) -> 500 | AM3: =MATCH(MAX(BackendTable[[#This Row],[T1S1]:[T1S5]]),BackendTable[[#This Row],[T1S1]:[T1S5]],0) ->  | AN3: =MATCH(MAX(BackendTable[[#This Row],[T2S1]:[T2S5]]),BackendTable[[#This Row],[T2S1]:[T2S5]],0) ->  | AO3: =MATCH(MAX(BackendTable[[#This Row],[T3S1]:[T3S5]]),BackendTable[[#This Row],[T3S1]:[T3S5]],0) ->  | AT3: S1 | AU3: =TT!$O87 -> Frontal | AW3: =TT!$O94 -> Expressive language, motor skills, emotions, judgment, reasoning, and problem solving
B4: =ROW()-ROW(BackendTable[[#Headers],[Row'#]]) -> 2 | C4: ='Data In'!A9 -> 0 | D4: =IF(BackendTable[[#This Row],[Time]]-'Reference Cells'!$C$3<=0,NA(),'Reference Cells'!$C$4-BackendTable[[#This Row],[Time]])*86400 ->  | E4: =IFERROR(8-BackendTable[[#This Row],[Column1]],"") ->  | F4: =IF(ISERROR(BackendTable[[#This Row],[Column1]]),-9,(BackendTable[[#This Row],[Net Time]]-NetTimeMin)*RangeAdj) -> -9 | G4: =IF(AND(BackendTable[[#This Row],[Time]]>='Reference Cells'!$C$6,BackendTable[[#This Row],[Time]]<='Reference Cells'!$C$7),(BackendTable[[#This Row],[Time]]-'Reference Cells'!$C$6)*86400,NA()) -> 2 | H4: =IF(CommandCell='Reference Cells'!$C$17,NA(),ABS('Data In'!B9-INDIRECT("ZeroVal_"&H$2,0))) -> 0 | I4: =IF(CommandCell='Reference Cells'!$C$17,NA(),ABS('Data In'!C9-INDIRECT("ZeroVal_"&I$2,0))) -> 0 | J4: =IF(CommandCell='Reference Cells'!$C$17,NA(),ABS('Data In'!D9-INDIRECT("ZeroVal_"&J$2,0))) -> 0 | K4: =IF(CommandCell='Reference Cells'!$C$17,NA(),ABS('Data In'!E9-INDIRECT("ZeroVal_"&K$2,0))) -> 0 | L4: =IF(CommandCell='Reference Cells'!$C$17,NA(),ABS('Data In'!F9-INDIRECT("ZeroVal_"&L$2,0))) -> 0 | M4: =MAX(BackendTable[[#This Row],[S1]:[S5]]) -> 0 | N4: =IF(ISERROR(BackendTable[[#This Row],[T0Time]]),0,COUNTIFS(BackendTable[T0Time],"<="&3,BackendTable[T0Time],">="&0)-COUNTIFS(BackendTable[T0Time],">"&BackendTable[[#This Row],[T0Time]])) -> 500 | AM4: =MATCH(MAX(BackendTable[[#This Row],[T1S1]:[T1S5]]),BackendTable[[#This Row],[T1S1]:[T1S5]],0) ->  | AN4: =MATCH(MAX(BackendTable[[#This Row],[T2S1]:[T2S5]]),BackendTable[[#This Row],[T2S1]:[T2S5]],0) ->  | AO4: =MATCH(MAX(BackendTable[[#This Row],[T3S1]:[T3S5]]),BackendTable[[#This Row],[T3S1]:[T3S5]],0) ->  | AT4: S2 | AU4: =TT!$O88 -> Parietal | AW4: =TT!$O95 -> Sensory processing related to body orientation, pain, taste, pressure, touch and temperature
B5: =ROW()-ROW(BackendTable[[#Headers],[Row'#]]) -> 3 | C5: ='Data In'!A10 -> 0 | D5: =IF(BackendTable[[#This Row],[Time]]-'Reference Cells'!$C$3<=0,NA(),'Reference Cells'!$C$4-BackendTable[[#This Row],[Time]])*86400 ->  | E5: =IFERROR(8-BackendTable[[#This Row],[Column1]],"") ->  | F5: =IF(ISERROR(BackendTable[[#This Row],[Column1]]),-9,(BackendTable[[#This Row],[Net Time]]-NetTimeMin)*RangeAdj) -> -9 | G5: =IF(AND(BackendTable[[#This Row],[Time]]>='Reference Cells'!$C$6,BackendTable[[#This Row],[Time]]<='Reference Cells'!$C$7),(BackendTable[[#This Row],[Time]]-'Reference Cells'!$C$6)*86400,NA()) -> 2 | H5: =IF(CommandCell='Reference Cells'!$C$17,NA(),ABS('Data In'!B10-INDIRECT("ZeroVal_"&H$2,0))) -> 0 | I5: =IF(CommandCell='Reference Cells'!$C$17,NA(),ABS('Data In'!C10-INDIRECT("ZeroVal_"&I$2,0))) -> 0 | J5: =IF(CommandCell='Reference Cells'!$C$17,NA(),ABS('Data In'!D10-INDIRECT("ZeroVal_"&J$2,0))) -> 0 | K5: =IF(CommandCell='Reference Cells'!$C$17,NA(),ABS('Data In'!E10-INDIRECT("ZeroVal_"&K$2,0))) -> 0 | L5: =IF(CommandCell='Reference Cells'!$C$17,NA(),ABS('Data In'!F10-INDIRECT("ZeroVal_"&L$2,0))) -> 0 | M5: =MAX(BackendTable[[#This Row],[S1]:[S5]]) -> 0 | N5: =IF(ISERROR(BackendTable[[#This Row],[T0Time]]),0,COUNTIFS(BackendTable[T0Time],"<="&3,BackendTable[T0Time],">="&0)-COUNTIFS(BackendTable[T0Time],">"&BackendTable[[#This Row],[T0Time]])) -> 500 | AM5: =MATCH(MAX(BackendTable[[#This Row],[T1S1]:[T1S5]]),BackendTable[[#This Row],[T1S1]:[T1S5]],0) ->  | AN5: =MATCH(MAX(BackendTable[[#This Row],[T2S1]:[T2S5]]),BackendTable[[#This Row],[T2S1]:[T2S5]],0) ->  | AO5: =MATCH(MAX(BackendTable[[#This Row],[T3S1]:[T3S5]]),BackendTable[[#This Row],[T3S1]:[T3S5]],0) ->  | AT5: S3 | AU5: =TT!$O89 -> Temporal (L) | AW5: =TT!$O96 -> Memory, interpreting language, behavior, and interpreting and processing sounds
B6: =ROW()-ROW(BackendTable[[#Headers],[Row'#]]) -> 4 | C6: ='Data In'!A11 -> 0 | D6: =IF(BackendTable[[#This Row],[Time]]-'Reference Cells'!$C$3<=0,NA(),'Reference Cells'!$C$4-BackendTable[[#This Row],[Time]])*86400 ->  | E6: =IFERROR(8-BackendTable[[#This Row],[Column1]],"") ->  | F6: =IF(ISERROR(BackendTable[[#This Row],[Column1]]),-9,(BackendTable[[#This Row],[Net Time]]-NetTimeMin)*RangeAdj) -> -9 | G6: =IF(AND(BackendTable[[#This Row],[Time]]>='Reference Cells'!$C$6,BackendTable[[#This Row],[Time]]<='Reference Cells'!$C$7),(BackendTable[[#This Row],[Time]]-'Reference Cells'!$C$6)*86400,NA()) -> 2 | H6: =IF(CommandCell='Reference Cells'!$C$17,NA(),ABS('Data In'!B11-INDIRECT("ZeroVal_"&H$2,0))) -> 0 | I6: =IF(CommandCell='Reference Cells'!$C$17,NA(),ABS('Data In'!C11-INDIRECT("ZeroVal_"&I$2,0))) -> 0 | J6: =IF(CommandCell='Reference Cells'!$C$17,NA(),ABS('Data In'!D11-INDIRECT("ZeroVal_"&J$2,0))) -> 0 | K6: =IF(CommandCell='Reference Cells'!$C$17,NA(),ABS('Data In'!E11-INDIRECT("ZeroVal_"&K$2,0))) -> 0 | L6: =IF(CommandCell='Reference Cells'!$C$17,NA(),ABS('Data In'!F11-INDIRECT("ZeroVal_"&L$2,0))) -> 0 | M6: =MAX(BackendTable[[#This Row],[S1]:[S5]]) -> 0 | N6: =IF(ISERROR(BackendTable[[#This Row],[T0Time]]),0,COUNTIFS(BackendTable[T0Time],"<="&3,BackendTable[T0Time],">="&0)-COUNTIFS(BackendTable[T0Time],">"&BackendTable[[#This Row],[T0Time]])) -> 500 | AM6: =MATCH(MAX(BackendTable[[#This Row],[T1S1]:[T1S5]]),BackendTable[[#This Row],[T1S1]:[T1S5]],0) ->  | AN6: =MATCH(MAX(BackendTable[[#This Row],[T2S1]:[T2S5]]),BackendTable[[#This Row],[T2S1]:[T2S5]],0) ->  | AO6: =MATCH(MAX(BackendTable[[#This Row],[T3S1]:[T3S5]]),BackendTable[[#This Row],[T3S1]:[T3S5]],0) ->  | AT6: S4 | AU6: =TT!$O90 -> Temporal (R) | AW6: =TT!$O96 -> Memory, interpreting language, behavior, and interpreting and processing sounds
B7: =ROW()-ROW(BackendTable[[#Headers],[Row'#]]) -> 5 | C7: ='Data In'!A12 -> 0 | D7: =IF(BackendTable[[#This Row],[Time]]-'Reference Cells'!$C$3<=0,NA(),'Reference Cells'!$C$4-BackendTable[[#This Row],[Time]])*86400 ->  | E7: =IFERROR(8-BackendTable[[#This Row],[Column1]],"") ->  | F7: =IF(ISERROR(BackendTable[[#This Row],[Column1]]),-9,(BackendTable[[#This Row],[Net Time]]-NetTimeMin)*RangeAdj) -> -9 | G7: =IF(AND(BackendTable[[#This Row],[Time]]>='Reference Cells'!$C$6,BackendTable[[#This Row],[Time]]<='Reference Cells'!$C$7),(BackendTable[[#This Row],[Time]]-'Reference Cells'!$C$6)*86400,NA()) -> 2 | H7: =IF(CommandCell='Reference Cells'!$C$17,NA(),ABS('Data In'!B12-INDIRECT("ZeroVal_"&H$2,0))) -> 0 | I7: =IF(CommandCell='Reference Cells'!$C$17,NA(),ABS('Data In'!C12-INDIRECT("ZeroVal_"&I$2,0))) -> 0 | J7: =IF(CommandCell='Reference Cells'!$C$17,NA(),ABS('Data In'!D12-INDIRECT("ZeroVal_"&J$2,0))) -> 0 | K7: =IF(CommandCell='Reference Cells'!$C$17,NA(),ABS('Data In'!E12-INDIRECT("ZeroVal_"&K$2,0))) -> 0 | L7: =IF(CommandCell='Reference Cells'!$C$17,NA(),ABS('Data In'!F12-INDIRECT("ZeroVal_"&L$2,0))) -> 0 | M7: =MAX(BackendTable[[#This Row],[S1]:[S5]]) -> 0 | N7: =IF(ISERROR(BackendTable[[#This Row],[T0Time]]),0,COUNTIFS(BackendTable[T0Time],"<="&3,BackendTable[T0Time],">="&0)-COUNTIFS(BackendTable[T0Time],">"&BackendTable[[#This Row],[T0Time]])) -> 500 | AM7: =MATCH(MAX(BackendTable[[#This Row],[T1S1]:[T1S5]]),BackendTable[[#This Row],[T1S1]:[T1S5]],0) ->  | AN7: =MATCH(MAX(BackendTable[[#This Row],[T2S1]:[T2S5]]),BackendTable[[#This Row],[T2S1]:[T2S5]],0) ->  | AO7: =MATCH(MAX(BackendTable[[#This Row],[T3S1]:[T3S5]]),BackendTable[[#This Row],[T3S1]:[T3S5]],0) ->  | AT7: S5 | AU7: =TT!$O91 -> Occipital | AW7: =TT!$O97 -> Vision, object recognition, distance and perception of color
B8: =ROW()-ROW(BackendTable[[#Headers],[Row'#]]) -> 6 | C8: ='Data In'!A13 -> 0 | D8: =IF(BackendTable[[#This Row],[Time]]-'Reference Cells'!$C$3<=0,NA(),'Reference Cells'!$C$4-BackendTable[[#This Row],[Time]])*86400 ->  | E8: =IFERROR(8-BackendTable[[#This Row],[Column1]],"") ->  | F8: =IF(ISERROR(BackendTable[[#This Row],[Column1]]),-9,(BackendTable[[#This Row],[Net Time]]-NetTimeMin)*RangeAdj) -> -9 | G8: =IF(AND(BackendTable[[#This Row],[Time]]>='Reference Cells'!$C$6,BackendTable[[#This Row],[Time]]<='Reference Cells'!$C$7),(BackendTable[[#This Row],[Time]]-'Reference Cells'!$C$6)*86400,NA()) -> 2 | H8: =IF(CommandCell='Reference Cells'!$C$17,NA(),ABS('Data In'!B13-INDIRECT("ZeroVal_"&H$2,0))) -> 0 | I8: =IF(CommandCell='Reference Cells'!$C$17,NA(),ABS('Data In'!C13-INDIRECT("ZeroVal_"&I$2,0))) -> 0 | J8: =IF(CommandCell='Reference Cells'!$C$17,NA(),ABS('Data In'!D13-INDIRECT("ZeroVal_"&J$2,0))) -> 0 | K8: =IF(CommandCell='Reference Cells'!$C$17,NA(),ABS('Data In'!E13-INDIRECT("ZeroVal_"&K$2,0))) -> 0 | L8: =IF(CommandCell='Reference Cells'!$C$17,NA(),ABS('Data In'!F13-INDIRECT("ZeroVal_"&L$2,0))) -> 0 | M8: =MAX(BackendTable[[#This Row],[S1]:[S5]]) -> 0 | N8: =IF(ISERROR(BackendTable[[#This Row],[T0Time]]),0,COUNTIFS(BackendTable[T0Time],"<="&3,BackendTable[T0Time],">="&0)-COUNTIFS(BackendTable[T0Time],">"&BackendTable[[#This Row],[T0Time]])) -> 500 | AM8: =MATCH(MAX(BackendTable[[#This Row],[T1S1]:[T1S5]]),BackendTable[[#This Row],[T1S1]:[T1S5]],0) ->  | AN8: =MATCH(MAX(BackendTable[[#This Row],[T2S1]:[T2S5]]),BackendTable[[#This Row],[T2S1]:[T2S5]],0) ->  | AO8: =MATCH(MAX(BackendTable[[#This Row],[T3S1]:[T3S5]]),BackendTable[[#This Row],[T3S1]:[T3S5]],0) -> 
B9: =ROW()-ROW(BackendTable[[#Headers],[Row'#]]) -> 7 | C9: ='Data In'!A14 -> 0 | D9: =IF(BackendTable[[#This Row],[Time]]-'Reference Cells'!$C$3<=0,NA(),'Reference Cells'!$C$4-BackendTable[[#This Row],[Time]])*86400 ->  | E9: =IFERROR(8-BackendTable[[#This Row],[Column1]],"") ->  | F9: =IF(ISERROR(BackendTable[[#This Row],[Column1]]),-9,(BackendTable[[#This Row],[Net Time]]-NetTimeMin)*RangeAdj) -> -9 | G9: =IF(AND(BackendTable[[#This Row],[Time]]>='Reference Cells'!$C$6,BackendTable[[#This Row],[Time]]<='Reference Cells'!$C$7),(BackendTable[[#This Row],[Time]]-'Reference Cells'!$C$6)*86400,NA()) -> 2 | H9: =IF(CommandCell='Reference Cells'!$C$17,NA(),ABS('Data In'!B14-INDIRECT("ZeroVal_"&H$2,0))) -> 0 | I9: =IF(CommandCell='Reference Cells'!$C$17,NA(),ABS('Data In'!C14-INDIRECT("ZeroVal_"&I$2,0))) -> 0 | J9: =IF(CommandCell='Reference Cells'!$C$17,NA(),ABS('Data In'!D14-INDIRECT("ZeroVal_"&J$2,0))) -> 0 | K9: =IF(CommandCell='Reference Cells'!$C$17,NA(),ABS('Data In'!E14-INDIRECT("ZeroVal_"&K$2,0))) -> 0 | L9: =IF(CommandCell='Reference Cells'!$C$17,NA(),ABS('Data In'!F14-INDIRECT("ZeroVal_"&L$2,0))) -> 0 | M9: =MAX(BackendTable[[#This Row],[S1]:[S5]]) -> 0 | N9: =IF(ISERROR(BackendTable[[#This Row],[T0Time]]),0,COUNTIFS(BackendTable[T0Time],"<="&3,BackendTable[T0Time],">="&0)-COUNTIFS(BackendTable[T0Time],">"&BackendTable[[#This Row],[T0Time]])) -> 500 | AM9: =MATCH(MAX(BackendTable[[#This Row],[T1S1]:[T1S5]]),BackendTable[[#This Row],[T1S1]:[T1S5]],0) ->  | AN9: =MATCH(MAX(BackendTable[[#This Row],[T2S1]:[T2S5]]),BackendTable[[#This Row],[T2S1]:[T2S5]],0) ->  | AO9: =MATCH(MAX(BackendTable[[#This Row],[T3S1]:[T3S5]]),BackendTable[[#This Row],[T3S1]:[T3S5]],0) -> 
B10: =ROW()-ROW(BackendTable[[#Headers],[Row'#]]) -> 8 | C10: ='Data In'!A15 -> 0 | D10: =IF(BackendTable[[#This Row],[Time]]-'Reference Cells'!$C$3<=0,NA(),'Reference Cells'!$C$4-BackendTable[[#This Row],[Time]])*86400 ->  | E10: =IFERROR(8-BackendTable[[#This Row],[Column1]],"") ->  | F10: =IF(ISERROR(BackendTable[[#This Row],[Column1]]),-9,(BackendTable[[#This Row],[Net Time]]-NetTimeMin)*RangeAdj) -> -9 | G10: =IF(AND(BackendTable[[#This Row],[Time]]>='Reference Cells'!$C$6,BackendTable[[#This Row],[Time]]<='Reference Cells'!$C$7),(BackendTable[[#This Row],[Time]]-'Reference Cells'!$C$6)*86400,NA()) -> 2 | H10: =IF(CommandCell='Reference Cells'!$C$17,NA(),ABS('Data In'!B15-INDIRECT("ZeroVal_"&H$2,0))) -> 0 | I10: =IF(CommandCell='Reference Cells'!$C$17,NA(),ABS('Data In'!C15-INDIRECT("ZeroVal_"&I$2,0))) -> 0 | J10: =IF(CommandCell='Reference Cells'!$C$17,NA(),ABS('Data In'!D15-INDIRECT("ZeroVal_"&J$2,0))) -> 0 | K10: =IF(CommandCell='Reference Cells'!$C$17,NA(),ABS('Data In'!E15-INDIRECT("ZeroVal_"&K$2,0))) -> 0 | L10: =IF(CommandCell='Reference Cells'!$C$17,NA(),ABS('Data In'!F15-INDIRECT("ZeroVal_"&L$2,0))) -> 0 | M10: =MAX(BackendTable[[#This Row],[S1]:[S5]]) -> 0 | N10: =IF(ISERROR(BackendTable[[#This Row],[T0Time]]),0,COUNTIFS(BackendTable[T0Time],"<="&3,BackendTable[T0Time],">="&0)-COUNTIFS(BackendTable[T0Time],">"&BackendTable[[#This Row],[T0Time]])) -> 500 | AM10: =MATCH(MAX(BackendTable[[#This Row],[T1S1]:[T1S5]]),BackendTable[[#This Row],[T1S1]:[T1S5]],0) ->  | AN10: =MATCH(MAX(BackendTable[[#This Row],[T2S1]:[T2S5]]),BackendTable[[#This Row],[T2S1]:[T2S5]],0) ->  | AO10: =MATCH(MAX(BackendTable[[#This Row],[T3S1]:[T3S5]]),BackendTable[[#This Row],[T3S1]:[T3S5]],0) -> 
B11: =ROW()-ROW(BackendTable[[#Headers],[Row'#]]) -> 9 | C11: ='Data In'!A16 -> 0 | D11: =IF(BackendTable[[#This Row],[Time]]-'Reference Cells'!$C$3<=0,NA(),'Reference Cells'!$C$4-BackendTable[[#This Row],[Time]])*86400 ->  | E11: =IFERROR(8-BackendTable[[#This Row],[Column1]],"") ->  | F11: =IF(ISERROR(BackendTable[[#This Row],[Column1]]),-9,(BackendTable[[#This Row],[Net Time]]-NetTimeMin)*RangeAdj) -> -9 | G11: =IF(AND(BackendTable[[#This Row],[Time]]>='Reference Cells'!$C$6,BackendTable[[#This Row],[Time]]<='Reference Cells'!$C$7),(BackendTable[[#This Row],[Time]]-'Reference Cells'!$C$6)*86400,NA()) -> 2 | H11: =IF(CommandCell='Reference Cells'!$C$17,NA(),ABS('Data In'!B16-INDIRECT("ZeroVal_"&H$2,0))) -> 0 | I11: =IF(CommandCell='Reference Cells'!$C$17,NA(),ABS('Data In'!C16-INDIRECT("ZeroVal_"&I$2,0))) -> 0 | J11: =IF(CommandCell='Reference Cells'!$C$17,NA(),ABS('Data In'!D16-INDIRECT("ZeroVal_"&J$2,0))) -> 0 | K11: =IF(CommandCell='Reference Cells'!$C$17,NA(),ABS('Data In'!E16-INDIRECT("ZeroVal_"&K$2,0))) -> 0 | L11: =IF(CommandCell='Reference Cells'!$C$17,NA(),ABS('Data In'!F16-INDIRECT("ZeroVal_"&L$2,0))) -> 0 | M11: =MAX(BackendTable[[#This Row],[S1]:[S5]]) -> 0 | N11: =IF(ISERROR(BackendTable[[#This Row],[T0Time]]),0,COUNTIFS(BackendTable[T0Time],"<="&3,BackendTable[T0Time],">="&0)-COUNTIFS(BackendTable[T0Time],">"&BackendTable[[#This Row],[T0Time]])) -> 500 | AM11: =MATCH(MAX(BackendTable[[#This Row],[T1S1]:[T1S5]]),BackendTable[[#This Row],[T1S1]:[T1S5]],0) ->  | AN11: =MATCH(MAX(BackendTable[[#This Row],[T2S1]:[T2S5]]),BackendTable[[#This Row],[T2S1]:[T2S5]],0) ->  | AO11: =MATCH(MAX(BackendTable[[#This Row],[T3S1]:[T3S5]]),BackendTable[[#This Row],[T3S1]:[T3S5]],0) -> 
B12: =ROW()-ROW(BackendTable[[#Headers],[Row'#]]) -> 10 | C12: ='Data In'!A17 -> 0 | D12: =IF(BackendTable[[#This Row],[Time]]-'Reference Cells'!$C$3<=0,NA(),'Reference Cells'!$C$4-BackendTable[[#This Row],[Time]])*86400 ->  | E12: =IFERROR(8-BackendTable[[#This Row],[Column1]],"") ->  | F12: =IF(ISERROR(BackendTable[[#This Row],[Column1]]),-9,(BackendTable[[#This Row],[Net Time]]-NetTimeMin)*RangeAdj) -> -9 | G12: =IF(AND(BackendTable[[#This Row],[Time]]>='Reference Cells'!$C$6,BackendTable[[#This Row],[Time]]<='Reference Cells'!$C$7),(BackendTable[[#This Row],[Time]]-'Reference Cells'!$C$6)*86400,NA()) -> 2 | H12: =IF(CommandCell='Reference Cells'!$C$17,NA(),ABS('Data In'!B17-INDIRECT("ZeroVal_"&H$2,0))) -> 0 | I12: =IF(CommandCell='Reference Cells'!$C$17,NA(),ABS('Data In'!C17-INDIRECT("ZeroVal_"&I$2,0))) -> 0 | J12: =IF(CommandCell='Reference Cells'!$C$17,NA(),ABS('Data In'!D17-INDIRECT("ZeroVal_"&J$2,0))) -> 0 | K12: =IF(CommandCell='Reference Cells'!$C$17,NA(),ABS('Data In'!E17-INDIRECT("ZeroVal_"&K$2,0))) -> 0 | L12: =IF(CommandCell='Reference Cells'!$C$17,NA(),ABS('Data In'!F17-INDIRECT("ZeroVal_"&L$2,0))) -> 0 | M12: =MAX(BackendTable[[#This Row],[S1]:[S5]]) -> 0 | N12: =IF(ISERROR(BackendTable[[#This Row],[T0Time]]),0,COUNTIFS(BackendTable[T0Time],"<="&3,BackendTable[T0Time],">="&0)-COUNTIFS(BackendTable[T0Time],">"&BackendTable[[#This Row],[T0Time]])) -> 500 | AM12: =MATCH(MAX(BackendTable[[#This Row],[T1S1]:[T1S5]]),BackendTable[[#This Row],[T1S1]:[T1S5]],0) ->  | AN12: =MATCH(MAX(BackendTable[[#This Row],[T2S1]:[T2S5]]),BackendTable[[#This Row],[T2S1]:[T2S5]],0) ->  | AO12: =MATCH(MAX(BackendTable[[#This Row],[T3S1]:[T3S5]]),BackendTable[[#This Row],[T3S1]:[T3S5]],0) -> 
B13: =ROW()-ROW(BackendTable[[#Headers],[Row'#]]) -> 11 | C13: ='Data In'!A18 -> 0 | D13: =IF(BackendTable[[#This Row],[Time]]-'Reference Cells'!$C$3<=0,NA(),'Reference Cells'!$C$4-BackendTable[[#This Row],[Time]])*86400 ->  | E13: =IFERROR(8-BackendTable[[#This Row],[Column1]],"") ->  | F13: =IF(ISERROR(BackendTable[[#This Row],[Column1]]),-9,(BackendTable[[#This Row],[Net Time]]-NetTimeMin)*RangeAdj) -> -9 | G13: =IF(AND(BackendTable[[#This Row],[Time]]>='Reference Cells'!$C$6,BackendTable[[#This Row],[Time]]<='Reference Cells'!$C$7),(BackendTable[[#This Row],[Time]]-'Reference Cells'!$C$6)*86400,NA()) -> 2 | H13: =IF(CommandCell='Reference Cells'!$C$17,NA(),ABS('Data In'!B18-INDIRECT("ZeroVal_"&H$2,0))) -> 0 | I13: =IF(CommandCell='Reference Cells'!$C$17,NA(),ABS('Data In'!C18-INDIRECT("ZeroVal_"&I$2,0))) -> 0 | J13: =IF(CommandCell='Reference Cells'!$C$17,NA(),ABS('Data In'!D18-INDIRECT("ZeroVal_"&J$2,0))) -> 0 | K13: =IF(CommandCell='Reference Cells'!$C$17,NA(),ABS('Data In'!E18-INDIRECT("ZeroVal_"&K$2,0))) -> 0 | L13: =IF(CommandCell='Reference Cells'!$C$17,NA(),ABS('Data In'!F18-INDIRECT("ZeroVal_"&L$2,0))) -> 0 | M13: =MAX(BackendTable[[#This Row],[S1]:[S5]]) -> 0 | N13: =IF(ISERROR(BackendTable[[#This Row],[T0Time]]),0,COUNTIFS(BackendTable[T0Time],"<="&3,BackendTable[T0Time],">="&0)-COUNTIFS(BackendTable[T0Time],">"&BackendTable[[#This Row],[T0Time]])) -> 500 | AM13: =MATCH(MAX(BackendTable[[#This Row],[T1S1]:[T1S5]]),BackendTable[[#This Row],[T1S1]:[T1S5]],0) ->  | AN13: =MATCH(MAX(BackendTable[[#This Row],[T2S1]:[T2S5]]),BackendTable[[#This Row],[T2S1]:[T2S5]],0) ->  | AO13: =MATCH(MAX(BackendTable[[#This Row],[T3S1]:[T3S5]]),BackendTable[[#This Row],[T3S1]:[T3S5]],0) -> 
B14: =ROW()-ROW(BackendTable[[#Headers],[Row'#]]) -> 12 | C14: ='Data In'!A19 -> 0 | D14: =IF(BackendTable[[#This Row],[Time]]-'Reference Cells'!$C$3<=0,NA(),'Reference Cells'!$C$4-BackendTable[[#This Row],[Time]])*86400 ->  | E14: =IFERROR(8-BackendTable[[#This Row],[Column1]],"") ->  | F14: =IF(ISERROR(BackendTable[[#This Row],[Column1]]),-9,(BackendTable[[#This Row],[Net Time]]-NetTimeMin)*RangeAdj) -> -9 | G14: =IF(AND(BackendTable[[#This Row],[Time]]>='Reference Cells'!$C$6,BackendTable[[#This Row],[Time]]<='Reference Cells'!$C$7),(BackendTable[[#This Row],[Time]]-'Reference Cells'!$C$6)*86400,NA()) -> 2 | H14: =IF(CommandCell='Reference Cells'!$C$17,NA(),ABS('Data In'!B19-INDIRECT("ZeroVal_"&H$2,0))) -> 0 | I14: =IF(CommandCell='Reference Cells'!$C$17,NA(),ABS('Data In'!C19-INDIRECT("ZeroVal_"&I$2,0))) -> 0 | J14: =IF(CommandCell='Reference Cells'!$C$17,NA(),ABS('Data In'!D19-INDIRECT("ZeroVal_"&J$2,0))) -> 0 | K14: =IF(CommandCell='Reference Cells'!$C$17,NA(),ABS('Data In'!E19-INDIRECT("ZeroVal_"&K$2,0))) -> 0 | L14: =IF(CommandCell='Reference Cells'!$C$17,NA(),ABS('Data In'!F19-INDIRECT("ZeroVal_"&L$2,0))) -> 0 | M14: =MAX(BackendTable[[#This Row],[S1]:[S5]]) -> 0 | N14: =IF(ISERROR(BackendTable[[#This Row],[T0Time]]),0,COUNTIFS(BackendTable[T0Time],"<="&3,BackendTable[T0Time],">="&0)-COUNTIFS(BackendTable[T0Time],">"&BackendTable[[#This Row],[T0Time]])) -> 500 | AM14: =MATCH(MAX(BackendTable[[#This Row],[T1S1]:[T1S5]]),BackendTable[[#This Row],[T1S1]:[T1S5]],0) ->  | AN14: =MATCH(MAX(BackendTable[[#This Row],[T2S1]:[T2S5]]),BackendTable[[#This Row],[T2S1]:[T2S5]],0) ->  | AO14: =MATCH(MAX(BackendTable[[#This Row],[T3S1]:[T3S5]]),BackendTable[[#This Row],[T3S1]:[T3S5]],0) -> 
B15: =ROW()-ROW(BackendTable[[#Headers],[Row'#]]) -> 13 | C15: ='Data In'!A20 -> 0 | D15: =IF(BackendTable[[#This Row],[Time]]-'Reference Cells'!$C$3<=0,NA(),'Reference Cells'!$C$4-BackendTable[[#This Row],[Time]])*86400 ->  | E15: =IFERROR(8-BackendTable[[#This Row],[Column1]],"") ->  | F15: =IF(ISERROR(BackendTable[[#This Row],[Column1]]),-9,(BackendTable[[#This Row],[Net Time]]-NetTimeMin)*RangeAdj) -> -9 | G15: =IF(AND(BackendTable[[#This Row],[Time]]>='Reference Cells'!$C$6,BackendTable[[#This Row],[Time]]<='Reference Cells'!$C$7),(BackendTable[[#This Row],[Time]]-'Reference Cells'!$C$6)*86400,NA()) -> 2 | H15: =IF(CommandCell='Reference Cells'!$C$17,NA(),ABS('Data In'!B20-INDIRECT("ZeroVal_"&H$2,0))) -> 0 | I15: =IF(CommandCell='Reference Cells'!$C$17,NA(),ABS('Data In'!C20-INDIRECT("ZeroVal_"&I$2,0))) -> 0 | J15: =IF(CommandCell='Reference Cells'!$C$17,NA(),ABS('Data In'!D20-INDIRECT("ZeroVal_"&J$2,0))) -> 0 | K15: =IF(CommandCell='Reference Cells'!$C$17,NA(),ABS('Data In'!E20-INDIRECT("ZeroVal_"&K$2,0))) -> 0 | L15: =IF(CommandCell='Reference Cells'!$C$17,NA(),ABS('Data In'!F20-INDIRECT("ZeroVal_"&L$2,0))) -> 0 | M15: =MAX(BackendTable[[#This Row],[S1]:[S5]]) -> 0 | N15: =IF(ISERROR(BackendTable[[#This Row],[T0Time]]),0,COUNTIFS(BackendTable[T0Time],"<="&3,BackendTable[T0Time],">="&0)-COUNTIFS(BackendTable[T0Time],">"&BackendTable[[#This Row],[T0Time]])) -> 500 | AM15: =MATCH(MAX(BackendTable[[#This Row],[T1S1]:[T1S5]]),BackendTable[[#This Row],[T1S1]:[T1S5]],0) ->  | AN15: =MATCH(MAX(BackendTable[[#This Row],[T2S1]:[T2S5]]),BackendTable[[#This Row],[T2S1]:[T2S5]],0) ->  | AO15: =MATCH(MAX(BackendTable[[#This Row],[T3S1]:[T3S5]]),BackendTable[[#This Row],[T3S1]:[T3S5]],0) -> 
B16: =ROW()-ROW(BackendTable[[#Headers],[Row'#]]) -> 14 | C16: ='Data In'!A21 -> 0 | D16: =IF(BackendTable[[#This Row],[Time]]-'Reference Cells'!$C$3<=0,NA(),'Reference Cells'!$C$4-BackendTable[[#This Row],[Time]])*86400 ->  | E16: =IFERROR(8-BackendTable[[#This Row],[Column1]],"") ->  | F16: =IF(ISERROR(BackendTable[[#This Row],[Column1]]),-9,(BackendTable[[#This Row],[Net Time]]-NetTimeMin)*RangeAdj) -> -9 | G16: =IF(AND(BackendTable[[#This Row],[Time]]>='Reference Cells'!$C$6,BackendTable[[#This Row],[Time]]<='Reference Cells'!$C$7),(BackendTable[[#This Row],[Time]]-'Reference Cells'!$C$6)*86400,NA()) -> 2 | H16: =IF(CommandCell='Reference Cells'!$C$17,NA(),ABS('Data In'!B21-INDIRECT("ZeroVal_"&H$2,0))) -> 0 | I16: =IF(CommandCell='Reference Cells'!$C$17,NA(),ABS('Data In'!C21-INDIRECT("ZeroVal_"&I$2,0))) -> 0 | J16: =IF(CommandCell='Reference Cells'!$C$17,NA(),ABS('Data In'!D21-INDIRECT("ZeroVal_"&J$2,0))) -> 0 | K16: =IF(CommandCell='Reference Cells'!$C$17,NA(),ABS('Data In'!E21-INDIRECT("ZeroVal_"&K$2,0))) -> 0 | L16: =IF(CommandCell='Reference Cells'!$C$17,NA(),ABS('Data In'!F21-INDIRECT("ZeroVal_"&L$2,0))) -> 0 | M16: =MAX(BackendTable[[#This Row],[S1]:[S5]]) -> 0 | N16: =IF(ISERROR(BackendTable[[#This Row],[T0Time]]),0,COUNTIFS(BackendTable[T0Time],"<="&3,BackendTable[T0Time],">="&0)-COUNTIFS(BackendTable[T0Time],">"&BackendTable[[#This Row],[T0Time]])) -> 500 | AM16: =MATCH(MAX(BackendTable[[#This Row],[T1S1]:[T1S5]]),BackendTable[[#This Row],[T1S1]:[T1S5]],0) ->  | AN16: =MATCH(MAX(BackendTable[[#This Row],[T2S1]:[T2S5]]),BackendTable[[#This Row],[T2S1]:[T2S5]],0) ->  | AO16: =MATCH(MAX(BackendTable[[#This Row],[T3S1]:[T3S5]]),BackendTable[[#This Row],[T3S1]:[T3S5]],0) -> 
B17: =ROW()-ROW(BackendTable[[#Headers],[Row'#]]) -> 15 | C17: ='Data In'!A22 -> 0 | D17: =IF(BackendTable[[#This Row],[Time]]-'Reference Cells'!$C$3<=0,NA(),'Reference Cells'!$C$4-BackendTable[[#This Row],[Time]])*86400 ->  | E17: =IFERROR(8-BackendTable[[#This Row],[Column1]],"") ->  | F17: =IF(ISERROR(BackendTable[[#This Row],[Column1]]),-9,(BackendTable[[#This Row],[Net Time]]-NetTimeMin)*RangeAdj) -> -9 | G17: =IF(AND(BackendTable[[#This Row],[Time]]>='Reference Cells'!$C$6,BackendTable[[#This Row],[Time]]<='Reference Cells'!$C$7),(BackendTable[[#This Row],[Time]]-'Reference Cells'!$C$6)*86400,NA()) -> 2 | H17: =IF(CommandCell='Reference Cells'!$C$17,NA(),ABS('Data In'!B22-INDIRECT("ZeroVal_"&H$2,0))) -> 0 | I17: =IF(CommandCell='Reference Cells'!$C$17,NA(),ABS('Data In'!C22-INDIRECT("ZeroVal_"&I$2,0))) -> 0 | J17: =IF(CommandCell='Reference Cells'!$C$17,NA(),ABS('Data In'!D22-INDIRECT("ZeroVal_"&J$2,0))) -> 0 | K17: =IF(CommandCell='Reference Cells'!$C$17,NA(),ABS('Data In'!E22-INDIRECT("ZeroVal_"&K$2,0))) -> 0 | L17: =IF(CommandCell='Reference Cells'!$C$17,NA(),ABS('Data In'!F22-INDIRECT("ZeroVal_"&L$2,0))) -> 0 | M17: =MAX(BackendTable[[#This Row],[S1]:[S5]]) -> 0 | N17: =IF(ISERROR(BackendTable[[#This Row],[T0Time]]),0,COUNTIFS(BackendTable[T0Time],"<="&3,BackendTable[T0Time],">="&0)-COUNTIFS(BackendTable[T0Time],">"&BackendTable[[#This Row],[T0Time]])) -> 500 | AM17: =MATCH(MAX(BackendTable[[#This Row],[T1S1]:[T1S5]]),BackendTable[[#This Row],[T1S1]:[T1S5]],0) ->  | AN17: =MATCH(MAX(BackendTable[[#This Row],[T2S1]:[T2S5]]),BackendTable[[#This Row],[T2S1]:[T2S5]],0) ->  | AO17: =MATCH(MAX(BackendTable[[#This Row],[T3S1]:[T3S5]]),BackendTable[[#This Row],[T3S1]:[T3S5]],0) -> 
B18: =ROW()-ROW(BackendTable[[#Headers],[Row'#]]) -> 16 | C18: ='Data In'!A23 -> 0 | D18: =IF(BackendTable[[#This Row],[Time]]-'Reference Cells'!$C$3<=0,NA(),'Reference Cells'!$C$4-BackendTable[[#This Row],[Time]])*86400 ->  | E18: =IFERROR(8-BackendTable[[#This Row],[Column1]],"") ->  | F18: =IF(ISERROR(BackendTable[[#This Row],[Column1]]),-9,(BackendTable[[#This Row],[Net Time]]-NetTimeMin)*RangeAdj) -> -9 | G18: =IF(AND(BackendTable[[#This Row],[Time]]>='Reference Cells'!$C$6,BackendTable[[#This Row],[Time]]<='Reference Cells'!$C$7),(BackendTable[[#This Row],[Time]]-'Reference Cells'!$C$6)*86400,NA()) -> 2 | H18: =IF(CommandCell='Reference Cells'!$C$17,NA(),ABS('Data In'!B23-INDIRECT("ZeroVal_"&H$2,0))) -> 0 | I18: =IF(CommandCell='Reference Cells'!$C$17,NA(),ABS('Data In'!C23-INDIRECT("ZeroVal_"&I$2,0))) -> 0 | J18: =IF(CommandCell='Reference Cells'!$C$17,NA(),ABS('Data In'!D23-INDIRECT("ZeroVal_"&J$2,0))) -> 0 | K18: =IF(CommandCell='Reference Cells'!$C$17,NA(),ABS('Data In'!E23-INDIRECT("ZeroVal_"&K$2,0))) -> 0 | L18: =IF(CommandCell='Reference Cells'!$C$17,NA(),ABS('Data In'!F23-INDIRECT("ZeroVal_"&L$2,0))) -> 0 | M18: =MAX(BackendTable[[#This Row],[S1]:[S5]]) -> 0 | N18: =IF(ISERROR(BackendTable[[#This Row],[T0Time]]),0,COUNTIFS(BackendTable[T0Time],"<="&3,BackendTable[T0Time],">="&0)-COUNTIFS(BackendTable[T0Time],">"&BackendTable[[#This Row],[T0Time]])) -> 500 | AM18: =MATCH(MAX(BackendTable[[#This Row],[T1S1]:[T1S5]]),BackendTable[[#This Row],[T1S1]:[T1S5]],0) ->  | AN18: =MATCH(MAX(BackendTable[[#This Row],[T2S1]:[T2S5]]),BackendTable[[#This Row],[T2S1]:[T2S5]],0) ->  | AO18: =MATCH(MAX(BackendTable[[#This Row],[T3S1]:[T3S5]]),BackendTable[[#This Row],[T3S1]:[T3S5]],0) -> 
B19: =ROW()-ROW(BackendTable[[#Headers],[Row'#]]) -> 17 | C19: ='Data In'!A24 -> 0 | D19: =IF(BackendTable[[#This Row],[Time]]-'Reference Cells'!$C$3<=0,NA(),'Reference Cells'!$C$4-BackendTable[[#This Row],[Time]])*86400 ->  | E19: =IFERROR(8-BackendTable[[#This Row],[Column1]],"") ->  | F19: =IF(ISERROR(BackendTable[[#This Row],[Column1]]),-9,(BackendTable[[#This Row],[Net Time]]-NetTimeMin)*RangeAdj) -> -9 | G19: =IF(AND(BackendTable[[#This Row],[Time]]>='Reference Cells'!$C$6,BackendTable[[#This Row],[Time]]<='Reference Cells'!$C$7),(BackendTable[[#This Row],[Time]]-'Reference Cells'!$C$6)*86400,NA()) -> 2 | H19: =IF(CommandCell='Reference Cells'!$C$17,NA(),ABS('Data In'!B24-INDIRECT("ZeroVal_"&H$2,0))) -> 0 | I19: =IF(CommandCell='Reference Cells'!$C$17,NA(),ABS('Data In'!C24-INDIRECT("ZeroVal_"&I$2,0))) -> 0 | J19: =IF(CommandCell='Reference Cells'!$C$17,NA(),ABS('Data In'!D24-INDIRECT("ZeroVal_"&J$2,0))) -> 0 | K19: =IF(CommandCell='Reference Cells'!$C$17,NA(),ABS('Data In'!E24-INDIRECT("ZeroVal_"&K$2,0))) -> 0 | L19: =IF(CommandCell='Reference Cells'!$C$17,NA(),ABS('Data In'!F24-INDIRECT("ZeroVal_"&L$2,0))) -> 0 | M19: =MAX(BackendTable[[#This Row],[S1]:[S5]]) -> 0 | N19: =IF(ISERROR(BackendTable[[#This Row],[T0Time]]),0,COUNTIFS(BackendTable[T0Time],"<="&3,BackendTable[T0Time],">="&0)-COUNTIFS(BackendTable[T0Time],">"&BackendTable[[#This Row],[T0Time]])) -> 500 | AM19: =MATCH(MAX(BackendTable[[#This Row],[T1S1]:[T1S5]]),BackendTable[[#This Row],[T1S1]:[T1S5]],0) ->  | AN19: =MATCH(MAX(BackendTable[[#This Row],[T2S1]:[T2S5]]),BackendTable[[#This Row],[T2S1]:[T2S5]],0) ->  | AO19: =MATCH(MAX(BackendTable[[#This Row],[T3S1]:[T3S5]]),BackendTable[[#This Row],[T3S1]:[T3S5]],0) -> 
B20: =ROW()-ROW(BackendTable[[#Headers],[Row'#]]) -> 18 | C20: ='Data In'!A25 -> 0 | D20: =IF(BackendTable[[#This Row],[Time]]-'Reference Cells'!$C$3<=0,NA(),'Reference Cells'!$C$4-BackendTable[[#This Row],[Time]])*86400 ->  | E20: =IFERROR(8-BackendTable[[#This Row],[Column1]],"") ->  | F20: =IF(ISERROR(BackendTable[[#This Row],[Column1]]),-9,(BackendTable[[#This Row],[Net Time]]-NetTimeMin)*RangeAdj) -> -9 | G20: =IF(AND(BackendTable[[#This Row],[Time]]>='Reference Cells'!$C$6,BackendTable[[#This Row],[Time]]<='Reference Cells'!$C$7),(BackendTable[[#This Row],[Time]]-'Reference Cells'!$C$6)*86400,NA()) -> 2 | H20: =IF(CommandCell='Reference Cells'!$C$17,NA(),ABS('Data In'!B25-INDIRECT("ZeroVal_"&H$2,0))) -> 0 | I20: =IF(CommandCell='Reference Cells'!$C$17,NA(),ABS('Data In'!C25-INDIRECT("ZeroVal_"&I$2,0))) -> 0 | J20: =IF(CommandCell='Reference Cells'!$C$17,NA(),ABS('Data In'!D25-INDIRECT("ZeroVal_"&J$2,0))) -> 0 | K20: =IF(CommandCell='Reference Cells'!$C$17,NA(),ABS('Data In'!E25-INDIRECT("ZeroVal_"&K$2,0))) -> 0 | L20: =IF(CommandCell='Reference Cells'!$C$17,NA(),ABS('Data In'!F25-INDIRECT("ZeroVal_"&L$2,0))) -> 0 | M20: =MAX(BackendTable[[#This Row],[S1]:[S5]]) -> 0 | N20: =IF(ISERROR(BackendTable[[#This Row],[T0Time]]),0,COUNTIFS(BackendTable[T0Time],"<="&3,BackendTable[T0Time],">="&0)-COUNTIFS(BackendTable[T0Time],">"&BackendTable[[#This Row],[T0Time]])) -> 500 | AM20: =MATCH(MAX(BackendTable[[#This Row],[T1S1]:[T1S5]]),BackendTable[[#This Row],[T1S1]:[T1S5]],0) ->  | AN20: =MATCH(MAX(BackendTable[[#This Row],[T2S1]:[T2S5]]),BackendTable[[#This Row],[T2S1]:[T2S5]],0) ->  | AO20: =MATCH(MAX(BackendTable[[#This Row],[T3S1]:[T3S5]]),BackendTable[[#This Row],[T3S1]:[T3S5]],0) -> 
B21: =ROW()-ROW(BackendTable[[#Headers],[Row'#]]) -> 19 | C21: ='Data In'!A26 -> 0 | D21: =IF(BackendTable[[#This Row],[Time]]-'Reference Cells'!$C$3<=0,NA(),'Reference Cells'!$C$4-BackendTable[[#This Row],[Time]])*86400 ->  | E21: =IFERROR(8-BackendTable[[#This Row],[Column1]],"") ->  | F21: =IF(ISERROR(BackendTable[[#This Row],[Column1]]),-9,(BackendTable[[#This Row],[Net Time]]-NetTimeMin)*RangeAdj) -> -9 | G21: =IF(AND(BackendTable[[#This Row],[Time]]>='Reference Cells'!$C$6,BackendTable[[#This Row],[Time]]<='Reference Cells'!$C$7),(BackendTable[[#This Row],[Time]]-'Reference Cells'!$C$6)*86400,NA()) -> 2 | H21: =IF(CommandCell='Reference Cells'!$C$17,NA(),ABS('Data In'!B26-INDIRECT("ZeroVal_"&H$2,0))) -> 0 | I21: =IF(CommandCell='Reference Cells'!$C$17,NA(),ABS('Data In'!C26-INDIRECT("ZeroVal_"&I$2,0))) -> 0 | J21: =IF(CommandCell='Reference Cells'!$C$17,NA(),ABS('Data In'!D26-INDIRECT("ZeroVal_"&J$2,0))) -> 0 | K21: =IF(CommandCell='Reference Cells'!$C$17,NA(),ABS('Data In'!E26-INDIRECT("ZeroVal_"&K$2,0))) -> 0 | L21: =IF(CommandCell='Reference Cells'!$C$17,NA(),ABS('Data In'!F26-INDIRECT("ZeroVal_"&L$2,0))) -> 0 | M21: =MAX(BackendTable[[#This Row],[S1]:[S5]]) -> 0 | N21: =IF(ISERROR(BackendTable[[#This Row],[T0Time]]),0,COUNTIFS(BackendTable[T0Time],"<="&3,BackendTable[T0Time],">="&0)-COUNTIFS(BackendTable[T0Time],">"&BackendTable[[#This Row],[T0Time]])) -> 500 | AM21: =MATCH(MAX(BackendTable[[#This Row],[T1S1]:[T1S5]]),BackendTable[[#This Row],[T1S1]:[T1S5]],0) ->  | AN21: =MATCH(MAX(BackendTable[[#This Row],[T2S1]:[T2S5]]),BackendTable[[#This Row],[T2S1]:[T2S5]],0) ->  | AO21: =MATCH(MAX(BackendTable[[#This Row],[T3S1]:[T3S5]]),BackendTable[[#This Row],[T3S1]:[T3S5]],0) -> 
B22: =ROW()-ROW(BackendTable[[#Headers],[Row'#]]) -> 20 | C22: ='Data In'!A27 -> 0 | D22: =IF(BackendTable[[#This Row],[Time]]-'Reference Cells'!$C$3<=0,NA(),'Reference Cells'!$C$4-BackendTable[[#This Row],[Time]])*86400 ->  | E22: =IFERROR(8-BackendTable[[#This Row],[Column1]],"") ->  | F22: =IF(ISERROR(BackendTable[[#This Row],[Column1]]),-9,(BackendTable[[#This Row],[Net Time]]-NetTimeMin)*RangeAdj) -> -9 | G22: =IF(AND(BackendTable[[#This Row],[Time]]>='Reference Cells'!$C$6,BackendTable[[#This Row],[Time]]<='Reference Cells'!$C$7),(BackendTable[[#This Row],[Time]]-'Reference Cells'!$C$6)*86400,NA()) -> 2 | H22: =IF(CommandCell='Reference Cells'!$C$17,NA(),ABS('Data In'!B27-INDIRECT("ZeroVal_"&H$2,0))) -> 0 | I22: =IF(CommandCell='Reference Cells'!$C$17,NA(),ABS('Data In'!C27-INDIRECT("ZeroVal_"&I$2,0))) -> 0 | J22: =IF(CommandCell='Reference Cells'!$C$17,NA(),ABS('Data In'!D27-INDIRECT("ZeroVal_"&J$2,0))) -> 0 | K22: =IF(CommandCell='Reference Cells'!$C$17,NA(),ABS('Data In'!E27-INDIRECT("ZeroVal_"&K$2,0))) -> 0 | L22: =IF(CommandCell='Reference Cells'!$C$17,NA(),ABS('Data In'!F27-INDIRECT("ZeroVal_"&L$2,0))) -> 0 | M22: =MAX(BackendTable[[#This Row],[S1]:[S5]]) -> 0 | N22: =IF(ISERROR(BackendTable[[#This Row],[T0Time]]),0,COUNTIFS(BackendTable[T0Time],"<="&3,BackendTable[T0Time],">="&0)-COUNTIFS(BackendTable[T0Time],">"&BackendTable[[#This Row],[T0Time]])) -> 500 | AM22: =MATCH(MAX(BackendTable[[#This Row],[T1S1]:[T1S5]]),BackendTable[[#This Row],[T1S1]:[T1S5]],0) ->  | AN22: =MATCH(MAX(BackendTable[[#This Row],[T2S1]:[T2S5]]),BackendTable[[#This Row],[T2S1]:[T2S5]],0) ->  | AO22: =MATCH(MAX(BackendTable[[#This Row],[T3S1]:[T3S5]]),BackendTable[[#This Row],[T3S1]:[T3S5]],0) -> 
B23: =ROW()-ROW(BackendTable[[#Headers],[Row'#]]) -> 21 | C23: ='Data In'!A28 -> 0 | D23: =IF(BackendTable[[#This Row],[Time]]-'Reference Cells'!$C$3<=0,NA(),'Reference Cells'!$C$4-BackendTable[[#This Row],[Time]])*86400 ->  | E23: =IFERROR(8-BackendTable[[#This Row],[Column1]],"") ->  | F23: =IF(ISERROR(BackendTable[[#This Row],[Column1]]),-9,(BackendTable[[#This Row],[Net Time]]-NetTimeMin)*RangeAdj) -> -9 | G23: =IF(AND(BackendTable[[#This Row],[Time]]>='Reference Cells'!$C$6,BackendTable[[#This Row],[Time]]<='Reference Cells'!$C$7),(BackendTable[[#This Row],[Time]]-'Reference Cells'!$C$6)*86400,NA()) -> 2 | H23: =IF(CommandCell='Reference Cells'!$C$17,NA(),ABS('Data In'!B28-INDIRECT("ZeroVal_"&H$2,0))) -> 0 | I23: =IF(CommandCell='Reference Cells'!$C$17,NA(),ABS('Data In'!C28-INDIRECT("ZeroVal_"&I$2,0))) -> 0 | J23: =IF(CommandCell='Reference Cells'!$C$17,NA(),ABS('Data In'!D28-INDIRECT("ZeroVal_"&J$2,0))) -> 0 | K23: =IF(CommandCell='Reference Cells'!$C$17,NA(),ABS('Data In'!E28-INDIRECT("ZeroVal_"&K$2,0))) -> 0 | L23: =IF(CommandCell='Reference Cells'!$C$17,NA(),ABS('Data In'!F28-INDIRECT("ZeroVal_"&L$2,0))) -> 0 | M23: =MAX(BackendTable[[#This Row],[S1]:[S5]]) -> 0 | N23: =IF(ISERROR(BackendTable[[#This Row],[T0Time]]),0,COUNTIFS(BackendTable[T0Time],"<="&3,BackendTable[T0Time],">="&0)-COUNTIFS(BackendTable[T0Time],">"&BackendTable[[#This Row],[T0Time]])) -> 500 | AM23: =MATCH(MAX(BackendTable[[#This Row],[T1S1]:[T1S5]]),BackendTable[[#This Row],[T1S1]:[T1S5]],0) ->  | AN23: =MATCH(MAX(BackendTable[[#This Row],[T2S1]:[T2S5]]),BackendTable[[#This Row],[T2S1]:[T2S5]],0) ->  | AO23: =MATCH(MAX(BackendTable[[#This Row],[T3S1]:[T3S5]]),BackendTable[[#This Row],[T3S1]:[T3S5]],0) -> 
B24: =ROW()-ROW(BackendTable[[#Headers],[Row'#]]) -> 22 | C24: ='Data In'!A29 -> 0 | D24: =IF(BackendTable[[#This Row],[Time]]-'Reference Cells'!$C$3<=0,NA(),'Reference Cells'!$C$4-BackendTable[[#This Row],[Time]])*86400 ->  | E24: =IFERROR(8-BackendTable[[#This Row],[Column1]],"") ->  | F24: =IF(ISERROR(BackendTable[[#This Row],[Column1]]),-9,(BackendTable[[#This Row],[Net Time]]-NetTimeMin)*RangeAdj) -> -9 | G24: =IF(AND(BackendTable[[#This Row],[Time]]>='Reference Cells'!$C$6,BackendTable[[#This Row],[Time]]<='Reference Cells'!$C$7),(BackendTable[[#This Row],[Time]]-'Reference Cells'!$C$6)*86400,NA()) -> 2 | H24: =IF(CommandCell='Reference Cells'!$C$17,NA(),ABS('Data In'!B29-INDIRECT("ZeroVal_"&H$2,0))) -> 0 | I24: =IF(CommandCell='Reference Cells'!$C$17,NA(),ABS('Data In'!C29-INDIRECT("ZeroVal_"&I$2,0))) -> 0 | J24: =IF(CommandCell='Reference Cells'!$C$17,NA(),ABS('Data In'!D29-INDIRECT("ZeroVal_"&J$2,0))) -> 0 | K24: =IF(CommandCell='Reference Cells'!$C$17,NA(),ABS('Data In'!E29-INDIRECT("ZeroVal_"&K$2,0))) -> 0 | L24: =IF(CommandCell='Reference Cells'!$C$17,NA(),ABS('Data In'!F29-INDIRECT("ZeroVal_"&L$2,0))) -> 0 | M24: =MAX(BackendTable[[#This Row],[S1]:[S5]]) -> 0 | N24: =IF(ISERROR(BackendTable[[#This Row],[T0Time]]),0,COUNTIFS(BackendTable[T0Time],"<="&3,BackendTable[T0Time],">="&0)-COUNTIFS(BackendTable[T0Time],">"&BackendTable[[#This Row],[T0Time]])) -> 500 | AM24: =MATCH(MAX(BackendTable[[#This Row],[T1S1]:[T1S5]]),BackendTable[[#This Row],[T1S1]:[T1S5]],0) ->  | AN24: =MATCH(MAX(BackendTable[[#This Row],[T2S1]:[T2S5]]),BackendTable[[#This Row],[T2S1]:[T2S5]],0) ->  | AO24: =MATCH(MAX(BackendTable[[#This Row],[T3S1]:[T3S5]]),BackendTable[[#This Row],[T3S1]:[T3S5]],0) -> 
B25: =ROW()-ROW(BackendTable[[#Headers],[Row'#]]) -> 23 | C25: ='Data In'!A30 -> 0 | D25: =IF(BackendTable[[#This Row],[Time]]-'Reference Cells'!$C$3<=0,NA(),'Reference Cells'!$C$4-BackendTable[[#This Row],[Time]])*86400 ->  | E25: =IFERROR(8-BackendTable[[#This Row],[Column1]],"") ->  | F25: =IF(ISERROR(BackendTable[[#This Row],[Column1]]),-9,(BackendTable[[#This Row],[Net Time]]-NetTimeMin)*RangeAdj) -> -9 | G25: =IF(AND(BackendTable[[#This Row],[Time]]>='Reference Cells'!$C$6,BackendTable[[#This Row],[Time]]<='Reference Cells'!$C$7),(BackendTable[[#This Row],[Time]]-'Reference Cells'!$C$6)*86400,NA()) -> 2 | H25: =IF(CommandCell='Reference Cells'!$C$17,NA(),ABS('Data In'!B30-INDIRECT("ZeroVal_"&H$2,0))) -> 0 | I25: =IF(CommandCell='Reference Cells'!$C$17,NA(),ABS('Data In'!C30-INDIRECT("ZeroVal_"&I$2,0))) -> 0 | J25: =IF(CommandCell='Reference Cells'!$C$17,NA(),ABS('Data In'!D30-INDIRECT("ZeroVal_"&J$2,0))) -> 0 | K25: =IF(CommandCell='Reference Cells'!$C$17,NA(),ABS('Data In'!E30-INDIRECT("ZeroVal_"&K$2,0))) -> 0 | L25: =IF(CommandCell='Reference Cells'!$C$17,NA(),ABS('Data In'!F30-INDIRECT("ZeroVal_"&L$2,0))) -> 0 | M25: =MAX(BackendTable[[#This Row],[S1]:[S5]]) -> 0 | N25: =IF(ISERROR(BackendTable[[#This Row],[T0Time]]),0,COUNTIFS(BackendTable[T0Time],"<="&3,BackendTable[T0Time],">="&0)-COUNTIFS(BackendTable[T0Time],">"&BackendTable[[#This Row],[T0Time]])) -> 500 | AM25: =MATCH(MAX(BackendTable[[#This Row],[T1S1]:[T1S5]]),BackendTable[[#This Row],[T1S1]:[T1S5]],0) ->  | AN25: =MATCH(MAX(BackendTable[[#This Row],[T2S1]:[T2S5]]),BackendTable[[#This Row],[T2S1]:[T2S5]],0) ->  | AO25: =MATCH(MAX(BackendTable[[#This Row],[T3S1]:[T3S5]]),BackendTable[[#This Row],[T3S1]:[T3S5]],0) -> 
B26: =ROW()-ROW(BackendTable[[#Headers],[Row'#]]) -> 24 | C26: ='Data In'!A31 -> 0 | D26: =IF(BackendTable[[#This Row],[Time]]-'Reference Cells'!$C$3<=0,NA(),'Reference Cells'!$C$4-BackendTable[[#This Row],[Time]])*86400 ->  | E26: =IFERROR(8-BackendTable[[#This Row],[Column1]],"") ->  | F26: =IF(ISERROR(BackendTable[[#This Row],[Column1]]),-9,(BackendTable[[#This Row],[Net Time]]-NetTimeMin)*RangeAdj) -> -9 | G26: =IF(AND(BackendTable[[#This Row],[Time]]>='Reference Cells'!$C$6,BackendTable[[#This Row],[Time]]<='Reference Cells'!$C$7),(BackendTable[[#This Row],[Time]]-'Reference Cells'!$C$6)*86400,NA()) -> 2 | H26: =IF(CommandCell='Reference Cells'!$C$17,NA(),ABS('Data In'!B31-INDIRECT("ZeroVal_"&H$2,0))) -> 0 | I26: =IF(CommandCell='Reference Cells'!$C$17,NA(),ABS('Data In'!C31-INDIRECT("ZeroVal_"&I$2,0))) -> 0 | J26: =IF(CommandCell='Reference Cells'!$C$17,NA(),ABS('Data In'!D31-INDIRECT("ZeroVal_"&J$2,0))) -> 0 | K26: =IF(CommandCell='Reference Cells'!$C$17,NA(),ABS('Data In'!E31-INDIRECT("ZeroVal_"&K$2,0))) -> 0 | L26: =IF(CommandCell='Reference Cells'!$C$17,NA(),ABS('Data In'!F31-INDIRECT("ZeroVal_"&L$2,0))) -> 0 | M26: =MAX(BackendTable[[#This Row],[S1]:[S5]]) -> 0 | N26: =IF(ISERROR(BackendTable[[#This Row],[T0Time]]),0,COUNTIFS(BackendTable[T0Time],"<="&3,BackendTable[T0Time],">="&0)-COUNTIFS(BackendTable[T0Time],">"&BackendTable[[#This Row],[T0Time]])) -> 500 | AM26: =MATCH(MAX(BackendTable[[#This Row],[T1S1]:[T1S5]]),BackendTable[[#This Row],[T1S1]:[T1S5]],0) ->  | AN26: =MATCH(MAX(BackendTable[[#This Row],[T2S1]:[T2S5]]),BackendTable[[#This Row],[T2S1]:[T2S5]],0) ->  | AO26: =MATCH(MAX(BackendTable[[#This Row],[T3S1]:[T3S5]]),BackendTable[[#This Row],[T3S1]:[T3S5]],0) -> 
B27: =ROW()-ROW(BackendTable[[#Headers],[Row'#]]) -> 25 | C27: ='Data In'!A32 -> 0 | D27: =IF(BackendTable[[#This Row],[Time]]-'Reference Cells'!$C$3<=0,NA(),'Reference Cells'!$C$4-BackendTable[[#This Row],[Time]])*86400 ->  | E27: =IFERROR(8-BackendTable[[#This Row],[Column1]],"") ->  | F27: =IF(ISERROR(BackendTable[[#This Row],[Column1]]),-9,(BackendTable[[#This Row],[Net Time]]-NetTimeMin)*RangeAdj) -> -9 | G27: =IF(AND(BackendTable[[#This Row],[Time]]>='Reference Cells'!$C$6,BackendTable[[#This Row],[Time]]<='Reference Cells'!$C$7),(BackendTable[[#This Row],[Time]]-'Reference Cells'!$C$6)*86400,NA()) -> 2 | H27: =IF(CommandCell='Reference Cells'!$C$17,NA(),ABS('Data In'!B32-INDIRECT("ZeroVal_"&H$2,0))) -> 0 | I27: =IF(CommandCell='Reference Cells'!$C$17,NA(),ABS('Data In'!C32-INDIRECT("ZeroVal_"&I$2,0))) -> 0 | J27: =IF(CommandCell='Reference Cells'!$C$17,NA(),ABS('Data In'!D32-INDIRECT("ZeroVal_"&J$2,0))) -> 0 | K27: =IF(CommandCell='Reference Cells'!$C$17,NA(),ABS('Data In'!E32-INDIRECT("ZeroVal_"&K$2,0))) -> 0 | L27: =IF(CommandCell='Reference Cells'!$C$17,NA(),ABS('Data In'!F32-INDIRECT("ZeroVal_"&L$2,0))) -> 0 | M27: =MAX(BackendTable[[#This Row],[S1]:[S5]]) -> 0 | N27: =IF(ISERROR(BackendTable[[#This Row],[T0Time]]),0,COUNTIFS(BackendTable[T0Time],"<="&3,BackendTable[T0Time],">="&0)-COUNTIFS(BackendTable[T0Time],">"&BackendTable[[#This Row],[T0Time]])) -> 500 | AM27: =MATCH(MAX(BackendTable[[#This Row],[T1S1]:[T1S5]]),BackendTable[[#This Row],[T1S1]:[T1S5]],0) ->  | AN27: =MATCH(MAX(BackendTable[[#This Row],[T2S1]:[T2S5]]),BackendTable[[#This Row],[T2S1]:[T2S5]],0) ->  | AO27: =MATCH(MAX(BackendTable[[#This Row],[T3S1]:[T3S5]]),BackendTable[[#This Row],[T3S1]:[T3S5]],0) -> 
B28: =ROW()-ROW(BackendTable[[#Headers],[Row'#]]) -> 26 | C28: ='Data In'!A33 -> 0 | D28: =IF(BackendTable[[#This Row],[Time]]-'Reference Cells'!$C$3<=0,NA(),'Reference Cells'!$C$4-BackendTable[[#This Row],[Time]])*86400 ->  | E28: =IFERROR(8-BackendTable[[#This Row],[Column1]],"") ->  | F28: =IF(ISERROR(BackendTable[[#This Row],[Column1]]),-9,(BackendTable[[#This Row],[Net Time]]-NetTimeMin)*RangeAdj) -> -9 | G28: =IF(AND(BackendTable[[#This Row],[Time]]>='Reference Cells'!$C$6,BackendTable[[#This Row],[Time]]<='Reference Cells'!$C$7),(BackendTable[[#This Row],[Time]]-'Reference Cells'!$C$6)*86400,NA()) -> 2 | H28: =IF(CommandCell='Reference Cells'!$C$17,NA(),ABS('Data In'!B33-INDIRECT("ZeroVal_"&H$2,0))) -> 0 | I28: =IF(CommandCell='Reference Cells'!$C$17,NA(),ABS('Data In'!C33-INDIRECT("ZeroVal_"&I$2,0))) -> 0 | J28: =IF(CommandCell='Reference Cells'!$C$17,NA(),ABS('Data In'!D33-INDIRECT("ZeroVal_"&J$2,0))) -> 0 | K28: =IF(CommandCell='Reference Cells'!$C$17,NA(),ABS('Data In'!E33-INDIRECT("ZeroVal_"&K$2,0))) -> 0 | L28: =IF(CommandCell='Reference Cells'!$C$17,NA(),ABS('Data In'!F33-INDIRECT("ZeroVal_"&L$2,0))) -> 0 | M28: =MAX(BackendTable[[#This Row],[S1]:[S5]]) -> 0 | N28: =IF(ISERROR(BackendTable[[#This Row],[T0Time]]),0,COUNTIFS(BackendTable[T0Time],"<="&3,BackendTable[T0Time],">="&0)-COUNTIFS(BackendTable[T0Time],">"&BackendTable[[#This Row],[T0Time]])) -> 500 | AM28: =MATCH(MAX(BackendTable[[#This Row],[T1S1]:[T1S5]]),BackendTable[[#This Row],[T1S1]:[T1S5]],0) ->  | AN28: =MATCH(MAX(BackendTable[[#This Row],[T2S1]:[T2S5]]),BackendTable[[#This Row],[T2S1]:[T2S5]],0) ->  | AO28: =MATCH(MAX(BackendTable[[#This Row],[T3S1]:[T3S5]]),BackendTable[[#This Row],[T3S1]:[T3S5]],0) -> 
B29: =ROW()-ROW(BackendTable[[#Headers],[Row'#]]) -> 27 | C29: ='Data In'!A34 -> 0 | D29: =IF(BackendTable[[#This Row],[Time]]-'Reference Cells'!$C$3<=0,NA(),'Reference Cells'!$C$4-BackendTable[[#This Row],[Time]])*86400 ->  | E29: =IFERROR(8-BackendTable[[#This Row],[Column1]],"") ->  | F29: =IF(ISERROR(BackendTable[[#This Row],[Column1]]),-9,(BackendTable[[#This Row],[Net Time]]-NetTimeMin)*RangeAdj) -> -9 | G29: =IF(AND(BackendTable[[#This Row],[Time]]>='Reference Cells'!$C$6,BackendTable[[#This Row],[Time]]<='Reference Cells'!$C$7),(BackendTable[[#This Row],[Time]]-'Reference Cells'!$C$6)*86400,NA()) -> 2 | H29: =IF(CommandCell='Reference Cells'!$C$17,NA(),ABS('Data In'!B34-INDIRECT("ZeroVal_"&H$2,0))) -> 0 | I29: =IF(CommandCell='Reference Cells'!$C$17,NA(),ABS('Data In'!C34-INDIRECT("ZeroVal_"&I$2,0))) -> 0 | J29: =IF(CommandCell='Reference Cells'!$C$17,NA(),ABS('Data In'!D34-INDIRECT("ZeroVal_"&J$2,0))) -> 0 | K29: =IF(CommandCell='Reference Cells'!$C$17,NA(),ABS('Data In'!E34-INDIRECT("ZeroVal_"&K$2,0))) -> 0 | L29: =IF(CommandCell='Reference Cells'!$C$17,NA(),ABS('Data In'!F34-INDIRECT("ZeroVal_"&L$2,0))) -> 0 | M29: =MAX(BackendTable[[#This Row],[S1]:[S5]]) -> 0 | N29: =IF(ISERROR(BackendTable[[#This Row],[T0Time]]),0,COUNTIFS(BackendTable[T0Time],"<="&3,BackendTable[T0Time],">="&0)-COUNTIFS(BackendTable[T0Time],">"&BackendTable[[#This Row],[T0Time]])) -> 500 | AM29: =MATCH(MAX(BackendTable[[#This Row],[T1S1]:[T1S5]]),BackendTable[[#This Row],[T1S1]:[T1S5]],0) ->  | AN29: =MATCH(MAX(BackendTable[[#This Row],[T2S1]:[T2S5]]),BackendTable[[#This Row],[T2S1]:[T2S5]],0) ->  | AO29: =MATCH(MAX(BackendTable[[#This Row],[T3S1]:[T3S5]]),BackendTable[[#This Row],[T3S1]:[T3S5]],0) -> 
B30: =ROW()-ROW(BackendTable[[#Headers],[Row'#]]) -> 28 | C30: ='Data In'!A35 -> 0 | D30: =IF(BackendTable[[#This Row],[Time]]-'Reference Cells'!$C$3<=0,NA(),'Reference Cells'!$C$4-BackendTable[[#This Row],[Time]])*86400 ->  | E30: =IFERROR(8-BackendTable[[#This Row],[Column1]],"") ->  | F30: =IF(ISERROR(BackendTable[[#This Row],[Column1]]),-9,(BackendTable[[#This Row],[Net Time]]-NetTimeMin)*RangeAdj) -> -9 | G30: =IF(AND(BackendTable[[#This Row],[Time]]>='Reference Cells'!$C$6,BackendTable[[#This Row],[Time]]<='Reference Cells'!$C$7),(BackendTable[[#This Row],[Time]]-'Reference Cells'!$C$6)*86400,NA()) -> 2 | H30: =IF(CommandCell='Reference Cells'!$C$17,NA(),ABS('Data In'!B35-INDIRECT("ZeroVal_"&H$2,0))) -> 0 | I30: =IF(CommandCell='Reference Cells'!$C$17,NA(),ABS('Data In'!C35-INDIRECT("ZeroVal_"&I$2,0))) -> 0 | J30: =IF(CommandCell='Reference Cells'!$C$17,NA(),ABS('Data In'!D35-INDIRECT("ZeroVal_"&J$2,0))) -> 0 | K30: =IF(CommandCell='Reference Cells'!$C$17,NA(),ABS('Data In'!E35-INDIRECT("ZeroVal_"&K$2,0))) -> 0 | L30: =IF(CommandCell='Reference Cells'!$C$17,NA(),ABS('Data In'!F35-INDIRECT("ZeroVal_"&L$2,0))) -> 0 | M30: =MAX(BackendTable[[#This Row],[S1]:[S5]]) -> 0 | N30: =IF(ISERROR(BackendTable[[#This Row],[T0Time]]),0,COUNTIFS(BackendTable[T0Time],"<="&3,BackendTable[T0Time],">="&0)-COUNTIFS(BackendTable[T0Time],">"&BackendTable[[#This Row],[T0Time]])) -> 500 | AM30: =MATCH(MAX(BackendTable[[#This Row],[T1S1]:[T1S5]]),BackendTable[[#This Row],[T1S1]:[T1S5]],0) ->  | AN30: =MATCH(MAX(BackendTable[[#This Row],[T2S1]:[T2S5]]),BackendTable[[#This Row],[T2S1]:[T2S5]],0) ->  | AO30: =MATCH(MAX(BackendTable[[#This Row],[T3S1]:[T3S5]]),BackendTable[[#This Row],[T3S1]:[T3S5]],0) -> 
B31: =ROW()-ROW(BackendTable[[#Headers],[Row'#]]) -> 29 | C31: ='Data In'!A36 -> 0 | D31: =IF(BackendTable[[#This Row],[Time]]-'Reference Cells'!$C$3<=0,NA(),'Reference Cells'!$C$4-BackendTable[[#This Row],[Time]])*86400 ->  | E31: =IFERROR(8-BackendTable[[#This Row],[Column1]],"") ->  | F31: =IF(ISERROR(BackendTable[[#This Row],[Column1]]),-9,(BackendTable[[#This Row],[Net Time]]-NetTimeMin)*RangeAdj) -> -9 | G31: =IF(AND(BackendTable[[#This Row],[Time]]>='Reference Cells'!$C$6,BackendTable[[#This Row],[Time]]<='Reference Cells'!$C$7),(BackendTable[[#This Row],[Time]]-'Reference Cells'!$C$6)*86400,NA()) -> 2 | H31: =IF(CommandCell='Reference Cells'!$C$17,NA(),ABS('Data In'!B36-INDIRECT("ZeroVal_"&H$2,0))) -> 0 | I31: =IF(CommandCell='Reference Cells'!$C$17,NA(),ABS('Data In'!C36-INDIRECT("ZeroVal_"&I$2,0))) -> 0 | J31: =IF(CommandCell='Reference Cells'!$C$17,NA(),ABS('Data In'!D36-INDIRECT("ZeroVal_"&J$2,0))) -> 0 | K31: =IF(CommandCell='Reference Cells'!$C$17,NA(),ABS('Data In'!E36-INDIRECT("ZeroVal_"&K$2,0))) -> 0 | L31: =IF(CommandCell='Reference Cells'!$C$17,NA(),ABS('Data In'!F36-INDIRECT("ZeroVal_"&L$2,0))) -> 0 | M31: =MAX(BackendTable[[#This Row],[S1]:[S5]]) -> 0 | N31: =IF(ISERROR(BackendTable[[#This Row],[T0Time]]),0,COUNTIFS(BackendTable[T0Time],"<="&3,BackendTable[T0Time],">="&0)-COUNTIFS(BackendTable[T0Time],">"&BackendTable[[#This Row],[T0Time]])) -> 500 | AM31: =MATCH(MAX(BackendTable[[#This Row],[T1S1]:[T1S5]]),BackendTable[[#This Row],[T1S1]:[T1S5]],0) ->  | AN31: =MATCH(MAX(BackendTable[[#This Row],[T2S1]:[T2S5]]),BackendTable[[#This Row],[T2S1]:[T2S5]],0) ->  | AO31: =MATCH(MAX(BackendTable[[#This Row],[T3S1]:[T3S5]]),BackendTable[[#This Row],[T3S1]:[T3S5]],0) -> 
B32: =ROW()-ROW(BackendTable[[#Headers],[Row'#]]) -> 30 | C32: ='Data In'!A37 -> 0 | D32: =IF(BackendTable[[#This Row],[Time]]-'Reference Cells'!$C$3<=0,NA(),'Reference Cells'!$C$4-BackendTable[[#This Row],[Time]])*86400 ->  | E32: =IFERROR(8-BackendTable[[#This Row],[Column1]],"") ->  | F32: =IF(ISERROR(BackendTable[[#This Row],[Column1]]),-9,(BackendTable[[#This Row],[Net Time]]-NetTimeMin)*RangeAdj) -> -9 | G32: =IF(AND(BackendTable[[#This Row],[Time]]>='Reference Cells'!$C$6,BackendTable[[#This Row],[Time]]<='Reference Cells'!$C$7),(BackendTable[[#This Row],[Time]]-'Reference Cells'!$C$6)*86400,NA()) -> 2 | H32: =IF(CommandCell='Reference Cells'!$C$17,NA(),ABS('Data In'!B37-INDIRECT("ZeroVal_"&H$2,0))) -> 0 | I32: =IF(CommandCell='Reference Cells'!$C$17,NA(),ABS('Data In'!C37-INDIRECT("ZeroVal_"&I$2,0))) -> 0 | J32: =IF(CommandCell='Reference Cells'!$C$17,NA(),ABS('Data In'!D37-INDIRECT("ZeroVal_"&J$2,0))) -> 0 | K32: =IF(CommandCell='Reference Cells'!$C$17,NA(),ABS('Data In'!E37-INDIRECT("ZeroVal_"&K$2,0))) -> 0 | L32: =IF(CommandCell='Reference Cells'!$C$17,NA(),ABS('Data In'!F37-INDIRECT("ZeroVal_"&L$2,0))) -> 0 | M32: =MAX(BackendTable[[#This Row],[S1]:[S5]]) -> 0 | N32: =IF(ISERROR(BackendTable[[#This Row],[T0Time]]),0,COUNTIFS(BackendTable[T0Time],"<="&3,BackendTable[T0Time],">="&0)-COUNTIFS(BackendTable[T0Time],">"&BackendTable[[#This Row],[T0Time]])) -> 500 | AM32: =MATCH(MAX(BackendTable[[#This Row],[T1S1]:[T1S5]]),BackendTable[[#This Row],[T1S1]:[T1S5]],0) ->  | AN32: =MATCH(MAX(BackendTable[[#This Row],[T2S1]:[T2S5]]),BackendTable[[#This Row],[T2S1]:[T2S5]],0) ->  | AO32: =MATCH(MAX(BackendTable[[#This Row],[T3S1]:[T3S5]]),BackendTable[[#This Row],[T3S1]:[T3S5]],0) -> 
B33: =ROW()-ROW(BackendTable[[#Headers],[Row'#]]) -> 31 | C33: ='Data In'!A38 -> 0 | D33: =IF(BackendTable[[#This Row],[Time]]-'Reference Cells'!$C$3<=0,NA(),'Reference Cells'!$C$4-BackendTable[[#This Row],[Time]])*86400 ->  | E33: =IFERROR(8-BackendTable[[#This Row],[Column1]],"") ->  | F33: =IF(ISERROR(BackendTable[[#This Row],[Column1]]),-9,(BackendTable[[#This Row],[Net Time]]-NetTimeMin)*RangeAdj) -> -9 | G33: =IF(AND(BackendTable[[#This Row],[Time]]>='Reference Cells'!$C$6,BackendTable[[#This Row],[Time]]<='Reference Cells'!$C$7),(BackendTable[[#This Row],[Time]]-'Reference Cells'!$C$6)*86400,NA()) -> 2 | H33: =IF(CommandCell='Reference Cells'!$C$17,NA(),ABS('Data In'!B38-INDIRECT("ZeroVal_"&H$2,0))) -> 0 | I33: =IF(CommandCell='Reference Cells'!$C$17,NA(),ABS('Data In'!C38-INDIRECT("ZeroVal_"&I$2,0))) -> 0 | J33: =IF(CommandCell='Reference Cells'!$C$17,NA(),ABS('Data In'!D38-INDIRECT("ZeroVal_"&J$2,0))) -> 0 | K33: =IF(CommandCell='Reference Cells'!$C$17,NA(),ABS('Data In'!E38-INDIRECT("ZeroVal_"&K$2,0))) -> 0 | L33: =IF(CommandCell='Reference Cells'!$C$17,NA(),ABS('Data In'!F38-INDIRECT("ZeroVal_"&L$2,0))) -> 0 | M33: =MAX(BackendTable[[#This Row],[S1]:[S5]]) -> 0 | N33: =IF(ISERROR(BackendTable[[#This Row],[T0Time]]),0,COUNTIFS(BackendTable[T0Time],"<="&3,BackendTable[T0Time],">="&0)-COUNTIFS(BackendTable[T0Time],">"&BackendTable[[#This Row],[T0Time]])) -> 500 | AM33: =MATCH(MAX(BackendTable[[#This Row],[T1S1]:[T1S5]]),BackendTable[[#This Row],[T1S1]:[T1S5]],0) ->  | AN33: =MATCH(MAX(BackendTable[[#This Row],[T2S1]:[T2S5]]),BackendTable[[#This Row],[T2S1]:[T2S5]],0) ->  | AO33: =MATCH(MAX(BackendTable[[#This Row],[T3S1]:[T3S5]]),BackendTable[[#This Row],[T3S1]:[T3S5]],0) -> 
B34: =ROW()-ROW(BackendTable[[#Headers],[Row'#]]) -> 32 | C34: ='Data In'!A39 -> 0 | D34: =IF(BackendTable[[#This Row],[Time]]-'Reference Cells'!$C$3<=0,NA(),'Reference Cells'!$C$4-BackendTable[[#This Row],[Time]])*86400 ->  | E34: =IFERROR(8-BackendTable[[#This Row],[Column1]],"") ->  | F34: =IF(ISERROR(BackendTable[[#This Row],[Column1]]),-9,(BackendTable[[#This Row],[Net Time]]-NetTimeMin)*RangeAdj) -> -9 | G34: =IF(AND(BackendTable[[#This Row],[Time]]>='Reference Cells'!$C$6,BackendTable[[#This Row],[Time]]<='Reference Cells'!$C$7),(BackendTable[[#This Row],[Time]]-'Reference Cells'!$C$6)*86400,NA()) -> 2 | H34: =IF(CommandCell='Reference Cells'!$C$17,NA(),ABS('Data In'!B39-INDIRECT("ZeroVal_"&H$2,0))) -> 0 | I34: =IF(CommandCell='Reference Cells'!$C$17,NA(),ABS('Data In'!C39-INDIRECT("ZeroVal_"&I$2,0))) -> 0 | J34: =IF(CommandCell='Reference Cells'!$C$17,NA(),ABS('Data In'!D39-INDIRECT("ZeroVal_"&J$2,0))) -> 0 | K34: =IF(CommandCell='Reference Cells'!$C$17,NA(),ABS('Data In'!E39-INDIRECT("ZeroVal_"&K$2,0))) -> 0 | L34: =IF(CommandCell='Reference Cells'!$C$17,NA(),ABS('Data In'!F39-INDIRECT("ZeroVal_"&L$2,0))) -> 0 | M34: =MAX(BackendTable[[#This Row],[S1]:[S5]]) -> 0 | N34: =IF(ISERROR(BackendTable[[#This Row],[T0Time]]),0,COUNTIFS(BackendTable[T0Time],"<="&3,BackendTable[T0Time],">="&0)-COUNTIFS(BackendTable[T0Time],">"&BackendTable[[#This Row],[T0Time]])) -> 500 | AM34: =MATCH(MAX(BackendTable[[#This Row],[T1S1]:[T1S5]]),BackendTable[[#This Row],[T1S1]:[T1S5]],0) ->  | AN34: =MATCH(MAX(BackendTable[[#This Row],[T2S1]:[T2S5]]),BackendTable[[#This Row],[T2S1]:[T2S5]],0) ->  | AO34: =MATCH(MAX(BackendTable[[#This Row],[T3S1]:[T3S5]]),BackendTable[[#This Row],[T3S1]:[T3S5]],0) -> 
B35: =ROW()-ROW(BackendTable[[#Headers],[Row'#]]) -> 33 | C35: ='Data In'!A40 -> 0 | D35: =IF(BackendTable[[#This Row],[Time]]-'Reference Cells'!$C$3<=0,NA(),'Reference Cells'!$C$4-BackendTable[[#This Row],[Time]])*86400 ->  | E35: =IFERROR(8-BackendTable[[#This Row],[Column1]],"") ->  | F35: =IF(ISERROR(BackendTable[[#This Row],[Column1]]),-9,(BackendTable[[#This Row],[Net Time]]-NetTimeMin)*RangeAdj) -> -9 | G35: =IF(AND(BackendTable[[#This Row],[Time]]>='Reference Cells'!$C$6,BackendTable[[#This Row],[Time]]<='Reference Cells'!$C$7),(BackendTable[[#This Row],[Time]]-'Reference Cells'!$C$6)*86400,NA()) -> 2 | H35: =IF(CommandCell='Reference Cells'!$C$17,NA(),ABS('Data In'!B40-INDIRECT("ZeroVal_"&H$2,0))) -> 0 | I35: =IF(CommandCell='Reference Cells'!$C$17,NA(),ABS('Data In'!C40-INDIRECT("ZeroVal_"&I$2,0))) -> 0 | J35: =IF(CommandCell='Reference Cells'!$C$17,NA(),ABS('Data In'!D40-INDIRECT("ZeroVal_"&J$2,0))) -> 0 | K35: =IF(CommandCell='Reference Cells'!$C$17,NA(),ABS('Data In'!E40-INDIRECT("ZeroVal_"&K$2,0))) -> 0 | L35: =IF(CommandCell='Reference Cells'!$C$17,NA(),ABS('Data In'!F40-INDIRECT("ZeroVal_"&L$2,0))) -> 0 | M35: =MAX(BackendTable[[#This Row],[S1]:[S5]]) -> 0 | N35: =IF(ISERROR(BackendTable[[#This Row],[T0Time]]),0,COUNTIFS(BackendTable[T0Time],"<="&3,BackendTable[T0Time],">="&0)-COUNTIFS(BackendTable[T0Time],">"&BackendTable[[#This Row],[T0Time]])) -> 500 | AM35: =MATCH(MAX(BackendTable[[#This Row],[T1S1]:[T1S5]]),BackendTable[[#This Row],[T1S1]:[T1S5]],0) ->  | AN35: =MATCH(MAX(BackendTable[[#This Row],[T2S1]:[T2S5]]),BackendTable[[#This Row],[T2S1]:[T2S5]],0) ->  | AO35: =MATCH(MAX(BackendTable[[#This Row],[T3S1]:[T3S5]]),BackendTable[[#This Row],[T3S1]:[T3S5]],0) -> 
B36: =ROW()-ROW(BackendTable[[#Headers],[Row'#]]) -> 34 | C36: ='Data In'!A41 -> 0 | D36: =IF(BackendTable[[#This Row],[Time]]-'Reference Cells'!$C$3<=0,NA(),'Reference Cells'!$C$4-BackendTable[[#This Row],[Time]])*86400 ->  | E36: =IFERROR(8-BackendTable[[#This Row],[Column1]],"") ->  | F36: =IF(ISERROR(BackendTable[[#This Row],[Column1]]),-9,(BackendTable[[#This Row],[Net Time]]-NetTimeMin)*RangeAdj) -> -9 | G36: =IF(AND(BackendTable[[#This Row],[Time]]>='Reference Cells'!$C$6,BackendTable[[#This Row],[Time]]<='Reference Cells'!$C$7),(BackendTable[[#This Row],[Time]]-'Reference Cells'!$C$6)*86400,NA()) -> 2 | H36: =IF(CommandCell='Reference Cells'!$C$17,NA(),ABS('Data In'!B41-INDIRECT("ZeroVal_"&H$2,0))) -> 0 | I36: =IF(CommandCell='Reference Cells'!$C$17,NA(),ABS('Data In'!C41-INDIRECT("ZeroVal_"&I$2,0))) -> 0 | J36: =IF(CommandCell='Reference Cells'!$C$17,NA(),ABS('Data In'!D41-INDIRECT("ZeroVal_"&J$2,0))) -> 0 | K36: =IF(CommandCell='Reference Cells'!$C$17,NA(),ABS('Data In'!E41-INDIRECT("ZeroVal_"&K$2,0))) -> 0 | L36: =IF(CommandCell='Reference Cells'!$C$17,NA(),ABS('Data In'!F41-INDIRECT("ZeroVal_"&L$2,0))) -> 0 | M36: =MAX(BackendTable[[#This Row],[S1]:[S5]]) -> 0 | N36: =IF(ISERROR(BackendTable[[#This Row],[T0Time]]),0,COUNTIFS(BackendTable[T0Time],"<="&3,BackendTable[T0Time],">="&0)-COUNTIFS(BackendTable[T0Time],">"&BackendTable[[#This Row],[T0Time]])) -> 500 | AM36: =MATCH(MAX(BackendTable[[#This Row],[T1S1]:[T1S5]]),BackendTable[[#This Row],[T1S1]:[T1S5]],0) ->  | AN36: =MATCH(MAX(BackendTable[[#This Row],[T2S1]:[T2S5]]),BackendTable[[#This Row],[T2S1]:[T2S5]],0) ->  | AO36: =MATCH(MAX(BackendTable[[#This Row],[T3S1]:[T3S5]]),BackendTable[[#This Row],[T3S1]:[T3S5]],0) -> 
B37: =ROW()-ROW(BackendTable[[#Headers],[Row'#]]) -> 35 | C37: ='Data In'!A42 -> 0 | D37: =IF(BackendTable[[#This Row],[Time]]-'Reference Cells'!$C$3<=0,NA(),'Reference Cells'!$C$4-BackendTable[[#This Row],[Time]])*86400 ->  | E37: =IFERROR(8-BackendTable[[#This Row],[Column1]],"") ->  | F37: =IF(ISERROR(BackendTable[[#This Row],[Column1]]),-9,(BackendTable[[#This Row],[Net Time]]-NetTimeMin)*RangeAdj) -> -9 | G37: =IF(AND(BackendTable[[#This Row],[Time]]>='Reference Cells'!$C$6,BackendTable[[#This Row],[Time]]<='Reference Cells'!$C$7),(BackendTable[[#This Row],[Time]]-'Reference Cells'!$C$6)*86400,NA()) -> 2 | H37: =IF(CommandCell='Reference Cells'!$C$17,NA(),ABS('Data In'!B42-INDIRECT("ZeroVal_"&H$2,0))) -> 0 | I37: =IF(CommandCell='Reference Cells'!$C$17,NA(),ABS('Data In'!C42-INDIRECT("ZeroVal_"&I$2,0))) -> 0 | J37: =IF(CommandCell='Reference Cells'!$C$17,NA(),ABS('Data In'!D42-INDIRECT("ZeroVal_"&J$2,0))) -> 0 | K37: =IF(CommandCell='Reference Cells'!$C$17,NA(),ABS('Data In'!E42-INDIRECT("ZeroVal_"&K$2,0))) -> 0 | L37: =IF(CommandCell='Reference Cells'!$C$17,NA(),ABS('Data In'!F42-INDIRECT("ZeroVal_"&L$2,0))) -> 0 | M37: =MAX(BackendTable[[#This Row],[S1]:[S5]]) -> 0 | N37: =IF(ISERROR(BackendTable[[#This Row],[T0Time]]),0,COUNTIFS(BackendTable[T0Time],"<="&3,BackendTable[T0Time],">="&0)-COUNTIFS(BackendTable[T0Time],">"&BackendTable[[#This Row],[T0Time]])) -> 500 | AM37: =MATCH(MAX(BackendTable[[#This Row],[T1S1]:[T1S5]]),BackendTable[[#This Row],[T1S1]:[T1S5]],0) ->  | AN37: =MATCH(MAX(BackendTable[[#This Row],[T2S1]:[T2S5]]),BackendTable[[#This Row],[T2S1]:[T2S5]],0) ->  | AO37: =MATCH(MAX(BackendTable[[#This Row],[T3S1]:[T3S5]]),BackendTable[[#This Row],[T3S1]:[T3S5]],0) -> 
B38: =ROW()-ROW(BackendTable[[#Headers],[Row'#]]) -> 36 | C38: ='Data In'!A43 -> 0 | D38: =IF(BackendTable[[#This Row],[Time]]-'Reference Cells'!$C$3<=0,NA(),'Reference Cells'!$C$4-BackendTable[[#This Row],[Time]])*86400 ->  | E38: =IFERROR(8-BackendTable[[#This Row],[Column1]],"") ->  | F38: =IF(ISERROR(BackendTable[[#This Row],[Column1]]),-9,(BackendTable[[#This Row],[Net Time]]-NetTimeMin)*RangeAdj) -> -9 | G38: =IF(AND(BackendTable[[#This Row],[Time]]>='Reference Cells'!$C$6,BackendTable[[#This Row],[Time]]<='Reference Cells'!$C$7),(BackendTable[[#This Row],[Time]]-'Reference Cells'!$C$6)*86400,NA()) -> 2 | H38: =IF(CommandCell='Reference Cells'!$C$17,NA(),ABS('Data In'!B43-INDIRECT("ZeroVal_"&H$2,0))) -> 0 | I38: =IF(CommandCell='Reference Cells'!$C$17,NA(),ABS('Data In'!C43-INDIRECT("ZeroVal_"&I$2,0))) -> 0 | J38: =IF(CommandCell='Reference Cells'!$C$17,NA(),ABS('Data In'!D43-INDIRECT("ZeroVal_"&J$2,0))) -> 0 | K38: =IF(CommandCell='Reference Cells'!$C$17,NA(),ABS('Data In'!E43-INDIRECT("ZeroVal_"&K$2,0))) -> 0 | L38: =IF(CommandCell='Reference Cells'!$C$17,NA(),ABS('Data In'!F43-INDIRECT("ZeroVal_"&L$2,0))) -> 0 | M38: =MAX(BackendTable[[#This Row],[S1]:[S5]]) -> 0 | N38: =IF(ISERROR(BackendTable[[#This Row],[T0Time]]),0,COUNTIFS(BackendTable[T0Time],"<="&3,BackendTable[T0Time],">="&0)-COUNTIFS(BackendTable[T0Time],">"&BackendTable[[#This Row],[T0Time]])) -> 500 | AM38: =MATCH(MAX(BackendTable[[#This Row],[T1S1]:[T1S5]]),BackendTable[[#This Row],[T1S1]:[T1S5]],0) ->  | AN38: =MATCH(MAX(BackendTable[[#This Row],[T2S1]:[T2S5]]),BackendTable[[#This Row],[T2S1]:[T2S5]],0) ->  | AO38: =MATCH(MAX(BackendTable[[#This Row],[T3S1]:[T3S5]]),BackendTable[[#This Row],[T3S1]:[T3S5]],0) -> 
B39: =ROW()-ROW(BackendTable[[#Headers],[Row'#]]) -> 37 | C39: ='Data In'!A44 -> 0 | D39: =IF(BackendTable[[#This Row],[Time]]-'Reference Cells'!$C$3<=0,NA(),'Reference Cells'!$C$4-BackendTable[[#This Row],[Time]])*86400 ->  | E39: =IFERROR(8-BackendTable[[#This Row],[Column1]],"") ->  | F39: =IF(ISERROR(BackendTable[[#This Row],[Column1]]),-9,(BackendTable[[#This Row],[Net Time]]-NetTimeMin)*RangeAdj) -> -9 | G39: =IF(AND(BackendTable[[#This Row],[Time]]>='Reference Cells'!$C$6,BackendTable[[#This Row],[Time]]<='Reference Cells'!$C$7),(BackendTable[[#This Row],[Time]]-'Reference Cells'!$C$6)*86400,NA()) -> 2 | H39: =IF(CommandCell='Reference Cells'!$C$17,NA(),ABS('Data In'!B44-INDIRECT("ZeroVal_"&H$2,0))) -> 0 | I39: =IF(CommandCell='Reference Cells'!$C$17,NA(),ABS('Data In'!C44-INDIRECT("ZeroVal_"&I$2,0))) -> 0 | J39: =IF(CommandCell='Reference Cells'!$C$17,NA(),ABS('Data In'!D44-INDIRECT("ZeroVal_"&J$2,0))) -> 0 | K39: =IF(CommandCell='Reference Cells'!$C$17,NA(),ABS('Data In'!E44-INDIRECT("ZeroVal_"&K$2,0))) -> 0 | L39: =IF(CommandCell='Reference Cells'!$C$17,NA(),ABS('Data In'!F44-INDIRECT("ZeroVal_"&L$2,0))) -> 0 | M39: =MAX(BackendTable[[#This Row],[S1]:[S5]]) -> 0 | N39: =IF(ISERROR(BackendTable[[#This Row],[T0Time]]),0,COUNTIFS(BackendTable[T0Time],"<="&3,BackendTable[T0Time],">="&0)-COUNTIFS(BackendTable[T0Time],">"&BackendTable[[#This Row],[T0Time]])) -> 500 | AM39: =MATCH(MAX(BackendTable[[#This Row],[T1S1]:[T1S5]]),BackendTable[[#This Row],[T1S1]:[T1S5]],0) ->  | AN39: =MATCH(MAX(BackendTable[[#This Row],[T2S1]:[T2S5]]),BackendTable[[#This Row],[T2S1]:[T2S5]],0) ->  | AO39: =MATCH(MAX(BackendTable[[#This Row],[T3S1]:[T3S5]]),BackendTable[[#This Row],[T3S1]:[T3S5]],0) -> 
B40: =ROW()-ROW(BackendTable[[#Headers],[Row'#]]) -> 38 | C40: ='Data In'!A45 -> 0 | D40: =IF(BackendTable[[#This Row],[Time]]-'Reference Cells'!$C$3<=0,NA(),'Reference Cells'!$C$4-BackendTable[[#This Row],[Time]])*86400 ->  | E40: =IFERROR(8-BackendTable[[#This Row],[Column1]],"") ->  | F40: =IF(ISERROR(BackendTable[[#This Row],[Column1]]),-9,(BackendTable[[#This Row],[Net Time]]-NetTimeMin)*RangeAdj) -> -9 | G40: =IF(AND(BackendTable[[#This Row],[Time]]>='Reference Cells'!$C$6,BackendTable[[#This Row],[Time]]<='Reference Cells'!$C$7),(BackendTable[[#This Row],[Time]]-'Reference Cells'!$C$6)*86400,NA()) -> 2 | H40: =IF(CommandCell='Reference Cells'!$C$17,NA(),ABS('Data In'!B45-INDIRECT("ZeroVal_"&H$2,0))) -> 0 | I40: =IF(CommandCell='Reference Cells'!$C$17,NA(),ABS('Data In'!C45-INDIRECT("ZeroVal_"&I$2,0))) -> 0 | J40: =IF(CommandCell='Reference Cells'!$C$17,NA(),ABS('Data In'!D45-INDIRECT("ZeroVal_"&J$2,0))) -> 0 | K40: =IF(CommandCell='Reference Cells'!$C$17,NA(),ABS('Data In'!E45-INDIRECT("ZeroVal_"&K$2,0))) -> 0 | L40: =IF(CommandCell='Reference Cells'!$C$17,NA(),ABS('Data In'!F45-INDIRECT("ZeroVal_"&L$2,0))) -> 0 | M40: =MAX(BackendTable[[#This Row],[S1]:[S5]]) -> 0 | N40: =IF(ISERROR(BackendTable[[#This Row],[T0Time]]),0,COUNTIFS(BackendTable[T0Time],"<="&3,BackendTable[T0Time],">="&0)-COUNTIFS(BackendTable[T0Time],">"&BackendTable[[#This Row],[T0Time]])) -> 500 | AM40: =MATCH(MAX(BackendTable[[#This Row],[T1S1]:[T1S5]]),BackendTable[[#This Row],[T1S1]:[T1S5]],0) ->  | AN40: =MATCH(MAX(BackendTable[[#This Row],[T2S1]:[T2S5]]),BackendTable[[#This Row],[T2S1]:[T2S5]],0) ->  | AO40: =MATCH(MAX(BackendTable[[#This Row],[T3S1]:[T3S5]]),BackendTable[[#This Row],[T3S1]:[T3S5]],0) -> 
B41: =ROW()-ROW(BackendTable[[#Headers],[Row'#]]) -> 39 | C41: ='Data In'!A46 -> 0 | D41: =IF(BackendTable[[#This Row],[Time]]-'Reference Cells'!$C$3<=0,NA(),'Reference Cells'!$C$4-BackendTable[[#This Row],[Time]])*86400 ->  | E41: =IFERROR(8-BackendTable[[#This Row],[Column1]],"") ->  | F41: =IF(ISERROR(BackendTable[[#This Row],[Column1]]),-9,(BackendTable[[#This Row],[Net Time]]-NetTimeMin)*RangeAdj) -> -9 | G41: =IF(AND(BackendTable[[#This Row],[Time]]>='Reference Cells'!$C$6,BackendTable[[#This Row],[Time]]<='Reference Cells'!$C$7),(BackendTable[[#This Row],[Time]]-'Reference Cells'!$C$6)*86400,NA()) -> 2 | H41: =IF(CommandCell='Reference Cells'!$C$17,NA(),ABS('Data In'!B46-INDIRECT("ZeroVal_"&H$2,0))) -> 0 | I41: =IF(CommandCell='Reference Cells'!$C$17,NA(),ABS('Data In'!C46-INDIRECT("ZeroVal_"&I$2,0))) -> 0 | J41: =IF(CommandCell='Reference Cells'!$C$17,NA(),ABS('Data In'!D46-INDIRECT("ZeroVal_"&J$2,0))) -> 0 | K41: =IF(CommandCell='Reference Cells'!$C$17,NA(),ABS('Data In'!E46-INDIRECT("ZeroVal_"&K$2,0))) -> 0 | L41: =IF(CommandCell='Reference Cells'!$C$17,NA(),ABS('Data In'!F46-INDIRECT("ZeroVal_"&L$2,0))) -> 0 | M41: =MAX(BackendTable[[#This Row],[S1]:[S5]]) -> 0 | N41: =IF(ISERROR(BackendTable[[#This Row],[T0Time]]),0,COUNTIFS(BackendTable[T0Time],"<="&3,BackendTable[T0Time],">="&0)-COUNTIFS(BackendTable[T0Time],">"&BackendTable[[#This Row],[T0Time]])) -> 500 | AM41: =MATCH(MAX(BackendTable[[#This Row],[T1S1]:[T1S5]]),BackendTable[[#This Row],[T1S1]:[T1S5]],0) ->  | AN41: =MATCH(MAX(BackendTable[[#This Row],[T2S1]:[T2S5]]),BackendTable[[#This Row],[T2S1]:[T2S5]],0) ->  | AO41: =MATCH(MAX(BackendTable[[#This Row],[T3S1]:[T3S5]]),BackendTable[[#This Row],[T3S1]:[T3S5]],0) -> 
B42: =ROW()-ROW(BackendTable[[#Headers],[Row'#]]) -> 40 | C42: ='Data In'!A47 -> 0 | D42: =IF(BackendTable[[#This Row],[Time]]-'Reference Cells'!$C$3<=0,NA(),'Reference Cells'!$C$4-BackendTable[[#This Row],[Time]])*86400 ->  | E42: =IFERROR(8-BackendTable[[#This Row],[Column1]],"") ->  | F42: =IF(ISERROR(BackendTable[[#This Row],[Column1]]),-9,(BackendTable[[#This Row],[Net Time]]-NetTimeMin)*RangeAdj) -> -9 | G42: =IF(AND(BackendTable[[#This Row],[Time]]>='Reference Cells'!$C$6,BackendTable[[#This Row],[Time]]<='Reference Cells'!$C$7),(BackendTable[[#This Row],[Time]]-'Reference Cells'!$C$6)*86400,NA()) -> 2 | H42: =IF(CommandCell='Reference Cells'!$C$17,NA(),ABS('Data In'!B47-INDIRECT("ZeroVal_"&H$2,0))) -> 0 | I42: =IF(CommandCell='Reference Cells'!$C$17,NA(),ABS('Data In'!C47-INDIRECT("ZeroVal_"&I$2,0))) -> 0 | J42: =IF(CommandCell='Reference Cells'!$C$17,NA(),ABS('Data In'!D47-INDIRECT("ZeroVal_"&J$2,0))) -> 0 | K42: =IF(CommandCell='Reference Cells'!$C$17,NA(),ABS('Data In'!E47-INDIRECT("ZeroVal_"&K$2,0))) -> 0 | L42: =IF(CommandCell='Reference Cells'!$C$17,NA(),ABS('Data In'!F47-INDIRECT("ZeroVal_"&L$2,0))) -> 0 | M42: =MAX(BackendTable[[#This Row],[S1]:[S5]]) -> 0 | N42: =IF(ISERROR(BackendTable[[#This Row],[T0Time]]),0,COUNTIFS(BackendTable[T0Time],"<="&3,BackendTable[T0Time],">="&0)-COUNTIFS(BackendTable[T0Time],">"&BackendTable[[#This Row],[T0Time]])) -> 500 | AM42: =MATCH(MAX(BackendTable[[#This Row],[T1S1]:[T1S5]]),BackendTable[[#This Row],[T1S1]:[T1S5]],0) ->  | AN42: =MATCH(MAX(BackendTable[[#This Row],[T2S1]:[T2S5]]),BackendTable[[#This Row],[T2S1]:[T2S5]],0) ->  | AO42: =MATCH(MAX(BackendTable[[#This Row],[T3S1]:[T3S5]]),BackendTable[[#This Row],[T3S1]:[T3S5]],0) -> 
B43: =ROW()-ROW(BackendTable[[#Headers],[Row'#]]) -> 41 | C43: ='Data In'!A48 -> 0 | D43: =IF(BackendTable[[#This Row],[Time]]-'Reference Cells'!$C$3<=0,NA(),'Reference Cells'!$C$4-BackendTable[[#This Row],[Time]])*86400 ->  | E43: =IFERROR(8-BackendTable[[#This Row],[Column1]],"") ->  | F43: =IF(ISERROR(BackendTable[[#This Row],[Column1]]),-9,(BackendTable[[#This Row],[Net Time]]-NetTimeMin)*RangeAdj) -> -9 | G43: =IF(AND(BackendTable[[#This Row],[Time]]>='Reference Cells'!$C$6,BackendTable[[#This Row],[Time]]<='Reference Cells'!$C$7),(BackendTable[[#This Row],[Time]]-'Reference Cells'!$C$6)*86400,NA()) -> 2 | H43: =IF(CommandCell='Reference Cells'!$C$17,NA(),ABS('Data In'!B48-INDIRECT("ZeroVal_"&H$2,0))) -> 0 | I43: =IF(CommandCell='Reference Cells'!$C$17,NA(),ABS('Data In'!C48-INDIRECT("ZeroVal_"&I$2,0))) -> 0 | J43: =IF(CommandCell='Reference Cells'!$C$17,NA(),ABS('Data In'!D48-INDIRECT("ZeroVal_"&J$2,0))) -> 0 | K43: =IF(CommandCell='Reference Cells'!$C$17,NA(),ABS('Data In'!E48-INDIRECT("ZeroVal_"&K$2,0))) -> 0 | L43: =IF(CommandCell='Reference Cells'!$C$17,NA(),ABS('Data In'!F48-INDIRECT("ZeroVal_"&L$2,0))) -> 0 | M43: =MAX(BackendTable[[#This Row],[S1]:[S5]]) -> 0 | N43: =IF(ISERROR(BackendTable[[#This Row],[T0Time]]),0,COUNTIFS(BackendTable[T0Time],"<="&3,BackendTable[T0Time],">="&0)-COUNTIFS(BackendTable[T0Time],">"&BackendTable[[#This Row],[T0Time]])) -> 500 | AM43: =MATCH(MAX(BackendTable[[#This Row],[T1S1]:[T1S5]]),BackendTable[[#This Row],[T1S1]:[T1S5]],0) ->  | AN43: =MATCH(MAX(BackendTable[[#This Row],[T2S1]:[T2S5]]),BackendTable[[#This Row],[T2S1]:[T2S5]],0) ->  | AO43: =MATCH(MAX(BackendTable[[#This Row],[T3S1]:[T3S5]]),BackendTable[[#This Row],[T3S1]:[T3S5]],0) -> 
B44: =ROW()-ROW(BackendTable[[#Headers],[Row'#]]) -> 42 | C44: ='Data In'!A49 -> 0 | D44: =IF(BackendTable[[#This Row],[Time]]-'Reference Cells'!$C$3<=0,NA(),'Reference Cells'!$C$4-BackendTable[[#This Row],[Time]])*86400 ->  | E44: =IFERROR(8-BackendTable[[#This Row],[Column1]],"") ->  | F44: =IF(ISERROR(BackendTable[[#This Row],[Column1]]),-9,(BackendTable[[#This Row],[Net Time]]-NetTimeMin)*RangeAdj) -> -9 | G44: =IF(AND(BackendTable[[#This Row],[Time]]>='Reference Cells'!$C$6,BackendTable[[#This Row],[Time]]<='Reference Cells'!$C$7),(BackendTable[[#This Row],[Time]]-'Reference Cells'!$C$6)*86400,NA()) -> 2 | H44: =IF(CommandCell='Reference Cells'!$C$17,NA(),ABS('Data In'!B49-INDIRECT("ZeroVal_"&H$2,0))) -> 0 | I44: =IF(CommandCell='Reference Cells'!$C$17,NA(),ABS('Data In'!C49-INDIRECT("ZeroVal_"&I$2,0))) -> 0 | J44: =IF(CommandCell='Reference Cells'!$C$17,NA(),ABS('Data In'!D49-INDIRECT("ZeroVal_"&J$2,0))) -> 0 | K44: =IF(CommandCell='Reference Cells'!$C$17,NA(),ABS('Data In'!E49-INDIRECT("ZeroVal_"&K$2,0))) -> 0 | L44: =IF(CommandCell='Reference Cells'!$C$17,NA(),ABS('Data In'!F49-INDIRECT("ZeroVal_"&L$2,0))) -> 0 | M44: =MAX(BackendTable[[#This Row],[S1]:[S5]]) -> 0 | N44: =IF(ISERROR(BackendTable[[#This Row],[T0Time]]),0,COUNTIFS(BackendTable[T0Time],"<="&3,BackendTable[T0Time],">="&0)-COUNTIFS(BackendTable[T0Time],">"&BackendTable[[#This Row],[T0Time]])) -> 500 | AM44: =MATCH(MAX(BackendTable[[#This Row],[T1S1]:[T1S5]]),BackendTable[[#This Row],[T1S1]:[T1S5]],0) ->  | AN44: =MATCH(MAX(BackendTable[[#This Row],[T2S1]:[T2S5]]),BackendTable[[#This Row],[T2S1]:[T2S5]],0) ->  | AO44: =MATCH(MAX(BackendTable[[#This Row],[T3S1]:[T3S5]]),BackendTable[[#This Row],[T3S1]:[T3S5]],0) -> 
B45: =ROW()-ROW(BackendTable[[#Headers],[Row'#]]) -> 43 | C45: ='Data In'!A50 -> 0 | D45: =IF(BackendTable[[#This Row],[Time]]-'Reference Cells'!$C$3<=0,NA(),'Reference Cells'!$C$4-BackendTable[[#This Row],[Time]])*86400 ->  | E45: =IFERROR(8-BackendTable[[#This Row],[Column1]],"") ->  | F45: =IF(ISERROR(BackendTable[[#This Row],[Column1]]),-9,(BackendTable[[#This Row],[Net Time]]-NetTimeMin)*RangeAdj) -> -9 | G45: =IF(AND(BackendTable[[#This Row],[Time]]>='Reference Cells'!$C$6,BackendTable[[#This Row],[Time]]<='Reference Cells'!$C$7),(BackendTable[[#This Row],[Time]]-'Reference Cells'!$C$6)*86400,NA()) -> 2 | H45: =IF(CommandCell='Reference Cells'!$C$17,NA(),ABS('Data In'!B50-INDIRECT("ZeroVal_"&H$2,0))) -> 0 | I45: =IF(CommandCell='Reference Cells'!$C$17,NA(),ABS('Data In'!C50-INDIRECT("ZeroVal_"&I$2,0))) -> 0 | J45: =IF(CommandCell='Reference Cells'!$C$17,NA(),ABS('Data In'!D50-INDIRECT("ZeroVal_"&J$2,0))) -> 0 | K45: =IF(CommandCell='Reference Cells'!$C$17,NA(),ABS('Data In'!E50-INDIRECT("ZeroVal_"&K$2,0))) -> 0 | L45: =IF(CommandCell='Reference Cells'!$C$17,NA(),ABS('Data In'!F50-INDIRECT("ZeroVal_"&L$2,0))) -> 0 | M45: =MAX(BackendTable[[#This Row],[S1]:[S5]]) -> 0 | N45: =IF(ISERROR(BackendTable[[#This Row],[T0Time]]),0,COUNTIFS(BackendTable[T0Time],"<="&3,BackendTable[T0Time],">="&0)-COUNTIFS(BackendTable[T0Time],">"&BackendTable[[#This Row],[T0Time]])) -> 500 | AM45: =MATCH(MAX(BackendTable[[#This Row],[T1S1]:[T1S5]]),BackendTable[[#This Row],[T1S1]:[T1S5]],0) ->  | AN45: =MATCH(MAX(BackendTable[[#This Row],[T2S1]:[T2S5]]),BackendTable[[#This Row],[T2S1]:[T2S5]],0) ->  | AO45: =MATCH(MAX(BackendTable[[#This Row],[T3S1]:[T3S5]]),BackendTable[[#This Row],[T3S1]:[T3S5]],0) -> 
B46: =ROW()-ROW(BackendTable[[#Headers],[Row'#]]) -> 44 | C46: ='Data In'!A51 -> 0 | D46: =IF(BackendTable[[#This Row],[Time]]-'Reference Cells'!$C$3<=0,NA(),'Reference Cells'!$C$4-BackendTable[[#This Row],[Time]])*86400 ->  | E46: =IFERROR(8-BackendTable[[#This Row],[Column1]],"") ->  | F46: =IF(ISERROR(BackendTable[[#This Row],[Column1]]),-9,(BackendTable[[#This Row],[Net Time]]-NetTimeMin)*RangeAdj) -> -9 | G46: =IF(AND(BackendTable[[#This Row],[Time]]>='Reference Cells'!$C$6,BackendTable[[#This Row],[Time]]<='Reference Cells'!$C$7),(BackendTable[[#This Row],[Time]]-'Reference Cells'!$C$6)*86400,NA()) -> 2 | H46: =IF(CommandCell='Reference Cells'!$C$17,NA(),ABS('Data In'!B51-INDIRECT("ZeroVal_"&H$2,0))) -> 0 | I46: =IF(CommandCell='Reference Cells'!$C$17,NA(),ABS('Data In'!C51-INDIRECT("ZeroVal_"&I$2,0))) -> 0 | J46: =IF(CommandCell='Reference Cells'!$C$17,NA(),ABS('Data In'!D51-INDIRECT("ZeroVal_"&J$2,0))) -> 0 | K46: =IF(CommandCell='Reference Cells'!$C$17,NA(),ABS('Data In'!E51-INDIRECT("ZeroVal_"&K$2,0))) -> 0 | L46: =IF(CommandCell='Reference Cells'!$C$17,NA(),ABS('Data In'!F51-INDIRECT("ZeroVal_"&L$2,0))) -> 0 | M46: =MAX(BackendTable[[#This Row],[S1]:[S5]]) -> 0 | N46: =IF(ISERROR(BackendTable[[#This Row],[T0Time]]),0,COUNTIFS(BackendTable[T0Time],"<="&3,BackendTable[T0Time],">="&0)-COUNTIFS(BackendTable[T0Time],">"&BackendTable[[#This Row],[T0Time]])) -> 500 | AM46: =MATCH(MAX(BackendTable[[#This Row],[T1S1]:[T1S5]]),BackendTable[[#This Row],[T1S1]:[T1S5]],0) ->  | AN46: =MATCH(MAX(BackendTable[[#This Row],[T2S1]:[T2S5]]),BackendTable[[#This Row],[T2S1]:[T2S5]],0) ->  | AO46: =MATCH(MAX(BackendTable[[#This Row],[T3S1]:[T3S5]]),BackendTable[[#This Row],[T3S1]:[T3S5]],0) -> 
B47: =ROW()-ROW(BackendTable[[#Headers],[Row'#]]) -> 45 | C47: ='Data In'!A52 -> 0 | D47: =IF(BackendTable[[#This Row],[Time]]-'Reference Cells'!$C$3<=0,NA(),'Reference Cells'!$C$4-BackendTable[[#This Row],[Time]])*86400 ->  | E47: =IFERROR(8-BackendTable[[#This Row],[Column1]],"") ->  | F47: =IF(ISERROR(BackendTable[[#This Row],[Column1]]),-9,(BackendTable[[#This Row],[Net Time]]-NetTimeMin)*RangeAdj) -> -9 | G47: =IF(AND(BackendTable[[#This Row],[Time]]>='Reference Cells'!$C$6,BackendTable[[#This Row],[Time]]<='Reference Cells'!$C$7),(BackendTable[[#This Row],[Time]]-'Reference Cells'!$C$6)*86400,NA()) -> 2 | H47: =IF(CommandCell='Reference Cells'!$C$17,NA(),ABS('Data In'!B52-INDIRECT("ZeroVal_"&H$2,0))) -> 0 | I47: =IF(CommandCell='Reference Cells'!$C$17,NA(),ABS('Data In'!C52-INDIRECT("ZeroVal_"&I$2,0))) -> 0 | J47: =IF(CommandCell='Reference Cells'!$C$17,NA(),ABS('Data In'!D52-INDIRECT("ZeroVal_"&J$2,0))) -> 0 | K47: =IF(CommandCell='Reference Cells'!$C$17,NA(),ABS('Data In'!E52-INDIRECT("ZeroVal_"&K$2,0))) -> 0 | L47: =IF(CommandCell='Reference Cells'!$C$17,NA(),ABS('Data In'!F52-INDIRECT("ZeroVal_"&L$2,0))) -> 0 | M47: =MAX(BackendTable[[#This Row],[S1]:[S5]]) -> 0 | N47: =IF(ISERROR(BackendTable[[#This Row],[T0Time]]),0,COUNTIFS(BackendTable[T0Time],"<="&3,BackendTable[T0Time],">="&0)-COUNTIFS(BackendTable[T0Time],">"&BackendTable[[#This Row],[T0Time]])) -> 500 | AM47: =MATCH(MAX(BackendTable[[#This Row],[T1S1]:[T1S5]]),BackendTable[[#This Row],[T1S1]:[T1S5]],0) ->  | AN47: =MATCH(MAX(BackendTable[[#This Row],[T2S1]:[T2S5]]),BackendTable[[#This Row],[T2S1]:[T2S5]],0) ->  | AO47: =MATCH(MAX(BackendTable[[#This Row],[T3S1]:[T3S5]]),BackendTable[[#This Row],[T3S1]:[T3S5]],0) -> 
B48: =ROW()-ROW(BackendTable[[#Headers],[Row'#]]) -> 46 | C48: ='Data In'!A53 -> 0 | D48: =IF(BackendTable[[#This Row],[Time]]-'Reference Cells'!$C$3<=0,NA(),'Reference Cells'!$C$4-BackendTable[[#This Row],[Time]])*86400 ->  | E48: =IFERROR(8-BackendTable[[#This Row],[Column1]],"") ->  | F48: =IF(ISERROR(BackendTable[[#This Row],[Column1]]),-9,(BackendTable[[#This Row],[Net Time]]-NetTimeMin)*RangeAdj) -> -9 | G48: =IF(AND(BackendTable[[#This Row],[Time]]>='Reference Cells'!$C$6,BackendTable[[#This Row],[Time]]<='Reference Cells'!$C$7),(BackendTable[[#This Row],[Time]]-'Reference Cells'!$C$6)*86400,NA()) -> 2 | H48: =IF(CommandCell='Reference Cells'!$C$17,NA(),ABS('Data In'!B53-INDIRECT("ZeroVal_"&H$2,0))) -> 0 | I48: =IF(CommandCell='Reference Cells'!$C$17,NA(),ABS('Data In'!C53-INDIRECT("ZeroVal_"&I$2,0))) -> 0 | J48: =IF(CommandCell='Reference Cells'!$C$17,NA(),ABS('Data In'!D53-INDIRECT("ZeroVal_"&J$2,0))) -> 0 | K48: =IF(CommandCell='Reference Cells'!$C$17,NA(),ABS('Data In'!E53-INDIRECT("ZeroVal_"&K$2,0))) -> 0 | L48: =IF(CommandCell='Reference Cells'!$C$17,NA(),ABS('Data In'!F53-INDIRECT("ZeroVal_"&L$2,0))) -> 0 | M48: =MAX(BackendTable[[#This Row],[S1]:[S5]]) -> 0 | N48: =IF(ISERROR(BackendTable[[#This Row],[T0Time]]),0,COUNTIFS(BackendTable[T0Time],"<="&3,BackendTable[T0Time],">="&0)-COUNTIFS(BackendTable[T0Time],">"&BackendTable[[#This Row],[T0Time]])) -> 500 | AM48: =MATCH(MAX(BackendTable[[#This Row],[T1S1]:[T1S5]]),BackendTable[[#This Row],[T1S1]:[T1S5]],0) ->  | AN48: =MATCH(MAX(BackendTable[[#This Row],[T2S1]:[T2S5]]),BackendTable[[#This Row],[T2S1]:[T2S5]],0) ->  | AO48: =MATCH(MAX(BackendTable[[#This Row],[T3S1]:[T3S5]]),BackendTable[[#This Row],[T3S1]:[T3S5]],0) -> 
B49: =ROW()-ROW(BackendTable[[#Headers],[Row'#]]) -> 47 | C49: ='Data In'!A54 -> 0 | D49: =IF(BackendTable[[#This Row],[Time]]-'Reference Cells'!$C$3<=0,NA(),'Reference Cells'!$C$4-BackendTable[[#This Row],[Time]])*86400 ->  | E49: =IFERROR(8-BackendTable[[#This Row],[Column1]],"") ->  | F49: =IF(ISERROR(BackendTable[[#This Row],[Column1]]),-9,(BackendTable[[#This Row],[Net Time]]-NetTimeMin)*RangeAdj) -> -9 | G49: =IF(AND(BackendTable[[#This Row],[Time]]>='Reference Cells'!$C$6,BackendTable[[#This Row],[Time]]<='Reference Cells'!$C$7),(BackendTable[[#This Row],[Time]]-'Reference Cells'!$C$6)*86400,NA()) -> 2 | H49: =IF(CommandCell='Reference Cells'!$C$17,NA(),ABS('Data In'!B54-INDIRECT("ZeroVal_"&H$2,0))) -> 0 | I49: =IF(CommandCell='Reference Cells'!$C$17,NA(),ABS('Data In'!C54-INDIRECT("ZeroVal_"&I$2,0))) -> 0 | J49: =IF(CommandCell='Reference Cells'!$C$17,NA(),ABS('Data In'!D54-INDIRECT("ZeroVal_"&J$2,0))) -> 0 | K49: =IF(CommandCell='Reference Cells'!$C$17,NA(),ABS('Data In'!E54-INDIRECT("ZeroVal_"&K$2,0))) -> 0 | L49: =IF(CommandCell='Reference Cells'!$C$17,NA(),ABS('Data In'!F54-INDIRECT("ZeroVal_"&L$2,0))) -> 0 | M49: =MAX(BackendTable[[#This Row],[S1]:[S5]]) -> 0 | N49: =IF(ISERROR(BackendTable[[#This Row],[T0Time]]),0,COUNTIFS(BackendTable[T0Time],"<="&3,BackendTable[T0Time],">="&0)-COUNTIFS(BackendTable[T0Time],">"&BackendTable[[#This Row],[T0Time]])) -> 500 | AM49: =MATCH(MAX(BackendTable[[#This Row],[T1S1]:[T1S5]]),BackendTable[[#This Row],[T1S1]:[T1S5]],0) ->  | AN49: =MATCH(MAX(BackendTable[[#This Row],[T2S1]:[T2S5]]),BackendTable[[#This Row],[T2S1]:[T2S5]],0) ->  | AO49: =MATCH(MAX(BackendTable[[#This Row],[T3S1]:[T3S5]]),BackendTable[[#This Row],[T3S1]:[T3S5]],0) -> 
B50: =ROW()-ROW(BackendTable[[#Headers],[Row'#]]) -> 48 | C50: ='Data In'!A55 -> 0 | D50: =IF(BackendTable[[#This Row],[Time]]-'Reference Cells'!$C$3<=0,NA(),'Reference Cells'!$C$4-BackendTable[[#This Row],[Time]])*86400 ->  | E50: =IFERROR(8-BackendTable[[#This Row],[Column1]],"") ->  | F50: =IF(ISERROR(BackendTable[[#This Row],[Column1]]),-9,(BackendTable[[#This Row],[Net Time]]-NetTimeMin)*RangeAdj) -> -9 | G50: =IF(AND(BackendTable[[#This Row],[Time]]>='Reference Cells'!$C$6,BackendTable[[#This Row],[Time]]<='Reference Cells'!$C$7),(BackendTable[[#This Row],[Time]]-'Reference Cells'!$C$6)*86400,NA()) -> 2 | H50: =IF(CommandCell='Reference Cells'!$C$17,NA(),ABS('Data In'!B55-INDIRECT("ZeroVal_"&H$2,0))) -> 0 | I50: =IF(CommandCell='Reference Cells'!$C$17,NA(),ABS('Data In'!C55-INDIRECT("ZeroVal_"&I$2,0))) -> 0 | J50: =IF(CommandCell='Reference Cells'!$C$17,NA(),ABS('Data In'!D55-INDIRECT("ZeroVal_"&J$2,0))) -> 0 | K50: =IF(CommandCell='Reference Cells'!$C$17,NA(),ABS('Data In'!E55-INDIRECT("ZeroVal_"&K$2,0))) -> 0 | L50: =IF(CommandCell='Reference Cells'!$C$17,NA(),ABS('Data In'!F55-INDIRECT("ZeroVal_"&L$2,0))) -> 0 | M50: =MAX(BackendTable[[#This Row],[S1]:[S5]]) -> 0 | N50: =IF(ISERROR(BackendTable[[#This Row],[T0Time]]),0,COUNTIFS(BackendTable[T0Time],"<="&3,BackendTable[T0Time],">="&0)-COUNTIFS(BackendTable[T0Time],">"&BackendTable[[#This Row],[T0Time]])) -> 500 | AM50: =MATCH(MAX(BackendTable[[#This Row],[T1S1]:[T1S5]]),BackendTable[[#This Row],[T1S1]:[T1S5]],0) ->  | AN50: =MATCH(MAX(BackendTable[[#This Row],[T2S1]:[T2S5]]),BackendTable[[#This Row],[T2S1]:[T2S5]],0) ->  | AO50: =MATCH(MAX(BackendTable[[#This Row],[T3S1]:[T3S5]]),BackendTable[[#This Row],[T3S1]:[T3S5]],0) -> 
B51: =ROW()-ROW(BackendTable[[#Headers],[Row'#]]) -> 49 | C51: ='Data In'!A56 -> 0 | D51: =IF(BackendTable[[#This Row],[Time]]-'Reference Cells'!$C$3<=0,NA(),'Reference Cells'!$C$4-BackendTable[[#This Row],[Time]])*86400 ->  | E51: =IFERROR(8-BackendTable[[#This Row],[Column1]],"") ->  | F51: =IF(ISERROR(BackendTable[[#This Row],[Column1]]),-9,(BackendTable[[#This Row],[Net Time]]-NetTimeMin)*RangeAdj) -> -9 | G51: =IF(AND(BackendTable[[#This Row],[Time]]>='Reference Cells'!$C$6,BackendTable[[#This Row],[Time]]<='Reference Cells'!$C$7),(BackendTable[[#This Row],[Time]]-'Reference Cells'!$C$6)*86400,NA()) -> 2 | H51: =IF(CommandCell='Reference Cells'!$C$17,NA(),ABS('Data In'!B56-INDIRECT("ZeroVal_"&H$2,0))) -> 0 | I51: =IF(CommandCell='Reference Cells'!$C$17,NA(),ABS('Data In'!C56-INDIRECT("ZeroVal_"&I$2,0))) -> 0 | J51: =IF(CommandCell='Reference Cells'!$C$17,NA(),ABS('Data In'!D56-INDIRECT("ZeroVal_"&J$2,0))) -> 0 | K51: =IF(CommandCell='Reference Cells'!$C$17,NA(),ABS('Data In'!E56-INDIRECT("ZeroVal_"&K$2,0))) -> 0 | L51: =IF(CommandCell='Reference Cells'!$C$17,NA(),ABS('Data In'!F56-INDIRECT("ZeroVal_"&L$2,0))) -> 0 | M51: =MAX(BackendTable[[#This Row],[S1]:[S5]]) -> 0 | N51: =IF(ISERROR(BackendTable[[#This Row],[T0Time]]),0,COUNTIFS(BackendTable[T0Time],"<="&3,BackendTable[T0Time],">="&0)-COUNTIFS(BackendTable[T0Time],">"&BackendTable[[#This Row],[T0Time]])) -> 500 | AM51: =MATCH(MAX(BackendTable[[#This Row],[T1S1]:[T1S5]]),BackendTable[[#This Row],[T1S1]:[T1S5]],0) ->  | AN51: =MATCH(MAX(BackendTable[[#This Row],[T2S1]:[T2S5]]),BackendTable[[#This Row],[T2S1]:[T2S5]],0) ->  | AO51: =MATCH(MAX(BackendTable[[#This Row],[T3S1]:[T3S5]]),BackendTable[[#This Row],[T3S1]:[T3S5]],0) -> 
B52: =ROW()-ROW(BackendTable[[#Headers],[Row'#]]) -> 50 | C52: ='Data In'!A57 -> 0 | D52: =IF(BackendTable[[#This Row],[Time]]-'Reference Cells'!$C$3<=0,NA(),'Reference Cells'!$C$4-BackendTable[[#This Row],[Time]])*86400 ->  | E52: =IFERROR(8-BackendTable[[#This Row],[Column1]],"") ->  | F52: =IF(ISERROR(BackendTable[[#This Row],[Column1]]),-9,(BackendTable[[#This Row],[Net Time]]-NetTimeMin)*RangeAdj) -> -9 | G52: =IF(AND(BackendTable[[#This Row],[Time]]>='Reference Cells'!$C$6,BackendTable[[#This Row],[Time]]<='Reference Cells'!$C$7),(BackendTable[[#This Row],[Time]]-'Reference Cells'!$C$6)*86400,NA()) -> 2 | H52: =IF(CommandCell='Reference Cells'!$C$17,NA(),ABS('Data In'!B57-INDIRECT("ZeroVal_"&H$2,0))) -> 0 | I52: =IF(CommandCell='Reference Cells'!$C$17,NA(),ABS('Data In'!C57-INDIRECT("ZeroVal_"&I$2,0))) -> 0 | J52: =IF(CommandCell='Reference Cells'!$C$17,NA(),ABS('Data In'!D57-INDIRECT("ZeroVal_"&J$2,0))) -> 0 | K52: =IF(CommandCell='Reference Cells'!$C$17,NA(),ABS('Data In'!E57-INDIRECT("ZeroVal_"&K$2,0))) -> 0 | L52: =IF(CommandCell='Reference Cells'!$C$17,NA(),ABS('Data In'!F57-INDIRECT("ZeroVal_"&L$2,0))) -> 0 | M52: =MAX(BackendTable[[#This Row],[S1]:[S5]]) -> 0 | N52: =IF(ISERROR(BackendTable[[#This Row],[T0Time]]),0,COUNTIFS(BackendTable[T0Time],"<="&3,BackendTable[T0Time],">="&0)-COUNTIFS(BackendTable[T0Time],">"&BackendTable[[#This Row],[T0Time]])) -> 500 | AM52: =MATCH(MAX(BackendTable[[#This Row],[T1S1]:[T1S5]]),BackendTable[[#This Row],[T1S1]:[T1S5]],0) ->  | AN52: =MATCH(MAX(BackendTable[[#This Row],[T2S1]:[T2S5]]),BackendTable[[#This Row],[T2S1]:[T2S5]],0) ->  | AO52: =MATCH(MAX(BackendTable[[#This Row],[T3S1]:[T3S5]]),BackendTable[[#This Row],[T3S1]:[T3S5]],0) -> 
B53: =ROW()-ROW(BackendTable[[#Headers],[Row'#]]) -> 51 | C53: ='Data In'!A58 -> 0 | D53: =IF(BackendTable[[#This Row],[Time]]-'Reference Cells'!$C$3<=0,NA(),'Reference Cells'!$C$4-BackendTable[[#This Row],[Time]])*86400 ->  | E53: =IFERROR(8-BackendTable[[#This Row],[Column1]],"") ->  | F53: =IF(ISERROR(BackendTable[[#This Row],[Column1]]),-9,(BackendTable[[#This Row],[Net Time]]-NetTimeMin)*RangeAdj) -> -9 | G53: =IF(AND(BackendTable[[#This Row],[Time]]>='Reference Cells'!$C$6,BackendTable[[#This Row],[Time]]<='Reference Cells'!$C$7),(BackendTable[[#This Row],[Time]]-'Reference Cells'!$C$6)*86400,NA()) -> 2 | H53: =IF(CommandCell='Reference Cells'!$C$17,NA(),ABS('Data In'!B58-INDIRECT("ZeroVal_"&H$2,0))) -> 0 | I53: =IF(CommandCell='Reference Cells'!$C$17,NA(),ABS('Data In'!C58-INDIRECT("ZeroVal_"&I$2,0))) -> 0 | J53: =IF(CommandCell='Reference Cells'!$C$17,NA(),ABS('Data In'!D58-INDIRECT("ZeroVal_"&J$2,0))) -> 0 | K53: =IF(CommandCell='Reference Cells'!$C$17,NA(),ABS('Data In'!E58-INDIRECT("ZeroVal_"&K$2,0))) -> 0 | L53: =IF(CommandCell='Reference Cells'!$C$17,NA(),ABS('Data In'!F58-INDIRECT("ZeroVal_"&L$2,0))) -> 0 | M53: =MAX(BackendTable[[#This Row],[S1]:[S5]]) -> 0 | N53: =IF(ISERROR(BackendTable[[#This Row],[T0Time]]),0,COUNTIFS(BackendTable[T0Time],"<="&3,BackendTable[T0Time],">="&0)-COUNTIFS(BackendTable[T0Time],">"&BackendTable[[#This Row],[T0Time]])) -> 500 | AM53: =MATCH(MAX(BackendTable[[#This Row],[T1S1]:[T1S5]]),BackendTable[[#This Row],[T1S1]:[T1S5]],0) ->  | AN53: =MATCH(MAX(BackendTable[[#This Row],[T2S1]:[T2S5]]),BackendTable[[#This Row],[T2S1]:[T2S5]],0) ->  | AO53: =MATCH(MAX(BackendTable[[#This Row],[T3S1]:[T3S5]]),BackendTable[[#This Row],[T3S1]:[T3S5]],0) -> 
B54: =ROW()-ROW(BackendTable[[#Headers],[Row'#]]) -> 52 | C54: ='Data In'!A59 -> 0 | D54: =IF(BackendTable[[#This Row],[Time]]-'Reference Cells'!$C$3<=0,NA(),'Reference Cells'!$C$4-BackendTable[[#This Row],[Time]])*86400 ->  | E54: =IFERROR(8-BackendTable[[#This Row],[Column1]],"") ->  | F54: =IF(ISERROR(BackendTable[[#This Row],[Column1]]),-9,(BackendTable[[#This Row],[Net Time]]-NetTimeMin)*RangeAdj) -> -9 | G54: =IF(AND(BackendTable[[#This Row],[Time]]>='Reference Cells'!$C$6,BackendTable[[#This Row],[Time]]<='Reference Cells'!$C$7),(BackendTable[[#This Row],[Time]]-'Reference Cells'!$C$6)*86400,NA()) -> 2 | H54: =IF(CommandCell='Reference Cells'!$C$17,NA(),ABS('Data In'!B59-INDIRECT("ZeroVal_"&H$2,0))) -> 0 | I54: =IF(CommandCell='Reference Cells'!$C$17,NA(),ABS('Data In'!C59-INDIRECT("ZeroVal_"&I$2,0))) -> 0 | J54: =IF(CommandCell='Reference Cells'!$C$17,NA(),ABS('Data In'!D59-INDIRECT("ZeroVal_"&J$2,0))) -> 0 | K54: =IF(CommandCell='Reference Cells'!$C$17,NA(),ABS('Data In'!E59-INDIRECT("ZeroVal_"&K$2,0))) -> 0 | L54: =IF(CommandCell='Reference Cells'!$C$17,NA(),ABS('Data In'!F59-INDIRECT("ZeroVal_"&L$2,0))) -> 0 | M54: =MAX(BackendTable[[#This Row],[S1]:[S5]]) -> 0 | N54: =IF(ISERROR(BackendTable[[#This Row],[T0Time]]),0,COUNTIFS(BackendTable[T0Time],"<="&3,BackendTable[T0Time],">="&0)-COUNTIFS(BackendTable[T0Time],">"&BackendTable[[#This Row],[T0Time]])) -> 500 | AM54: =MATCH(MAX(BackendTable[[#This Row],[T1S1]:[T1S5]]),BackendTable[[#This Row],[T1S1]:[T1S5]],0) ->  | AN54: =MATCH(MAX(BackendTable[[#This Row],[T2S1]:[T2S5]]),BackendTable[[#This Row],[T2S1]:[T2S5]],0) ->  | AO54: =MATCH(MAX(BackendTable[[#This Row],[T3S1]:[T3S5]]),BackendTable[[#This Row],[T3S1]:[T3S5]],0) -> 
B55: =ROW()-ROW(BackendTable[[#Headers],[Row'#]]) -> 53 | C55: ='Data In'!A60 -> 0 | D55: =IF(BackendTable[[#This Row],[Time]]-'Reference Cells'!$C$3<=0,NA(),'Reference Cells'!$C$4-BackendTable[[#This Row],[Time]])*86400 ->  | E55: =IFERROR(8-BackendTable[[#This Row],[Column1]],"") ->  | F55: =IF(ISERROR(BackendTable[[#This Row],[Column1]]),-9,(BackendTable[[#This Row],[Net Time]]-NetTimeMin)*RangeAdj) -> -9 | G55: =IF(AND(BackendTable[[#This Row],[Time]]>='Reference Cells'!$C$6,BackendTable[[#This Row],[Time]]<='Reference Cells'!$C$7),(BackendTable[[#This Row],[Time]]-'Reference Cells'!$C$6)*86400,NA()) -> 2 | H55: =IF(CommandCell='Reference Cells'!$C$17,NA(),ABS('Data In'!B60-INDIRECT("ZeroVal_"&H$2,0))) -> 0 | I55: =IF(CommandCell='Reference Cells'!$C$17,NA(),ABS('Data In'!C60-INDIRECT("ZeroVal_"&I$2,0))) -> 0 | J55: =IF(CommandCell='Reference Cells'!$C$17,NA(),ABS('Data In'!D60-INDIRECT("ZeroVal_"&J$2,0))) -> 0 | K55: =IF(CommandCell='Reference Cells'!$C$17,NA(),ABS('Data In'!E60-INDIRECT("ZeroVal_"&K$2,0))) -> 0 | L55: =IF(CommandCell='Reference Cells'!$C$17,NA(),ABS('Data In'!F60-INDIRECT("ZeroVal_"&L$2,0))) -> 0 | M55: =MAX(BackendTable[[#This Row],[S1]:[S5]]) -> 0 | N55: =IF(ISERROR(BackendTable[[#This Row],[T0Time]]),0,COUNTIFS(BackendTable[T0Time],"<="&3,BackendTable[T0Time],">="&0)-COUNTIFS(BackendTable[T0Time],">"&BackendTable[[#This Row],[T0Time]])) -> 500 | AM55: =MATCH(MAX(BackendTable[[#This Row],[T1S1]:[T1S5]]),BackendTable[[#This Row],[T1S1]:[T1S5]],0) ->  | AN55: =MATCH(MAX(BackendTable[[#This Row],[T2S1]:[T2S5]]),BackendTable[[#This Row],[T2S1]:[T2S5]],0) ->  | AO55: =MATCH(MAX(BackendTable[[#This Row],[T3S1]:[T3S5]]),BackendTable[[#This Row],[T3S1]:[T3S5]],0) -> 
B56: =ROW()-ROW(BackendTable[[#Headers],[Row'#]]) -> 54 | C56: ='Data In'!A61 -> 0 | D56: =IF(BackendTable[[#This Row],[Time]]-'Reference Cells'!$C$3<=0,NA(),'Reference Cells'!$C$4-BackendTable[[#This Row],[Time]])*86400 ->  | E56: =IFERROR(8-BackendTable[[#This Row],[Column1]],"") ->  | F56: =IF(ISERROR(BackendTable[[#This Row],[Column1]]),-9,(BackendTable[[#This Row],[Net Time]]-NetTimeMin)*RangeAdj) -> -9 | G56: =IF(AND(BackendTable[[#This Row],[Time]]>='Reference Cells'!$C$6,BackendTable[[#This Row],[Time]]<='Reference Cells'!$C$7),(BackendTable[[#This Row],[Time]]-'Reference Cells'!$C$6)*86400,NA()) -> 2 | H56: =IF(CommandCell='Reference Cells'!$C$17,NA(),ABS('Data In'!B61-INDIRECT("ZeroVal_"&H$2,0))) -> 0 | I56: =IF(CommandCell='Reference Cells'!$C$17,NA(),ABS('Data In'!C61-INDIRECT("ZeroVal_"&I$2,0))) -> 0 | J56: =IF(CommandCell='Reference Cells'!$C$17,NA(),ABS('Data In'!D61-INDIRECT("ZeroVal_"&J$2,0))) -> 0 | K56: =IF(CommandCell='Reference Cells'!$C$17,NA(),ABS('Data In'!E61-INDIRECT("ZeroVal_"&K$2,0))) -> 0 | L56: =IF(CommandCell='Reference Cells'!$C$17,NA(),ABS('Data In'!F61-INDIRECT("ZeroVal_"&L$2,0))) -> 0 | M56: =MAX(BackendTable[[#This Row],[S1]:[S5]]) -> 0 | N56: =IF(ISERROR(BackendTable[[#This Row],[T0Time]]),0,COUNTIFS(BackendTable[T0Time],"<="&3,BackendTable[T0Time],">="&0)-COUNTIFS(BackendTable[T0Time],">"&BackendTable[[#This Row],[T0Time]])) -> 500 | AM56: =MATCH(MAX(BackendTable[[#This Row],[T1S1]:[T1S5]]),BackendTable[[#This Row],[T1S1]:[T1S5]],0) ->  | AN56: =MATCH(MAX(BackendTable[[#This Row],[T2S1]:[T2S5]]),BackendTable[[#This Row],[T2S1]:[T2S5]],0) ->  | AO56: =MATCH(MAX(BackendTable[[#This Row],[T3S1]:[T3S5]]),BackendTable[[#This Row],[T3S1]:[T3S5]],0) -> 
B57: =ROW()-ROW(BackendTable[[#Headers],[Row'#]]) -> 55 | C57: ='Data In'!A62 -> 0 | D57: =IF(BackendTable[[#This Row],[Time]]-'Reference Cells'!$C$3<=0,NA(),'Reference Cells'!$C$4-BackendTable[[#This Row],[Time]])*86400 ->  | E57: =IFERROR(8-BackendTable[[#This Row],[Column1]],"") ->  | F57: =IF(ISERROR(BackendTable[[#This Row],[Column1]]),-9,(BackendTable[[#This Row],[Net Time]]-NetTimeMin)*RangeAdj) -> -9 | G57: =IF(AND(BackendTable[[#This Row],[Time]]>='Reference Cells'!$C$6,BackendTable[[#This Row],[Time]]<='Reference Cells'!$C$7),(BackendTable[[#This Row],[Time]]-'Reference Cells'!$C$6)*86400,NA()) -> 2 | H57: =IF(CommandCell='Reference Cells'!$C$17,NA(),ABS('Data In'!B62-INDIRECT("ZeroVal_"&H$2,0))) -> 0 | I57: =IF(CommandCell='Reference Cells'!$C$17,NA(),ABS('Data In'!C62-INDIRECT("ZeroVal_"&I$2,0))) -> 0 | J57: =IF(CommandCell='Reference Cells'!$C$17,NA(),ABS('Data In'!D62-INDIRECT("ZeroVal_"&J$2,0))) -> 0 | K57: =IF(CommandCell='Reference Cells'!$C$17,NA(),ABS('Data In'!E62-INDIRECT("ZeroVal_"&K$2,0))) -> 0 | L57: =IF(CommandCell='Reference Cells'!$C$17,NA(),ABS('Data In'!F62-INDIRECT("ZeroVal_"&L$2,0))) -> 0 | M57: =MAX(BackendTable[[#This Row],[S1]:[S5]]) -> 0 | N57: =IF(ISERROR(BackendTable[[#This Row],[T0Time]]),0,COUNTIFS(BackendTable[T0Time],"<="&3,BackendTable[T0Time],">="&0)-COUNTIFS(BackendTable[T0Time],">"&BackendTable[[#This Row],[T0Time]])) -> 500 | AM57: =MATCH(MAX(BackendTable[[#This Row],[T1S1]:[T1S5]]),BackendTable[[#This Row],[T1S1]:[T1S5]],0) ->  | AN57: =MATCH(MAX(BackendTable[[#This Row],[T2S1]:[T2S5]]),BackendTable[[#This Row],[T2S1]:[T2S5]],0) ->  | AO57: =MATCH(MAX(BackendTable[[#This Row],[T3S1]:[T3S5]]),BackendTable[[#This Row],[T3S1]:[T3S5]],0) -> 
B58: =ROW()-ROW(BackendTable[[#Headers],[Row'#]]) -> 56 | C58: ='Data In'!A63 -> 0 | D58: =IF(BackendTable[[#This Row],[Time]]-'Reference Cells'!$C$3<=0,NA(),'Reference Cells'!$C$4-BackendTable[[#This Row],[Time]])*86400 ->  | E58: =IFERROR(8-BackendTable[[#This Row],[Column1]],"") ->  | F58: =IF(ISERROR(BackendTable[[#This Row],[Column1]]),-9,(BackendTable[[#This Row],[Net Time]]-NetTimeMin)*RangeAdj) -> -9 | G58: =IF(AND(BackendTable[[#This Row],[Time]]>='Reference Cells'!$C$6,BackendTable[[#This Row],[Time]]<='Reference Cells'!$C$7),(BackendTable[[#This Row],[Time]]-'Reference Cells'!$C$6)*86400,NA()) -> 2 | H58: =IF(CommandCell='Reference Cells'!$C$17,NA(),ABS('Data In'!B63-INDIRECT("ZeroVal_"&H$2,0))) -> 0 | I58: =IF(CommandCell='Reference Cells'!$C$17,NA(),ABS('Data In'!C63-INDIRECT("ZeroVal_"&I$2,0))) -> 0 | J58: =IF(CommandCell='Reference Cells'!$C$17,NA(),ABS('Data In'!D63-INDIRECT("ZeroVal_"&J$2,0))) -> 0 | K58: =IF(CommandCell='Reference Cells'!$C$17,NA(),ABS('Data In'!E63-INDIRECT("ZeroVal_"&K$2,0))) -> 0 | L58: =IF(CommandCell='Reference Cells'!$C$17,NA(),ABS('Data In'!F63-INDIRECT("ZeroVal_"&L$2,0))) -> 0 | M58: =MAX(BackendTable[[#This Row],[S1]:[S5]]) -> 0 | N58: =IF(ISERROR(BackendTable[[#This Row],[T0Time]]),0,COUNTIFS(BackendTable[T0Time],"<="&3,BackendTable[T0Time],">="&0)-COUNTIFS(BackendTable[T0Time],">"&BackendTable[[#This Row],[T0Time]])) -> 500 | AM58: =MATCH(MAX(BackendTable[[#This Row],[T1S1]:[T1S5]]),BackendTable[[#This Row],[T1S1]:[T1S5]],0) ->  | AN58: =MATCH(MAX(BackendTable[[#This Row],[T2S1]:[T2S5]]),BackendTable[[#This Row],[T2S1]:[T2S5]],0) ->  | AO58: =MATCH(MAX(BackendTable[[#This Row],[T3S1]:[T3S5]]),BackendTable[[#This Row],[T3S1]:[T3S5]],0) -> 
B59: =ROW()-ROW(BackendTable[[#Headers],[Row'#]]) -> 57 | C59: ='Data In'!A64 -> 0 | D59: =IF(BackendTable[[#This Row],[Time]]-'Reference Cells'!$C$3<=0,NA(),'Reference Cells'!$C$4-BackendTable[[#This Row],[Time]])*86400 ->  | E59: =IFERROR(8-BackendTable[[#This Row],[Column1]],"") ->  | F59: =IF(ISERROR(BackendTable[[#This Row],[Column1]]),-9,(BackendTable[[#This Row],[Net Time]]-NetTimeMin)*RangeAdj) -> -9 | G59: =IF(AND(BackendTable[[#This Row],[Time]]>='Reference Cells'!$C$6,BackendTable[[#This Row],[Time]]<='Reference Cells'!$C$7),(BackendTable[[#This Row],[Time]]-'Reference Cells'!$C$6)*86400,NA()) -> 2 | H59: =IF(CommandCell='Reference Cells'!$C$17,NA(),ABS('Data In'!B64-INDIRECT("ZeroVal_"&H$2,0))) -> 0 | I59: =IF(CommandCell='Reference Cells'!$C$17,NA(),ABS('Data In'!C64-INDIRECT("ZeroVal_"&I$2,0))) -> 0 | J59: =IF(CommandCell='Reference Cells'!$C$17,NA(),ABS('Data In'!D64-INDIRECT("ZeroVal_"&J$2,0))) -> 0 | K59: =IF(CommandCell='Reference Cells'!$C$17,NA(),ABS('Data In'!E64-INDIRECT("ZeroVal_"&K$2,0))) -> 0 | L59: =IF(CommandCell='Reference Cells'!$C$17,NA(),ABS('Data In'!F64-INDIRECT("ZeroVal_"&L$2,0))) -> 0 | M59: =MAX(BackendTable[[#This Row],[S1]:[S5]]) -> 0 | N59: =IF(ISERROR(BackendTable[[#This Row],[T0Time]]),0,COUNTIFS(BackendTable[T0Time],"<="&3,BackendTable[T0Time],">="&0)-COUNTIFS(BackendTable[T0Time],">"&BackendTable[[#This Row],[T0Time]])) -> 500 | AM59: =MATCH(MAX(BackendTable[[#This Row],[T1S1]:[T1S5]]),BackendTable[[#This Row],[T1S1]:[T1S5]],0) ->  | AN59: =MATCH(MAX(BackendTable[[#This Row],[T2S1]:[T2S5]]),BackendTable[[#This Row],[T2S1]:[T2S5]],0) ->  | AO59: =MATCH(MAX(BackendTable[[#This Row],[T3S1]:[T3S5]]),BackendTable[[#This Row],[T3S1]:[T3S5]],0) -> 
B60: =ROW()-ROW(BackendTable[[#Headers],[Row'#]]) -> 58 | C60: ='Data In'!A65 -> 0 | D60: =IF(BackendTable[[#This Row],[Time]]-'Reference Cells'!$C$3<=0,NA(),'Reference Cells'!$C$4-BackendTable[[#This Row],[Time]])*86400 ->  | E60: =IFERROR(8-BackendTable[[#This Row],[Column1]],"") ->  | F60: =IF(ISERROR(BackendTable[[#This Row],[Column1]]),-9,(BackendTable[[#This Row],[Net Time]]-NetTimeMin)*RangeAdj) -> -9 | G60: =IF(AND(BackendTable[[#This Row],[Time]]>='Reference Cells'!$C$6,BackendTable[[#This Row],[Time]]<='Reference Cells'!$C$7),(BackendTable[[#This Row],[Time]]-'Reference Cells'!$C$6)*86400,NA()) -> 2 | H60: =IF(CommandCell='Reference Cells'!$C$17,NA(),ABS('Data In'!B65-INDIRECT("ZeroVal_"&H$2,0))) -> 0 | I60: =IF(CommandCell='Reference Cells'!$C$17,NA(),ABS('Data In'!C65-INDIRECT("ZeroVal_"&I$2,0))) -> 0 | J60: =IF(CommandCell='Reference Cells'!$C$17,NA(),ABS('Data In'!D65-INDIRECT("ZeroVal_"&J$2,0))) -> 0 | K60: =IF(CommandCell='Reference Cells'!$C$17,NA(),ABS('Data In'!E65-INDIRECT("ZeroVal_"&K$2,0))) -> 0 | L60: =IF(CommandCell='Reference Cells'!$C$17,NA(),ABS('Data In'!F65-INDIRECT("ZeroVal_"&L$2,0))) -> 0 | M60: =MAX(BackendTable[[#This Row],[S1]:[S5]]) -> 0 | N60: =IF(ISERROR(BackendTable[[#This Row],[T0Time]]),0,COUNTIFS(BackendTable[T0Time],"<="&3,BackendTable[T0Time],">="&0)-COUNTIFS(BackendTable[T0Time],">"&BackendTable[[#This Row],[T0Time]])) -> 500 | AM60: =MATCH(MAX(BackendTable[[#This Row],[T1S1]:[T1S5]]),BackendTable[[#This Row],[T1S1]:[T1S5]],0) ->  | AN60: =MATCH(MAX(BackendTable[[#This Row],[T2S1]:[T2S5]]),BackendTable[[#This Row],[T2S1]:[T2S5]],0) ->  | AO60: =MATCH(MAX(BackendTable[[#This Row],[T3S1]:[T3S5]]),BackendTable[[#This Row],[T3S1]:[T3S5]],0) -> 
B61: =ROW()-ROW(BackendTable[[#Headers],[Row'#]]) -> 59 | C61: ='Data In'!A66 -> 0 | D61: =IF(BackendTable[[#This Row],[Time]]-'Reference Cells'!$C$3<=0,NA(),'Reference Cells'!$C$4-BackendTable[[#This Row],[Time]])*86400 ->  | E61: =IFERROR(8-BackendTable[[#This Row],[Column1]],"") ->  | F61: =IF(ISERROR(BackendTable[[#This Row],[Column1]]),-9,(BackendTable[[#This Row],[Net Time]]-NetTimeMin)*RangeAdj) -> -9 | G61: =IF(AND(BackendTable[[#This Row],[Time]]>='Reference Cells'!$C$6,BackendTable[[#This Row],[Time]]<='Reference Cells'!$C$7),(BackendTable[[#This Row],[Time]]-'Reference Cells'!$C$6)*86400,NA()) -> 2 | H61: =IF(CommandCell='Reference Cells'!$C$17,NA(),ABS('Data In'!B66-INDIRECT("ZeroVal_"&H$2,0))) -> 0 | I61: =IF(CommandCell='Reference Cells'!$C$17,NA(),ABS('Data In'!C66-INDIRECT("ZeroVal_"&I$2,0))) -> 0 | J61: =IF(CommandCell='Reference Cells'!$C$17,NA(),ABS('Data In'!D66-INDIRECT("ZeroVal_"&J$2,0))) -> 0 | K61: =IF(CommandCell='Reference Cells'!$C$17,NA(),ABS('Data In'!E66-INDIRECT("ZeroVal_"&K$2,0))) -> 0 | L61: =IF(CommandCell='Reference Cells'!$C$17,NA(),ABS('Data In'!F66-INDIRECT("ZeroVal_"&L$2,0))) -> 0 | M61: =MAX(BackendTable[[#This Row],[S1]:[S5]]) -> 0 | N61: =IF(ISERROR(BackendTable[[#This Row],[T0Time]]),0,COUNTIFS(BackendTable[T0Time],"<="&3,BackendTable[T0Time],">="&0)-COUNTIFS(BackendTable[T0Time],">"&BackendTable[[#This Row],[T0Time]])) -> 500 | AM61: =MATCH(MAX(BackendTable[[#This Row],[T1S1]:[T1S5]]),BackendTable[[#This Row],[T1S1]:[T1S5]],0) ->  | AN61: =MATCH(MAX(BackendTable[[#This Row],[T2S1]:[T2S5]]),BackendTable[[#This Row],[T2S1]:[T2S5]],0) ->  | AO61: =MATCH(MAX(BackendTable[[#This Row],[T3S1]:[T3S5]]),BackendTable[[#This Row],[T3S1]:[T3S5]],0) -> 
B62: =ROW()-ROW(BackendTable[[#Headers],[Row'#]]) -> 60 | C62: ='Data In'!A67 -> 0 | D62: =IF(BackendTable[[#This Row],[Time]]-'Reference Cells'!$C$3<=0,NA(),'Reference Cells'!$C$4-BackendTable[[#This Row],[Time]])*86400 ->  | E62: =IFERROR(8-BackendTable[[#This Row],[Column1]],"") ->  | F62: =IF(ISERROR(BackendTable[[#This Row],[Column1]]),-9,(BackendTable[[#This Row],[Net Time]]-NetTimeMin)*RangeAdj) -> -9 | G62: =IF(AND(BackendTable[[#This Row],[Time]]>='Reference Cells'!$C$6,BackendTable[[#This Row],[Time]]<='Reference Cells'!$C$7),(BackendTable[[#This Row],[Time]]-'Reference Cells'!$C$6)*86400,NA()) -> 2 | H62: =IF(CommandCell='Reference Cells'!$C$17,NA(),ABS('Data In'!B67-INDIRECT("ZeroVal_"&H$2,0))) -> 0 | I62: =IF(CommandCell='Reference Cells'!$C$17,NA(),ABS('Data In'!C67-INDIRECT("ZeroVal_"&I$2,0))) -> 0 | J62: =IF(CommandCell='Reference Cells'!$C$17,NA(),ABS('Data In'!D67-INDIRECT("ZeroVal_"&J$2,0))) -> 0 | K62: =IF(CommandCell='Reference Cells'!$C$17,NA(),ABS('Data In'!E67-INDIRECT("ZeroVal_"&K$2,0))) -> 0 | L62: =IF(CommandCell='Reference Cells'!$C$17,NA(),ABS('Data In'!F67-INDIRECT("ZeroVal_"&L$2,0))) -> 0 | M62: =MAX(BackendTable[[#This Row],[S1]:[S5]]) -> 0 | N62: =IF(ISERROR(BackendTable[[#This Row],[T0Time]]),0,COUNTIFS(BackendTable[T0Time],"<="&3,BackendTable[T0Time],">="&0)-COUNTIFS(BackendTable[T0Time],">"&BackendTable[[#This Row],[T0Time]])) -> 500 | AM62: =MATCH(MAX(BackendTable[[#This Row],[T1S1]:[T1S5]]),BackendTable[[#This Row],[T1S1]:[T1S5]],0) ->  | AN62: =MATCH(MAX(BackendTable[[#This Row],[T2S1]:[T2S5]]),BackendTable[[#This Row],[T2S1]:[T2S5]],0) ->  | AO62: =MATCH(MAX(BackendTable[[#This Row],[T3S1]:[T3S5]]),BackendTable[[#This Row],[T3S1]:[T3S5]],0) -> 
B63: =ROW()-ROW(BackendTable[[#Headers],[Row'#]]) -> 61 | C63: ='Data In'!A68 -> 0 | D63: =IF(BackendTable[[#This Row],[Time]]-'Reference Cells'!$C$3<=0,NA(),'Reference Cells'!$C$4-BackendTable[[#This Row],[Time]])*86400 ->  | E63: =IFERROR(8-BackendTable[[#This Row],[Column1]],"") ->  | F63: =IF(ISERROR(BackendTable[[#This Row],[Column1]]),-9,(BackendTable[[#This Row],[Net Time]]-NetTimeMin)*RangeAdj) -> -9 | G63: =IF(AND(BackendTable[[#This Row],[Time]]>='Reference Cells'!$C$6,BackendTable[[#This Row],[Time]]<='Reference Cells'!$C$7),(BackendTable[[#This Row],[Time]]-'Reference Cells'!$C$6)*86400,NA()) -> 2 | H63: =IF(CommandCell='Reference Cells'!$C$17,NA(),ABS('Data In'!B68-INDIRECT("ZeroVal_"&H$2,0))) -> 0 | I63: =IF(CommandCell='Reference Cells'!$C$17,NA(),ABS('Data In'!C68-INDIRECT("ZeroVal_"&I$2,0))) -> 0 | J63: =IF(CommandCell='Reference Cells'!$C$17,NA(),ABS('Data In'!D68-INDIRECT("ZeroVal_"&J$2,0))) -> 0 | K63: =IF(CommandCell='Reference Cells'!$C$17,NA(),ABS('Data In'!E68-INDIRECT("ZeroVal_"&K$2,0))) -> 0 | L63: =IF(CommandCell='Reference Cells'!$C$17,NA(),ABS('Data In'!F68-INDIRECT("ZeroVal_"&L$2,0))) -> 0 | M63: =MAX(BackendTable[[#This Row],[S1]:[S5]]) -> 0 | N63: =IF(ISERROR(BackendTable[[#This Row],[T0Time]]),0,COUNTIFS(BackendTable[T0Time],"<="&3,BackendTable[T0Time],">="&0)-COUNTIFS(BackendTable[T0Time],">"&BackendTable[[#This Row],[T0Time]])) -> 500 | AM63: =MATCH(MAX(BackendTable[[#This Row],[T1S1]:[T1S5]]),BackendTable[[#This Row],[T1S1]:[T1S5]],0) ->  | AN63: =MATCH(MAX(BackendTable[[#This Row],[T2S1]:[T2S5]]),BackendTable[[#This Row],[T2S1]:[T2S5]],0) ->  | AO63: =MATCH(MAX(BackendTable[[#This Row],[T3S1]:[T3S5]]),BackendTable[[#This Row],[T3S1]:[T3S5]],0) -> 
B64: =ROW()-ROW(BackendTable[[#Headers],[Row'#]]) -> 62 | C64: ='Data In'!A69 -> 0 | D64: =IF(BackendTable[[#This Row],[Time]]-'Reference Cells'!$C$3<=0,NA(),'Reference Cells'!$C$4-BackendTable[[#This Row],[Time]])*86400 ->  | E64: =IFERROR(8-BackendTable[[#This Row],[Column1]],"") ->  | F64: =IF(ISERROR(BackendTable[[#This Row],[Column1]]),-9,(BackendTable[[#This Row],[Net Time]]-NetTimeMin)*RangeAdj) -> -9 | G64: =IF(AND(BackendTable[[#This Row],[Time]]>='Reference Cells'!$C$6,BackendTable[[#This Row],[Time]]<='Reference Cells'!$C$7),(BackendTable[[#This Row],[Time]]-'Reference Cells'!$C$6)*86400,NA()) -> 2 | H64: =IF(CommandCell='Reference Cells'!$C$17,NA(),ABS('Data In'!B69-INDIRECT("ZeroVal_"&H$2,0))) -> 0 | I64: =IF(CommandCell='Reference Cells'!$C$17,NA(),ABS('Data In'!C69-INDIRECT("ZeroVal_"&I$2,0))) -> 0 | J64: =IF(CommandCell='Reference Cells'!$C$17,NA(),ABS('Data In'!D69-INDIRECT("ZeroVal_"&J$2,0))) -> 0 | K64: =IF(CommandCell='Reference Cells'!$C$17,NA(),ABS('Data In'!E69-INDIRECT("ZeroVal_"&K$2,0))) -> 0 | L64: =IF(CommandCell='Reference Cells'!$C$17,NA(),ABS('Data In'!F69-INDIRECT("ZeroVal_"&L$2,0))) -> 0 | M64: =MAX(BackendTable[[#This Row],[S1]:[S5]]) -> 0 | N64: =IF(ISERROR(BackendTable[[#This Row],[T0Time]]),0,COUNTIFS(BackendTable[T0Time],"<="&3,BackendTable[T0Time],">="&0)-COUNTIFS(BackendTable[T0Time],">"&BackendTable[[#This Row],[T0Time]])) -> 500 | AM64: =MATCH(MAX(BackendTable[[#This Row],[T1S1]:[T1S5]]),BackendTable[[#This Row],[T1S1]:[T1S5]],0) ->  | AN64: =MATCH(MAX(BackendTable[[#This Row],[T2S1]:[T2S5]]),BackendTable[[#This Row],[T2S1]:[T2S5]],0) ->  | AO64: =MATCH(MAX(BackendTable[[#This Row],[T3S1]:[T3S5]]),BackendTable[[#This Row],[T3S1]:[T3S5]],0) -> 
B65: =ROW()-ROW(BackendTable[[#Headers],[Row'#]]) -> 63 | C65: ='Data In'!A70 -> 0 | D65: =IF(BackendTable[[#This Row],[Time]]-'Reference Cells'!$C$3<=0,NA(),'Reference Cells'!$C$4-BackendTable[[#This Row],[Time]])*86400 ->  | E65: =IFERROR(8-BackendTable[[#This Row],[Column1]],"") ->  | F65: =IF(ISERROR(BackendTable[[#This Row],[Column1]]),-9,(BackendTable[[#This Row],[Net Time]]-NetTimeMin)*RangeAdj) -> -9 | G65: =IF(AND(BackendTable[[#This Row],[Time]]>='Reference Cells'!$C$6,BackendTable[[#This Row],[Time]]<='Reference Cells'!$C$7),(BackendTable[[#This Row],[Time]]-'Reference Cells'!$C$6)*86400,NA()) -> 2 | H65: =IF(CommandCell='Reference Cells'!$C$17,NA(),ABS('Data In'!B70-INDIRECT("ZeroVal_"&H$2,0))) -> 0 | I65: =IF(CommandCell='Reference Cells'!$C$17,NA(),ABS('Data In'!C70-INDIRECT("ZeroVal_"&I$2,0))) -> 0 | J65: =IF(CommandCell='Reference Cells'!$C$17,NA(),ABS('Data In'!D70-INDIRECT("ZeroVal_"&J$2,0))) -> 0 | K65: =IF(CommandCell='Reference Cells'!$C$17,NA(),ABS('Data In'!E70-INDIRECT("ZeroVal_"&K$2,0))) -> 0 | L65: =IF(CommandCell='Reference Cells'!$C$17,NA(),ABS('Data In'!F70-INDIRECT("ZeroVal_"&L$2,0))) -> 0 | M65: =MAX(BackendTable[[#This Row],[S1]:[S5]]) -> 0 | N65: =IF(ISERROR(BackendTable[[#This Row],[T0Time]]),0,COUNTIFS(BackendTable[T0Time],"<="&3,BackendTable[T0Time],">="&0)-COUNTIFS(BackendTable[T0Time],">"&BackendTable[[#This Row],[T0Time]])) -> 500 | AM65: =MATCH(MAX(BackendTable[[#This Row],[T1S1]:[T1S5]]),BackendTable[[#This Row],[T1S1]:[T1S5]],0) ->  | AN65: =MATCH(MAX(BackendTable[[#This Row],[T2S1]:[T2S5]]),BackendTable[[#This Row],[T2S1]:[T2S5]],0) ->  | AO65: =MATCH(MAX(BackendTable[[#This Row],[T3S1]:[T3S5]]),BackendTable[[#This Row],[T3S1]:[T3S5]],0) -> 
B66: =ROW()-ROW(BackendTable[[#Headers],[Row'#]]) -> 64 | C66: ='Data In'!A71 -> 0 | D66: =IF(BackendTable[[#This Row],[Time]]-'Reference Cells'!$C$3<=0,NA(),'Reference Cells'!$C$4-BackendTable[[#This Row],[Time]])*86400 ->  | E66: =IFERROR(8-BackendTable[[#This Row],[Column1]],"") ->  | F66: =IF(ISERROR(BackendTable[[#This Row],[Column1]]),-9,(BackendTable[[#This Row],[Net Time]]-NetTimeMin)*RangeAdj) -> -9 | G66: =IF(AND(BackendTable[[#This Row],[Time]]>='Reference Cells'!$C$6,BackendTable[[#This Row],[Time]]<='Reference Cells'!$C$7),(BackendTable[[#This Row],[Time]]-'Reference Cells'!$C$6)*86400,NA()) -> 2 | H66: =IF(CommandCell='Reference Cells'!$C$17,NA(),ABS('Data In'!B71-INDIRECT("ZeroVal_"&H$2,0))) -> 0 | I66: =IF(CommandCell='Reference Cells'!$C$17,NA(),ABS('Data In'!C71-INDIRECT("ZeroVal_"&I$2,0))) -> 0 | J66: =IF(CommandCell='Reference Cells'!$C$17,NA(),ABS('Data In'!D71-INDIRECT("ZeroVal_"&J$2,0))) -> 0 | K66: =IF(CommandCell='Reference Cells'!$C$17,NA(),ABS('Data In'!E71-INDIRECT("ZeroVal_"&K$2,0))) -> 0 | L66: =IF(CommandCell='Reference Cells'!$C$17,NA(),ABS('Data In'!F71-INDIRECT("ZeroVal_"&L$2,0))) -> 0 | M66: =MAX(BackendTable[[#This Row],[S1]:[S5]]) -> 0 | N66: =IF(ISERROR(BackendTable[[#This Row],[T0Time]]),0,COUNTIFS(BackendTable[T0Time],"<="&3,BackendTable[T0Time],">="&0)-COUNTIFS(BackendTable[T0Time],">"&BackendTable[[#This Row],[T0Time]])) -> 500 | AM66: =MATCH(MAX(BackendTable[[#This Row],[T1S1]:[T1S5]]),BackendTable[[#This Row],[T1S1]:[T1S5]],0) ->  | AN66: =MATCH(MAX(BackendTable[[#This Row],[T2S1]:[T2S5]]),BackendTable[[#This Row],[T2S1]:[T2S5]],0) ->  | AO66: =MATCH(MAX(BackendTable[[#This Row],[T3S1]:[T3S5]]),BackendTable[[#This Row],[T3S1]:[T3S5]],0) -> 
B67: =ROW()-ROW(BackendTable[[#Headers],[Row'#]]) -> 65 | C67: ='Data In'!A72 -> 0 | D67: =IF(BackendTable[[#This Row],[Time]]-'Reference Cells'!$C$3<=0,NA(),'Reference Cells'!$C$4-BackendTable[[#This Row],[Time]])*86400 ->  | E67: =IFERROR(8-BackendTable[[#This Row],[Column1]],"") ->  | F67: =IF(ISERROR(BackendTable[[#This Row],[Column1]]),-9,(BackendTable[[#This Row],[Net Time]]-NetTimeMin)*RangeAdj) -> -9 | G67: =IF(AND(BackendTable[[#This Row],[Time]]>='Reference Cells'!$C$6,BackendTable[[#This Row],[Time]]<='Reference Cells'!$C$7),(BackendTable[[#This Row],[Time]]-'Reference Cells'!$C$6)*86400,NA()) -> 2 | H67: =IF(CommandCell='Reference Cells'!$C$17,NA(),ABS('Data In'!B72-INDIRECT("ZeroVal_"&H$2,0))) -> 0 | I67: =IF(CommandCell='Reference Cells'!$C$17,NA(),ABS('Data In'!C72-INDIRECT("ZeroVal_"&I$2,0))) -> 0 | J67: =IF(CommandCell='Reference Cells'!$C$17,NA(),ABS('Data In'!D72-INDIRECT("ZeroVal_"&J$2,0))) -> 0 | K67: =IF(CommandCell='Reference Cells'!$C$17,NA(),ABS('Data In'!E72-INDIRECT("ZeroVal_"&K$2,0))) -> 0 | L67: =IF(CommandCell='Reference Cells'!$C$17,NA(),ABS('Data In'!F72-INDIRECT("ZeroVal_"&L$2,0))) -> 0 | M67: =MAX(BackendTable[[#This Row],[S1]:[S5]]) -> 0 | N67: =IF(ISERROR(BackendTable[[#This Row],[T0Time]]),0,COUNTIFS(BackendTable[T0Time],"<="&3,BackendTable[T0Time],">="&0)-COUNTIFS(BackendTable[T0Time],">"&BackendTable[[#This Row],[T0Time]])) -> 500 | AM67: =MATCH(MAX(BackendTable[[#This Row],[T1S1]:[T1S5]]),BackendTable[[#This Row],[T1S1]:[T1S5]],0) ->  | AN67: =MATCH(MAX(BackendTable[[#This Row],[T2S1]:[T2S5]]),BackendTable[[#This Row],[T2S1]:[T2S5]],0) ->  | AO67: =MATCH(MAX(BackendTable[[#This Row],[T3S1]:[T3S5]]),BackendTable[[#This Row],[T3S1]:[T3S5]],0) -> 
B68: =ROW()-ROW(BackendTable[[#Headers],[Row'#]]) -> 66 | C68: ='Data In'!A73 -> 0 | D68: =IF(BackendTable[[#This Row],[Time]]-'Reference Cells'!$C$3<=0,NA(),'Reference Cells'!$C$4-BackendTable[[#This Row],[Time]])*86400 ->  | E68: =IFERROR(8-BackendTable[[#This Row],[Column1]],"") ->  | F68: =IF(ISERROR(BackendTable[[#This Row],[Column1]]),-9,(BackendTable[[#This Row],[Net Time]]-NetTimeMin)*RangeAdj) -> -9 | G68: =IF(AND(BackendTable[[#This Row],[Time]]>='Reference Cells'!$C$6,BackendTable[[#This Row],[Time]]<='Reference Cells'!$C$7),(BackendTable[[#This Row],[Time]]-'Reference Cells'!$C$6)*86400,NA()) -> 2 | H68: =IF(CommandCell='Reference Cells'!$C$17,NA(),ABS('Data In'!B73-INDIRECT("ZeroVal_"&H$2,0))) -> 0 | I68: =IF(CommandCell='Reference Cells'!$C$17,NA(),ABS('Data In'!C73-INDIRECT("ZeroVal_"&I$2,0))) -> 0 | J68: =IF(CommandCell='Reference Cells'!$C$17,NA(),ABS('Data In'!D73-INDIRECT("ZeroVal_"&J$2,0))) -> 0 | K68: =IF(CommandCell='Reference Cells'!$C$17,NA(),ABS('Data In'!E73-INDIRECT("ZeroVal_"&K$2,0))) -> 0 | L68: =IF(CommandCell='Reference Cells'!$C$17,NA(),ABS('Data In'!F73-INDIRECT("ZeroVal_"&L$2,0))) -> 0 | M68: =MAX(BackendTable[[#This Row],[S1]:[S5]]) -> 0 | N68: =IF(ISERROR(BackendTable[[#This Row],[T0Time]]),0,COUNTIFS(BackendTable[T0Time],"<="&3,BackendTable[T0Time],">="&0)-COUNTIFS(BackendTable[T0Time],">"&BackendTable[[#This Row],[T0Time]])) -> 500 | AM68: =MATCH(MAX(BackendTable[[#This Row],[T1S1]:[T1S5]]),BackendTable[[#This Row],[T1S1]:[T1S5]],0) ->  | AN68: =MATCH(MAX(BackendTable[[#This Row],[T2S1]:[T2S5]]),BackendTable[[#This Row],[T2S1]:[T2S5]],0) ->  | AO68: =MATCH(MAX(BackendTable[[#This Row],[T3S1]:[T3S5]]),BackendTable[[#This Row],[T3S1]:[T3S5]],0) -> 
B69: =ROW()-ROW(BackendTable[[#Headers],[Row'#]]) -> 67 | C69: ='Data In'!A74 -> 0 | D69: =IF(BackendTable[[#This Row],[Time]]-'Reference Cells'!$C$3<=0,NA(),'Reference Cells'!$C$4-BackendTable[[#This Row],[Time]])*86400 ->  | E69: =IFERROR(8-BackendTable[[#This Row],[Column1]],"") ->  | F69: =IF(ISERROR(BackendTable[[#This Row],[Column1]]),-9,(BackendTable[[#This Row],[Net Time]]-NetTimeMin)*RangeAdj) -> -9 | G69: =IF(AND(BackendTable[[#This Row],[Time]]>='Reference Cells'!$C$6,BackendTable[[#This Row],[Time]]<='Reference Cells'!$C$7),(BackendTable[[#This Row],[Time]]-'Reference Cells'!$C$6)*86400,NA()) -> 2 | H69: =IF(CommandCell='Reference Cells'!$C$17,NA(),ABS('Data In'!B74-INDIRECT("ZeroVal_"&H$2,0))) -> 0 | I69: =IF(CommandCell='Reference Cells'!$C$17,NA(),ABS('Data In'!C74-INDIRECT("ZeroVal_"&I$2,0))) -> 0 | J69: =IF(CommandCell='Reference Cells'!$C$17,NA(),ABS('Data In'!D74-INDIRECT("ZeroVal_"&J$2,0))) -> 0 | K69: =IF(CommandCell='Reference Cells'!$C$17,NA(),ABS('Data In'!E74-INDIRECT("ZeroVal_"&K$2,0))) -> 0 | L69: =IF(CommandCell='Reference Cells'!$C$17,NA(),ABS('Data In'!F74-INDIRECT("ZeroVal_"&L$2,0))) -> 0 | M69: =MAX(BackendTable[[#This Row],[S1]:[S5]]) -> 0 | N69: =IF(ISERROR(BackendTable[[#This Row],[T0Time]]),0,COUNTIFS(BackendTable[T0Time],"<="&3,BackendTable[T0Time],">="&0)-COUNTIFS(BackendTable[T0Time],">"&BackendTable[[#This Row],[T0Time]])) -> 500 | AM69: =MATCH(MAX(BackendTable[[#This Row],[T1S1]:[T1S5]]),BackendTable[[#This Row],[T1S1]:[T1S5]],0) ->  | AN69: =MATCH(MAX(BackendTable[[#This Row],[T2S1]:[T2S5]]),BackendTable[[#This Row],[T2S1]:[T2S5]],0) ->  | AO69: =MATCH(MAX(BackendTable[[#This Row],[T3S1]:[T3S5]]),BackendTable[[#This Row],[T3S1]:[T3S5]],0) -> 
B70: =ROW()-ROW(BackendTable[[#Headers],[Row'#]]) -> 68 | C70: ='Data In'!A75 -> 0 | D70: =IF(BackendTable[[#This Row],[Time]]-'Reference Cells'!$C$3<=0,NA(),'Reference Cells'!$C$4-BackendTable[[#This Row],[Time]])*86400 ->  | E70: =IFERROR(8-BackendTable[[#This Row],[Column1]],"") ->  | F70: =IF(ISERROR(BackendTable[[#This Row],[Column1]]),-9,(BackendTable[[#This Row],[Net Time]]-NetTimeMin)*RangeAdj) -> -9 | G70: =IF(AND(BackendTable[[#This Row],[Time]]>='Reference Cells'!$C$6,BackendTable[[#This Row],[Time]]<='Reference Cells'!$C$7),(BackendTable[[#This Row],[Time]]-'Reference Cells'!$C$6)*86400,NA()) -> 2 | H70: =IF(CommandCell='Reference Cells'!$C$17,NA(),ABS('Data In'!B75-INDIRECT("ZeroVal_"&H$2,0))) -> 0 | I70: =IF(CommandCell='Reference Cells'!$C$17,NA(),ABS('Data In'!C75-INDIRECT("ZeroVal_"&I$2,0))) -> 0 | J70: =IF(CommandCell='Reference Cells'!$C$17,NA(),ABS('Data In'!D75-INDIRECT("ZeroVal_"&J$2,0))) -> 0 | K70: =IF(CommandCell='Reference Cells'!$C$17,NA(),ABS('Data In'!E75-INDIRECT("ZeroVal_"&K$2,0))) -> 0 | L70: =IF(CommandCell='Reference Cells'!$C$17,NA(),ABS('Data In'!F75-INDIRECT("ZeroVal_"&L$2,0))) -> 0 | M70: =MAX(BackendTable[[#This Row],[S1]:[S5]]) -> 0 | N70: =IF(ISERROR(BackendTable[[#This Row],[T0Time]]),0,COUNTIFS(BackendTable[T0Time],"<="&3,BackendTable[T0Time],">="&0)-COUNTIFS(BackendTable[T0Time],">"&BackendTable[[#This Row],[T0Time]])) -> 500 | AM70: =MATCH(MAX(BackendTable[[#This Row],[T1S1]:[T1S5]]),BackendTable[[#This Row],[T1S1]:[T1S5]],0) ->  | AN70: =MATCH(MAX(BackendTable[[#This Row],[T2S1]:[T2S5]]),BackendTable[[#This Row],[T2S1]:[T2S5]],0) ->  | AO70: =MATCH(MAX(BackendTable[[#This Row],[T3S1]:[T3S5]]),BackendTable[[#This Row],[T3S1]:[T3S5]],0) -> 
B71: =ROW()-ROW(BackendTable[[#Headers],[Row'#]]) -> 69 | C71: ='Data In'!A76 -> 0 | D71: =IF(BackendTable[[#This Row],[Time]]-'Reference Cells'!$C$3<=0,NA(),'Reference Cells'!$C$4-BackendTable[[#This Row],[Time]])*86400 ->  | E71: =IFERROR(8-BackendTable[[#This Row],[Column1]],"") ->  | F71: =IF(ISERROR(BackendTable[[#This Row],[Column1]]),-9,(BackendTable[[#This Row],[Net Time]]-NetTimeMin)*RangeAdj) -> -9 | G71: =IF(AND(BackendTable[[#This Row],[Time]]>='Reference Cells'!$C$6,BackendTable[[#This Row],[Time]]<='Reference Cells'!$C$7),(BackendTable[[#This Row],[Time]]-'Reference Cells'!$C$6)*86400,NA()) -> 2 | H71: =IF(CommandCell='Reference Cells'!$C$17,NA(),ABS('Data In'!B76-INDIRECT("ZeroVal_"&H$2,0))) -> 0 | I71: =IF(CommandCell='Reference Cells'!$C$17,NA(),ABS('Data In'!C76-INDIRECT("ZeroVal_"&I$2,0))) -> 0 | J71: =IF(CommandCell='Reference Cells'!$C$17,NA(),ABS('Data In'!D76-INDIRECT("ZeroVal_"&J$2,0))) -> 0 | K71: =IF(CommandCell='Reference Cells'!$C$17,NA(),ABS('Data In'!E76-INDIRECT("ZeroVal_"&K$2,0))) -> 0 | L71: =IF(CommandCell='Reference Cells'!$C$17,NA(),ABS('Data In'!F76-INDIRECT("ZeroVal_"&L$2,0))) -> 0 | M71: =MAX(BackendTable[[#This Row],[S1]:[S5]]) -> 0 | N71: =IF(ISERROR(BackendTable[[#This Row],[T0Time]]),0,COUNTIFS(BackendTable[T0Time],"<="&3,BackendTable[T0Time],">="&0)-COUNTIFS(BackendTable[T0Time],">"&BackendTable[[#This Row],[T0Time]])) -> 500 | AM71: =MATCH(MAX(BackendTable[[#This Row],[T1S1]:[T1S5]]),BackendTable[[#This Row],[T1S1]:[T1S5]],0) ->  | AN71: =MATCH(MAX(BackendTable[[#This Row],[T2S1]:[T2S5]]),BackendTable[[#This Row],[T2S1]:[T2S5]],0) ->  | AO71: =MATCH(MAX(BackendTable[[#This Row],[T3S1]:[T3S5]]),BackendTable[[#This Row],[T3S1]:[T3S5]],0) -> 
B72: =ROW()-ROW(BackendTable[[#Headers],[Row'#]]) -> 70 | C72: ='Data In'!A77 -> 0 | D72: =IF(BackendTable[[#This Row],[Time]]-'Reference Cells'!$C$3<=0,NA(),'Reference Cells'!$C$4-BackendTable[[#This Row],[Time]])*86400 ->  | E72: =IFERROR(8-BackendTable[[#This Row],[Column1]],"") ->  | F72: =IF(ISERROR(BackendTable[[#This Row],[Column1]]),-9,(BackendTable[[#This Row],[Net Time]]-NetTimeMin)*RangeAdj) -> -9 | G72: =IF(AND(BackendTable[[#This Row],[Time]]>='Reference Cells'!$C$6,BackendTable[[#This Row],[Time]]<='Reference Cells'!$C$7),(BackendTable[[#This Row],[Time]]-'Reference Cells'!$C$6)*86400,NA()) -> 2 | H72: =IF(CommandCell='Reference Cells'!$C$17,NA(),ABS('Data In'!B77-INDIRECT("ZeroVal_"&H$2,0))) -> 0 | I72: =IF(CommandCell='Reference Cells'!$C$17,NA(),ABS('Data In'!C77-INDIRECT("ZeroVal_"&I$2,0))) -> 0 | J72: =IF(CommandCell='Reference Cells'!$C$17,NA(),ABS('Data In'!D77-INDIRECT("ZeroVal_"&J$2,0))) -> 0 | K72: =IF(CommandCell='Reference Cells'!$C$17,NA(),ABS('Data In'!E77-INDIRECT("ZeroVal_"&K$2,0))) -> 0 | L72: =IF(CommandCell='Reference Cells'!$C$17,NA(),ABS('Data In'!F77-INDIRECT("ZeroVal_"&L$2,0))) -> 0 | M72: =MAX(BackendTable[[#This Row],[S1]:[S5]]) -> 0 | N72: =IF(ISERROR(BackendTable[[#This Row],[T0Time]]),0,COUNTIFS(BackendTable[T0Time],"<="&3,BackendTable[T0Time],">="&0)-COUNTIFS(BackendTable[T0Time],">"&BackendTable[[#This Row],[T0Time]])) -> 500 | AM72: =MATCH(MAX(BackendTable[[#This Row],[T1S1]:[T1S5]]),BackendTable[[#This Row],[T1S1]:[T1S5]],0) ->  | AN72: =MATCH(MAX(BackendTable[[#This Row],[T2S1]:[T2S5]]),BackendTable[[#This Row],[T2S1]:[T2S5]],0) ->  | AO72: =MATCH(MAX(BackendTable[[#This Row],[T3S1]:[T3S5]]),BackendTable[[#This Row],[T3S1]:[T3S5]],0) -> 
B73: =ROW()-ROW(BackendTable[[#Headers],[Row'#]]) -> 71 | C73: ='Data In'!A78 -> 0 | D73: =IF(BackendTable[[#This Row],[Time]]-'Reference Cells'!$C$3<=0,NA(),'Reference Cells'!$C$4-BackendTable[[#This Row],[Time]])*86400 ->  | E73: =IFERROR(8-BackendTable[[#This Row],[Column1]],"") ->  | F73: =IF(ISERROR(BackendTable[[#This Row],[Column1]]),-9,(BackendTable[[#This Row],[Net Time]]-NetTimeMin)*RangeAdj) -> -9 | G73: =IF(AND(BackendTable[[#This Row],[Time]]>='Reference Cells'!$C$6,BackendTable[[#This Row],[Time]]<='Reference Cells'!$C$7),(BackendTable[[#This Row],[Time]]-'Reference Cells'!$C$6)*86400,NA()) -> 2 | H73: =IF(CommandCell='Reference Cells'!$C$17,NA(),ABS('Data In'!B78-INDIRECT("ZeroVal_"&H$2,0))) -> 0 | I73: =IF(CommandCell='Reference Cells'!$C$17,NA(),ABS('Data In'!C78-INDIRECT("ZeroVal_"&I$2,0))) -> 0 | J73: =IF(CommandCell='Reference Cells'!$C$17,NA(),ABS('Data In'!D78-INDIRECT("ZeroVal_"&J$2,0))) -> 0 | K73: =IF(CommandCell='Reference Cells'!$C$17,NA(),ABS('Data In'!E78-INDIRECT("ZeroVal_"&K$2,0))) -> 0 | L73: =IF(CommandCell='Reference Cells'!$C$17,NA(),ABS('Data In'!F78-INDIRECT("ZeroVal_"&L$2,0))) -> 0 | M73: =MAX(BackendTable[[#This Row],[S1]:[S5]]) -> 0 | N73: =IF(ISERROR(BackendTable[[#This Row],[T0Time]]),0,COUNTIFS(BackendTable[T0Time],"<="&3,BackendTable[T0Time],">="&0)-COUNTIFS(BackendTable[T0Time],">"&BackendTable[[#This Row],[T0Time]])) -> 500 | AM73: =MATCH(MAX(BackendTable[[#This Row],[T1S1]:[T1S5]]),BackendTable[[#This Row],[T1S1]:[T1S5]],0) ->  | AN73: =MATCH(MAX(BackendTable[[#This Row],[T2S1]:[T2S5]]),BackendTable[[#This Row],[T2S1]:[T2S5]],0) ->  | AO73: =MATCH(MAX(BackendTable[[#This Row],[T3S1]:[T3S5]]),BackendTable[[#This Row],[T3S1]:[T3S5]],0) -> 
B74: =ROW()-ROW(BackendTable[[#Headers],[Row'#]]) -> 72 | C74: ='Data In'!A79 -> 0 | D74: =IF(BackendTable[[#This Row],[Time]]-'Reference Cells'!$C$3<=0,NA(),'Reference Cells'!$C$4-BackendTable[[#This Row],[Time]])*86400 ->  | E74: =IFERROR(8-BackendTable[[#This Row],[Column1]],"") ->  | F74: =IF(ISERROR(BackendTable[[#This Row],[Column1]]),-9,(BackendTable[[#This Row],[Net Time]]-NetTimeMin)*RangeAdj) -> -9 | G74: =IF(AND(BackendTable[[#This Row],[Time]]>='Reference Cells'!$C$6,BackendTable[[#This Row],[Time]]<='Reference Cells'!$C$7),(BackendTable[[#This Row],[Time]]-'Reference Cells'!$C$6)*86400,NA()) -> 2 | H74: =IF(CommandCell='Reference Cells'!$C$17,NA(),ABS('Data In'!B79-INDIRECT("ZeroVal_"&H$2,0))) -> 0 | I74: =IF(CommandCell='Reference Cells'!$C$17,NA(),ABS('Data In'!C79-INDIRECT("ZeroVal_"&I$2,0))) -> 0 | J74: =IF(CommandCell='Reference Cells'!$C$17,NA(),ABS('Data In'!D79-INDIRECT("ZeroVal_"&J$2,0))) -> 0 | K74: =IF(CommandCell='Reference Cells'!$C$17,NA(),ABS('Data In'!E79-INDIRECT("ZeroVal_"&K$2,0))) -> 0 | L74: =IF(CommandCell='Reference Cells'!$C$17,NA(),ABS('Data In'!F79-INDIRECT("ZeroVal_"&L$2,0))) -> 0 | M74: =MAX(BackendTable[[#This Row],[S1]:[S5]]) -> 0 | N74: =IF(ISERROR(BackendTable[[#This Row],[T0Time]]),0,COUNTIFS(BackendTable[T0Time],"<="&3,BackendTable[T0Time],">="&0)-COUNTIFS(BackendTable[T0Time],">"&BackendTable[[#This Row],[T0Time]])) -> 500 | AM74: =MATCH(MAX(BackendTable[[#This Row],[T1S1]:[T1S5]]),BackendTable[[#This Row],[T1S1]:[T1S5]],0) ->  | AN74: =MATCH(MAX(BackendTable[[#This Row],[T2S1]:[T2S5]]),BackendTable[[#This Row],[T2S1]:[T2S5]],0) ->  | AO74: =MATCH(MAX(BackendTable[[#This Row],[T3S1]:[T3S5]]),BackendTable[[#This Row],[T3S1]:[T3S5]],0) -> 
B75: =ROW()-ROW(BackendTable[[#Headers],[Row'#]]) -> 73 | C75: ='Data In'!A80 -> 0 | D75: =IF(BackendTable[[#This Row],[Time]]-'Reference Cells'!$C$3<=0,NA(),'Reference Cells'!$C$4-BackendTable[[#This Row],[Time]])*86400 ->  | E75: =IFERROR(8-BackendTable[[#This Row],[Column1]],"") ->  | F75: =IF(ISERROR(BackendTable[[#This Row],[Column1]]),-9,(BackendTable[[#This Row],[Net Time]]-NetTimeMin)*RangeAdj) -> -9 | G75: =IF(AND(BackendTable[[#This Row],[Time]]>='Reference Cells'!$C$6,BackendTable[[#This Row],[Time]]<='Reference Cells'!$C$7),(BackendTable[[#This Row],[Time]]-'Reference Cells'!$C$6)*86400,NA()) -> 2 | H75: =IF(CommandCell='Reference Cells'!$C$17,NA(),ABS('Data In'!B80-INDIRECT("ZeroVal_"&H$2,0))) -> 0 | I75: =IF(CommandCell='Reference Cells'!$C$17,NA(),ABS('Data In'!C80-INDIRECT("ZeroVal_"&I$2,0))) -> 0 | J75: =IF(CommandCell='Reference Cells'!$C$17,NA(),ABS('Data In'!D80-INDIRECT("ZeroVal_"&J$2,0))) -> 0 | K75: =IF(CommandCell='Reference Cells'!$C$17,NA(),ABS('Data In'!E80-INDIRECT("ZeroVal_"&K$2,0))) -> 0 | L75: =IF(CommandCell='Reference Cells'!$C$17,NA(),ABS('Data In'!F80-INDIRECT("ZeroVal_"&L$2,0))) -> 0 | M75: =MAX(BackendTable[[#This Row],[S1]:[S5]]) -> 0 | N75: =IF(ISERROR(BackendTable[[#This Row],[T0Time]]),0,COUNTIFS(BackendTable[T0Time],"<="&3,BackendTable[T0Time],">="&0)-COUNTIFS(BackendTable[T0Time],">"&BackendTable[[#This Row],[T0Time]])) -> 500 | AM75: =MATCH(MAX(BackendTable[[#This Row],[T1S1]:[T1S5]]),BackendTable[[#This Row],[T1S1]:[T1S5]],0) ->  | AN75: =MATCH(MAX(BackendTable[[#This Row],[T2S1]:[T2S5]]),BackendTable[[#This Row],[T2S1]:[T2S5]],0) ->  | AO75: =MATCH(MAX(BackendTable[[#This Row],[T3S1]:[T3S5]]),BackendTable[[#This Row],[T3S1]:[T3S5]],0) -> 
